Workbook

Sheet Datos
A1: Grupo Institucional: | C1: Sector Municipal
A2: Nombre de la Entidad: | C2: Municipalidad de San Jose
A3: Código de Entidad: | C3: 15101
A4: Período Contable: | C4: Del 01 de Enero 2021 al 30 de Junio del 2021
A5: Comparativo | C5: Periodo Actual | D5: 2021-06-30 | E5: Periodo Anterior | F5: 2020-06-30

Sheet AnalisisBS
A1: =+Datos!C2 -> Municipalidad de San Jose
A2: Análisis al Estado de Situación Financiera o Balance General Comparativo
A3: =+Datos!C4 -> Del 01 de Enero 2021 al 30 de Junio del 2021
A4: - En miles de colones -
A6: Cuenta | B6: Descripción | C6: Nota | D6: =+Datos!D5 -> 2021-06-30 | E6: % análisis vertical | F6: =+Datos!F5 -> 2020-06-30 | G6: % | H6: Monto variación Absoluta | I6: % Variación relativa
A8: 1. | B8: ACTIVO
A9: 1.1. | B9: Activo Corriente
A10: 1.1.1. | B10: Efectivo y equivalentes de efectivo | C10: 03 | D10: =SUM(D11:D12) -> 33997.34189 | E10: =+IFERROR(D10/$D$89,0) -> 0.01476271149 | F10: =SUM(F11:F12) -> 73393.89875 | G10: =+IFERROR(F10/$F$89,0) -> 0.03115099292 | H10: =+D10-F10 -> -39396.55686 | I10: =+IFERROR(H10/F10,0) -> -0.536782451 | J10: =+FIXED(E10,4) -> 0.0148 | K10: =+FIXED(I10,4) -> -0.5368 | L10: =+FIXED(H10,2) -> -39,396.56 | M10: =IF(H10 < 0, "Disminución", "Aumento") -> Disminución | N10: Activo | O10: =+CONCATENATE(Texto!$B$4,AnalisisBS!B10,Texto!$B$6,(AnalisisBS!J10*100),Texto!$B$8,N10,Texto!$B$12,AnalisisBS!L10,Texto!$B$14,AnalisisBS!M10,Texto!$B$16,(AnalisisBS!K10*100),Texto!$B$18) -> La cuenta Efectivo y equivalentes de efectivo, representa el 1.48 % del total de Activo, que comparado al periodo anterior genera una variación absoluta de -39,396.56 que corresponde a un(a) Disminución del -53.68 % de recursos disponibles, producto de
A11: 1.1.1.01. | B11: Efectivo | D11: =SUMIF(BCPAC!$B$10:$B$8000,$A11,BCPAC!$G$10:$G$8000)/1000 -> 33997.34189 | E11: =+IFERROR(D11/$D$89,0) -> 0.01476271149 | F11: =SUMIF(BCPAN!$B$10:$B$8000,$A11,BCPAN!$G$10:$G$8000)/1000 -> 73393.89875 | G11: =+IFERROR(F11/$F$89,0) -> 0.03115099292 | H11: -39396.55686 | I11: =+IFERROR(H11/F11,0) -> -0.536782451
A12: 1.1.1.02. | B12: Equivalentes de efectivo | D12: =SUMIF(BCPAC!$B$10:$B$8000,$A12,BCPAC!$G$10:$G$8000)/1000 -> 0 | E12: =+IFERROR(D12/$D$89,0) -> 0 | F12: =SUMIF(BCPAN!$B$10:$B$8000,$A12,BCPAN!$G$10:$G$8000)/1000 -> 0 | G12: =+IFERROR(F12/$F$89,0) -> 0 | H12: 0 | I12: =+IFERROR(H12/F12,0) -> 0
A13: 1.1.2. | B13: Inversiones a corto plazo | C13: 04 | D13: =SUM(D14:D18) -> 0 | E13: =+IFERROR(D13/$D$89,0) -> 0 | F13: =SUM(F14:F18) -> 0 | G13: =+IFERROR(F13/$F$89,0) -> 0 | H13: 0 | I13: =+IFERROR(H13/F13,0) -> 0 | J13: =+FIXED(E13,4) -> 0.0000 | K13: =+FIXED(I13,4) -> 0.0000 | L13: =+FIXED(H13,2) -> 0.00 | M13: =IF(H13 < 0, "Disminución", "Aumento") -> Aumento | N13: Activo | O13: =+CONCATENATE(Texto!$B$4,AnalisisBS!B13,Texto!$B$6,(AnalisisBS!J13*100),Texto!$B$8,N13,Texto!$B$12,AnalisisBS!L13,Texto!$B$14,AnalisisBS!M13,Texto!$B$16,(AnalisisBS!K13*100),Texto!$B$18) -> La cuenta Inversiones a corto plazo, representa el 0 % del total de Activo, que comparado al periodo anterior genera una variación absoluta de 0.00 que corresponde a un(a) Aumento del 0 % de recursos disponibles, producto de
A14: 1.1.2.01. | B14: Títulos y valores a valor razonable a corto plazo | D14: =SUMIF(BCPAC!$B$10:$B$8000,$A14,BCPAC!$G$10:$G$8000)/1000 -> 0 | E14: =+IFERROR(D14/$D$89,0) -> 0 | F14: =SUMIF(BCPAN!$B$10:$B$8000,$A14,BCPAN!$G$10:$G$8000)/1000 -> 0 | G14: =+IFERROR(F14/$F$89,0) -> 0 | H14: 0 | I14: =+IFERROR(H14/F14,0) -> 0
A15: 1.1.2.02. | B15: Títulos y valores a costo amortizado a corto plazo | D15: =SUMIF(BCPAC!$B$10:$B$8000,$A15,BCPAC!$G$10:$G$8000)/1000 -> 0 | E15: 0 | F15: =SUMIF(BCPAN!$B$10:$B$8000,$A15,BCPAN!$G$10:$G$8000)/1000 -> 0 | G15: 0 | H15: 0 | I15: 0
A16: 1.1.2.03. | B16: Instrumentos Derivados a corto plazo | D16: =SUMIF(BCPAC!$B$10:$B$8000,$A16,BCPAC!$G$10:$G$8000)/1000 -> 0 | E16: 0 | F16: =SUMIF(BCPAN!$B$10:$B$8000,$A16,BCPAN!$G$10:$G$8000)/1000 -> 0 | G16: 0 | H16: 0 | I16: 0
A17: 1.1.2.98. | B17: Otras inversiones a corto plazo | D17: =SUMIF(BCPAC!$B$10:$B$8000,$A17,BCPAC!$G$10:$G$8000)/1000 -> 0 | E17: 0 | F17: =SUMIF(BCPAN!$B$10:$B$8000,$A17,BCPAN!$G$10:$G$8000)/1000 -> 0 | G17: 0 | H17: 0 | I17: 0
A18: 1.1.2.99. | B18: Previsiones para deterioro de inversiones a corto plazo * | D18: =SUMIF(BCPAC!$B$10:$B$8000,$A18,BCPAC!$G$10:$G$8000)/1000 -> 0 | E18: 0 | F18: =SUMIF(BCPAN!$B$10:$B$8000,$A18,BCPAN!$G$10:$G$8000)/1000 -> 0 | G18: 0 | H18: 0 | I18: 0
A19: 1.1.3. | B19: Cuentas a cobrar a corto plazo | C19: 05 | D19: =SUM(D20:D34) -> 301901.0661 | E19: =+IFERROR(D19/$D$89,0) -> 0.1310949059 | F19: =SUM(F20:F34) -> 314888.0073 | G19: =+IFERROR(F19/$F$89,0) -> 0.1336497209 | H19: -12986.94114 | I19: =+IFERROR(H19/F19,0) -> -0.04124304781 | J19: =+FIXED(E19,4) -> 0.1311 | K19: =+FIXED(I19,4) -> -0.0412 | L19: =+FIXED(H19,2) -> -12,986.94 | M19: =IF(H19 < 0, "Disminución", "Aumento") -> Disminución | N19: Activo | O19: =+CONCATENATE(Texto!$B$4,AnalisisBS!B19,Texto!$B$6,(AnalisisBS!J19*100),Texto!$B$8,N19,Texto!$B$12,AnalisisBS!L19,Texto!$B$14,AnalisisBS!M19,Texto!$B$16,(AnalisisBS!K19*100),Texto!$B$18) -> La cuenta Cuentas a cobrar a corto plazo, representa el 13.11 % del total de Activo, que comparado al periodo anterior genera una variación absoluta de -12,986.94 que corresponde a un(a) Disminución del -4.12 % de recursos disponibles, producto de
A20: 1.1.3.01. | B20: Impuestos a cobrar a corto plazo | D20: =SUMIF(BCPAC!$B$10:$B$8000,$A20,BCPAC!$G$10:$G$8000)/1000 -> 0 | E20: =+IFERROR(D20/$D$89,0) -> 0 | F20: =SUMIF(BCPAN!$B$10:$B$8000,$A20,BCPAN!$G$10:$G$8000)/1000 -> 0 | G20: =+IFERROR(F20/$F$89,0) -> 0 | H20: 0 | I20: =+IFERROR(H20/F20,0) -> 0
A21: 1.1.3.02. | B21: Contribuciones sociales a cobrar a corto plazo | D21: =SUMIF(BCPAC!$B$10:$B$8000,$A21,BCPAC!$G$10:$G$8000)/1000 -> 0 | E21: 0 | F21: =SUMIF(BCPAN!$B$10:$B$8000,$A21,BCPAN!$G$10:$G$8000)/1000 -> 0 | G21: 0 | H21: 0 | I21: 0
A22: 1.1.3.03. | B22: Ventas a cobrar a corto plazo | D22: =SUMIF(BCPAC!$B$10:$B$8000,$A22,BCPAC!$G$10:$G$8000)/1000 -> 0 | E22: 0 | F22: =SUMIF(BCPAN!$B$10:$B$8000,$A22,BCPAN!$G$10:$G$8000)/1000 -> 0 | G22: 0 | H22: 0 | I22: 0
A23: 1.1.3.04. | B23: Servicios y derechos a cobrar a corto plazo | D23: =SUMIF(BCPAC!$B$10:$B$8000,$A23,BCPAC!$G$10:$G$8000)/1000 -> 0 | E23: 0 | F23: =SUMIF(BCPAN!$B$10:$B$8000,$A23,BCPAN!$G$10:$G$8000)/1000 -> 0 | G23: 0 | H23: 0 | I23: 0
A24: 1.1.3.05. | B24: Ingresos de la propiedad a cobrar a corto plazo | D24: =SUMIF(BCPAC!$B$10:$B$8000,$A24,BCPAC!$G$10:$G$8000)/1000 -> 0 | E24: 0 | F24: =SUMIF(BCPAN!$B$10:$B$8000,$A24,BCPAN!$G$10:$G$8000)/1000 -> 0 | G24: 0 | H24: 0 | I24: 0
A25: 1.1.3.06. | B25: Transferencias a cobrar a corto plazo | D25: =SUMIF(BCPAC!$B$10:$B$8000,$A25,BCPAC!$G$10:$G$8000)/1000 -> 301901.0661 | E25: 0.1310949059 | F25: =SUMIF(BCPAN!$B$10:$B$8000,$A25,BCPAN!$G$10:$G$8000)/1000 -> 314888.0073 | G25: 0.1336497209 | H25: -12986.94114 | I25: -0.04124304781 | J25: =+FIXED(E25,4) -> 0.1311 | K25: =+FIXED(I25,4) -> -0.0412 | L25: =+FIXED(H25,2) -> -12,986.94 | M25: =IF(H25 < 0, "Disminución", "Aumento") -> Disminución | N25: Activo | O25: =+CONCATENATE(Texto!$B$4,AnalisisBS!B25,Texto!$B$6,(AnalisisBS!J25*100),Texto!$B$8,N25,Texto!$B$12,AnalisisBS!L25,Texto!$B$14,AnalisisBS!M25,Texto!$B$16,(AnalisisBS!K25*100),Texto!$B$18) -> La cuenta Transferencias a cobrar a corto plazo, representa el 13.11 % del total de Activo, que comparado al periodo anterior genera una variación absoluta de -12,986.94 que corresponde a un(a) Disminución del -4.12 % de recursos disponibles, producto de
A26: 1.1.3.07. | B26: Préstamos a corto plazo | D26: =SUMIF(BCPAC!$B$10:$B$8000,$A26,BCPAC!$G$10:$G$8000)/1000 -> 0 | E26: 0 | F26: =SUMIF(BCPAN!$B$10:$B$8000,$A26,BCPAN!$G$10:$G$8000)/1000 -> 0 | G26: 0 | H26: 0 | I26: 0
A27: 1.1.3.08. | B27: Documentos a cobrar a corto plazo | D27: =SUMIF(BCPAC!$B$10:$B$8000,$A27,BCPAC!$G$10:$G$8000)/1000 -> 0 | E27: 0 | F27: =SUMIF(BCPAN!$B$10:$B$8000,$A27,BCPAN!$G$10:$G$8000)/1000 -> 0 | G27: 0 | H27: 0 | I27: 0
A28: 1.1.3.09. | B28: Anticipos a corto plazo | D28: =SUMIF(BCPAC!$B$10:$B$8000,$A28,BCPAC!$G$10:$G$8000)/1000 -> 0 | E28: 0 | F28: =SUMIF(BCPAN!$B$10:$B$8000,$A28,BCPAN!$G$10:$G$8000)/1000 -> 0 | G28: 0 | H28: 0 | I28: 0
A29: 1.1.3.10. | B29: Deudores por avales ejecutados a corto plazo | D29: =SUMIF(BCPAC!$B$10:$B$8000,$A29,BCPAC!$G$10:$G$8000)/1000 -> 0 | E29: 0 | F29: =SUMIF(BCPAN!$B$10:$B$8000,$A29,BCPAN!$G$10:$G$8000)/1000 -> 0 | G29: 0 | H29: 0 | I29: 0
A30: 1.1.3.11. | B30: Planillas salariales | D30: =SUMIF(BCPAC!$B$10:$B$8000,$A30,BCPAC!$G$10:$G$8000)/1000 -> 0 | E30: 0 | F30: =SUMIF(BCPAN!$B$10:$B$8000,$A30,BCPAN!$G$10:$G$8000)/1000 -> 0 | G30: 0 | H30: 0 | I30: 0
A31: 1.1.3.12. | B31: Beneficios Sociales | D31: =SUMIF(BCPAC!$B$10:$B$8000,$A31,BCPAC!$G$10:$G$8000)/1000 -> 0 | E31: 0 | F31: =SUMIF(BCPAN!$B$10:$B$8000,$A31,BCPAN!$G$10:$G$8000)/1000 -> 0 | G31: 0 | H31: 0 | I31: 0
A32: 1.1.3.97. | B32: Cuentas a cobrar en gestión judicial | D32: =SUMIF(BCPAC!$B$10:$B$8000,$A32,BCPAC!$G$10:$G$8000)/1000 -> 0 | E32: 0 | F32: =SUMIF(BCPAN!$B$10:$B$8000,$A32,BCPAN!$G$10:$G$8000)/1000 -> 0 | G32: 0 | H32: 0 | I32: 0
A33: 1.1.3.98. | B33: Otras cuentas a cobrar a corto plazo | D33: =SUMIF(BCPAC!$B$10:$B$8000,$A33,BCPAC!$G$10:$G$8000)/1000 -> 0 | E33: 0 | F33: =SUMIF(BCPAN!$B$10:$B$8000,$A33,BCPAN!$G$10:$G$8000)/1000 -> 0 | G33: 0 | H33: 0 | I33: 0
A34: 1.1.3.99. | B34: Previsiones para deterioro de cuentas a cobrar a corto plazo * | D34: =SUMIF(BCPAC!$B$10:$B$8000,$A34,BCPAC!$G$10:$G$8000)/1000 -> 0 | E34: 0 | F34: =SUMIF(BCPAN!$B$10:$B$8000,$A34,BCPAN!$G$10:$G$8000)/1000 -> 0 | G34: 0 | H34: 0 | I34: 0
A35: 1.1.4. | B35: Inventarios | C35: 06 | D35: =SUM(D36:D40) -> 21730.42237 | E35: =+IFERROR(D35/$D$89,0) -> 0.009436030529 | F35: =SUM(F36:F40) -> 34928.95411 | G35: =+IFERROR(F35/$F$89,0) -> 0.0148250961 | H35: -13198.53174 | I35: =+IFERROR(H35/F35,0) -> -0.3778679344 | J35: =+FIXED(E35,4) -> 0.0094 | K35: =+FIXED(I35,4) -> -0.3779 | L35: =+FIXED(H35,2) -> -13,198.53 | M35: =IF(H35 < 0, "Disminución", "Aumento") -> Disminución | N35: Activo | O35: =+CONCATENATE(Texto!$B$4,AnalisisBS!B35,Texto!$B$6,(AnalisisBS!J35*100),Texto!$B$8,N35,Texto!$B$12,AnalisisBS!L35,Texto!$B$14,AnalisisBS!M35,Texto!$B$16,(AnalisisBS!K35*100),Texto!$B$18) -> La cuenta Inventarios, representa el 0.94 % del total de Activo, que comparado al periodo anterior genera una variación absoluta de -13,198.53 que corresponde a un(a) Disminución del -37.79 % de recursos disponibles, producto de
A36: 1.1.4.01. | B36: Materiales y suministros para consumo y prestación de servicios | D36: =SUMIF(BCPAC!$B$10:$B$8000,$A36,BCPAC!$G$10:$G$8000)/1000 -> 21730.42237 | E36: =+IFERROR(D36/$D$89,0) -> 0.009436030529 | F36: =SUMIF(BCPAN!$B$10:$B$8000,$A36,BCPAN!$G$10:$G$8000)/1000 -> 34928.95411 | G36: =+IFERROR(F36/$F$89,0) -> 0.0148250961 | H36: -13198.53174 | I36: =+IFERROR(H36/F36,0) -> -0.3778679344
A37: 1.1.4.02. | B37: Bienes para la venta | D37: =SUMIF(BCPAC!$B$10:$B$8000,$A37,BCPAC!$G$10:$G$8000)/1000 -> 0 | E37: 0 | F37: =SUMIF(BCPAN!$B$10:$B$8000,$A37,BCPAN!$G$10:$G$8000)/1000 -> 0 | G37: 0 | H37: 0 | I37: 0
A38: 1.1.4.03. | B38: Materias primas y bienes en producción | D38: =SUMIF(BCPAC!$B$10:$B$8000,$A38,BCPAC!$G$10:$G$8000)/1000 -> 0 | E38: 0 | F38: =SUMIF(BCPAN!$B$10:$B$8000,$A38,BCPAN!$G$10:$G$8000)/1000 -> 0 | G38: 0 | H38: 0 | I38: 0
A39: 1.1.4.04. | B39: Bienes a Transferir sin contraprestación - Donaciones | D39: =SUMIF(BCPAC!$B$10:$B$8000,$A39,BCPAC!$G$10:$G$8000)/1000 -> 0 | E39: 0 | F39: =SUMIF(BCPAN!$B$10:$B$8000,$A39,BCPAN!$G$10:$G$8000)/1000 -> 0 | G39: 0 | H39: 0 | I39: 0
A40: 1.1.4.99. | B40: Previsiones para deterioro y pérdidas de inventario * | D40: =SUMIF(BCPAC!$B$10:$B$8000,$A40,BCPAC!$G$10:$G$8000)/1000 -> 0 | E40: 0 | F40: =SUMIF(BCPAN!$B$10:$B$8000,$A40,BCPAN!$G$10:$G$8000)/1000 -> 0 | G40: 0 | H40: 0 | I40: 0
A41: 1.1.9. | B41: Otros activos a corto plazo | C41: 07 | D41: =SUM(D42:D44) -> 12855.231 | E41: =+IFERROR(D41/$D$89,0) -> 0.005582144245 | F41: =SUM(F42:F44) -> 13799.3525 | G41: =+IFERROR(F41/$F$89,0) -> 0.005856938237 | H41: -944.1215 | I41: =+IFERROR(H41/F41,0) -> -0.06841781163 | J41: =+FIXED(E41,4) -> 0.0056 | K41: =+FIXED(I41,4) -> -0.0684 | L41: =+FIXED(H41,2) -> -944.12 | M41: =IF(H41 < 0, "Disminución", "Aumento") -> Disminución | N41: Activo | O41: =+CONCATENATE(Texto!$B$4,AnalisisBS!B41,Texto!$B$6,(AnalisisBS!J41*100),Texto!$B$8,N41,Texto!$B$12,AnalisisBS!L41,Texto!$B$14,AnalisisBS!M41,Texto!$B$16,(AnalisisBS!K41*100),Texto!$B$18) -> La cuenta Otros activos a corto plazo, representa el 0.56 % del total de Activo, que comparado al periodo anterior genera una variación absoluta de -944.12 que corresponde a un(a) Disminución del -6.84 % de recursos disponibles, producto de
A42: 1.1.9.01. | B42: Gastos a devengar a corto plazo | D42: =SUMIF(BCPAC!$B$10:$B$8000,$A42,BCPAC!$G$10:$G$8000)/1000 -> 12855.231 | E42: =+IFERROR(D42/$D$89,0) -> 0.005582144245 | F42: =SUMIF(BCPAN!$B$10:$B$8000,$A42,BCPAN!$G$10:$G$8000)/1000 -> 13799.3525 | G42: =+IFERROR(F42/$F$89,0) -> 0.005856938237 | H42: -944.1215 | I42: =+IFERROR(H42/F42,0) -> -0.06841781163 | J42: =+FIXED(E42,4) -> 0.0056 | K42: =+FIXED(I42,4) -> -0.0684 | L42: =+FIXED(H42,2) -> -944.12 | M42: =IF(H42 < 0, "Disminución", "Aumento") -> Disminución | N42: Activo | O42: =+CONCATENATE(Texto!$B$4,AnalisisBS!B42,Texto!$B$6,(AnalisisBS!J42*100),Texto!$B$8,N42,Texto!$B$12,AnalisisBS!L42,Texto!$B$14,AnalisisBS!M42,Texto!$B$16,(AnalisisBS!K42*100),Texto!$B$18) -> La cuenta Gastos a devengar a corto plazo, representa el 0.56 % del total de Activo, que comparado al periodo anterior genera una variación absoluta de -944.12 que corresponde a un(a) Disminución del -6.84 % de recursos disponibles, producto de
A43: 1.1.9.02. | B43: Cuentas transitorias | D43: =SUMIF(BCPAC!$B$10:$B$8000,$A43,BCPAC!$G$10:$G$8000)/1000 -> 0 | E43: 0 | F43: =SUMIF(BCPAN!$B$10:$B$8000,$A43,BCPAN!$G$10:$G$8000)/1000 -> 0 | G43: 0 | H43: 0 | I43: 0
A44: 1.1.9.99. | B44: Activos a corto plazo sujetos a depuración contable | D44: =SUMIF(BCPAC!$B$10:$B$8000,$A44,BCPAC!$G$10:$G$8000)/1000 -> 0 | E44: 0 | F44: =SUMIF(BCPAN!$B$10:$B$8000,$A44,BCPAN!$G$10:$G$8000)/1000 -> 0 | G44: 0 | H44: 0 | I44: 0
B45: Total del Activo Corriente | D45: =+D41++D35+D19+D13+D10 -> 370484.0614 | E45: 0.1608757922 | F45: 437010.2126 | G45: 0.1854827482 | H45: -66526.15124 | I45: =+IFERROR(H45/F45,0) -> -0.1522301981
A47: 1.2. | B47: Activo No Corriente
A48: 1.2.2. | B48: Inversiones a largo plazo | C48: 08 | D48: =SUM(D49:D53) -> 0 | E48: =+IFERROR(D48/$D$89,0) -> 0 | F48: =SUM(F49:F53) -> 0 | G48: =+IFERROR(F48/$F$89,0) -> 0 | H48: =+D48-F48 -> 0 | I48: =+IFERROR(H48/F48,0) -> 0 | J48: =+FIXED(E48,4) -> 0.0000 | K48: =+FIXED(I48,4) -> 0.0000 | L48: =+FIXED(H48,2) -> 0.00 | M48: =IF(H48 < 0, "Disminución", "Aumento") -> Aumento | N48: Activo | O48: =+CONCATENATE(Texto!$B$4,AnalisisBS!B48,Texto!$B$6,(AnalisisBS!J48*100),Texto!$B$8,N48,Texto!$B$12,AnalisisBS!L48,Texto!$B$14,AnalisisBS!M48,Texto!$B$16,(AnalisisBS!K48*100),Texto!$B$18) -> La cuenta Inversiones a largo plazo, representa el 0 % del total de Activo, que comparado al periodo anterior genera una variación absoluta de 0.00 que corresponde a un(a) Aumento del 0 % de recursos disponibles, producto de
A49: 1.2.2.01. | B49: Títulos y valores a valor razonable a largo plazo | D49: =SUMIF(BCPAC!$B$10:$B$8000,$A49,BCPAC!$G$10:$G$8000)/1000 -> 0 | E49: =+IFERROR(D49/$D$89,0) -> 0 | F49: =SUMIF(BCPAN!$B$10:$B$8000,$A49,BCPAN!$G$10:$G$8000)/1000 -> 0 | G49: =+IFERROR(F49/$F$89,0) -> 0 | H49: 0 | I49: =+IFERROR(H49/F49,0) -> 0
A50: 1.2.2.02. | B50: Títulos y valores a costo amortizado a largo plazo | D50: =SUMIF(BCPAC!$B$10:$B$8000,$A50,BCPAC!$G$10:$G$8000)/1000 -> 0 | E50: =+IFERROR(D50/$D$89,0) -> 0 | F50: =SUMIF(BCPAN!$B$10:$B$8000,$A50,BCPAN!$G$10:$G$8000)/1000 -> 0 | G50: 0 | H50: 0 | I50: 0
A51: 1.2.2.03. | B51: Instrumentos Derivados a largo plazo | D51: =SUMIF(BCPAC!$B$10:$B$8000,$A51,BCPAC!$G$10:$G$8000)/1000 -> 0 | E51: 0 | F51: =SUMIF(BCPAN!$B$10:$B$8000,$A51,BCPAN!$G$10:$G$8000)/1000 -> 0 | G51: 0 | H51: 0 | I51: 0
A52: 1.2.2.98. | B52: Otras inversiones a largo plazo | D52: =SUMIF(BCPAC!$B$10:$B$8000,$A52,BCPAC!$G$10:$G$8000)/1000 -> 0 | E52: 0 | F52: =SUMIF(BCPAN!$B$10:$B$8000,$A52,BCPAN!$G$10:$G$8000)/1000 -> 0 | G52: 0 | H52: 0 | I52: 0
A53: 1.2.2.99. | B53: Previsiones para deterioro de inversiones a largo plazo * | D53: =SUMIF(BCPAC!$B$10:$B$8000,$A53,BCPAC!$G$10:$G$8000)/1000 -> 0 | E53: 0 | F53: =SUMIF(BCPAN!$B$10:$B$8000,$A53,BCPAN!$G$10:$G$8000)/1000 -> 0 | G53: 0 | H53: 0 | I53: 0
A54: 1.2.3. | B54: Cuentas a cobrar a largo plazo | C54: 09 | D54: =SUM(D55:D61) -> 0 | E54: =+IFERROR(D54/$D$89,0) -> 0 | F54: =SUM(F55:F61) -> 0 | G54: =+IFERROR(F54/$F$89,0) -> 0 | H54: 0 | I54: =+IFERROR(H54/F54,0) -> 0 | J54: =+FIXED(E54,4) -> 0.0000 | K54: =+FIXED(I54,4) -> 0.0000 | L54: =+FIXED(H54,2) -> 0.00 | M54: =IF(H54 < 0, "Disminución", "Aumento") -> Aumento | N54: Activo | O54: =+CONCATENATE(Texto!$B$4,AnalisisBS!B54,Texto!$B$6,(AnalisisBS!J54*100),Texto!$B$8,N54,Texto!$B$12,AnalisisBS!L54,Texto!$B$14,AnalisisBS!M54,Texto!$B$16,(AnalisisBS!K54*100),Texto!$B$18) -> La cuenta Cuentas a cobrar a largo plazo, representa el 0 % del total de Activo, que comparado al periodo anterior genera una variación absoluta de 0.00 que corresponde a un(a) Aumento del 0 % de recursos disponibles, producto de
A55: 1.2.3.03. | B55: Ventas a cobrar a largo plazo | D55: =SUMIF(BCPAC!$B$10:$B$8000,$A55,BCPAC!$G$10:$G$8000)/1000 -> 0 | E55: =+IFERROR(D55/$D$89,0) -> 0 | F55: =SUMIF(BCPAN!$B$10:$B$8000,$A55,BCPAN!$G$10:$G$8000)/1000 -> 0 | G55: =+IFERROR(F55/$F$89,0) -> 0 | H55: 0 | I55: =+IFERROR(H55/F55,0) -> 0
A56: 1.2.3.07. | B56: Préstamos a largo plazo | D56: =SUMIF(BCPAC!$B$10:$B$8000,$A56,BCPAC!$G$10:$G$8000)/1000 -> 0 | E56: 0 | F56: =SUMIF(BCPAN!$B$10:$B$8000,$A56,BCPAN!$G$10:$G$8000)/1000 -> 0 | G56: 0 | H56: 0 | I56: 0
A57: 1.2.3.08. | B57: Documentos a cobrar a largo plazo | D57: =SUMIF(BCPAC!$B$10:$B$8000,$A57,BCPAC!$G$10:$G$8000)/1000 -> 0 | E57: 0 | F57: =SUMIF(BCPAN!$B$10:$B$8000,$A57,BCPAN!$G$10:$G$8000)/1000 -> 0 | G57: 0 | H57: 0 | I57: 0
A58: 1.2.3.09. | B58: Anticipos a largo plazo | D58: =SUMIF(BCPAC!$B$10:$B$8000,$A58,BCPAC!$G$10:$G$8000)/1000 -> 0 | E58: 0 | F58: =SUMIF(BCPAN!$B$10:$B$8000,$A58,BCPAN!$G$10:$G$8000)/1000 -> 0 | G58: 0 | H58: 0 | I58: 0
A59: 1.2.3.10. | B59: Deudores por avales ejecutados a largo plazo | D59: =SUMIF(BCPAC!$B$10:$B$8000,$A59,BCPAC!$G$10:$G$8000)/1000 -> 0 | E59: 0 | F59: =SUMIF(BCPAN!$B$10:$B$8000,$A59,BCPAN!$G$10:$G$8000)/1000 -> 0 | G59: 0 | H59: 0 | I59: 0
A60: 1.2.3.98. | B60: Otras cuentas a cobrar a largo plazo | D60: =SUMIF(BCPAC!$B$10:$B$8000,$A60,BCPAC!$G$10:$G$8000)/1000 -> 0 | E60: 0 | F60: =SUMIF(BCPAN!$B$10:$B$8000,$A60,BCPAN!$G$10:$G$8000)/1000 -> 0 | G60: 0 | H60: 0 | I60: 0
A61: 1.2.3.99. | B61: Previsiones para deterioro de cuentas a cobrar a largo plazo * | D61: =SUMIF(BCPAC!$B$10:$B$8000,$A61,BCPAC!$G$10:$G$8000)/1000 -> 0 | E61: 0 | F61: =SUMIF(BCPAN!$B$10:$B$8000,$A61,BCPAN!$G$10:$G$8000)/1000 -> 0 | G61: 0 | H61: 0 | I61: 0
A62: 1.2.5. | B62: Bienes no concesionados | C62: 10 | D62: =SUM(D63:D71) -> 1932435.827 | E62: =+IFERROR(D62/$D$89,0) -> 0.8391242078 | F62: =SUM(F63:F71) -> 1919059.109 | G62: =+IFERROR(F62/$F$89,0) -> 0.8145172518 | H62: 13376.71766 | I62: =+IFERROR(H62/F62,0) -> 0.006970456301 | J62: =+FIXED(E62,4) -> 0.8391 | K62: =+FIXED(I62,4) -> 0.0070 | L62: =+FIXED(H62,2) -> 13,376.72 | M62: =IF(H62 < 0, "Disminución", "Aumento") -> Aumento | N62: Activo | O62: =+CONCATENATE(Texto!$B$4,AnalisisBS!B62,Texto!$B$6,(AnalisisBS!J62*100),Texto!$B$8,N62,Texto!$B$12,AnalisisBS!L62,Texto!$B$14,AnalisisBS!M62,Texto!$B$16,(AnalisisBS!K62*100),Texto!$B$18) -> La cuenta Bienes no concesionados, representa el 83.91 % del total de Activo, que comparado al periodo anterior genera una variación absoluta de 13,376.72 que corresponde a un(a) Aumento del 0.7 % de recursos disponibles, producto de
A63: 1.2.5.01. | B63: Propiedades, planta y equipos explotados | D63: =SUMIF(BCPAC!$B$10:$B$8000,$A63,BCPAC!$G$10:$G$8000)/1000 -> 1893608.453 | E63: =+IFERROR(D63/$D$89,0) -> 0.8222641451 | F63: =SUMIF(BCPAN!$B$10:$B$8000,$A63,BCPAN!$G$10:$G$8000)/1000 -> 1877707.531 | G63: =+IFERROR(F63/$F$89,0) -> 0.7969661647 | H63: 15900.92192 | I63: =+IFERROR(H63/F63,0) -> 0.008468263378 | J63: =+FIXED(E63,4) -> 0.8223 | K63: =+FIXED(I63,4) -> 0.0085 | L63: =+FIXED(H63,2) -> 15,900.92 | M63: Aumento | N63: Activo | O63: =+CONCATENATE(Texto!$B$4,AnalisisBS!B63,Texto!$B$6,(AnalisisBS!J63*100),Texto!$B$8,N63,Texto!$B$12,AnalisisBS!L63,Texto!$B$14,AnalisisBS!M63,Texto!$B$16,(AnalisisBS!K63*100),Texto!$B$18) -> La cuenta Propiedades, planta y equipos explotados, representa el 82.23 % del total de Activo, que comparado al periodo anterior genera una variación absoluta de 15,900.92 que corresponde a un(a) Aumento del 0.85 % de recursos disponibles, producto de
A64: 1.2.5.02. | B64: Propiedades de inversión | D64: =SUMIF(BCPAC!$B$10:$B$8000,$A64,BCPAC!$G$10:$G$8000)/1000 -> 0 | E64: 0 | F64: =SUMIF(BCPAN!$B$10:$B$8000,$A64,BCPAN!$G$10:$G$8000)/1000 -> 0 | G64: 0 | H64: 0 | I64: 0 | J64: 0.0000 | K64: 0.0000 | L64: 0.00 | M64: Aumento | N64: Activo | O64: =+CONCATENATE(Texto!$B$4,AnalisisBS!B64,Texto!$B$6,(AnalisisBS!J64*100),Texto!$B$8,N64,Texto!$B$12,AnalisisBS!L64,Texto!$B$14,AnalisisBS!M64,Texto!$B$16,(AnalisisBS!K64*100),Texto!$B$18) -> La cuenta Propiedades de inversión, representa el 0 % del total de Activo, que comparado al periodo anterior genera una variación absoluta de 0.00 que corresponde a un(a) Aumento del 0 % de recursos disponibles, producto de
A65: 1.2.5.03. | B65: Activos biológicos no concesionados | D65: =SUMIF(BCPAC!$B$10:$B$8000,$A65,BCPAC!$G$10:$G$8000)/1000 -> 0 | E65: 0 | F65: =SUMIF(BCPAN!$B$10:$B$8000,$A65,BCPAN!$G$10:$G$8000)/1000 -> 0 | G65: 0 | H65: 0 | I65: 0 | J65: 0.0000 | K65: 0.0000 | L65: 0.00 | M65: Aumento | N65: Activo | O65: =+CONCATENATE(Texto!$B$4,AnalisisBS!B65,Texto!$B$6,(AnalisisBS!J65*100),Texto!$B$8,N65,Texto!$B$12,AnalisisBS!L65,Texto!$B$14,AnalisisBS!M65,Texto!$B$16,(AnalisisBS!K65*100),Texto!$B$18) -> La cuenta Activos biológicos no concesionados, representa el 0 % del total de Activo, que comparado al periodo anterior genera una variación absoluta de 0.00 que corresponde a un(a) Aumento del 0 % de recursos disponibles, producto de
A66: 1.2.5.04. | B66: Bienes de infraestructura y de beneficio y uso público en servicio | D66: =SUMIF(BCPAC!$B$10:$B$8000,$A66,BCPAC!$G$10:$G$8000)/1000 -> 0 | E66: 0 | F66: =SUMIF(BCPAN!$B$10:$B$8000,$A66,BCPAN!$G$10:$G$8000)/1000 -> 0 | G66: 0 | H66: 0 | I66: 0 | J66: 0.0000 | K66: 0.0000 | L66: 0.00 | M66: Aumento | N66: Activo | O66: =+CONCATENATE(Texto!$B$4,AnalisisBS!B66,Texto!$B$6,(AnalisisBS!J66*100),Texto!$B$8,N66,Texto!$B$12,AnalisisBS!L66,Texto!$B$14,AnalisisBS!M66,Texto!$B$16,(AnalisisBS!K66*100),Texto!$B$18) -> La cuenta Bienes de infraestructura y de beneficio y uso público en servicio, representa el 0 % del total de Activo, que comparado al periodo anterior genera una variación absoluta de 0.00 que corresponde a un(a) Aumento del 0 % de recursos disponibles, producto de
A67: 1.2.5.05. | B67: Bienes históricos y culturales | D67: =SUMIF(BCPAC!$B$10:$B$8000,$A67,BCPAC!$G$10:$G$8000)/1000 -> 0 | E67: 0 | F67: =SUMIF(BCPAN!$B$10:$B$8000,$A67,BCPAN!$G$10:$G$8000)/1000 -> 0 | G67: 0 | H67: 0 | I67: 0 | J67: 0.0000 | K67: 0.0000 | L67: 0.00 | M67: Aumento | N67: Activo | O67: =+CONCATENATE(Texto!$B$4,AnalisisBS!B67,Texto!$B$6,(AnalisisBS!J67*100),Texto!$B$8,N67,Texto!$B$12,AnalisisBS!L67,Texto!$B$14,AnalisisBS!M67,Texto!$B$16,(AnalisisBS!K67*100),Texto!$B$18) -> La cuenta Bienes históricos y culturales, representa el 0 % del total de Activo, que comparado al periodo anterior genera una variación absoluta de 0.00 que corresponde a un(a) Aumento del 0 % de recursos disponibles, producto de
A68: 1.2.5.06. | B68: Recursos naturales en explotación | D68: =SUMIF(BCPAC!$B$10:$B$8000,$A68,BCPAC!$G$10:$G$8000)/1000 -> 0 | E68: 0 | F68: =SUMIF(BCPAN!$B$10:$B$8000,$A68,BCPAN!$G$10:$G$8000)/1000 -> 0 | G68: 0 | H68: 0 | I68: 0 | J68: 0.0000 | K68: 0.0000 | L68: 0.00 | M68: Aumento | N68: Activo | O68: =+CONCATENATE(Texto!$B$4,AnalisisBS!B68,Texto!$B$6,(AnalisisBS!J68*100),Texto!$B$8,N68,Texto!$B$12,AnalisisBS!L68,Texto!$B$14,AnalisisBS!M68,Texto!$B$16,(AnalisisBS!K68*100),Texto!$B$18) -> La cuenta Recursos naturales en explotación, representa el 0 % del total de Activo, que comparado al periodo anterior genera una variación absoluta de 0.00 que corresponde a un(a) Aumento del 0 % de recursos disponibles, producto de
A69: 1.2.5.07. | B69: Recursos naturales en conservación | D69: =SUMIF(BCPAC!$B$10:$B$8000,$A69,BCPAC!$G$10:$G$8000)/1000 -> 0 | E69: 0 | F69: =SUMIF(BCPAN!$B$10:$B$8000,$A69,BCPAN!$G$10:$G$8000)/1000 -> 0 | G69: 0 | H69: 0 | I69: 0 | J69: 0.0000 | K69: 0.0000 | L69: 0.00 | M69: Aumento | N69: Activo | O69: =+CONCATENATE(Texto!$B$4,AnalisisBS!B69,Texto!$B$6,(AnalisisBS!J69*100),Texto!$B$8,N69,Texto!$B$12,AnalisisBS!L69,Texto!$B$14,AnalisisBS!M69,Texto!$B$16,(AnalisisBS!K69*100),Texto!$B$18) -> La cuenta Recursos naturales en conservación, representa el 0 % del total de Activo, que comparado al periodo anterior genera una variación absoluta de 0.00 que corresponde a un(a) Aumento del 0 % de recursos disponibles, producto de
A70: 1.2.5.08. | B70: Bienes intangibles no concesionados | D70: =SUMIF(BCPAC!$B$10:$B$8000,$A70,BCPAC!$G$10:$G$8000)/1000 -> 38827.37375 | E70: 0.01686006272 | F70: =SUMIF(BCPAN!$B$10:$B$8000,$A70,BCPAN!$G$10:$G$8000)/1000 -> 41351.57801 | G70: 0.01755108716 | H70: -2524.20426 | I70: -0.06104251353 | J70: 0.0169 | K70: -0.0610 | L70: -2,524.20 | M70: Disminución | N70: Activo | O70: =+CONCATENATE(Texto!$B$4,AnalisisBS!B70,Texto!$B$6,(AnalisisBS!J70*100),Texto!$B$8,N70,Texto!$B$12,AnalisisBS!L70,Texto!$B$14,AnalisisBS!M70,Texto!$B$16,(AnalisisBS!K70*100),Texto!$B$18) -> La cuenta Bienes intangibles no concesionados, representa el 1.69 % del total de Activo, que comparado al periodo anterior genera una variación absoluta de -2,524.20 que corresponde a un(a) Disminución del -6.1 % de recursos disponibles, producto de
A71: 1.2.5.99. | B71: Bienes no concesionados en proceso de producción | D71: =SUMIF(BCPAC!$B$10:$B$8000,$A71,BCPAC!$G$10:$G$8000)/1000 -> 0 | E71: 0 | F71: =SUMIF(BCPAN!$B$10:$B$8000,$A71,BCPAN!$G$10:$G$8000)/1000 -> 0 | G71: 0 | H71: 0 | I71: 0 | J71: 0.0000 | K71: 0.0000 | L71: 0.00 | M71: Aumento | N71: Activo | O71: =+CONCATENATE(Texto!$B$4,AnalisisBS!B71,Texto!$B$6,(AnalisisBS!J71*100),Texto!$B$8,N71,Texto!$B$12,AnalisisBS!L71,Texto!$B$14,AnalisisBS!M71,Texto!$B$16,(AnalisisBS!K71*100),Texto!$B$18) -> La cuenta Bienes no concesionados en proceso de producción, representa el 0 % del total de Activo, que comparado al periodo anterior genera una variación absoluta de 0.00 que corresponde a un(a) Aumento del 0 % de recursos disponibles, producto de
A72: 1.2.6. | B72: Bienes concesionados | C72: 11 | D72: =SUM(D73:D78) -> 0 | E72: =+IFERROR(D72/$D$89,0) -> 0 | F72: =SUM(F73:F78) -> 0 | G72: =+IFERROR(F72/$F$89,0) -> 0 | H72: 0 | I72: =+IFERROR(H72/F72,0) -> 0 | J72: =+FIXED(E72,4) -> 0.0000 | K72: =+FIXED(I72,4) -> 0.0000 | L72: =+FIXED(H72,2) -> 0.00 | M72: Aumento | N72: Activo | O72: =+CONCATENATE(Texto!$B$4,AnalisisBS!B72,Texto!$B$6,(AnalisisBS!J72*100),Texto!$B$8,N72,Texto!$B$12,AnalisisBS!L72,Texto!$B$14,AnalisisBS!M72,Texto!$B$16,(AnalisisBS!K72*100),Texto!$B$18) -> La cuenta Bienes concesionados, representa el 0 % del total de Activo, que comparado al periodo anterior genera una variación absoluta de 0.00 que corresponde a un(a) Aumento del 0 % de recursos disponibles, producto de
A73: 1.2.6.01. | B73: Propiedades, planta y equipos concesionados | D73: =SUMIF(BCPAC!$B$10:$B$8000,$A73,BCPAC!$G$10:$G$8000)/1000 -> 0 | E73: =+IFERROR(D73/$D$89,0) -> 0 | F73: =SUMIF(BCPAN!$B$10:$B$8000,$A73,BCPAN!$G$10:$G$8000)/1000 -> 0 | G73: =+IFERROR(F73/$F$89,0) -> 0 | H73: 0 | I73: =+IFERROR(H73/F73,0) -> 0 | J73: =+FIXED(E73,4) -> 0.0000 | K73: =+FIXED(I73,4) -> 0.0000 | L73: =+FIXED(H73,2) -> 0.00 | M73: Aumento | N73: Activo | O73: =+CONCATENATE(Texto!$B$4,AnalisisBS!B73,Texto!$B$6,(AnalisisBS!J73*100),Texto!$B$8,N73,Texto!$B$12,AnalisisBS!L73,Texto!$B$14,AnalisisBS!M73,Texto!$B$16,(AnalisisBS!K73*100),Texto!$B$18) -> La cuenta Propiedades, planta y equipos concesionados, representa el 0 % del total de Activo, que comparado al periodo anterior genera una variación absoluta de 0.00 que corresponde a un(a) Aumento del 0 % de recursos disponibles, producto de
A74: 1.2.6.03. | B74: Activos biológicos concesionados | D74: =SUMIF(BCPAC!$B$10:$B$8000,$A74,BCPAC!$G$10:$G$8000)/1000 -> 0 | E74: 0 | F74: =SUMIF(BCPAN!$B$10:$B$8000,$A74,BCPAN!$G$10:$G$8000)/1000 -> 0 | G74: 0 | H74: 0 | I74: 0 | J74: =+FIXED(E74,4) -> 0.0000 | K74: =+FIXED(I74,4) -> 0.0000 | L74: =+FIXED(H74,2) -> 0.00 | M74: Aumento | N74: Activo | O74: =+CONCATENATE(Texto!$B$4,AnalisisBS!B74,Texto!$B$6,(AnalisisBS!J74*100),Texto!$B$8,N74,Texto!$B$12,AnalisisBS!L74,Texto!$B$14,AnalisisBS!M74,Texto!$B$16,(AnalisisBS!K74*100),Texto!$B$18) -> La cuenta Activos biológicos concesionados, representa el 0 % del total de Activo, que comparado al periodo anterior genera una variación absoluta de 0.00 que corresponde a un(a) Aumento del 0 % de recursos disponibles, producto de
A75: 1.2.6.04. | B75: Bienes de infraestructura y de beneficio y uso público concesionados | D75: =SUMIF(BCPAC!$B$10:$B$8000,$A75,BCPAC!$G$10:$G$8000)/1000 -> 0 | E75: 0 | F75: =SUMIF(BCPAN!$B$10:$B$8000,$A75,BCPAN!$G$10:$G$8000)/1000 -> 0 | G75: 0 | H75: 0 | I75: 0 | J75: 0.0000 | K75: 0.0000 | L75: 0.00 | M75: Aumento | N75: Activo | O75: =+CONCATENATE(Texto!$B$4,AnalisisBS!B75,Texto!$B$6,(AnalisisBS!J75*100),Texto!$B$8,N75,Texto!$B$12,AnalisisBS!L75,Texto!$B$14,AnalisisBS!M75,Texto!$B$16,(AnalisisBS!K75*100),Texto!$B$18) -> La cuenta Bienes de infraestructura y de beneficio y uso público concesionados, representa el 0 % del total de Activo, que comparado al periodo anterior genera una variación absoluta de 0.00 que corresponde a un(a) Aumento del 0 % de recursos disponibles, producto de
A76: 1.2.6.06. | B76: Recursos naturales concesionados | D76: =SUMIF(BCPAC!$B$10:$B$8000,$A76,BCPAC!$G$10:$G$8000)/1000 -> 0 | E76: 0 | F76: =SUMIF(BCPAN!$B$10:$B$8000,$A76,BCPAN!$G$10:$G$8000)/1000 -> 0 | G76: 0 | H76: 0 | I76: 0 | J76: 0.0000 | K76: 0.0000 | L76: 0.00 | M76: Aumento | N76: Activo | O76: =+CONCATENATE(Texto!$B$4,AnalisisBS!B76,Texto!$B$6,(AnalisisBS!J76*100),Texto!$B$8,N76,Texto!$B$12,AnalisisBS!L76,Texto!$B$14,AnalisisBS!M76,Texto!$B$16,(AnalisisBS!K76*100),Texto!$B$18) -> La cuenta Recursos naturales concesionados, representa el 0 % del total de Activo, que comparado al periodo anterior genera una variación absoluta de 0.00 que corresponde a un(a) Aumento del 0 % de recursos disponibles, producto de
A77: 1.2.6.08. | B77: Bienes intangibles concesionados | D77: =SUMIF(BCPAC!$B$10:$B$8000,$A77,BCPAC!$G$10:$G$8000)/1000 -> 0 | E77: 0 | F77: =SUMIF(BCPAN!$B$10:$B$8000,$A77,BCPAN!$G$10:$G$8000)/1000 -> 0 | G77: 0 | H77: 0 | I77: 0 | J77: 0.0000 | K77: 0.0000 | L77: 0.00 | M77: Aumento | N77: Activo | O77: =+CONCATENATE(Texto!$B$4,AnalisisBS!B77,Texto!$B$6,(AnalisisBS!J77*100),Texto!$B$8,N77,Texto!$B$12,AnalisisBS!L77,Texto!$B$14,AnalisisBS!M77,Texto!$B$16,(AnalisisBS!K77*100),Texto!$B$18) -> La cuenta Bienes intangibles concesionados, representa el 0 % del total de Activo, que comparado al periodo anterior genera una variación absoluta de 0.00 que corresponde a un(a) Aumento del 0 % de recursos disponibles, producto de
A78: 1.2.6.99. | B78: Bienes concesionados en proceso de producción | D78: =SUMIF(BCPAC!$B$10:$B$8000,$A78,BCPAC!$G$10:$G$8000)/1000 -> 0 | E78: 0 | F78: =SUMIF(BCPAN!$B$10:$B$8000,$A78,BCPAN!$G$10:$G$8000)/1000 -> 0 | G78: 0 | H78: 0 | I78: 0 | J78: 0.0000 | K78: 0.0000 | L78: 0.00 | M78: Aumento | N78: Activo | O78: =+CONCATENATE(Texto!$B$4,AnalisisBS!B78,Texto!$B$6,(AnalisisBS!J78*100),Texto!$B$8,N78,Texto!$B$12,AnalisisBS!L78,Texto!$B$14,AnalisisBS!M78,Texto!$B$16,(AnalisisBS!K78*100),Texto!$B$18) -> La cuenta Bienes concesionados en proceso de producción, representa el 0 % del total de Activo, que comparado al periodo anterior genera una variación absoluta de 0.00 que corresponde a un(a) Aumento del 0 % de recursos disponibles, producto de
A79: 1.2.7. | B79: Inversiones patrimoniales - Método de participación | C79: 12 | D79: =SUM(D80:D83) -> 0 | E79: =+IFERROR(D79/$D$89,0) -> 0 | F79: =SUM(F80:F83) -> 0 | G79: =+IFERROR(F79/$F$89,0) -> 0 | H79: 0 | I79: =+IFERROR(H79/F79,0) -> 0 | J79: =+FIXED(E79,4) -> 0.0000 | K79: =+FIXED(I79,4) -> 0.0000 | L79: =+FIXED(H79,2) -> 0.00 | M79: Aumento | N79: Activo | O79: =+CONCATENATE(Texto!$B$4,AnalisisBS!B79,Texto!$B$6,(AnalisisBS!J79*100),Texto!$B$8,N79,Texto!$B$12,AnalisisBS!L79,Texto!$B$14,AnalisisBS!M79,Texto!$B$16,(AnalisisBS!K79*100),Texto!$B$18) -> La cuenta Inversiones patrimoniales - Método de participación, representa el 0 % del total de Activo, que comparado al periodo anterior genera una variación absoluta de 0.00 que corresponde a un(a) Aumento del 0 % de recursos disponibles, producto de
A80: 1.2.7.01. | B80: Inversiones patrimoniales en el sector privado interno | D80: =SUMIF(BCPAC!$B$10:$B$8000,$A80,BCPAC!$G$10:$G$8000)/1000 -> 0 | E80: =+IFERROR(D80/$D$89,0) -> 0 | F80: =SUMIF(BCPAN!$B$10:$B$8000,$A80,BCPAN!$G$10:$G$8000)/1000 -> 0 | G80: =+IFERROR(F80/$F$89,0) -> 0 | H80: 0 | I80: =+IFERROR(H80/F80,0) -> 0
A81: 1.2.7.02. | B81: Inversiones patrimoniales en el sector público interno | D81: =SUMIF(BCPAC!$B$10:$B$8000,$A81,BCPAC!$G$10:$G$8000)/1000 -> 0 | E81: 0 | F81: =SUMIF(BCPAN!$B$10:$B$8000,$A81,BCPAN!$G$10:$G$8000)/1000 -> 0 | G81: 0 | H81: 0 | I81: 0
A82: 1.2.7.03. | B82: Inversiones patrimoniales en el sector externo | D82: =SUMIF(BCPAC!$B$10:$B$8000,$A82,BCPAC!$G$10:$G$8000)/1000 -> 0 | E82: 0 | F82: =SUMIF(BCPAN!$B$10:$B$8000,$A82,BCPAN!$G$10:$G$8000)/1000 -> 0 | G82: 0 | H82: 0 | I82: 0
A83: 1.2.7.04. | B83: Inversiones patrimoniales en fideicomisos | D83: =SUMIF(BCPAC!$B$10:$B$8000,$A83,BCPAC!$G$10:$G$8000)/1000 -> 0 | E83: 0 | F83: =SUMIF(BCPAN!$B$10:$B$8000,$A83,BCPAN!$G$10:$G$8000)/1000 -> 0 | G83: 0 | H83: 0 | I83: 0
A84: 1.2.9. | B84: Otros activos a largo plazo | C84: 13 | D84: =SUM(D85:D87) -> 0 | E84: =+IFERROR(D84/$D$89,0) -> 0 | F84: =SUM(F85:F87) -> 0 | G84: =+IFERROR(F84/$F$89,0) -> 0 | H84: 0 | I84: =+IFERROR(H84/F84,0) -> 0 | J84: =+FIXED(E84,4) -> 0.0000 | K84: =+FIXED(I84,4) -> 0.0000 | L84: =+FIXED(H84,2) -> 0.00 | M84: =IF(H84 < 0, "Disminución", "Aumento") -> Aumento | N84: Activo | O84: =+CONCATENATE(Texto!$B$4,AnalisisBS!B84,Texto!$B$6,(AnalisisBS!J84*100),Texto!$B$8,N84,Texto!$B$12,AnalisisBS!L84,Texto!$B$14,AnalisisBS!M84,Texto!$B$16,(AnalisisBS!K84*100),Texto!$B$18) -> La cuenta Otros activos a largo plazo, representa el 0 % del total de Activo, que comparado al periodo anterior genera una variación absoluta de 0.00 que corresponde a un(a) Aumento del 0 % de recursos disponibles, producto de
A85: 1.2.9.01. | B85: Gastos a devengar a largo plazo | D85: =SUMIF(BCPAC!$B$10:$B$8000,$A85,BCPAC!$G$10:$G$8000)/1000 -> 0 | E85: =+IFERROR(D85/$D$89,0) -> 0 | F85: =SUMIF(BCPAN!$B$10:$B$8000,$A85,BCPAN!$G$10:$G$8000)/1000 -> 0 | G85: =+IFERROR(F85/$F$89,0) -> 0 | H85: 0 | I85: =+IFERROR(H85/F85,0) -> 0 | J85: =+FIXED(E85,4) -> 0.0000 | K85: =+FIXED(I85,4) -> 0.0000 | L85: =+FIXED(H85,2) -> 0.00 | M85: =IF(H85 < 0, "Disminución", "Aumento") -> Aumento | N85: Activo | O85: =+CONCATENATE(Texto!$B$4,AnalisisBS!B85,Texto!$B$6,(AnalisisBS!J85*100),Texto!$B$8,N85,Texto!$B$12,AnalisisBS!L85,Texto!$B$14,AnalisisBS!M85,Texto!$B$16,(AnalisisBS!K85*100),Texto!$B$18) -> La cuenta Gastos a devengar a largo plazo, representa el 0 % del total de Activo, que comparado al periodo anterior genera una variación absoluta de 0.00 que corresponde a un(a) Aumento del 0 % de recursos disponibles, producto de
A86: 1.2.9.03. | B86: Objetos de valor | D86: =SUMIF(BCPAC!$B$10:$B$8000,$A86,BCPAC!$G$10:$G$8000)/1000 -> 0 | E86: 0 | F86: =SUMIF(BCPAN!$B$10:$B$8000,$A86,BCPAN!$G$10:$G$8000)/1000 -> 0 | G86: 0 | H86: 0 | I86: 0
A87: 1.2.9.99. | B87: Activos a largo plazo sujetos a depuración contable | D87: =SUMIF(BCPAC!$B$10:$B$8000,$A87,BCPAC!$G$10:$G$8000)/1000 -> 0 | E87: =+IFERROR(D87/$D$89,0) -> 0 | F87: =SUMIF(BCPAN!$B$10:$B$8000,$A87,BCPAN!$G$10:$G$8000)/1000 -> 0 | G87: 0 | H87: 0 | I87: 0
B88: Total del Activo no Corriente | D88: =+D84+D79+D72+D62+D54+D48 -> 1932435.827 | E88: 0.8391242078 | F88: 1919059.109 | G88: 0.8145172518 | H88: 13376.71766 | I88: =+IFERROR(H88/F88,0) -> 0.006970456301
B89: TOTAL DEL ACTIVO | D89: =+D88+D45 -> 2302919.888 | E89: 1 | F89: 2356069.322 | G89: 1 | H89: -53149.43358 | I89: =+IFERROR(H89/F89,0) -> -0.02255851858
A91: 2. | B91: PASIVO
A92: 2.1. | B92: Pasivo Corriente
A93: 2.1.1. | B93: Deudas a corto plazo | C93: 14 | D93: =SUM(D94:D103) -> 237867.3688 | E93: =+IFERROR(D93/$D$148,0) -> 0.5142769682 | F93: =SUM(F94:F103) -> 117096.2314 | G93: =+IFERROR(F93/$F$148,0) -> 0.3296207584 | H93: =+D93-F93 -> 120771.1374 | I93: =+IFERROR(H93/F93,0) -> 1.031383641 | J93: =+FIXED(E93,4) -> 0.5143 | K93: =+FIXED(I93,4) -> 1.0314 | L93: =+FIXED(H93,2) -> 120,771.14 | M93: =IF(H93 < 0, "Disminución", "Aumento") -> Aumento | N93: Pasivo | O93: =+CONCATENATE(Texto!$B$4,AnalisisBS!B93,Texto!$B$6,(AnalisisBS!J93*100),Texto!$B$8,N93,Texto!$B$12,AnalisisBS!L93,Texto!$B$14,AnalisisBS!M93,Texto!$B$16,(AnalisisBS!K93*100),Texto!$B$18) -> La cuenta Deudas a corto plazo, representa el 51.43 % del total de Pasivo, que comparado al periodo anterior genera una variación absoluta de 120,771.14 que corresponde a un(a) Aumento del 103.14 % de recursos disponibles, producto de
A94: 2.1.1.01. | B94: Deudas comerciales a corto plazo | D94: =SUMIF(BCPAC!$B$10:$B$8000,$A94,BCPAC!$G$10:$G$8000)/1000 -> 29802.64776 | E94: =+IFERROR(D94/$D$148,0) -> 0.06443429131 | F94: =SUMIF(BCPAN!$B$10:$B$8000,$A94,BCPAN!$G$10:$G$8000)/1000 -> 23652.41334 | G94: =+IFERROR(F94/$F$148,0) -> 0.06658050676 | H94: 6150.23442 | I94: =+IFERROR(H94/F94,0) -> 0.2600256613
A95: 2.1.1.02. | B95: Deudas sociales y fiscales a corto plazo | D95: =SUMIF(BCPAC!$B$10:$B$8000,$A95,BCPAC!$G$10:$G$8000)/1000 -> 147809.3416 | E95: =+IFERROR(D95/$D$148,0) -> 0.3195685918 | F95: =SUMIF(BCPAN!$B$10:$B$8000,$A95,BCPAN!$G$10:$G$8000)/1000 -> 31046.88672 | G95: =+IFERROR(F95/$F$148,0) -> 0.08739562519 | H95: 116762.4549 | I95: 3.760842623
A96: 2.1.1.03. | B96: Transferencias a pagar a corto plazo | D96: =SUMIF(BCPAC!$B$10:$B$8000,$A96,BCPAC!$G$10:$G$8000)/1000 -> 0 | E96: 0 | F96: =SUMIF(BCPAN!$B$10:$B$8000,$A96,BCPAN!$G$10:$G$8000)/1000 -> 0 | G96: 0 | H96: 0 | I96: 0 | J96: =+FIXED(E96,4) -> 0.0000 | K96: =+FIXED(I96,4) -> 0.0000 | L96: =+FIXED(H96,2) -> 0.00 | M96: =IF(H96 < 0, "Disminución", "Aumento") -> Aumento | N96: Pasivo | O96: =+CONCATENATE(Texto!$B$4,AnalisisBS!B96,Texto!$B$6,(AnalisisBS!J96*100),Texto!$B$8,N96,Texto!$B$12,AnalisisBS!L96,Texto!$B$14,AnalisisBS!M96,Texto!$B$16,(AnalisisBS!K96*100),Texto!$B$18) -> La cuenta Transferencias a pagar a corto plazo, representa el 0 % del total de Pasivo, que comparado al periodo anterior genera una variación absoluta de 0.00 que corresponde a un(a) Aumento del 0 % de recursos disponibles, producto de
A97: 2.1.1.04. | B97: Documentos a pagar a corto plazo | D97: =SUMIF(BCPAC!$B$10:$B$8000,$A97,BCPAC!$G$10:$G$8000)/1000 -> 0 | E97: 0 | F97: =SUMIF(BCPAN!$B$10:$B$8000,$A97,BCPAN!$G$10:$G$8000)/1000 -> 0 | G97: 0 | H97: 0 | I97: 0
A98: 2.1.1.05. | B98: Inversiones patrimoniales a pagar a corto plazo | D98: =SUMIF(BCPAC!$B$10:$B$8000,$A98,BCPAC!$G$10:$G$8000)/1000 -> 0 | E98: 0 | F98: =SUMIF(BCPAN!$B$10:$B$8000,$A98,BCPAN!$G$10:$G$8000)/1000 -> 0 | G98: 0 | H98: 0 | I98: 0
A99: 2.1.1.06. | B99: Deudas por avales ejecutados a corto plazo | D99: =SUMIF(BCPAC!$B$10:$B$8000,$A99,BCPAC!$G$10:$G$8000)/1000 -> 0 | E99: 0 | F99: =SUMIF(BCPAN!$B$10:$B$8000,$A99,BCPAN!$G$10:$G$8000)/1000 -> 0 | G99: 0 | H99: 0 | I99: 0
A100: 2.1.1.07. | B100: Deudas por anticipos a corto plazo | D100: =SUMIF(BCPAC!$B$10:$B$8000,$A100,BCPAC!$G$10:$G$8000)/1000 -> 0 | E100: 0 | F100: =SUMIF(BCPAN!$B$10:$B$8000,$A100,BCPAN!$G$10:$G$8000)/1000 -> 0 | G100: 0 | H100: 0 | I100: 0
A101: 2.1.1.08. | B101: Deudas por Planillas salariales | D101: =SUMIF(BCPAC!$B$10:$B$8000,$A101,BCPAC!$G$10:$G$8000)/1000 -> 60255.37944 | E101: 0.1302740851 | F101: =SUMIF(BCPAN!$B$10:$B$8000,$A101,BCPAN!$G$10:$G$8000)/1000 -> 62396.9313 | G101: 0.1756446265 | H101: -2141.55186 | I101: -0.0343214292
A102: 2.1.1.13. | B102: Deudas por Creditos Fiscales a favor de terceros c/p | D102: =SUMIF(BCPAC!$B$10:$B$8000,$A102,BCPAC!$G$10:$G$8000)/1000 -> 0 | E102: 0 | F102: =SUMIF(BCPAN!$B$10:$B$8000,$A102,BCPAN!$G$10:$G$8000)/1000 -> 0 | G102: 0 | H102: 0 | I102: 0
A103: 2.1.1.99. | B103: Otras deudas a corto plazo | D103: =SUMIF(BCPAC!$B$10:$B$8000,$A103,BCPAC!$G$10:$G$8000)/1000 -> 0 | E103: 0 | F103: =SUMIF(BCPAN!$B$10:$B$8000,$A103,BCPAN!$G$10:$G$8000)/1000 -> 0 | G103: 0 | H103: 0 | I103: 0
A104: 2.1.2. | B104: Endeudamiento público a corto plazo | C104: 15 | D104: =SUM(D105:D109) -> 0 | E104: =+IFERROR(D104/$D$148,0) -> 0 | F104: =SUM(F105:F109) -> 0 | G104: =+IFERROR(F104/$F$148,0) -> 0 | H104: 0 | I104: =+IFERROR(H104/F104,0) -> 0 | J104: =+FIXED(E104,4) -> 0.0000 | K104: =+FIXED(I104,4) -> 0.0000 | L104: =+FIXED(H104,2) -> 0.00 | M104: =IF(H104 < 0, "Disminución", "Aumento") -> Aumento | N104: Pasivo | O104: =+CONCATENATE(Texto!$B$4,AnalisisBS!B104,Texto!$B$6,(AnalisisBS!J104*100),Texto!$B$8,N104,Texto!$B$12,AnalisisBS!L104,Texto!$B$14,AnalisisBS!M104,Texto!$B$16,(AnalisisBS!K104*100),Texto!$B$18) -> La cuenta Endeudamiento público a corto plazo, representa el 0 % del total de Pasivo, que comparado al periodo anterior genera una variación absoluta de 0.00 que corresponde a un(a) Aumento del 0 % de recursos disponibles, producto de
A105: 2.1.2.01. | B105: Títulos y valores de la deuda pública a pagar a corto plazo | D105: =SUMIF(BCPAC!$B$10:$B$8000,$A105,BCPAC!$G$10:$G$8000)/1000 -> 0 | E105: =+IFERROR(D105/$D$148,0) -> 0 | F105: =SUMIF(BCPAN!$B$10:$B$8000,$A105,BCPAN!$G$10:$G$8000)/1000 -> 0 | G105: =+IFERROR(F105/$F$148,0) -> 0 | H105: 0 | I105: =+IFERROR(H105/F105,0) -> 0
A106: 2.1.2.02. | B106: Préstamos a pagar a corto plazo | D106: =SUMIF(BCPAC!$B$10:$B$8000,$A106,BCPAC!$G$10:$G$8000)/1000 -> 0 | E106: 0 | F106: =SUMIF(BCPAN!$B$10:$B$8000,$A106,BCPAN!$G$10:$G$8000)/1000 -> 0 | G106: 0 | H106: 0 | I106: 0
A107: 2.1.2.03. | B107: Deudas asumidas a corto plazo | D107: =SUMIF(BCPAC!$B$10:$B$8000,$A107,BCPAC!$G$10:$G$8000)/1000 -> 0 | E107: 0 | F107: =SUMIF(BCPAN!$B$10:$B$8000,$A107,BCPAN!$G$10:$G$8000)/1000 -> 0 | G107: 0 | H107: 0 | I107: 0
A108: 2.1.2.04. | B108: Endeudamiento de Tesorería a corto plazo | D108: =SUMIF(BCPAC!$B$10:$B$8000,$A108,BCPAC!$G$10:$G$8000)/1000 -> 0 | E108: 0 | F108: =SUMIF(BCPAN!$B$10:$B$8000,$A108,BCPAN!$G$10:$G$8000)/1000 -> 0 | G108: 0 | H108: 0 | I108: 0
A109: 2.1.2.05. | B109: Endeudamiento público a valor razonable | D109: =SUMIF(BCPAC!$B$10:$B$8000,$A109,BCPAC!$G$10:$G$8000)/1000 -> 0 | E109: 0 | F109: =SUMIF(BCPAN!$B$10:$B$8000,$A109,BCPAN!$G$10:$G$8000)/1000 -> 0 | G109: 0 | H109: 0 | I109: 0
A110: 2.1.3. | B110: Fondos de terceros y en garantía | C110: 16 | D110: =SUM(D111:D114) -> 6698.66432 | E110: =+IFERROR(D110/$D$148,0) -> 0.01448272958 | F110: =SUM(F111:F114) -> 6439.48679 | G110: =+IFERROR(F110/$F$148,0) -> 0.01812687304 | H110: 259.17753 | I110: =+IFERROR(H110/F110,0) -> 0.04024816549 | J110: =+FIXED(E110,4) -> 0.0145 | K110: =+FIXED(I110,4) -> 0.0402 | L110: =+FIXED(H110,2) -> 259.18 | M110: =IF(H110 < 0, "Disminución", "Aumento") -> Aumento | N110: Pasivo | O110: =+CONCATENATE(Texto!$B$4,AnalisisBS!B110,Texto!$B$6,(AnalisisBS!J110*100),Texto!$B$8,N110,Texto!$B$12,AnalisisBS!L110,Texto!$B$14,AnalisisBS!M110,Texto!$B$16,(AnalisisBS!K110*100),Texto!$B$18) -> La cuenta Fondos de terceros y en garantía, representa el 1.45 % del total de Pasivo, que comparado al periodo anterior genera una variación absoluta de 259.18 que corresponde a un(a) Aumento del 4.02 % de recursos disponibles, producto de
A111: 2.1.3.01. | B111: Fondos de terceros en la Caja Única | D111: =SUMIF(BCPAC!$B$10:$B$8000,$A111,BCPAC!$G$10:$G$8000)/1000 -> 0 | E111: =+IFERROR(D111/$D$148,0) -> 0 | F111: =SUMIF(BCPAN!$B$10:$B$8000,$A111,BCPAN!$G$10:$G$8000)/1000 -> 0 | G111: =+IFERROR(F111/$F$148,0) -> 0 | H111: 0 | I111: =+IFERROR(H111/F111,0) -> 0
A112: 2.1.3.02. | B112: Recaudación por cuenta de terceros | D112: =SUMIF(BCPAC!$B$10:$B$8000,$A112,BCPAC!$G$10:$G$8000)/1000 -> 0 | E112: 0 | F112: =SUMIF(BCPAN!$B$10:$B$8000,$A112,BCPAN!$G$10:$G$8000)/1000 -> 0 | G112: 0 | H112: 0 | I112: 0
A113: 2.1.3.03. | B113: Depósitos en garantía | D113: =SUMIF(BCPAC!$B$10:$B$8000,$A113,BCPAC!$G$10:$G$8000)/1000 -> 6698.66432 | E113: 0.01448272958 | F113: =SUMIF(BCPAN!$B$10:$B$8000,$A113,BCPAN!$G$10:$G$8000)/1000 -> 6439.48679 | G113: 0.01812687304 | H113: 259.17753 | I113: 0.04024816549 | J113: =+FIXED(E113,4) -> 0.0145 | K113: =+FIXED(I113,4) -> 0.0402 | L113: =+FIXED(H113,2) -> 259.18 | M113: =IF(H113 < 0, "Disminución", "Aumento") -> Aumento | N113: Pasivo | O113: =+CONCATENATE(Texto!$B$4,AnalisisBS!B113,Texto!$B$6,(AnalisisBS!J113*100),Texto!$B$8,N113,Texto!$B$12,AnalisisBS!L113,Texto!$B$14,AnalisisBS!M113,Texto!$B$16,(AnalisisBS!K113*100),Texto!$B$18) -> La cuenta Depósitos en garantía, representa el 1.45 % del total de Pasivo, que comparado al periodo anterior genera una variación absoluta de 259.18 que corresponde a un(a) Aumento del 4.02 % de recursos disponibles, producto de
A114: 2.1.3.99. | B114: Otros fondos de terceros | D114: =SUMIF(BCPAC!$B$10:$B$8000,$A114,BCPAC!$G$10:$G$8000)/1000 -> 0 | E114: 0 | F114: =SUMIF(BCPAN!$B$10:$B$8000,$A114,BCPAN!$G$10:$G$8000)/1000 -> 0 | G114: 0 | H114: 0 | I114: 0
A115: 2.1.4. | B115: Provisiones y reservas técnicas a corto plazo | C115: 17 | D115: =SUM(D116:D117) -> 217961.7165 | E115: =+IFERROR(D115/$D$148,0) -> 0.4712403022 | F115: =SUM(F116:F117) -> 231709.6005 | G115: =+IFERROR(F115/$F$148,0) -> 0.6522523685 | H115: -13747.88397 | I115: =+IFERROR(H115/F115,0) -> -0.05933238821 | J115: =+FIXED(E115,4) -> 0.4712 | K115: =+FIXED(I115,4) -> -0.0593 | L115: =+FIXED(H115,2) -> -13,747.88 | M115: =IF(H115 < 0, "Disminución", "Aumento") -> Disminución | N115: Pasivo | O115: =+CONCATENATE(Texto!$B$4,AnalisisBS!B115,Texto!$B$6,(AnalisisBS!J115*100),Texto!$B$8,N115,Texto!$B$12,AnalisisBS!L115,Texto!$B$14,AnalisisBS!M115,Texto!$B$16,(AnalisisBS!K115*100),Texto!$B$18) -> La cuenta Provisiones y reservas técnicas a corto plazo, representa el 47.12 % del total de Pasivo, que comparado al periodo anterior genera una variación absoluta de -13,747.88 que corresponde a un(a) Disminución del -5.93 % de recursos disponibles, producto de
A116: 2.1.4.01. | B116: Provisiones a corto plazo | D116: =SUMIF(BCPAC!$B$10:$B$8000,$A116,BCPAC!$G$10:$G$8000)/1000 -> 217961.7165 | E116: =+IFERROR(D116/$D$148,0) -> 0.4712403022 | F116: =SUMIF(BCPAN!$B$10:$B$8000,$A116,BCPAN!$G$10:$G$8000)/1000 -> 231709.6005 | G116: =+IFERROR(F116/$F$148,0) -> 0.6522523685 | H116: -13747.88397 | I116: =+IFERROR(H116/F116,0) -> -0.05933238821 | J116: =+FIXED(E116,4) -> 0.4712 | K116: =+FIXED(I116,4) -> -0.0593 | L116: =+FIXED(H116,2) -> -13,747.88 | M116: =IF(H116 < 0, "Disminución", "Aumento") -> Disminución | N116: Pasivo | O116: =+CONCATENATE(Texto!$B$4,AnalisisBS!B116,Texto!$B$6,(AnalisisBS!J116*100),Texto!$B$8,N116,Texto!$B$12,AnalisisBS!L116,Texto!$B$14,AnalisisBS!M116,Texto!$B$16,(AnalisisBS!K116*100),Texto!$B$18) -> La cuenta Provisiones a corto plazo, representa el 47.12 % del total de Pasivo, que comparado al periodo anterior genera una variación absoluta de -13,747.88 que corresponde a un(a) Disminución del -5.93 % de recursos disponibles, producto de
A117: 2.1.4.02. | B117: Reservas técnicas a corto plazo | D117: =SUMIF(BCPAC!$B$10:$B$8000,$A117,BCPAC!$G$10:$G$8000)/1000 -> 0 | E117: 0 | F117: =SUMIF(BCPAN!$B$10:$B$8000,$A117,BCPAN!$G$10:$G$8000)/1000 -> 0 | G117: 0 | H117: 0 | I117: 0
A118: 2.1.9. | B118: Otros pasivos a corto plazo | C118: 18 | D118: =SUM(D119:D121) -> 0 | E118: =+IFERROR(D118/$D$148,0) -> 0 | F118: =SUM(F119:F121) -> 0 | G118: =+IFERROR(F118/$F$148,0) -> 0 | H118: 0 | I118: =+IFERROR(H118/F118,0) -> 0 | J118: =+FIXED(E118,4) -> 0.0000 | K118: =+FIXED(I118,4) -> 0.0000 | L118: =+FIXED(H118,2) -> 0.00 | M118: =IF(H118 < 0, "Disminución", "Aumento") -> Aumento | N118: Pasivo | O118: =+CONCATENATE(Texto!$B$4,AnalisisBS!B118,Texto!$B$6,(AnalisisBS!J118*100),Texto!$B$8,N118,Texto!$B$12,AnalisisBS!L118,Texto!$B$14,AnalisisBS!M118,Texto!$B$16,(AnalisisBS!K118*100),Texto!$B$18) -> La cuenta Otros pasivos a corto plazo, representa el 0 % del total de Pasivo, que comparado al periodo anterior genera una variación absoluta de 0.00 que corresponde a un(a) Aumento del 0 % de recursos disponibles, producto de
A119: 2.1.9.01. | B119: Ingresos a devengar a corto plazo | D119: =SUMIF(BCPAC!$B$10:$B$8000,$A119,BCPAC!$G$10:$G$8000)/1000 -> 0 | E119: =+IFERROR(D119/$D$148,0) -> 0 | F119: =SUMIF(BCPAN!$B$10:$B$8000,$A119,BCPAN!$G$10:$G$8000)/1000 -> 0 | G119: =+IFERROR(F119/$F$148,0) -> 0 | H119: 0 | I119: 0 | J119: =+FIXED(E119,4) -> 0.0000 | K119: =+FIXED(I119,4) -> 0.0000 | L119: =+FIXED(H119,2) -> 0.00 | M119: =IF(H119 < 0, "Disminución", "Aumento") -> Aumento | N119: Pasivo | O119: =+CONCATENATE(Texto!$B$4,AnalisisBS!B119,Texto!$B$6,(AnalisisBS!J119*100),Texto!$B$8,N119,Texto!$B$12,AnalisisBS!L119,Texto!$B$14,AnalisisBS!M119,Texto!$B$16,(AnalisisBS!K119*100),Texto!$B$18) -> La cuenta Ingresos a devengar a corto plazo, representa el 0 % del total de Pasivo, que comparado al periodo anterior genera una variación absoluta de 0.00 que corresponde a un(a) Aumento del 0 % de recursos disponibles, producto de
A120: 2.1.9.02. | B120: Instrumentos Derivados a pagar a corto plazo | D120: =SUMIF(BCPAC!$B$10:$B$8000,$A120,BCPAC!$G$10:$G$8000)/1000 -> 0 | E120: 0 | F120: =SUMIF(BCPAN!$B$10:$B$8000,$A120,BCPAN!$G$10:$G$8000)/1000 -> 0 | G120: 0 | H120: 0 | I120: 0
A121: 2.1.9.99. | B121: Pasivos a corto plazo sujetos a depuración contable | D121: =SUMIF(BCPAC!$B$10:$B$8000,$A121,BCPAC!$G$10:$G$8000)/1000 -> 0 | E121: 0 | F121: =SUMIF(BCPAN!$B$10:$B$8000,$A121,BCPAN!$G$10:$G$8000)/1000 -> 0 | G121: 0 | H121: 0 | I121: 0
B122: Total del Pasivo Corriente | D122: =+D93+D104+D110+D115+D118 -> 462527.7497 | E122: 1 | F122: 355245.3187 | G122: 1 | H122: 107282.431 | I122: =+IFERROR(H122/F122,0) -> 0.3019953406
A124: 2.2. | B124: Pasivo No Corriente
A125: 2.2.1. | B125: Deudas a largo plazo | C125: 19 | D125: =SUM(D126:D132) -> 0 | E125: =+IFERROR(D125/$D$148,0) -> 0 | F125: =SUM(F126:F132) -> 0 | G125: =+IFERROR(F125/$F$148,0) -> 0 | H125: =+D125-F125 -> 0 | I125: =+IFERROR(H125/F125,0) -> 0 | J125: =+FIXED(E125,4) -> 0.0000 | K125: =+FIXED(I125,4) -> 0.0000 | L125: =+FIXED(H125,2) -> 0.00 | M125: =IF(H125 < 0, "Disminución", "Aumento") -> Aumento | N125: Pasivo | O125: =+CONCATENATE(Texto!$B$4,AnalisisBS!B125,Texto!$B$6,(AnalisisBS!J125*100),Texto!$B$8,N125,Texto!$B$12,AnalisisBS!L125,Texto!$B$14,AnalisisBS!M125,Texto!$B$16,(AnalisisBS!K125*100),Texto!$B$18) -> La cuenta Deudas a largo plazo, representa el 0 % del total de Pasivo, que comparado al periodo anterior genera una variación absoluta de 0.00 que corresponde a un(a) Aumento del 0 % de recursos disponibles, producto de
A126: 2.2.1.01. | B126: Deudas comerciales a largo plazo | D126: =SUMIF(BCPAC!$B$10:$B$8000,$A126,BCPAC!$G$10:$G$8000)/1000 -> 0 | E126: =+IFERROR(D126/$D$148,0) -> 0 | F126: =SUMIF(BCPAN!$B$10:$B$8000,$A126,BCPAN!$G$10:$G$8000)/1000 -> 0 | G126: =+IFERROR(F126/$F$148,0) -> 0 | H126: 0 | I126: =+IFERROR(H126/F126,0) -> 0
A127: 2.2.1.02. | B127: Deudas sociales y fiscales a largo plazo | D127: =SUMIF(BCPAC!$B$10:$B$8000,$A127,BCPAC!$G$10:$G$8000)/1000 -> 0 | E127: 0 | F127: =SUMIF(BCPAN!$B$10:$B$8000,$A127,BCPAN!$G$10:$G$8000)/1000 -> 0 | G127: 0 | H127: 0 | I127: 0
A128: 2.2.1.04. | B128: Documentos a pagar a largo plazo | D128: =SUMIF(BCPAC!$B$10:$B$8000,$A128,BCPAC!$G$10:$G$8000)/1000 -> 0 | E128: 0 | F128: =SUMIF(BCPAN!$B$10:$B$8000,$A128,BCPAN!$G$10:$G$8000)/1000 -> 0 | G128: 0 | H128: 0 | I128: 0
A129: 2.2.1.05. | B129: Inversiones patrimoniales a pagar a largo plazo | D129: =SUMIF(BCPAC!$B$10:$B$8000,$A129,BCPAC!$G$10:$G$8000)/1000 -> 0 | E129: 0 | F129: =SUMIF(BCPAN!$B$10:$B$8000,$A129,BCPAN!$G$10:$G$8000)/1000 -> 0 | G129: 0 | H129: 0 | I129: 0
A130: 2.2.1.06. | B130: Deudas por avales ejecutados a largo plazo | D130: =SUMIF(BCPAC!$B$10:$B$8000,$A130,BCPAC!$G$10:$G$8000)/1000 -> 0 | E130: 0 | F130: =SUMIF(BCPAN!$B$10:$B$8000,$A130,BCPAN!$G$10:$G$8000)/1000 -> 0 | G130: 0 | H130: 0 | I130: 0
A131: 2.2.1.07. | B131: Deudas por anticipos a largo plazo | D131: =SUMIF(BCPAC!$B$10:$B$8000,$A131,BCPAC!$G$10:$G$8000)/1000 -> 0 | E131: 0 | F131: =SUMIF(BCPAN!$B$10:$B$8000,$A131,BCPAN!$G$10:$G$8000)/1000 -> 0 | G131: 0 | H131: 0 | I131: 0
A132: 2.2.1.99. | B132: Otras deudas a largo plazo | D132: =SUMIF(BCPAC!$B$10:$B$8000,$A132,BCPAC!$G$10:$G$8000)/1000 -> 0 | E132: 0 | F132: =SUMIF(BCPAN!$B$10:$B$8000,$A132,BCPAN!$G$10:$G$8000)/1000 -> 0 | G132: 0 | H132: 0 | I132: 0
A133: 2.2.2. | B133: Endeudamiento público a largo plazo | C133: 20 | D133: =SUM(D134:D136) -> 0 | E133: =+IFERROR(D133/$D$148,0) -> 0 | F133: =SUM(F134:F136) -> 0 | G133: =+IFERROR(F133/$F$148,0) -> 0 | H133: =+D133-F133 -> 0 | I133: =+IFERROR(H133/F133,0) -> 0 | J133: =+FIXED(E133,4) -> 0.0000 | K133: =+FIXED(I133,4) -> 0.0000 | L133: =+FIXED(H133,2) -> 0.00 | M133: =IF(H133 < 0, "Disminución", "Aumento") -> Aumento | N133: Pasivo | O133: =+CONCATENATE(Texto!$B$4,AnalisisBS!B133,Texto!$B$6,(AnalisisBS!J133*100),Texto!$B$8,N133,Texto!$B$12,AnalisisBS!L133,Texto!$B$14,AnalisisBS!M133,Texto!$B$16,(AnalisisBS!K133*100),Texto!$B$18) -> La cuenta Endeudamiento público a largo plazo, representa el 0 % del total de Pasivo, que comparado al periodo anterior genera una variación absoluta de 0.00 que corresponde a un(a) Aumento del 0 % de recursos disponibles, producto de
A134: 2.2.2.01. | B134: Títulos y valores de la deuda pública a pagar a largo plazo | D134: =SUMIF(BCPAC!$B$10:$B$8000,$A134,BCPAC!$G$10:$G$8000)/1000 -> 0 | E134: =+IFERROR(D134/$D$148,0) -> 0 | F134: =SUMIF(BCPAN!$B$10:$B$8000,$A134,BCPAN!$G$10:$G$8000)/1000 -> 0 | G134: =+IFERROR(F134/$F$148,0) -> 0 | H134: =+D134-F134 -> 0 | I134: =+IFERROR(H134/F134,0) -> 0
A135: 2.2.2.02. | B135: Préstamos a pagar a largo plazo | D135: =SUMIF(BCPAC!$B$10:$B$8000,$A135,BCPAC!$G$10:$G$8000)/1000 -> 0 | E135: 0 | F135: =SUMIF(BCPAN!$B$10:$B$8000,$A135,BCPAN!$G$10:$G$8000)/1000 -> 0 | G135: 0 | H135: 0 | I135: 0
A136: 2.2.2.03. | B136: Deudas asumidas a largo plazo | D136: =SUMIF(BCPAC!$B$10:$B$8000,$A136,BCPAC!$G$10:$G$8000)/1000 -> 0 | E136: 0 | F136: =SUMIF(BCPAN!$B$10:$B$8000,$A136,BCPAN!$G$10:$G$8000)/1000 -> 0 | G136: 0 | H136: 0 | I136: 0
A137: 2.2.3. | B137: Fondos de terceros y en garantía | C137: 21 | D137: =SUM(D138:D139) -> 0 | E137: =+IFERROR(D137/$D$148,0) -> 0 | F137: =SUM(F138:F139) -> 0 | G137: =+IFERROR(F137/$F$148,0) -> 0 | H137: 0 | I137: =+IFERROR(H137/F137,0) -> 0 | J137: =+FIXED(E137,4) -> 0.0000 | K137: =+FIXED(I137,4) -> 0.0000 | L137: =+FIXED(H137,2) -> 0.00 | M137: =IF(H137 < 0, "Disminución", "Aumento") -> Aumento | N137: Pasivo | O137: =+CONCATENATE(Texto!$B$4,AnalisisBS!B137,Texto!$B$6,(AnalisisBS!J137*100),Texto!$B$8,N137,Texto!$B$12,AnalisisBS!L137,Texto!$B$14,AnalisisBS!M137,Texto!$B$16,(AnalisisBS!K137*100),Texto!$B$18) -> La cuenta Fondos de terceros y en garantía, representa el 0 % del total de Pasivo, que comparado al periodo anterior genera una variación absoluta de 0.00 que corresponde a un(a) Aumento del 0 % de recursos disponibles, producto de
A138: 2.2.3.01. | B138: Fondos de terceros en la Caja Única | D138: =SUMIF(BCPAC!$B$10:$B$8000,$A138,BCPAC!$G$10:$G$8000)/1000 -> 0 | E138: =+IFERROR(D138/$D$148,0) -> 0 | F138: =SUMIF(BCPAN!$B$10:$B$8000,$A138,BCPAN!$G$10:$G$8000)/1000 -> 0 | G138: =+IFERROR(F138/$F$148,0) -> 0 | H138: 0 | I138: =+IFERROR(H138/F138,0) -> 0
A139: 2.2.3.99. | B139: Otros fondos de terceros | D139: =SUMIF(BCPAC!$B$10:$B$8000,$A139,BCPAC!$G$10:$G$8000)/1000 -> 0 | E139: 0 | F139: =SUMIF(BCPAN!$B$10:$B$8000,$A139,BCPAN!$G$10:$G$8000)/1000 -> 0 | G139: 0 | H139: 0 | I139: 0
A140: 2.2.4. | B140: Provisiones y reservas técnicas a largo plazo | C140: 22 | D140: =SUM(D141:D142) -> 0 | E140: =+IFERROR(D140/$D$148,0) -> 0 | F140: =SUM(F141:F142) -> 0 | G140: =+IFERROR(F140/$F$148,0) -> 0 | H140: 0 | I140: =+IFERROR(H140/F140,0) -> 0 | J140: =+FIXED(E140,4) -> 0.0000 | K140: =+FIXED(I140,4) -> 0.0000 | L140: =+FIXED(H140,2) -> 0.00 | M140: =IF(H140 < 0, "Disminución", "Aumento") -> Aumento | N140: Pasivo | O140: =+CONCATENATE(Texto!$B$4,AnalisisBS!B140,Texto!$B$6,(AnalisisBS!J140*100),Texto!$B$8,N140,Texto!$B$12,AnalisisBS!L140,Texto!$B$14,AnalisisBS!M140,Texto!$B$16,(AnalisisBS!K140*100),Texto!$B$18) -> La cuenta Provisiones y reservas técnicas a largo plazo, representa el 0 % del total de Pasivo, que comparado al periodo anterior genera una variación absoluta de 0.00 que corresponde a un(a) Aumento del 0 % de recursos disponibles, producto de
A141: 2.2.4.01. | B141: Provisiones a largo plazo | D141: =SUMIF(BCPAC!$B$10:$B$8000,$A141,BCPAC!$G$10:$G$8000)/1000 -> 0 | E141: =+IFERROR(D141/$D$148,0) -> 0 | F141: =SUMIF(BCPAN!$B$10:$B$8000,$A141,BCPAN!$G$10:$G$8000)/1000 -> 0 | G141: =+IFERROR(F141/$F$148,0) -> 0 | H141: 0 | I141: =+IFERROR(H141/F141,0) -> 0 | J141: =+FIXED(E141,4) -> 0.0000 | K141: =+FIXED(I141,4) -> 0.0000 | L141: =+FIXED(H141,2) -> 0.00 | M141: =IF(H141 < 0, "Disminución", "Aumento") -> Aumento | N141: Pasivo | O141: =+CONCATENATE(Texto!$B$4,AnalisisBS!B141,Texto!$B$6,(AnalisisBS!J141*100),Texto!$B$8,N141,Texto!$B$12,AnalisisBS!L141,Texto!$B$14,AnalisisBS!M141,Texto!$B$16,(AnalisisBS!K141*100),Texto!$B$18) -> La cuenta Provisiones a largo plazo, representa el 0 % del total de Pasivo, que comparado al periodo anterior genera una variación absoluta de 0.00 que corresponde a un(a) Aumento del 0 % de recursos disponibles, producto de
A142: 2.2.4.02. | B142: Reservas técnicas a largo plazo | D142: =SUMIF(BCPAC!$B$10:$B$8000,$A142,BCPAC!$G$10:$G$8000)/1000 -> 0 | E142: 0 | F142: =SUMIF(BCPAN!$B$10:$B$8000,$A142,BCPAN!$G$10:$G$8000)/1000 -> 0 | G142: 0 | H142: 0 | I142: 0
A143: 2.2.9. | B143: Otros pasivos a largo plazo | C143: 23 | D143: =SUM(D144:D146) -> 0 | E143: =+IFERROR(D143/$D$148,0) -> 0 | F143: =SUM(F144:F146) -> 0 | G143: =+IFERROR(F143/$F$148,0) -> 0 | H143: 0 | I143: =+IFERROR(H143/F143,0) -> 0 | J143: =+FIXED(E143,4) -> 0.0000 | K143: =+FIXED(I143,4) -> 0.0000 | L143: =+FIXED(H143,2) -> 0.00 | M143: =IF(H143 < 0, "Disminución", "Aumento") -> Aumento | N143: Pasivo | O143: =+CONCATENATE(Texto!$B$4,AnalisisBS!B143,Texto!$B$6,(AnalisisBS!J143*100),Texto!$B$8,N143,Texto!$B$12,AnalisisBS!L143,Texto!$B$14,AnalisisBS!M143,Texto!$B$16,(AnalisisBS!K143*100),Texto!$B$18) -> La cuenta Otros pasivos a largo plazo, representa el 0 % del total de Pasivo, que comparado al periodo anterior genera una variación absoluta de 0.00 que corresponde a un(a) Aumento del 0 % de recursos disponibles, producto de
A144: 2.2.9.01. | B144: Ingresos a devengar a largo plazo | D144: =SUMIF(BCPAC!$B$10:$B$8000,$A144,BCPAC!$G$10:$G$8000)/1000 -> 0 | E144: =+IFERROR(D144/$D$148,0) -> 0 | F144: =SUMIF(BCPAN!$B$10:$B$8000,$A144,BCPAN!$G$10:$G$8000)/1000 -> 0 | G144: =+IFERROR(F144/$F$148,0) -> 0 | H144: 0 | I144: =+IFERROR(H144/F144,0) -> 0 | J144: =+FIXED(E144,4) -> 0.0000 | K144: =+FIXED(I144,4) -> 0.0000 | L144: =+FIXED(H144,2) -> 0.00 | M144: =IF(H144 < 0, "Disminución", "Aumento") -> Aumento | N144: Pasivo | O144: =+CONCATENATE(Texto!$B$4,AnalisisBS!B144,Texto!$B$6,(AnalisisBS!J144*100),Texto!$B$8,N144,Texto!$B$12,AnalisisBS!L144,Texto!$B$14,AnalisisBS!M144,Texto!$B$16,(AnalisisBS!K144*100),Texto!$B$18) -> La cuenta Ingresos a devengar a largo plazo, representa el 0 % del total de Pasivo, que comparado al periodo anterior genera una variación absoluta de 0.00 que corresponde a un(a) Aumento del 0 % de recursos disponibles, producto de
A145: 2.2.9.02. | B145: Instrumentos Derivados a pagar a largo plazo | D145: =SUMIF(BCPAC!$B$10:$B$8000,$A145,BCPAC!$G$10:$G$8000)/1000 -> 0 | E145: 0 | F145: =SUMIF(BCPAN!$B$10:$B$8000,$A145,BCPAN!$G$10:$G$8000)/1000 -> 0 | G145: 0 | H145: 0 | I145: 0
A146: 2.2.9.99. | B146: Pasivos a largo plazo sujetos a depuración contable | D146: =SUMIF(BCPAC!$B$10:$B$8000,$A146,BCPAC!$G$10:$G$8000)/1000 -> 0 | E146: =+IFERROR(D146/$D$148,0) -> 0 | F146: =SUMIF(BCPAN!$B$10:$B$8000,$A146,BCPAN!$G$10:$G$8000)/1000 -> 0 | G146: 0 | H146: 0 | I146: 0
B147: Total del Pasivo no Corriente | D147: =+D143+D140+D137+D133+D125 -> 0 | E147: 0 | F147: 0 | G147: 0 | H147: 0 | I147: =+IFERROR(H147/F147,0) -> 0
B148: TOTAL DEL PASIVO | D148: =+D147+D122 -> 462527.7497 | E148: 1 | F148: 355245.3187 | G148: 1 | H148: 107282.431 | I148: =+IFERROR(H148/F148,0) -> 0.3019953406
A150: 3. | B150: PATRIMONIO
A151: 3.1. | B151: Patrimonio público
A152: 3.1.1. | B152: Capital | C152: 24 | D152: =SUM(D153:D154) -> 2008118.48 | E152: =+IFERROR(D152/$D$178,0) -> 1.091136198 | F152: =SUM(F153:F154) -> 2008118.48 | G152: =+IFERROR(F152/$F$178,0) -> 1.003645736 | H152: =+D152-F152 -> 0 | I152: =+IFERROR(H152/F152,0) -> 0 | J152: =+FIXED(E152,4) -> 1.0911 | K152: =+FIXED(I152,4) -> 0.0000 | L152: =+FIXED(H152,2) -> 0.00 | M152: =IF(H152 < 0, "Disminución", "Aumento") -> Aumento | N152: Patrimonio | O152: =+CONCATENATE(Texto!$B$4,AnalisisBS!B152,Texto!$B$6,(AnalisisBS!J152*100),Texto!$B$8,N152,Texto!$B$12,AnalisisBS!L152,Texto!$B$14,AnalisisBS!M152,Texto!$B$16,(AnalisisBS!K152*100),Texto!$B$18) -> La cuenta Capital, representa el 109.11 % del total de Patrimonio, que comparado al periodo anterior genera una variación absoluta de 0.00 que corresponde a un(a) Aumento del 0 % de recursos disponibles, producto de
A153: 3.1.1.01. | B153: Capital inicial | D153: =SUMIF(BCPAC!$B$10:$B$8000,$A153,BCPAC!$G$10:$G$8000)/1000 -> 139732.6 | E153: =+IFERROR(D153/$D$178,0) -> 0.0759254493 | F153: =SUMIF(BCPAN!$B$10:$B$8000,$A153,BCPAN!$G$10:$G$8000)/1000 -> 139732.6 | G153: =+IFERROR(F153/$F$178,0) -> 0.06983752683 | H153: 0 | I153: =+IFERROR(H153/F153,0) -> 0 | J153: =+FIXED(E153,4) -> 0.0759 | K153: =+FIXED(I153,4) -> 0.0000 | L153: =+FIXED(H153,2) -> 0.00 | M153: =IF(H153 < 0, "Disminución", "Aumento") -> Aumento | N153: Patrimonio | O153: =+CONCATENATE(Texto!$B$4,AnalisisBS!B153,Texto!$B$6,(AnalisisBS!J153*100),Texto!$B$8,N153,Texto!$B$12,AnalisisBS!L153,Texto!$B$14,AnalisisBS!M153,Texto!$B$16,(AnalisisBS!K153*100),Texto!$B$18) -> La cuenta Capital inicial, representa el 7.59 % del total de Patrimonio, que comparado al periodo anterior genera una variación absoluta de 0.00 que corresponde a un(a) Aumento del 0 % de recursos disponibles, producto de
A154: 3.1.1.02. | B154: Incorporaciones al capital | D154: =SUMIF(BCPAC!$B$10:$B$8000,$A154,BCPAC!$G$10:$G$8000)/1000 -> 1868385.88 | E154: =+IFERROR(D154/$D$178,0) -> 1.015210748 | F154: =SUMIF(BCPAN!$B$10:$B$8000,$A154,BCPAN!$G$10:$G$8000)/1000 -> 1868385.88 | G154: =+IFERROR(F154/$F$178,0) -> 0.9338082096 | H154: 0 | I154: 0 | J154: 1.0152 | K154: 0.0000 | L154: 0.00 | M154: =IF(H154 < 0, "Disminución", "Aumento") -> Aumento | N154: Patrimonio | O154: =+CONCATENATE(Texto!$B$4,AnalisisBS!B154,Texto!$B$6,(AnalisisBS!J154*100),Texto!$B$8,N154,Texto!$B$12,AnalisisBS!L154,Texto!$B$14,AnalisisBS!M154,Texto!$B$16,(AnalisisBS!K154*100),Texto!$B$18) -> La cuenta Incorporaciones al capital, representa el 101.52 % del total de Patrimonio, que comparado al periodo anterior genera una variación absoluta de 0.00 que corresponde a un(a) Aumento del 0 % de recursos disponibles, producto de
A155: 3.1.2. | B155: Transferencias de capital | C155: 25 | D155: =SUM(D156:D157) -> 0 | E155: =+IFERROR(D155/$D$178,0) -> 0 | F155: =SUM(F156:F157) -> 0 | G155: =+IFERROR(F155/$F$178,0) -> 0 | H155: 0 | I155: =+IFERROR(H155/F155,0) -> 0 | J155: =+FIXED(E155,4) -> 0.0000 | K155: =+FIXED(I155,4) -> 0.0000 | L155: =+FIXED(H155,2) -> 0.00 | M155: =IF(H155 < 0, "Disminución", "Aumento") -> Aumento | N155: Patrimonio | O155: =+CONCATENATE(Texto!$B$4,AnalisisBS!B155,Texto!$B$6,(AnalisisBS!J155*100),Texto!$B$8,N155,Texto!$B$12,AnalisisBS!L155,Texto!$B$14,AnalisisBS!M155,Texto!$B$16,(AnalisisBS!K155*100),Texto!$B$18) -> La cuenta Transferencias de capital, representa el 0 % del total de Patrimonio, que comparado al periodo anterior genera una variación absoluta de 0.00 que corresponde a un(a) Aumento del 0 % de recursos disponibles, producto de
A156: 3.1.2.01. | B156: Donaciones de capital | D156: =SUMIF(BCPAC!$B$10:$B$8000,$A156,BCPAC!$G$10:$G$8000)/1000 -> 0 | E156: =+IFERROR(D156/$D$178,0) -> 0 | F156: =SUMIF(BCPAN!$B$10:$B$8000,$A156,BCPAN!$G$10:$G$8000)/1000 -> 0 | G156: =+IFERROR(F156/$F$178,0) -> 0 | H156: 0 | I156: =+IFERROR(H156/F156,0) -> 0
A157: 3.1.2.99. | B157: Otras transferencias de capital | D157: =SUMIF(BCPAC!$B$10:$B$8000,$A157,BCPAC!$G$10:$G$8000)/1000 -> 0 | E157: 0 | F157: =SUMIF(BCPAN!$B$10:$B$8000,$A157,BCPAN!$G$10:$G$8000)/1000 -> 0 | G157: 0 | H157: 0 | I157: 0
A158: 3.1.3. | B158: Reservas | C158: 26 | D158: =SUM(D159:D160) -> 476093.3 | E158: =+IFERROR(D158/$D$178,0) -> 0.2586912268 | F158: =SUM(F159:F160) -> 368662.0428 | G158: =+IFERROR(F158/$F$178,0) -> 0.184255108 | H158: 107431.2572 | I158: =+IFERROR(H158/F158,0) -> 0.2914085118 | J158: =+FIXED(E158,4) -> 0.2587 | K158: =+FIXED(I158,4) -> 0.2914 | L158: =+FIXED(H158,2) -> 107,431.26 | M158: =IF(H158 < 0, "Disminución", "Aumento") -> Aumento | N158: Patrimonio | O158: =+CONCATENATE(Texto!$B$4,AnalisisBS!B158,Texto!$B$6,(AnalisisBS!J158*100),Texto!$B$8,N158,Texto!$B$12,AnalisisBS!L158,Texto!$B$14,AnalisisBS!M158,Texto!$B$16,(AnalisisBS!K158*100),Texto!$B$18) -> La cuenta Reservas, representa el 25.87 % del total de Patrimonio, que comparado al periodo anterior genera una variación absoluta de 107,431.26 que corresponde a un(a) Aumento del 29.14 % de recursos disponibles, producto de
A159: 3.1.3.01. | B159: Revaluación de bienes | D159: =SUMIF(BCPAC!$B$10:$B$8000,$A159,BCPAC!$G$10:$G$8000)/1000 -> 476093.3 | E159: =+IFERROR(D159/$D$178,0) -> 0.2586912268 | F159: =SUMIF(BCPAN!$B$10:$B$8000,$A159,BCPAN!$G$10:$G$8000)/1000 -> 368662.0428 | G159: =+IFERROR(F159/$F$178,0) -> 0.184255108 | H159: 107431.2572 | I159: =+IFERROR(H159/F159,0) -> 0.2914085118
A160: 3.1.3.99. | B160: Otras reservas | D160: =SUMIF(BCPAC!$B$10:$B$8000,$A160,BCPAC!$G$10:$G$8000)/1000 -> 0 | E160: 0 | F160: =SUMIF(BCPAN!$B$10:$B$8000,$A160,BCPAN!$G$10:$G$8000)/1000 -> 0 | G160: 0 | H160: 0 | I160: 0
A161: 3.1.4. | B161: Variaciones no asignables a reservas | C161: 27 | D161: =SUM(D162:D165) -> 0 | E161: =+IFERROR(D161/$D$178,0) -> 0 | F161: =SUM(F162:F165) -> 0 | G161: =+IFERROR(F161/$F$178,0) -> 0 | H161: 0 | I161: =+IFERROR(H161/F161,0) -> 0 | J161: =+FIXED(E161,4) -> 0.0000 | K161: =+FIXED(I161,4) -> 0.0000 | L161: =+FIXED(H161,2) -> 0.00 | M161: =IF(H161 < 0, "Disminución", "Aumento") -> Aumento | N161: Patrimonio | O161: =+CONCATENATE(Texto!$B$4,AnalisisBS!B161,Texto!$B$6,(AnalisisBS!J161*100),Texto!$B$8,N161,Texto!$B$12,AnalisisBS!L161,Texto!$B$14,AnalisisBS!M161,Texto!$B$16,(AnalisisBS!K161*100),Texto!$B$18) -> La cuenta Variaciones no asignables a reservas, representa el 0 % del total de Patrimonio, que comparado al periodo anterior genera una variación absoluta de 0.00 que corresponde a un(a) Aumento del 0 % de recursos disponibles, producto de
A162: 3.1.4.01. | B162: Diferencias de conversión de moneda extranjera | D162: =SUMIF(BCPAC!$B$10:$B$8000,$A162,BCPAC!$G$10:$G$8000)/1000 -> 0 | E162: =+IFERROR(D162/$D$178,0) -> 0 | F162: =SUMIF(BCPAN!$B$10:$B$8000,$A162,BCPAN!$G$10:$G$8000)/1000 -> 0 | G162: =+IFERROR(F162/$F$178,0) -> 0 | H162: 0 | I162: =+IFERROR(H162/F162,0) -> 0
A163: 3.1.4.02. | B163: Diferencias de valor razonable de activos financieros destinados a la venta | D163: =SUMIF(BCPAC!$B$10:$B$8000,$A163,BCPAC!$G$10:$G$8000)/1000 -> 0 | E163: 0 | F163: =SUMIF(BCPAN!$B$10:$B$8000,$A163,BCPAN!$G$10:$G$8000)/1000 -> 0 | G163: 0 | H163: 0 | I163: 0
A164: 3.1.4.03. | B164: Diferencias de valor razonable de instrumentos financieros designados como cobertura | D164: =SUMIF(BCPAC!$B$10:$B$8000,$A164,BCPAC!$G$10:$G$8000)/1000 -> 0 | E164: 0 | F164: =SUMIF(BCPAN!$B$10:$B$8000,$A164,BCPAN!$G$10:$G$8000)/1000 -> 0 | G164: 0 | H164: 0 | I164: 0
A165: 3.1.4.99. | B165: Otras variaciones no asignables a reservas | D165: =SUMIF(BCPAC!$B$10:$B$8000,$A165,BCPAC!$G$10:$G$8000)/1000 -> 0 | E165: 0 | F165: =SUMIF(BCPAN!$B$10:$B$8000,$A165,BCPAN!$G$10:$G$8000)/1000 -> 0 | G165: 0 | H165: 0 | I165: 0
A166: 3.1.5. | B166: Resultados acumulados | C166: 28 | D166: =SUM(D167:D168) -> -643819.6415 | E166: =+IFERROR(D166/$D$178,0) -> -0.3498274243 | F166: =SUM(F167:F168) -> -375956.5197 | G166: =+IFERROR(F166/$F$178,0) -> -0.1879008444 | H166: -267863.1218 | I166: =+IFERROR(H166/F166,0) -> 0.7124843108 | J166: =+FIXED(E166,4) -> -0.3498 | K166: =+FIXED(I166,4) -> 0.7125 | L166: =+FIXED(H166,2) -> -267,863.12 | M166: =IF(H166 < 0, "Disminución", "Aumento") -> Disminución | N166: Patrimonio | O166: =+CONCATENATE(Texto!$B$4,AnalisisBS!B166,Texto!$B$6,(AnalisisBS!J166*100),Texto!$B$8,N166,Texto!$B$12,AnalisisBS!L166,Texto!$B$14,AnalisisBS!M166,Texto!$B$16,(AnalisisBS!K166*100),Texto!$B$18) -> La cuenta Resultados acumulados, representa el -34.98 % del total de Patrimonio, que comparado al periodo anterior genera una variación absoluta de -267,863.12 que corresponde a un(a) Disminución del 71.25 % de recursos disponibles, producto de
A167: 3.1.5.01. | B167: Resultados acumulados de ejercicios anteriores | D167: =SUMIF(BCPAC!$B$10:$B$8000,$A167,BCPAC!$G$10:$G$8000)/1000 -> -545696.8466 | E167: =+IFERROR(D167/$D$178,0) -> -0.2965111811 | F167: =SUMIF(BCPAN!$B$10:$B$8000,$A167,BCPAN!$G$10:$G$8000)/1000 -> -298827.6806 | G167: =+IFERROR(F167/$F$178,0) -> -0.1493523069 | H167: -246869.166 | I167: =+IFERROR(H167/F167,0) -> 0.8261254962 | J167: =+FIXED(E167,4) -> -0.2965 | K167: =+FIXED(I167,4) -> 0.8261 | L167: =+FIXED(H167,2) -> -246,869.17 | M167: =IF(H167 < 0, "Disminución", "Aumento") -> Disminución | N167: Patrimonio | O167: =+CONCATENATE(Texto!$B$4,AnalisisBS!B167,Texto!$B$6,(AnalisisBS!J167*100),Texto!$B$8,N167,Texto!$B$12,AnalisisBS!L167,Texto!$B$14,AnalisisBS!M167,Texto!$B$16,(AnalisisBS!K167*100),Texto!$B$18) -> La cuenta Resultados acumulados de ejercicios anteriores, representa el -29.65 % del total de Patrimonio, que comparado al periodo anterior genera una variación absoluta de -246,869.17 que corresponde a un(a) Disminución del 82.61 % de recursos disponibles, producto de
A168: 3.1.5.02. | B168: Resultado del ejercicio | D168: =+((SUMIF(BCPAC!B:B,"4.",BCPAC!G:G)-SUMIF(BCPAC!B:B,"5.",BCPAC!G:G))/1000) -> -98122.7949 | E168: -0.05331624323 | F168: =+((SUMIF(BCPAN!B:B,"4.",BCPAN!G:G)-SUMIF(BCPAN!B:B,"5.",BCPAN!G:G))/1000) -> -77128.83903 | G168: -0.03854853746 | H168: -20993.95587 | I168: 0.2721933343 | J168: -0.0533 | K168: 0.2722 | L168: -20,993.96 | M168: =IF(H168 < 0, "Disminución", "Aumento") -> Disminución | N168: Patrimonio | O168: =+CONCATENATE(Texto!$B$4,AnalisisBS!B168,Texto!$B$6,(AnalisisBS!J168*100),Texto!$B$8,N168,Texto!$B$12,AnalisisBS!L168,Texto!$B$14,AnalisisBS!M168,Texto!$B$16,(AnalisisBS!K168*100),Texto!$B$18) -> La cuenta Resultado del ejercicio, representa el -5.33 % del total de Patrimonio, que comparado al periodo anterior genera una variación absoluta de -20,993.96 que corresponde a un(a) Disminución del 27.22 % de recursos disponibles, producto de
A169: 3.2. | B169: Intereses minoritarios | D169: =SUMIF(BCPAC!$B$10:$B$8000,$A169,BCPAC!$G$10:$G$8000)/1000 -> 0 | E169: 0 | F169: =SUMIF(BCPAN!$B$10:$B$8000,$A169,BCPAN!$G$10:$G$8000)/1000 -> 0 | G169: 0 | H169: 0 | I169: 0
A170: 3.2.1. | B170: Intereses minoritarios - Participaciones en el patrimonio de entidades controladas | C170: 29 | D170: =SUM(D171:D172) -> 0 | E170: =+IFERROR(D170/$D$178,0) -> 0 | F170: =SUM(F171:F172) -> 0 | G170: =+IFERROR(F170/$F$178,0) -> 0 | H170: 0 | I170: =+IFERROR(H170/F170,0) -> 0 | J170: =+FIXED(E170,4) -> 0.0000 | K170: =+FIXED(I170,4) -> 0.0000 | L170: =+FIXED(H170,2) -> 0.00 | M170: =IF(H170 < 0, "Disminución", "Aumento") -> Aumento | N170: Patrimonio | O170: =+CONCATENATE(Texto!$B$4,AnalisisBS!B170,Texto!$B$6,(AnalisisBS!J170*100),Texto!$B$8,N170,Texto!$B$12,AnalisisBS!L170,Texto!$B$14,AnalisisBS!M170,Texto!$B$16,(AnalisisBS!K170*100),Texto!$B$18) -> La cuenta Intereses minoritarios - Participaciones en el patrimonio de entidades controladas, representa el 0 % del total de Patrimonio, que comparado al periodo anterior genera una variación absoluta de 0.00 que corresponde a un(a) Aumento del 0 % de recursos disponibles, producto de
A171: 3.2.1.01. | B171: Intereses minoritarios - Participaciones en el patrimonio de entidades del sector gobierno general | D171: =SUMIF(BCPAC!$B$10:$B$8000,$A171,BCPAC!$G$10:$G$8000)/1000 -> 0 | E171: =+IFERROR(D171/$D$178,0) -> 0 | F171: =SUMIF(BCPAN!$B$10:$B$8000,$A171,BCPAN!$G$10:$G$8000)/1000 -> 0 | G171: =+IFERROR(F171/$F$178,0) -> 0 | H171: 0 | I171: =+IFERROR(H171/F171,0) -> 0
A172: 3.2.1.02. | B172: Intereses minoritarios - Participaciones en el patrimonio de empresas públicas e instituciones públicas financieras | D172: =SUMIF(BCPAC!$B$10:$B$8000,$A172,BCPAC!$G$10:$G$8000)/1000 -> 0 | E172: 0 | F172: =SUMIF(BCPAN!$B$10:$B$8000,$A172,BCPAN!$G$10:$G$8000)/1000 -> 0 | G172: 0 | H172: 0 | I172: 0
A173: 3.2.2. | B173: Intereses minoritarios - Evolución | C173: 30 | D173: =SUM(D174:D177) -> 0 | E173: =+IFERROR(D173/$D$178,0) -> 0 | F173: =SUM(F174:F177) -> 0 | G173: =+IFERROR(F173/$F$178,0) -> 0 | H173: 0 | I173: =+IFERROR(H173/F173,0) -> 0 | J173: =+FIXED(E173,4) -> 0.0000 | K173: =+FIXED(I173,4) -> 0.0000 | L173: =+FIXED(H173,2) -> 0.00 | M173: =IF(H173 < 0, "Disminución", "Aumento") -> Aumento | N173: Patrimonio | O173: =+CONCATENATE(Texto!$B$4,AnalisisBS!B173,Texto!$B$6,(AnalisisBS!J173*100),Texto!$B$8,N173,Texto!$B$12,AnalisisBS!L173,Texto!$B$14,AnalisisBS!M173,Texto!$B$16,(AnalisisBS!K173*100),Texto!$B$18) -> La cuenta Intereses minoritarios - Evolución, representa el 0 % del total de Patrimonio, que comparado al periodo anterior genera una variación absoluta de 0.00 que corresponde a un(a) Aumento del 0 % de recursos disponibles, producto de
A174: 3.2.2.01. | B174: Intereses minoritarios - Evolución por reservas | D174: =SUMIF(BCPAC!$B$10:$B$8000,$A174,BCPAC!$G$10:$G$8000)/1000 -> 0 | E174: =+IFERROR(D174/$D$178,0) -> 0 | F174: =SUMIF(BCPAN!$B$10:$B$8000,$A174,BCPAN!$G$10:$G$8000)/1000 -> 0 | G174: =+IFERROR(F174/$F$178,0) -> 0 | H174: 0 | I174: =+IFERROR(H174/F174,0) -> 0
A175: 3.2.2.02. | B175: Intereses minoritarios - Evolución por variaciones no asignables a reservas | D175: =SUMIF(BCPAC!$B$10:$B$8000,$A175,BCPAC!$G$10:$G$8000)/1000 -> 0 | E175: 0 | F175: =SUMIF(BCPAN!$B$10:$B$8000,$A175,BCPAN!$G$10:$G$8000)/1000 -> 0 | G175: 0 | H175: 0 | I175: 0
A176: 3.2.2.03. | B176: Intereses minoritarios - Evolución por resultados acumulados | D176: =SUMIF(BCPAC!$B$10:$B$8000,$A176,BCPAC!$G$10:$G$8000)/1000 -> 0 | E176: 0 | F176: =SUMIF(BCPAN!$B$10:$B$8000,$A176,BCPAN!$G$10:$G$8000)/1000 -> 0 | G176: 0 | H176: 0 | I176: 0
A177: 3.2.2.99. | B177: Intereses minoritarios - Evolución por otros componentes del patrimonio | D177: =SUMIF(BCPAC!$B$10:$B$8000,$A177,BCPAC!$G$10:$G$8000)/1000 -> 0 | E177: 0 | F177: =SUMIF(BCPAN!$B$10:$B$8000,$A177,BCPAN!$G$10:$G$8000)/1000 -> 0 | G177: 0 | H177: 0 | I177: 0
B178: TOTAL DEL PATRIMONIO | D178: =+D173+D170+D166+D161+D158+D155+D152 -> 1840392.139 | E178: 1 | F178: 2000824.003 | G178: 1 | H178: -160431.8646 | I178: =+IFERROR(H178/F178,0) -> -0.08018289681
B179: TOTAL DEL PASIVO Y PATRIMONIO | D179: =+D178+D148 -> 2302919.888 | F179: =+F178+F148 -> 2356069.322 | H179: -53149.43357 | I179: =+IFERROR(H179/F179,0) -> -0.02255851858
F181: =+F89-F148-F178 -> -1.000007614e-05

Sheet AnalisisER
A1: =+Datos!C2 -> Municipalidad de San Jose
A2: Análisis al Estado de Rendimiento Financiero Comparativo
A3: =+Datos!C4 -> Del 01 de Enero 2021 al 30 de Junio del 2021
A4: - En miles de colones -
A6: Cuenta | B6: Descripción | C6: Nota | D6: =+Datos!D5 -> 2021-06-30 | E6: % análisis vertical | F6: =+Datos!F5 -> 2020-06-30 | G6: % | H6: Monto variación Absoluta | I6: % Variación relativa
A8: 4. | B8: INGRESOS
A9: 4.1. | B9: Impuestos
A10: 4.1.1. | B10: Impuestos sobre los ingresos, las utilidades y las ganancias de capital | C10: 31 | D10: =SUM(D11:D14) -> 0 | E10: =+IFERROR(D10/$D$129,0) -> 0 | F10: =SUM(F11:F14) -> 0 | G10: =+IFERROR(F10/$F$129,0) -> 0 | H10: =+D10-F10 -> 0 | I10: =+IFERROR(H10/F10,0) -> 0 | J10: =+FIXED(E10,4) -> 0.0000 | K10: =+FIXED(I10,4) -> 0.0000 | L10: =+FIXED(H10,2) -> 0.00 | M10: =IF(H10 < 0, "Disminución", "Aumento") -> Aumento | N10: Ingresos | O10: =+CONCATENATE(Texto!$B$4,AnalisisER!B10,Texto!$B$6,(AnalisisER!J10*100),Texto!$B$8,N10,Texto!$B$12,AnalisisER!L10,Texto!$B$14,AnalisisER!M10,Texto!$B$16,(AnalisisER!K10*100),Texto!$B$18) -> La cuenta Impuestos sobre los ingresos, las utilidades y las ganancias de capital, representa el 0 % del total de Ingresos, que comparado al periodo anterior genera una variación absoluta de 0.00 que corresponde a un(a) Aumento del 0 % de recursos disponibles, producto de
A11: 4.1.1.01. | B11: Impuestos sobre los ingresos y utilidades de personas físicas | D11: =SUMIF(BCPAC!$B$10:$B$8000,$A11,BCPAC!$G$10:$G$8000)/1000 -> 0 | E11: =+IFERROR(D11/$D$129,0) -> 0 | F11: =SUMIF(BCPAN!$B$10:$B$8000,$A11,BCPAN!$G$10:$G$8000)/1000 -> 0 | G11: =+IFERROR(F11/$F$129,0) -> 0 | H11: 0 | I11: =+IFERROR(H11/F11,0) -> 0
A12: 4.1.1.02. | B12: Impuestos sobre los ingresos y utilidades de personas jurídicas | D12: =SUMIF(BCPAC!$B$10:$B$8000,$A12,BCPAC!$G$10:$G$8000)/1000 -> 0 | E12: =+IFERROR(D12/$D$129,0) -> 0 | F12: =SUMIF(BCPAN!$B$10:$B$8000,$A12,BCPAN!$G$10:$G$8000)/1000 -> 0 | G12: =+IFERROR(F12/$F$129,0) -> 0 | H12: 0 | I12: 0
A13: 4.1.1.03. | B13: Impuestos sobre dividendos e intereses de títulos valores | D13: =SUMIF(BCPAC!$B$10:$B$8000,$A13,BCPAC!$G$10:$G$8000)/1000 -> 0 | E13: 0 | F13: =SUMIF(BCPAN!$B$10:$B$8000,$A13,BCPAN!$G$10:$G$8000)/1000 -> 0 | G13: 0 | H13: 0 | I13: 0
A14: 4.1.1.99. | B14: Otros impuestos sobre los ingresos, las utilidades y las ganancias de capital | D14: =SUMIF(BCPAC!$B$10:$B$8000,$A14,BCPAC!$G$10:$G$8000)/1000 -> 0 | E14: 0 | F14: =SUMIF(BCPAN!$B$10:$B$8000,$A14,BCPAN!$G$10:$G$8000)/1000 -> 0 | G14: 0 | H14: 0 | I14: 0
A15: 4.1.2. | B15: Impuestos sobre la propiedad | C15: 32 | D15: =SUM(D16:D21) -> 0 | E15: =+IFERROR(D15/$D$129,0) -> 0 | F15: =SUM(F16:F21) -> 0 | G15: =+IFERROR(F15/$F$129,0) -> 0 | H15: 0 | I15: 0 | J15: =+FIXED(E15,4) -> 0.0000 | K15: =+FIXED(I15,4) -> 0.0000 | L15: =+FIXED(H15,2) -> 0.00 | M15: =IF(H15 < 0, "Disminución", "Aumento") -> Aumento | N15: Ingresos | O15: =+CONCATENATE(Texto!$B$4,AnalisisER!B15,Texto!$B$6,(AnalisisER!J15*100),Texto!$B$8,N15,Texto!$B$12,AnalisisER!L15,Texto!$B$14,AnalisisER!M15,Texto!$B$16,(AnalisisER!K15*100),Texto!$B$18) -> La cuenta Impuestos sobre la propiedad, representa el 0 % del total de Ingresos, que comparado al periodo anterior genera una variación absoluta de 0.00 que corresponde a un(a) Aumento del 0 % de recursos disponibles, producto de
A16: 4.1.2.01. | B16: Impuesto sobre la propiedad de bienes inmuebles | D16: =SUMIF(BCPAC!$B$10:$B$8000,$A16,BCPAC!$G$10:$G$8000)/1000 -> 0 | E16: =+IFERROR(D16/$D$129,0) -> 0 | F16: =SUMIF(BCPAN!$B$10:$B$8000,$A16,BCPAN!$G$10:$G$8000)/1000 -> 0 | G16: =+IFERROR(F16/$F$129,0) -> 0 | H16: 0 | I16: 0
A17: 4.1.2.02. | B17: Impuesto sobre la propiedad de vehículos, aeronaves y embarcaciones | D17: =SUMIF(BCPAC!$B$10:$B$8000,$A17,BCPAC!$G$10:$G$8000)/1000 -> 0 | E17: 0 | F17: =SUMIF(BCPAN!$B$10:$B$8000,$A17,BCPAN!$G$10:$G$8000)/1000 -> 0 | G17: 0 | H17: 0 | I17: 0
A18: 4.1.2.03. | B18: Impuesto sobre el patrimonio | D18: =SUMIF(BCPAC!$B$10:$B$8000,$A18,BCPAC!$G$10:$G$8000)/1000 -> 0 | E18: 0 | F18: =SUMIF(BCPAN!$B$10:$B$8000,$A18,BCPAN!$G$10:$G$8000)/1000 -> 0 | G18: 0 | H18: 0 | I18: 0
A19: 4.1.2.04. | B19: Impuesto sobre los traspasos de bienes inmuebles | D19: =SUMIF(BCPAC!$B$10:$B$8000,$A19,BCPAC!$G$10:$G$8000)/1000 -> 0 | E19: 0 | F19: =SUMIF(BCPAN!$B$10:$B$8000,$A19,BCPAN!$G$10:$G$8000)/1000 -> 0 | G19: 0 | H19: 0 | I19: 0
A20: 4.1.2.05. | B20: Impuesto a los traspasos de vehículos, aeronaves y embarcaciones | D20: =SUMIF(BCPAC!$B$10:$B$8000,$A20,BCPAC!$G$10:$G$8000)/1000 -> 0 | E20: 0 | F20: =SUMIF(BCPAN!$B$10:$B$8000,$A20,BCPAN!$G$10:$G$8000)/1000 -> 0 | G20: 0 | H20: 0 | I20: 0
A21: 4.1.2.99. | B21: Otros impuestos a la propiedad | D21: =SUMIF(BCPAC!$B$10:$B$8000,$A21,BCPAC!$G$10:$G$8000)/1000 -> 0 | E21: 0 | F21: =SUMIF(BCPAN!$B$10:$B$8000,$A21,BCPAN!$G$10:$G$8000)/1000 -> 0 | G21: 0 | H21: 0 | I21: 0
A22: 4.1.3. | B22: Impuestos sobre bienes y servicios | C22: 33 | D22: =SUM(D23:D25) -> 0 | E22: =+IFERROR(D22/$D$129,0) -> 0 | F22: =SUM(F23:F25) -> 0 | G22: =+IFERROR(F22/$F$129,0) -> 0 | H22: 0 | I22: 0 | J22: =+FIXED(E22,4) -> 0.0000 | K22: =+FIXED(I22,4) -> 0.0000 | L22: =+FIXED(H22,2) -> 0.00 | M22: =IF(H22 < 0, "Disminución", "Aumento") -> Aumento | N22: Ingresos | O22: =+CONCATENATE(Texto!$B$4,AnalisisER!B22,Texto!$B$6,(AnalisisER!J22*100),Texto!$B$8,N22,Texto!$B$12,AnalisisER!L22,Texto!$B$14,AnalisisER!M22,Texto!$B$16,(AnalisisER!K22*100),Texto!$B$18) -> La cuenta Impuestos sobre bienes y servicios, representa el 0 % del total de Ingresos, que comparado al periodo anterior genera una variación absoluta de 0.00 que corresponde a un(a) Aumento del 0 % de recursos disponibles, producto de
A23: 4.1.3.01. | B23: Impuestos generales y selectivos sobre ventas y consumo | D23: =SUMIF(BCPAC!$B$10:$B$8000,$A23,BCPAC!$G$10:$G$8000)/1000 -> 0 | E23: =+IFERROR(D23/$D$129,0) -> 0 | F23: =SUMIF(BCPAN!$B$10:$B$8000,$A23,BCPAN!$G$10:$G$8000)/1000 -> 0 | G23: =+IFERROR(F23/$F$129,0) -> 0 | H23: 0 | I23: 0
A24: 4.1.3.02. | B24: Impuestos específicos sobre la producción y consumo de bienes y servicios | D24: =SUMIF(BCPAC!$B$10:$B$8000,$A24,BCPAC!$G$10:$G$8000)/1000 -> 0 | E24: 0 | F24: =SUMIF(BCPAN!$B$10:$B$8000,$A24,BCPAN!$G$10:$G$8000)/1000 -> 0 | G24: 0 | H24: 0 | I24: 0
A25: 4.1.3.99. | B25: Otros impuestos sobre bienes y servicios | D25: =SUMIF(BCPAC!$B$10:$B$8000,$A25,BCPAC!$G$10:$G$8000)/1000 -> 0 | E25: 0 | F25: =SUMIF(BCPAN!$B$10:$B$8000,$A25,BCPAN!$G$10:$G$8000)/1000 -> 0 | G25: 0 | H25: 0 | I25: 0
A26: 4.1.4. | B26: Impuestos sobre el comercio exterior y transacciones internacionales | C26: 34 | D26: =SUM(D27:D29) -> 0 | E26: =+IFERROR(D26/$D$129,0) -> 0 | F26: =SUM(F27:F29) -> 0 | G26: =+IFERROR(F26/$F$129,0) -> 0 | H26: 0 | I26: 0 | J26: =+FIXED(E26,4) -> 0.0000 | K26: =+FIXED(I26,4) -> 0.0000 | L26: =+FIXED(H26,2) -> 0.00 | M26: =IF(H26 < 0, "Disminución", "Aumento") -> Aumento | N26: Ingresos | O26: =+CONCATENATE(Texto!$B$4,AnalisisER!B26,Texto!$B$6,(AnalisisER!J26*100),Texto!$B$8,N26,Texto!$B$12,AnalisisER!L26,Texto!$B$14,AnalisisER!M26,Texto!$B$16,(AnalisisER!K26*100),Texto!$B$18) -> La cuenta Impuestos sobre el comercio exterior y transacciones internacionales, representa el 0 % del total de Ingresos, que comparado al periodo anterior genera una variación absoluta de 0.00 que corresponde a un(a) Aumento del 0 % de recursos disponibles, producto de
A27: 4.1.4.01. | B27: Impuestos a las importaciones | D27: =SUMIF(BCPAC!$B$10:$B$8000,$A27,BCPAC!$G$10:$G$8000)/1000 -> 0 | E27: =+IFERROR(D27/$D$129,0) -> 0 | F27: =SUMIF(BCPAN!$B$10:$B$8000,$A27,BCPAN!$G$10:$G$8000)/1000 -> 0 | G27: =+IFERROR(F27/$F$129,0) -> 0 | H27: 0 | I27: =+IFERROR(H27/F27,0) -> 0
A28: 4.1.4.02. | B28: Impuestos a las exportaciones | D28: =SUMIF(BCPAC!$B$10:$B$8000,$A28,BCPAC!$G$10:$G$8000)/1000 -> 0 | E28: 0 | F28: =SUMIF(BCPAN!$B$10:$B$8000,$A28,BCPAN!$G$10:$G$8000)/1000 -> 0 | G28: 0 | H28: 0 | I28: 0
A29: 4.1.4.99. | B29: Otros impuestos sobre el comercio exterior y transacciones internacionales | D29: =SUMIF(BCPAC!$B$10:$B$8000,$A29,BCPAC!$G$10:$G$8000)/1000 -> 0 | E29: 0 | F29: =SUMIF(BCPAN!$B$10:$B$8000,$A29,BCPAN!$G$10:$G$8000)/1000 -> 0 | G29: 0 | H29: 0 | I29: 0
A30: 4.1.9. | B30: Otros impuestos | C30: 35 | D30: =SUM(D31:D32) -> 0 | E30: =+IFERROR(D30/$D$129,0) -> 0 | F30: =SUM(F31:F32) -> 0 | G30: =+IFERROR(F30/$F$129,0) -> 0 | H30: 0 | I30: =+IFERROR(H30/F30,0) -> 0 | J30: =+FIXED(E30,4) -> 0.0000 | K30: =+FIXED(I30,4) -> 0.0000 | L30: =+FIXED(H30,2) -> 0.00 | M30: =IF(H30 < 0, "Disminución", "Aumento") -> Aumento | N30: Ingresos | O30: =+CONCATENATE(Texto!$B$4,AnalisisER!B30,Texto!$B$6,(AnalisisER!J30*100),Texto!$B$8,N30,Texto!$B$12,AnalisisER!L30,Texto!$B$14,AnalisisER!M30,Texto!$B$16,(AnalisisER!K30*100),Texto!$B$18) -> La cuenta Otros impuestos, representa el 0 % del total de Ingresos, que comparado al periodo anterior genera una variación absoluta de 0.00 que corresponde a un(a) Aumento del 0 % de recursos disponibles, producto de
A31: 4.1.9.99. | B31: Otros impuestos sin discriminar | D31: =SUMIF(BCPAC!$B$10:$B$8000,$A31,BCPAC!$G$10:$G$8000)/1000 -> 0 | E31: =+IFERROR(D31/$D$129,0) -> 0 | F31: =SUMIF(BCPAN!$B$10:$B$8000,$A31,BCPAN!$G$10:$G$8000)/1000 -> 0 | G31: =+IFERROR(F31/$F$129,0) -> 0 | H31: 0 | I31: =+IFERROR(H31/F31,0) -> 0
A32: 4.2. | B32: Contribuciones sociales
A33: 4.2.1. | B33: Contribuciones a la seguridad social | C33: 36 | D33: =SUM(D34:D36) -> 0 | E33: =+IFERROR(D33/$D$129,0) -> 0 | F33: =SUM(F34:F36) -> 0 | G33: =+IFERROR(F33/$F$129,0) -> 0 | H33: =+D33-F33 -> 0 | I33: =+IFERROR(H33/F33,0) -> 0 | J33: =+FIXED(E33,4) -> 0.0000 | K33: =+FIXED(I33,4) -> 0.0000 | L33: =+FIXED(H33,2) -> 0.00 | M33: =IF(H33 < 0, "Disminución", "Aumento") -> Aumento | N33: Ingresos | O33: =+CONCATENATE(Texto!$B$4,AnalisisER!B33,Texto!$B$6,(AnalisisER!J33*100),Texto!$B$8,N33,Texto!$B$12,AnalisisER!L33,Texto!$B$14,AnalisisER!M33,Texto!$B$16,(AnalisisER!K33*100),Texto!$B$18) -> La cuenta Contribuciones a la seguridad social, representa el 0 % del total de Ingresos, que comparado al periodo anterior genera una variación absoluta de 0.00 que corresponde a un(a) Aumento del 0 % de recursos disponibles, producto de
A34: 4.2.1.01. | B34: Contribuciones al seguro de pensiones | D34: =SUMIF(BCPAC!$B$10:$B$8000,$A34,BCPAC!$G$10:$G$8000)/1000 -> 0 | E34: =+IFERROR(D34/$D$129,0) -> 0 | F34: =SUMIF(BCPAN!$B$10:$B$8000,$A34,BCPAN!$G$10:$G$8000)/1000 -> 0 | G34: =+IFERROR(F34/$F$129,0) -> 0 | H34: 0 | I34: =+IFERROR(H34/F34,0) -> 0
A35: 4.2.1.02. | B35: Contribuciones a regímenes especiales de pensiones | D35: =SUMIF(BCPAC!$B$10:$B$8000,$A35,BCPAC!$G$10:$G$8000)/1000 -> 0 | E35: 0 | F35: =SUMIF(BCPAN!$B$10:$B$8000,$A35,BCPAN!$G$10:$G$8000)/1000 -> 0 | G35: 0 | H35: 0 | I35: 0
A36: 4.2.1.03. | B36: Contribuciones al seguro de salud | D36: =SUMIF(BCPAC!$B$10:$B$8000,$A36,BCPAC!$G$10:$G$8000)/1000 -> 0 | E36: 0 | F36: =SUMIF(BCPAN!$B$10:$B$8000,$A36,BCPAN!$G$10:$G$8000)/1000 -> 0 | G36: 0 | H36: 0 | I36: 0
A37: 4.2.9. | B37: Contribuciones sociales diversas | C37: 37 | D37: =SUM(D38:D39) -> 0 | E37: =+IFERROR(D37/$D$129,0) -> 0 | F37: =SUM(F38:F39) -> 0 | G37: =+IFERROR(F37/$F$129,0) -> 0 | H37: 0 | I37: =+IFERROR(H37/F37,0) -> 0 | J37: =+FIXED(E37,4) -> 0.0000 | K37: =+FIXED(I37,4) -> 0.0000 | L37: =+FIXED(H37,2) -> 0.00 | M37: =IF(H37 < 0, "Disminución", "Aumento") -> Aumento | N37: Ingresos | O37: =+CONCATENATE(Texto!$B$4,AnalisisER!B37,Texto!$B$6,(AnalisisER!J37*100),Texto!$B$8,N37,Texto!$B$12,AnalisisER!L37,Texto!$B$14,AnalisisER!M37,Texto!$B$16,(AnalisisER!K37*100),Texto!$B$18) -> La cuenta Contribuciones sociales diversas, representa el 0 % del total de Ingresos, que comparado al periodo anterior genera una variación absoluta de 0.00 que corresponde a un(a) Aumento del 0 % de recursos disponibles, producto de
A38: 4.2.9.99. | B38: Otras contribuciones sociales | D38: =SUMIF(BCPAC!$B$10:$B$8000,$A38,BCPAC!$G$10:$G$8000)/1000 -> 0 | E38: =+IFERROR(D38/$D$129,0) -> 0 | F38: =SUMIF(BCPAN!$B$10:$B$8000,$A38,BCPAN!$G$10:$G$8000)/1000 -> 0 | G38: =+IFERROR(F38/$F$129,0) -> 0 | H38: 0 | I38: =+IFERROR(H38/F38,0) -> 0
A39: 4.3. | B39: Multas, sanciones, remates y confiscaciones de origen no tributario
A40: 4.3.1. | B40: Multas y sanciones administrativas | C40: 38 | D40: =SUM(D41:D44) -> 0 | E40: =+IFERROR(D40/$D$129,0) -> 0 | F40: =SUM(F41:F44) -> 0 | G40: =+IFERROR(F40/$F$129,0) -> 0 | H40: =+D40-F40 -> 0 | I40: =+IFERROR(H40/F40,0) -> 0 | J40: =+FIXED(E40,4) -> 0.0000 | K40: =+FIXED(I40,4) -> 0.0000 | L40: =+FIXED(H40,2) -> 0.00 | M40: =IF(H40 < 0, "Disminución", "Aumento") -> Aumento | N40: Ingresos | O40: =+CONCATENATE(Texto!$B$4,AnalisisER!B40,Texto!$B$6,(AnalisisER!J40*100),Texto!$B$8,N40,Texto!$B$12,AnalisisER!L40,Texto!$B$14,AnalisisER!M40,Texto!$B$16,(AnalisisER!K40*100),Texto!$B$18) -> La cuenta Multas y sanciones administrativas, representa el 0 % del total de Ingresos, que comparado al periodo anterior genera una variación absoluta de 0.00 que corresponde a un(a) Aumento del 0 % de recursos disponibles, producto de
A41: 4.3.1.01. | B41: Multas de tránsito | D41: =SUMIF(BCPAC!$B$10:$B$8000,$A41,BCPAC!$G$10:$G$8000)/1000 -> 0 | E41: =+IFERROR(D41/$D$129,0) -> 0 | F41: =SUMIF(BCPAN!$B$10:$B$8000,$A41,BCPAN!$G$10:$G$8000)/1000 -> 0 | G41: =+IFERROR(F41/$F$129,0) -> 0 | H41: 0 | I41: =+IFERROR(H41/F41,0) -> 0
A42: 4.3.1.02. | B42: Multas por atraso en el pago de bienes y servicios | D42: =SUMIF(BCPAC!$B$10:$B$8000,$A42,BCPAC!$G$10:$G$8000)/1000 -> 0 | E42: 0 | F42: =SUMIF(BCPAN!$B$10:$B$8000,$A42,BCPAN!$G$10:$G$8000)/1000 -> 0 | G42: 0 | H42: 0 | I42: 0
A43: 4.3.1.03. | B43: Sanciones administrativas | D43: =SUMIF(BCPAC!$B$10:$B$8000,$A43,BCPAC!$G$10:$G$8000)/1000 -> 0 | E43: 0 | F43: =SUMIF(BCPAN!$B$10:$B$8000,$A43,BCPAN!$G$10:$G$8000)/1000 -> 0 | G43: 0 | H43: 0 | I43: 0
A44: 4.3.1.99. | B44: Otras multas | D44: =SUMIF(BCPAC!$B$10:$B$8000,$A44,BCPAC!$G$10:$G$8000)/1000 -> 0 | E44: 0 | F44: =SUMIF(BCPAN!$B$10:$B$8000,$A44,BCPAN!$G$10:$G$8000)/1000 -> 0 | G44: 0 | H44: 0 | I44: 0
A45: 4.3.2. | B45: Remates y confiscaciones de origen no tributario | C45: 39 | D45: =SUM(D46:D47) -> 0 | E45: =+IFERROR(D45/$D$129,0) -> 0 | F45: =SUM(F46:F47) -> 0 | G45: =+IFERROR(F45/$F$129,0) -> 0 | H45: 0 | I45: =+IFERROR(H45/F45,0) -> 0 | J45: =+FIXED(E45,4) -> 0.0000 | K45: =+FIXED(I45,4) -> 0.0000 | L45: =+FIXED(H45,2) -> 0.00 | M45: =IF(H45 < 0, "Disminución", "Aumento") -> Aumento | N45: Ingresos | O45: =+CONCATENATE(Texto!$B$4,AnalisisER!B45,Texto!$B$6,(AnalisisER!J45*100),Texto!$B$8,N45,Texto!$B$12,AnalisisER!L45,Texto!$B$14,AnalisisER!M45,Texto!$B$16,(AnalisisER!K45*100),Texto!$B$18) -> La cuenta Remates y confiscaciones de origen no tributario, representa el 0 % del total de Ingresos, que comparado al periodo anterior genera una variación absoluta de 0.00 que corresponde a un(a) Aumento del 0 % de recursos disponibles, producto de
A46: 4.3.2.99. | B46: Otros remates y confiscaciones de origen no tributario | D46: =SUMIF(BCPAC!$B$10:$B$8000,$A46,BCPAC!$G$10:$G$8000)/1000 -> 0 | E46: =+IFERROR(D46/$D$129,0) -> 0 | F46: =SUMIF(BCPAN!$B$10:$B$8000,$A46,BCPAN!$G$10:$G$8000)/1000 -> 0 | G46: =+IFERROR(F46/$F$129,0) -> 0 | H46: 0 | I46: =+IFERROR(H46/F46,0) -> 0
A47: 4.4. | B47: Ingresos y resultados positivos por ventas
A48: 4.4.1. | B48: Ventas de bienes y servicios | C48: 40 | D48: =SUM(D49:D50) -> 0 | E48: =+IFERROR(D48/$D$129,0) -> 0 | F48: =SUM(F49:F50) -> 0 | G48: =+IFERROR(F48/$F$129,0) -> 0 | H48: =+D48-F48 -> 0 | I48: =+IFERROR(H48/F48,0) -> 0 | J48: =+FIXED(E48,4) -> 0.0000 | K48: =+FIXED(I48,4) -> 0.0000 | L48: =+FIXED(H48,2) -> 0.00 | M48: =IF(H48 < 0, "Disminución", "Aumento") -> Aumento | N48: Ingresos | O48: =+CONCATENATE(Texto!$B$4,AnalisisER!B48,Texto!$B$6,(AnalisisER!J48*100),Texto!$B$8,N48,Texto!$B$12,AnalisisER!L48,Texto!$B$14,AnalisisER!M48,Texto!$B$16,(AnalisisER!K48*100),Texto!$B$18) -> La cuenta Ventas de bienes y servicios, representa el 0 % del total de Ingresos, que comparado al periodo anterior genera una variación absoluta de 0.00 que corresponde a un(a) Aumento del 0 % de recursos disponibles, producto de
A49: 4.4.1.01. | B49: Ventas de bienes | D49: =SUMIF(BCPAC!$B$10:$B$8000,$A49,BCPAC!$G$10:$G$8000)/1000 -> 0 | E49: =+IFERROR(D49/$D$129,0) -> 0 | F49: =SUMIF(BCPAN!$B$10:$B$8000,$A49,BCPAN!$G$10:$G$8000)/1000 -> 0 | G49: =+IFERROR(F49/$F$129,0) -> 0 | H49: 0 | I49: =+IFERROR(H49/F49,0) -> 0
A50: 4.4.1.02. | B50: Ventas de servicios | D50: =SUMIF(BCPAC!$B$10:$B$8000,$A50,BCPAC!$G$10:$G$8000)/1000 -> 0 | E50: 0 | F50: =SUMIF(BCPAN!$B$10:$B$8000,$A50,BCPAN!$G$10:$G$8000)/1000 -> 0 | G50: 0 | H50: 0 | I50: 0
A51: 4.4.2. | B51: Derechos administrativos | C51: 41 | D51: =SUM(D52:D53) -> 0 | E51: =+IFERROR(D51/$D$129,0) -> 0 | F51: =SUM(F52:F53) -> 0 | G51: =+IFERROR(F51/$F$129,0) -> 0 | H51: 0 | I51: =+IFERROR(H51/F51,0) -> 0 | J51: =+FIXED(E51,4) -> 0.0000 | K51: =+FIXED(I51,4) -> 0.0000 | L51: =+FIXED(H51,2) -> 0.00 | M51: =IF(H51 < 0, "Disminución", "Aumento") -> Aumento | N51: Ingresos | O51: =+CONCATENATE(Texto!$B$4,AnalisisER!B51,Texto!$B$6,(AnalisisER!J51*100),Texto!$B$8,N51,Texto!$B$12,AnalisisER!L51,Texto!$B$14,AnalisisER!M51,Texto!$B$16,(AnalisisER!K51*100),Texto!$B$18) -> La cuenta Derechos administrativos, representa el 0 % del total de Ingresos, que comparado al periodo anterior genera una variación absoluta de 0.00 que corresponde a un(a) Aumento del 0 % de recursos disponibles, producto de
A52: 4.4.2.01. | B52: Derechos administrativos a los servicios de transporte | D52: =SUMIF(BCPAC!$B$10:$B$8000,$A52,BCPAC!$G$10:$G$8000)/1000 -> 0 | E52: =+IFERROR(D52/$D$129,0) -> 0 | F52: =SUMIF(BCPAN!$B$10:$B$8000,$A52,BCPAN!$G$10:$G$8000)/1000 -> 0 | G52: =+IFERROR(F52/$F$129,0) -> 0 | H52: 0 | I52: =+IFERROR(H52/F52,0) -> 0
A53: 4.4.2.99. | B53: Otros derechos administrativos | D53: =SUMIF(BCPAC!$B$10:$B$8000,$A53,BCPAC!$G$10:$G$8000)/1000 -> 0 | E53: 0 | F53: =SUMIF(BCPAN!$B$10:$B$8000,$A53,BCPAN!$G$10:$G$8000)/1000 -> 0 | G53: 0 | H53: 0 | I53: 0
A54: 4.4.3. | B54: Comisiones por préstamos | C54: 42 | D54: =SUM(D55:D57) -> 0 | E54: =+IFERROR(D54/$D$129,0) -> 0 | F54: =SUM(F55:F57) -> 0 | G54: =+IFERROR(F54/$F$129,0) -> 0 | H54: 0 | I54: =+IFERROR(H54/F54,0) -> 0 | J54: =+FIXED(E54,4) -> 0.0000 | K54: =+FIXED(I54,4) -> 0.0000 | L54: =+FIXED(H54,2) -> 0.00 | M54: =IF(H54 < 0, "Disminución", "Aumento") -> Aumento | N54: Ingresos | O54: =+CONCATENATE(Texto!$B$4,AnalisisER!B54,Texto!$B$6,(AnalisisER!J54*100),Texto!$B$8,N54,Texto!$B$12,AnalisisER!L54,Texto!$B$14,AnalisisER!M54,Texto!$B$16,(AnalisisER!K54*100),Texto!$B$18) -> La cuenta Comisiones por préstamos, representa el 0 % del total de Ingresos, que comparado al periodo anterior genera una variación absoluta de 0.00 que corresponde a un(a) Aumento del 0 % de recursos disponibles, producto de
A55: 4.4.3.01. | B55: Comisiones por préstamos al sector privado interno | D55: =SUMIF(BCPAC!$B$10:$B$8000,$A55,BCPAC!$G$10:$G$8000)/1000 -> 0 | E55: =+IFERROR(D55/$D$129,0) -> 0 | F55: =SUMIF(BCPAN!$B$10:$B$8000,$A55,BCPAN!$G$10:$G$8000)/1000 -> 0 | G55: =+IFERROR(F55/$F$129,0) -> 0 | H55: 0 | I55: =+IFERROR(H55/F55,0) -> 0
A56: 4.4.3.02. | B56: Comisiones por préstamos al sector público interno | D56: =SUMIF(BCPAC!$B$10:$B$8000,$A56,BCPAC!$G$10:$G$8000)/1000 -> 0 | E56: 0 | F56: =SUMIF(BCPAN!$B$10:$B$8000,$A56,BCPAN!$G$10:$G$8000)/1000 -> 0 | G56: 0 | H56: 0 | I56: 0
A57: 4.4.3.03. | B57: Comisiones por préstamos al sector externo | D57: =SUMIF(BCPAC!$B$10:$B$8000,$A57,BCPAC!$G$10:$G$8000)/1000 -> 0 | E57: 0 | F57: =SUMIF(BCPAN!$B$10:$B$8000,$A57,BCPAN!$G$10:$G$8000)/1000 -> 0 | G57: 0 | H57: 0 | I57: 0
A58: 4.4.4. | B58: Resultados positivos por ventas de inversiones | C58: 43 | D58: =SUM(D59:D60) -> 0 | E58: =+IFERROR(D58/$D$129,0) -> 0 | F58: =SUM(F59:F60) -> 0 | G58: =+IFERROR(F58/$F$129,0) -> 0 | H58: 0 | I58: =+IFERROR(H58/F58,0) -> 0 | J58: =+FIXED(E58,4) -> 0.0000 | K58: =+FIXED(I58,4) -> 0.0000 | L58: =+FIXED(H58,2) -> 0.00 | M58: =IF(H58 < 0, "Disminución", "Aumento") -> Aumento | N58: Ingresos | O58: =+CONCATENATE(Texto!$B$4,AnalisisER!B58,Texto!$B$6,(AnalisisER!J58*100),Texto!$B$8,N58,Texto!$B$12,AnalisisER!L58,Texto!$B$14,AnalisisER!M58,Texto!$B$16,(AnalisisER!K58*100),Texto!$B$18) -> La cuenta Resultados positivos por ventas de inversiones, representa el 0 % del total de Ingresos, que comparado al periodo anterior genera una variación absoluta de 0.00 que corresponde a un(a) Aumento del 0 % de recursos disponibles, producto de
A59: 4.4.4.01. | B59: Resultados positivos por ventas de inversiones patrimoniales - Método de participación | D59: =SUMIF(BCPAC!$B$10:$B$8000,$A59,BCPAC!$G$10:$G$8000)/1000 -> 0 | E59: =+IFERROR(D59/$D$129,0) -> 0 | F59: =SUMIF(BCPAN!$B$10:$B$8000,$A59,BCPAN!$G$10:$G$8000)/1000 -> 0 | G59: =+IFERROR(F59/$F$129,0) -> 0 | H59: 0 | I59: =+IFERROR(H59/F59,0) -> 0
A60: 4.4.4.98. | B60: Resultados positivos por ventas de otras inversiones | D60: =SUMIF(BCPAC!$B$10:$B$8000,$A60,BCPAC!$G$10:$G$8000)/1000 -> 0 | E60: 0 | F60: =SUMIF(BCPAN!$B$10:$B$8000,$A60,BCPAN!$G$10:$G$8000)/1000 -> 0 | G60: 0 | H60: 0 | I60: 0
A61: 4.4.5. | B61: Resultados positivos por ventas e intercambio de bienes | C61: 44 | D61: =SUM(D62:D70) -> 0 | E61: =+IFERROR(D61/$D$129,0) -> 0 | F61: =SUM(F62:F70) -> 0 | G61: =+IFERROR(F61/$F$129,0) -> 0 | H61: 0 | I61: =+IFERROR(H61/F61,0) -> 0 | J61: =+FIXED(E61,4) -> 0.0000 | K61: =+FIXED(I61,4) -> 0.0000 | L61: =+FIXED(H61,2) -> 0.00 | M61: =IF(H61 < 0, "Disminución", "Aumento") -> Aumento | N61: Ingresos | O61: =+CONCATENATE(Texto!$B$4,AnalisisER!B61,Texto!$B$6,(AnalisisER!J61*100),Texto!$B$8,N61,Texto!$B$12,AnalisisER!L61,Texto!$B$14,AnalisisER!M61,Texto!$B$16,(AnalisisER!K61*100),Texto!$B$18) -> La cuenta Resultados positivos por ventas e intercambio de bienes, representa el 0 % del total de Ingresos, que comparado al periodo anterior genera una variación absoluta de 0.00 que corresponde a un(a) Aumento del 0 % de recursos disponibles, producto de
A62: 4.4.5.01. | B62: Resultados positivos por ventas de construcciones terminadas | D62: =SUMIF(BCPAC!$B$10:$B$8000,$A62,BCPAC!$G$10:$G$8000)/1000 -> 0 | E62: =+IFERROR(D62/$D$129,0) -> 0 | F62: =SUMIF(BCPAN!$B$10:$B$8000,$A62,BCPAN!$G$10:$G$8000)/1000 -> 0 | G62: =+IFERROR(F62/$F$129,0) -> 0 | H62: 0 | I62: =+IFERROR(H62/F62,0) -> 0
A63: 4.4.5.02. | B63: Resultados positivos por ventas de propiedades, planta y equipo | D63: =SUMIF(BCPAC!$B$10:$B$8000,$A63,BCPAC!$G$10:$G$8000)/1000 -> 0 | E63: 0 | F63: =SUMIF(BCPAN!$B$10:$B$8000,$A63,BCPAN!$G$10:$G$8000)/1000 -> 0 | G63: 0 | H63: 0 | I63: 0
A64: 4.4.5.03. | B64: Resultados positivos por ventas de activos biológicos | D64: =SUMIF(BCPAC!$B$10:$B$8000,$A64,BCPAC!$G$10:$G$8000)/1000 -> 0 | E64: 0 | F64: =SUMIF(BCPAN!$B$10:$B$8000,$A64,BCPAN!$G$10:$G$8000)/1000 -> 0 | G64: 0 | H64: 0 | I64: 0
A65: 4.4.5.04. | B65: Resultados positivos por ventas de bienes intangibles | D65: =SUMIF(BCPAC!$B$10:$B$8000,$A65,BCPAC!$G$10:$G$8000)/1000 -> 0 | E65: 0 | F65: =SUMIF(BCPAN!$B$10:$B$8000,$A65,BCPAN!$G$10:$G$8000)/1000 -> 0 | G65: 0 | H65: 0 | I65: 0
A66: 4.4.5.05. | B66: Resultados positivos por ventas por arrendamientos financieros | D66: =SUMIF(BCPAC!$B$10:$B$8000,$A66,BCPAC!$G$10:$G$8000)/1000 -> 0 | E66: 0 | F66: =SUMIF(BCPAN!$B$10:$B$8000,$A66,BCPAN!$G$10:$G$8000)/1000 -> 0 | G66: 0 | H66: 0 | I66: 0
A67: 4.4.5.06. | B67: Resultados positivos por intercambio de propiedades, planta y equipo | D67: =SUMIF(BCPAC!$B$10:$B$8000,$A67,BCPAC!$G$10:$G$8000)/1000 -> 0 | E67: 0 | F67: =SUMIF(BCPAN!$B$10:$B$8000,$A67,BCPAN!$G$10:$G$8000)/1000 -> 0 | G67: 0 | H67: 0 | I67: 0
A68: 4.4.5.07. | B68: Resultados positivos por intercambio de bienes intangibles | D68: =SUMIF(BCPAC!$B$10:$B$8000,$A68,BCPAC!$G$10:$G$8000)/1000 -> 0 | E68: 0 | F68: =SUMIF(BCPAN!$B$10:$B$8000,$A68,BCPAN!$G$10:$G$8000)/1000 -> 0 | G68: 0 | H68: 0 | I68: 0
A69: 4.4.5.08. | B69: Resultados positivos por intercambio de Inventario | D69: =SUMIF(BCPAC!$B$10:$B$8000,$A69,BCPAC!$G$10:$G$8000)/1000 -> 0 | E69: 0 | F69: =SUMIF(BCPAN!$B$10:$B$8000,$A69,BCPAN!$G$10:$G$8000)/1000 -> 0 | G69: 0 | H69: 0 | I69: 0
A70: 4.4.5.09. | B70: Resultados positivos por la entrega de activos como medio de pago de impuestos | D70: =SUMIF(BCPAC!$B$10:$B$8000,$A70,BCPAC!$G$10:$G$8000)/1000 -> 0 | E70: 0 | F70: =SUMIF(BCPAN!$B$10:$B$8000,$A70,BCPAN!$G$10:$G$8000)/1000 -> 0 | G70: 0 | H70: 0 | I70: 0
A71: 4.4.6. | B71: Resultados positivos por la recuperación de dinero mal acreditado de periodos anteriores | C71: 45 | D71: =SUM(D72:D73) -> 0 | E71: =+IFERROR(D71/$D$129,0) -> 0 | F71: =SUM(F72:F73) -> 0 | G71: =+IFERROR(F71/$F$129,0) -> 0 | H71: 0 | I71: =+IFERROR(H71/F71,0) -> 0 | J71: =+FIXED(E71,4) -> 0.0000 | K71: =+FIXED(I71,4) -> 0.0000 | L71: =+FIXED(H71,2) -> 0.00 | M71: =IF(H71 < 0, "Disminución", "Aumento") -> Aumento | N71: Ingresos | O71: =+CONCATENATE(Texto!$B$4,AnalisisER!B71,Texto!$B$6,(AnalisisER!J71*100),Texto!$B$8,N71,Texto!$B$12,AnalisisER!L71,Texto!$B$14,AnalisisER!M71,Texto!$B$16,(AnalisisER!K71*100),Texto!$B$18) -> La cuenta Resultados positivos por la recuperación de dinero mal acreditado de periodos anteriores, representa el 0 % del total de Ingresos, que comparado al periodo anterior genera una variación absoluta de 0.00 que corresponde a un(a) Aumento del 0 % de recursos disponibles, producto de
A72: 4.4.6.01. | B72: Resultados positivos por la recuperacion de sumas de periodos anteriores | D72: =SUMIF(BCPAC!$B$10:$B$8000,$A72,BCPAC!$G$10:$G$8000)/1000 -> 0 | E72: =+IFERROR(D72/$D$129,0) -> 0 | F72: =SUMIF(BCPAN!$B$10:$B$8000,$A72,BCPAN!$G$10:$G$8000)/1000 -> 0 | G72: =+IFERROR(F72/$F$129,0) -> 0 | H72: 0 | I72: =+IFERROR(H72/F72,0) -> 0
A73: 4.5. | B73: Ingresos de la propiedad
A74: 4.5.1. | B74: Rentas de inversiones y de colocación de efectivo | C74: 46 | D74: =SUM(D75:D77) -> 0 | E74: =+IFERROR(D74/$D$129,0) -> 0 | F74: =SUM(F75:F77) -> 0 | G74: =+IFERROR(F74/$F$129,0) -> 0 | H74: =+D74-F74 -> 0 | I74: =+IFERROR(H74/F74,0) -> 0 | J74: =+FIXED(E74,4) -> 0.0000 | K74: =+FIXED(I74,4) -> 0.0000 | L74: =+FIXED(H74,2) -> 0.00 | M74: =IF(H74 < 0, "Disminución", "Aumento") -> Aumento | N74: Ingresos | O74: =+CONCATENATE(Texto!$B$4,AnalisisER!B74,Texto!$B$6,(AnalisisER!J74*100),Texto!$B$8,N74,Texto!$B$12,AnalisisER!L74,Texto!$B$14,AnalisisER!M74,Texto!$B$16,(AnalisisER!K74*100),Texto!$B$18) -> La cuenta Rentas de inversiones y de colocación de efectivo, representa el 0 % del total de Ingresos, que comparado al periodo anterior genera una variación absoluta de 0.00 que corresponde a un(a) Aumento del 0 % de recursos disponibles, producto de
A75: 4.5.1.01. | B75: Intereses por equivalentes de efectivo | D75: =SUMIF(BCPAC!$B$10:$B$8000,$A75,BCPAC!$G$10:$G$8000)/1000 -> 0 | E75: =+IFERROR(D75/$D$129,0) -> 0 | F75: =SUMIF(BCPAN!$B$10:$B$8000,$A75,BCPAN!$G$10:$G$8000)/1000 -> 0 | G75: =+IFERROR(F75/$F$129,0) -> 0 | H75: 0 | I75: =+IFERROR(H75/F75,0) -> 0
A76: 4.5.1.02. | B76: Intereses por títulos y valores a costo amortizado | D76: =SUMIF(BCPAC!$B$10:$B$8000,$A76,BCPAC!$G$10:$G$8000)/1000 -> 0 | E76: 0 | F76: =SUMIF(BCPAN!$B$10:$B$8000,$A76,BCPAN!$G$10:$G$8000)/1000 -> 0 | G76: 0 | H76: 0 | I76: 0
A77: 4.5.1.98. | B77: Resultados positivos de otras inversiones | D77: =SUMIF(BCPAC!$B$10:$B$8000,$A77,BCPAC!$G$10:$G$8000)/1000 -> 0 | E77: 0 | F77: =SUMIF(BCPAN!$B$10:$B$8000,$A77,BCPAN!$G$10:$G$8000)/1000 -> 0 | G77: 0 | H77: 0 | I77: 0
A78: 4.5.2. | B78: Alquileres y derechos sobre bienes | C78: 47 | D78: =SUM(D79:D81) -> 0 | E78: =+IFERROR(D78/$D$129,0) -> 0 | F78: =SUM(F79:F81) -> 0 | G78: =+IFERROR(F78/$F$129,0) -> 0 | H78: 0 | I78: =+IFERROR(H78/F78,0) -> 0 | J78: =+FIXED(E78,4) -> 0.0000 | K78: =+FIXED(I78,4) -> 0.0000 | L78: =+FIXED(H78,2) -> 0.00 | M78: =IF(H78 < 0, "Disminución", "Aumento") -> Aumento | N78: Ingresos | O78: =+CONCATENATE(Texto!$B$4,AnalisisER!B78,Texto!$B$6,(AnalisisER!J78*100),Texto!$B$8,N78,Texto!$B$12,AnalisisER!L78,Texto!$B$14,AnalisisER!M78,Texto!$B$16,(AnalisisER!K78*100),Texto!$B$18) -> La cuenta Alquileres y derechos sobre bienes, representa el 0 % del total de Ingresos, que comparado al periodo anterior genera una variación absoluta de 0.00 que corresponde a un(a) Aumento del 0 % de recursos disponibles, producto de
A79: 4.5.2.01. | B79: Alquileres | D79: =SUMIF(BCPAC!$B$10:$B$8000,$A79,BCPAC!$G$10:$G$8000)/1000 -> 0 | E79: =+IFERROR(D79/$D$129,0) -> 0 | F79: =SUMIF(BCPAN!$B$10:$B$8000,$A79,BCPAN!$G$10:$G$8000)/1000 -> 0 | G79: =+IFERROR(F79/$F$129,0) -> 0 | H79: 0 | I79: =+IFERROR(H79/F79,0) -> 0 | J79: =+FIXED(E79,4) -> 0.0000 | K79: =+FIXED(I79,4) -> 0.0000 | L79: =+FIXED(H79,2) -> 0.00 | M79: =IF(H79 < 0, "Disminución", "Aumento") -> Aumento | N79: Ingresos | O79: =+CONCATENATE(Texto!$B$4,AnalisisER!B79,Texto!$B$6,(AnalisisER!J79*100),Texto!$B$8,N79,Texto!$B$12,AnalisisER!L79,Texto!$B$14,AnalisisER!M79,Texto!$B$16,(AnalisisER!K79*100),Texto!$B$18) -> La cuenta Alquileres, representa el 0 % del total de Ingresos, que comparado al periodo anterior genera una variación absoluta de 0.00 que corresponde a un(a) Aumento del 0 % de recursos disponibles, producto de
A80: 4.5.2.02. | B80: Ingresos por concesiones | D80: =SUMIF(BCPAC!$B$10:$B$8000,$A80,BCPAC!$G$10:$G$8000)/1000 -> 0 | E80: 0 | F80: =SUMIF(BCPAN!$B$10:$B$8000,$A80,BCPAN!$G$10:$G$8000)/1000 -> 0 | G80: 0 | H80: 0 | I80: 0
A81: 4.5.2.03. | B81: Derechos sobre bienes intangibles | D81: =SUMIF(BCPAC!$B$10:$B$8000,$A81,BCPAC!$G$10:$G$8000)/1000 -> 0 | E81: 0 | F81: =SUMIF(BCPAN!$B$10:$B$8000,$A81,BCPAN!$G$10:$G$8000)/1000 -> 0 | G81: 0 | H81: 0 | I81: 0
A82: 4.5.9. | B82: Otros ingresos de la propiedad | C82: 48 | D82: =SUM(D83:D89) -> 0 | E82: =+IFERROR(D82/$D$129,0) -> 0 | F82: =SUM(F83:F89) -> 0 | G82: =+IFERROR(F82/$F$129,0) -> 0 | H82: 0 | I82: =+IFERROR(H82/F82,0) -> 0 | J82: =+FIXED(E82,4) -> 0.0000 | K82: =+FIXED(I82,4) -> 0.0000 | L82: =+FIXED(H82,2) -> 0.00 | M82: =IF(H82 < 0, "Disminución", "Aumento") -> Aumento | N82: Ingresos | O82: =+CONCATENATE(Texto!$B$4,AnalisisER!B82,Texto!$B$6,(AnalisisER!J82*100),Texto!$B$8,N82,Texto!$B$12,AnalisisER!L82,Texto!$B$14,AnalisisER!M82,Texto!$B$16,(AnalisisER!K82*100),Texto!$B$18) -> La cuenta Otros ingresos de la propiedad, representa el 0 % del total de Ingresos, que comparado al periodo anterior genera una variación absoluta de 0.00 que corresponde a un(a) Aumento del 0 % de recursos disponibles, producto de
A83: 4.5.9.03. | B83: Intereses por ventas | D83: =SUMIF(BCPAC!$B$10:$B$8000,$A83,BCPAC!$G$10:$G$8000)/1000 -> 0 | E83: =+IFERROR(D83/$D$129,0) -> 0 | F83: =SUMIF(BCPAN!$B$10:$B$8000,$A83,BCPAN!$G$10:$G$8000)/1000 -> 0 | G83: =+IFERROR(F83/$F$129,0) -> 0 | H83: 0 | I83: =+IFERROR(H83/F83,0) -> 0
A84: 4.5.9.07. | B84: Intereses por préstamos | D84: =SUMIF(BCPAC!$B$10:$B$8000,$A84,BCPAC!$G$10:$G$8000)/1000 -> 0 | E84: 0 | F84: =SUMIF(BCPAN!$B$10:$B$8000,$A84,BCPAN!$G$10:$G$8000)/1000 -> 0 | G84: 0 | H84: 0 | I84: 0
A85: 4.5.9.08. | B85: Intereses por documentos a cobrar | D85: =SUMIF(BCPAC!$B$10:$B$8000,$A85,BCPAC!$G$10:$G$8000)/1000 -> 0 | E85: 0 | F85: =SUMIF(BCPAN!$B$10:$B$8000,$A85,BCPAN!$G$10:$G$8000)/1000 -> 0 | G85: 0 | H85: 0 | I85: 0
A86: 4.5.9.10. | B86: Intereses por deudores por avales ejecutados | D86: =SUMIF(BCPAC!$B$10:$B$8000,$A86,BCPAC!$G$10:$G$8000)/1000 -> 0 | E86: 0 | F86: =SUMIF(BCPAN!$B$10:$B$8000,$A86,BCPAN!$G$10:$G$8000)/1000 -> 0 | G86: 0 | H86: 0 | I86: 0
A87: 4.5.9.97. | B87: Intereses por cuentas a cobrar en gestión judicial | D87: =SUMIF(BCPAC!$B$10:$B$8000,$A87,BCPAC!$G$10:$G$8000)/1000 -> 0 | E87: 0 | F87: =SUMIF(BCPAN!$B$10:$B$8000,$A87,BCPAN!$G$10:$G$8000)/1000 -> 0 | G87: 0 | H87: 0 | I87: 0
A88: 4.5.9.99. | B88: Intereses por otras cuentas a cobrar | D88: =SUMIF(BCPAC!$B$10:$B$8000,$A88,BCPAC!$G$10:$G$8000)/1000 -> 0 | E88: 0 | F88: =SUMIF(BCPAN!$B$10:$B$8000,$A88,BCPAN!$G$10:$G$8000)/1000 -> 0 | G88: 0 | H88: 0 | I88: 0
A89: 4.6. | B89: Transferencias
A90: 4.6.1. | B90: Transferencias corrientes | C90: 49 | D90: =SUM(D91:D93) -> 1495902.625 | E90: =+IFERROR(D90/$D$129,0) -> 0.9999466445 | F90: =SUM(F91:F93) -> 1607762.032 | G90: =+IFERROR(F90/$F$129,0) -> 0.9998714489 | H90: =+D90-F90 -> -111859.4075 | I90: =+IFERROR(H90/F90,0) -> -0.06957460447 | J90: =+FIXED(E90,4) -> 0.9999 | K90: =+FIXED(I90,4) -> -0.0696 | L90: =+FIXED(H90,2) -> -111,859.41 | M90: =IF(H90 < 0, "Disminución", "Aumento") -> Disminución | N90: Ingresos | O90: =+CONCATENATE(Texto!$B$4,AnalisisER!B90,Texto!$B$6,(AnalisisER!J90*100),Texto!$B$8,N90,Texto!$B$12,AnalisisER!L90,Texto!$B$14,AnalisisER!M90,Texto!$B$16,(AnalisisER!K90*100),Texto!$B$18) -> La cuenta Transferencias corrientes, representa el 99.99 % del total de Ingresos, que comparado al periodo anterior genera una variación absoluta de -111,859.41 que corresponde a un(a) Disminución del -6.96 % de recursos disponibles, producto de
A91: 4.6.1.01. | B91: Transferencias corrientes del sector privado interno | D91: =SUMIF(BCPAC!$B$10:$B$8000,$A91,BCPAC!$G$10:$G$8000)/1000 -> 0 | E91: =+IFERROR(D91/$D$129,0) -> 0 | F91: =SUMIF(BCPAN!$B$10:$B$8000,$A91,BCPAN!$G$10:$G$8000)/1000 -> 0 | G91: =+IFERROR(F91/$F$129,0) -> 0 | H91: 0 | I91: =+IFERROR(H91/F91,0) -> 0
A92: 4.6.1.02. | B92: Transferencias corrientes del sector público interno | D92: =SUMIF(BCPAC!$B$10:$B$8000,$A92,BCPAC!$G$10:$G$8000)/1000 -> 1495902.625 | E92: 0.9999466445 | F92: =SUMIF(BCPAN!$B$10:$B$8000,$A92,BCPAN!$G$10:$G$8000)/1000 -> 1607762.032 | G92: 0.9998714489 | H92: -111859.4075 | I92: -0.06957460447 | J92: =+FIXED(E92,4) -> 0.9999 | K92: =+FIXED(I92,4) -> -0.0696 | L92: =+FIXED(H92,2) -> -111,859.41 | M92: =IF(H92 < 0, "Disminución", "Aumento") -> Disminución | N92: Ingresos | O92: =+CONCATENATE(Texto!$B$4,AnalisisER!B92,Texto!$B$6,(AnalisisER!J92*100),Texto!$B$8,N92,Texto!$B$12,AnalisisER!L92,Texto!$B$14,AnalisisER!M92,Texto!$B$16,(AnalisisER!K92*100),Texto!$B$18) -> La cuenta Transferencias corrientes del sector público interno, representa el 99.99 % del total de Ingresos, que comparado al periodo anterior genera una variación absoluta de -111,859.41 que corresponde a un(a) Disminución del -6.96 % de recursos disponibles, producto de
A93: 4.6.1.03. | B93: Transferencias corrientes del sector externo | D93: =SUMIF(BCPAC!$B$10:$B$8000,$A93,BCPAC!$G$10:$G$8000)/1000 -> 0 | E93: 0 | F93: =SUMIF(BCPAN!$B$10:$B$8000,$A93,BCPAN!$G$10:$G$8000)/1000 -> 0 | G93: 0 | H93: 0 | I93: 0
A94: 4.6.2. | B94: Transferencias de capital | C94: 50 | D94: =SUM(D95:D98) -> 79.81891 | E94: =+IFERROR(D94/$D$129,0) -> 5.335551252e-05 | F94: =SUM(F95:F98) -> 0 | G94: =+IFERROR(F94/$F$129,0) -> 0 | H94: 79.81891 | I94: =+IFERROR(H94/F94,0) -> 0 | J94: =+FIXED(E94,4) -> 0.0001 | K94: =+FIXED(I94,4) -> 0.0000 | L94: =+FIXED(H94,2) -> 79.82 | M94: =IF(H94 < 0, "Disminución", "Aumento") -> Aumento | N94: Ingresos | O94: =+CONCATENATE(Texto!$B$4,AnalisisER!B94,Texto!$B$6,(AnalisisER!J94*100),Texto!$B$8,N94,Texto!$B$12,AnalisisER!L94,Texto!$B$14,AnalisisER!M94,Texto!$B$16,(AnalisisER!K94*100),Texto!$B$18) -> La cuenta Transferencias de capital, representa el 0.01 % del total de Ingresos, que comparado al periodo anterior genera una variación absoluta de 79.82 que corresponde a un(a) Aumento del 0 % de recursos disponibles, producto de
A95: 4.6.2.01. | B95: Transferencias de capital del sector privado interno | D95: =SUMIF(BCPAC!$B$10:$B$8000,$A95,BCPAC!$G$10:$G$8000)/1000 -> 0 | E95: =+IFERROR(D95/$D$129,0) -> 0 | F95: =SUMIF(BCPAN!$B$10:$B$8000,$A95,BCPAN!$G$10:$G$8000)/1000 -> 0 | G95: =+IFERROR(F95/$F$129,0) -> 0 | H95: 0 | I95: =+IFERROR(H95/F95,0) -> 0
A96: 4.6.2.02. | B96: Transferencias de capital del sector público interno | D96: =SUMIF(BCPAC!$B$10:$B$8000,$A96,BCPAC!$G$10:$G$8000)/1000 -> 79.81891 | E96: 5.335551252e-05 | F96: =SUMIF(BCPAN!$B$10:$B$8000,$A96,BCPAN!$G$10:$G$8000)/1000 -> 0 | G96: 0 | H96: 79.81891 | I96: 0 | J96: =+FIXED(E96,4) -> 0.0001 | K96: =+FIXED(I96,4) -> 0.0000 | L96: =+FIXED(H96,2) -> 79.82 | M96: =IF(H96 < 0, "Disminución", "Aumento") -> Aumento | N96: Ingresos | O96: =+CONCATENATE(Texto!$B$4,AnalisisER!B96,Texto!$B$6,(AnalisisER!J96*100),Texto!$B$8,N96,Texto!$B$12,AnalisisER!L96,Texto!$B$14,AnalisisER!M96,Texto!$B$16,(AnalisisER!K96*100),Texto!$B$18) -> La cuenta Transferencias de capital del sector público interno, representa el 0.01 % del total de Ingresos, que comparado al periodo anterior genera una variación absoluta de 79.82 que corresponde a un(a) Aumento del 0 % de recursos disponibles, producto de
A97: 4.6.2.03. | B97: Transferencias de capital del sector externo | D97: =SUMIF(BCPAC!$B$10:$B$8000,$A97,BCPAC!$G$10:$G$8000)/1000 -> 0 | E97: 0 | F97: =SUMIF(BCPAN!$B$10:$B$8000,$A97,BCPAN!$G$10:$G$8000)/1000 -> 0 | G97: 0 | H97: 0 | I97: 0
A98: 4.9. | B98: Otros ingresos
A99: 4.9.1. | B99: Resultados positivos por tenencia y por exposición a la inflación | C99: 51 | D99: =SUM(D100:D105) -> 0 | E99: =+IFERROR(D99/$D$129,0) -> 0 | F99: =SUM(F100:F105) -> 206.70612 | G99: =+IFERROR(F99/$F$129,0) -> 0.0001285510813 | H99: =+D99-F99 -> -206.70612 | I99: =+IFERROR(H99/F99,0) -> -1 | J99: =+FIXED(E99,4) -> 0.0000 | K99: =+FIXED(I99,4) -> -1.0000 | L99: =+FIXED(H99,2) -> -206.71 | M99: =IF(H99 < 0, "Disminución", "Aumento") -> Disminución | N99: Ingresos | O99: =+CONCATENATE(Texto!$B$4,AnalisisER!B99,Texto!$B$6,(AnalisisER!J99*100),Texto!$B$8,N99,Texto!$B$12,AnalisisER!L99,Texto!$B$14,AnalisisER!M99,Texto!$B$16,(AnalisisER!K99*100),Texto!$B$18) -> La cuenta Resultados positivos por tenencia y por exposición a la inflación, representa el 0 % del total de Ingresos, que comparado al periodo anterior genera una variación absoluta de -206.71 que corresponde a un(a) Disminución del -100 % de recursos disponibles, producto de
A100: 4.9.1.01. | B100: Diferencias de cambio positivas por activos | D100: =SUMIF(BCPAC!$B$10:$B$8000,$A100,BCPAC!$G$10:$G$8000)/1000 -> 0 | E100: =+IFERROR(D100/$D$129,0) -> 0 | F100: =SUMIF(BCPAN!$B$10:$B$8000,$A100,BCPAN!$G$10:$G$8000)/1000 -> 206.70612 | G100: =+IFERROR(F100/$F$129,0) -> 0.0001285510813 | H100: -206.70612 | I100: =+IFERROR(H100/F100,0) -> -1
A101: 4.9.1.02. | B101: Diferencias de cambio positivas por pasivos | D101: =SUMIF(BCPAC!$B$10:$B$8000,$A101,BCPAC!$G$10:$G$8000)/1000 -> 0 | E101: 0 | F101: =SUMIF(BCPAN!$B$10:$B$8000,$A101,BCPAN!$G$10:$G$8000)/1000 -> 0 | G101: 0 | H101: 0 | I101: 0
A102: 4.9.1.03. | B102: Resultados positivos por tenencia de activos no derivados | D102: =SUMIF(BCPAC!$B$10:$B$8000,$A102,BCPAC!$G$10:$G$8000)/1000 -> 0 | E102: 0 | F102: =SUMIF(BCPAN!$B$10:$B$8000,$A102,BCPAN!$G$10:$G$8000)/1000 -> 0 | G102: 0 | H102: 0 | I102: 0
A103: 4.9.1.04. | B103: Resultados positivos por tenencia de pasivos no derivados | D103: =SUMIF(BCPAC!$B$10:$B$8000,$A103,BCPAC!$G$10:$G$8000)/1000 -> 0 | E103: 0 | F103: =SUMIF(BCPAN!$B$10:$B$8000,$A103,BCPAN!$G$10:$G$8000)/1000 -> 0 | G103: 0 | H103: 0 | I103: 0
A104: 4.9.1.05. | B104: Resultados positivos por tenencia de instrumentos financieros derivados | D104: =SUMIF(BCPAC!$B$10:$B$8000,$A104,BCPAC!$G$10:$G$8000)/1000 -> 0 | E104: 0 | F104: =SUMIF(BCPAN!$B$10:$B$8000,$A104,BCPAN!$G$10:$G$8000)/1000 -> 0 | G104: 0 | H104: 0 | I104: 0
A105: 4.9.1.06. | B105: Resultado positivo por exposición a la inflación | D105: =SUMIF(BCPAC!$B$10:$B$8000,$A105,BCPAC!$G$10:$G$8000)/1000 -> 0 | E105: 0 | F105: =SUMIF(BCPAN!$B$10:$B$8000,$A105,BCPAN!$G$10:$G$8000)/1000 -> 0 | G105: 0 | H105: 0 | I105: 0
A106: 4.9.2. | B106: Reversión de consumo de bienes | C106: 52 | D106: =SUM(D107:D108) -> 0 | E106: =+IFERROR(D106/$D$129,0) -> 0 | F106: =SUM(F107:F108) -> 0 | G106: =+IFERROR(F106/$F$129,0) -> 0 | H106: 0 | I106: =+IFERROR(H106/F106,0) -> 0 | J106: =+FIXED(E106,4) -> 0.0000 | K106: =+FIXED(I106,4) -> 0.0000 | L106: =+FIXED(H106,2) -> 0.00 | M106: =IF(H106 < 0, "Disminución", "Aumento") -> Aumento | N106: Ingresos | O106: =+CONCATENATE(Texto!$B$4,AnalisisER!B106,Texto!$B$6,(AnalisisER!J106*100),Texto!$B$8,N106,Texto!$B$12,AnalisisER!L106,Texto!$B$14,AnalisisER!M106,Texto!$B$16,(AnalisisER!K106*100),Texto!$B$18) -> La cuenta Reversión de consumo de bienes, representa el 0 % del total de Ingresos, que comparado al periodo anterior genera una variación absoluta de 0.00 que corresponde a un(a) Aumento del 0 % de recursos disponibles, producto de
A107: 4.9.2.01. | B107: Reversión de consumo de bienes no concesionados | D107: =SUMIF(BCPAC!$B$10:$B$8000,$A107,BCPAC!$G$10:$G$8000)/1000 -> 0 | E107: =+IFERROR(D107/$D$129,0) -> 0 | F107: =SUMIF(BCPAN!$B$10:$B$8000,$A107,BCPAN!$G$10:$G$8000)/1000 -> 0 | G107: =+IFERROR(F107/$F$129,0) -> 0 | H107: 0 | I107: =+IFERROR(H107/F107,0) -> 0
A108: 4.9.2.02. | B108: Reversión de consumo de bienes concesionados | D108: =SUMIF(BCPAC!$B$10:$B$8000,$A108,BCPAC!$G$10:$G$8000)/1000 -> 0 | E108: 0 | F108: =SUMIF(BCPAN!$B$10:$B$8000,$A108,BCPAN!$G$10:$G$8000)/1000 -> 0 | G108: 0 | H108: 0 | I108: 0
A109: 4.9.3. | B109: Reversión de pérdidas por deterioro y desvalorización de bienes | C109: 53 | D109: =SUM(D110:D114) -> 0 | E109: =+IFERROR(D109/$D$129,0) -> 0 | F109: =SUM(F110:F114) -> 0 | G109: =+IFERROR(F109/$F$129,0) -> 0 | H109: 0 | I109: =+IFERROR(H109/F109,0) -> 0 | J109: =+FIXED(E109,4) -> 0.0000 | K109: =+FIXED(I109,4) -> 0.0000 | L109: =+FIXED(H109,2) -> 0.00 | M109: =IF(H109 < 0, "Disminución", "Aumento") -> Aumento | N109: Ingresos | O109: =+CONCATENATE(Texto!$B$4,AnalisisER!B109,Texto!$B$6,(AnalisisER!J109*100),Texto!$B$8,N109,Texto!$B$12,AnalisisER!L109,Texto!$B$14,AnalisisER!M109,Texto!$B$16,(AnalisisER!K109*100),Texto!$B$18) -> La cuenta Reversión de pérdidas por deterioro y desvalorización de bienes, representa el 0 % del total de Ingresos, que comparado al periodo anterior genera una variación absoluta de 0.00 que corresponde a un(a) Aumento del 0 % de recursos disponibles, producto de
A110: 4.9.3.01. | B110: Reversión de deterioro y desvalorización de bienes no concesionados | D110: =SUMIF(BCPAC!$B$10:$B$8000,$A110,BCPAC!$G$10:$G$8000)/1000 -> 0 | E110: =+IFERROR(D110/$D$129,0) -> 0 | F110: =SUMIF(BCPAN!$B$10:$B$8000,$A110,BCPAN!$G$10:$G$8000)/1000 -> 0 | G110: =+IFERROR(F110/$F$129,0) -> 0 | H110: 0 | I110: =+IFERROR(H110/F110,0) -> 0
A111: 4.9.3.02. | B111: Reversión de deterioro y desvalorización de bienes concesionados | D111: =SUMIF(BCPAC!$B$10:$B$8000,$A111,BCPAC!$G$10:$G$8000)/1000 -> 0 | E111: 0 | F111: =SUMIF(BCPAN!$B$10:$B$8000,$A111,BCPAN!$G$10:$G$8000)/1000 -> 0 | G111: 0 | H111: 0 | I111: 0
A112: 4.9.3.03. | B112: Reversión de deterioro y desvalorización de inventarios por materiales y suministros para consumo y prestación de servicios | D112: =SUMIF(BCPAC!$B$10:$B$8000,$A112,BCPAC!$G$10:$G$8000)/1000 -> 0 | E112: 0 | F112: =SUMIF(BCPAN!$B$10:$B$8000,$A112,BCPAN!$G$10:$G$8000)/1000 -> 0 | G112: 0 | H112: 0 | I112: 0
A113: 4.9.3.04. | B113: Reversión de deterioro y desvalorización de inventarios por bienes para la venta | D113: =SUMIF(BCPAC!$B$10:$B$8000,$A113,BCPAC!$G$10:$G$8000)/1000 -> 0 | E113: 0 | F113: =SUMIF(BCPAN!$B$10:$B$8000,$A113,BCPAN!$G$10:$G$8000)/1000 -> 0 | G113: 0 | H113: 0 | I113: 0
A114: 4.9.3.05. | B114: Reversión de deterioro y desvalorización de inventarios por materias primas y bienes en producción | D114: =SUMIF(BCPAC!$B$10:$B$8000,$A114,BCPAC!$G$10:$G$8000)/1000 -> 0 | E114: 0 | F114: =SUMIF(BCPAN!$B$10:$B$8000,$A114,BCPAN!$G$10:$G$8000)/1000 -> 0 | G114: 0 | H114: 0 | I114: 0
A115: 4.9.4. | B115: Recuperación de previsiones | C115: 54 | D115: =SUM(D116:D118) -> 0 | E115: =+IFERROR(D115/$D$129,0) -> 0 | F115: =SUM(F116:F118) -> 0 | G115: =+IFERROR(F115/$F$129,0) -> 0 | H115: 0 | I115: =+IFERROR(H115/F115,0) -> 0 | J115: =+FIXED(E115,4) -> 0.0000 | K115: =+FIXED(I115,4) -> 0.0000 | L115: =+FIXED(H115,2) -> 0.00 | M115: =IF(H115 < 0, "Disminución", "Aumento") -> Aumento | N115: Ingresos | O115: =+CONCATENATE(Texto!$B$4,AnalisisER!B115,Texto!$B$6,(AnalisisER!J115*100),Texto!$B$8,N115,Texto!$B$12,AnalisisER!L115,Texto!$B$14,AnalisisER!M115,Texto!$B$16,(AnalisisER!K115*100),Texto!$B$18) -> La cuenta Recuperación de previsiones, representa el 0 % del total de Ingresos, que comparado al periodo anterior genera una variación absoluta de 0.00 que corresponde a un(a) Aumento del 0 % de recursos disponibles, producto de
A116: 4.9.4.01. | B116: Recuperación de previsiones para deterioro de inversiones | D116: =SUMIF(BCPAC!$B$10:$B$8000,$A116,BCPAC!$G$10:$G$8000)/1000 -> 0 | E116: =+IFERROR(D116/$D$129,0) -> 0 | F116: =SUMIF(BCPAN!$B$10:$B$8000,$A116,BCPAN!$G$10:$G$8000)/1000 -> 0 | G116: =+IFERROR(F116/$F$129,0) -> 0 | H116: 0 | I116: =+IFERROR(H116/F116,0) -> 0
A117: 4.9.4.02. | B117: Recuperación de previsiones para deterioro de cuentas a cobrar | D117: =SUMIF(BCPAC!$B$10:$B$8000,$A117,BCPAC!$G$10:$G$8000)/1000 -> 0 | E117: 0 | F117: =SUMIF(BCPAN!$B$10:$B$8000,$A117,BCPAN!$G$10:$G$8000)/1000 -> 0 | G117: 0 | H117: 0 | I117: 0
A118: 4.9.4.03. | B118: Recuperación de previsiones para deterioro y pérdidas de inventarios | D118: =SUMIF(BCPAC!$B$10:$B$8000,$A118,BCPAC!$G$10:$G$8000)/1000 -> 0 | E118: 0 | F118: =SUMIF(BCPAN!$B$10:$B$8000,$A118,BCPAN!$G$10:$G$8000)/1000 -> 0 | G118: 0 | H118: 0 | I118: 0
A119: 4.9.5. | B119: Recuperación de provisiones y reservas técnicas | C119: 55 | D119: =SUM(D120:D123) -> 0 | E119: =+IFERROR(D119/$D$129,0) -> 0 | F119: =SUM(F120:F123) -> 0 | G119: =+IFERROR(F119/$F$129,0) -> 0 | H119: 0 | I119: =+IFERROR(H119/F119,0) -> 0 | J119: =+FIXED(E119,4) -> 0.0000 | K119: =+FIXED(I119,4) -> 0.0000 | L119: =+FIXED(H119,2) -> 0.00 | M119: =IF(H119 < 0, "Disminución", "Aumento") -> Aumento | N119: Ingresos | O119: =+CONCATENATE(Texto!$B$4,AnalisisER!B119,Texto!$B$6,(AnalisisER!J119*100),Texto!$B$8,N119,Texto!$B$12,AnalisisER!L119,Texto!$B$14,AnalisisER!M119,Texto!$B$16,(AnalisisER!K119*100),Texto!$B$18) -> La cuenta Recuperación de provisiones y reservas técnicas, representa el 0 % del total de Ingresos, que comparado al periodo anterior genera una variación absoluta de 0.00 que corresponde a un(a) Aumento del 0 % de recursos disponibles, producto de
A120: 4.9.5.01. | B120: Recuperación de provisiones para litigios y demandas | D120: =SUMIF(BCPAC!$B$10:$B$8000,$A120,BCPAC!$G$10:$G$8000)/1000 -> 0 | E120: =+IFERROR(D120/$D$129,0) -> 0 | F120: =SUMIF(BCPAN!$B$10:$B$8000,$A120,BCPAN!$G$10:$G$8000)/1000 -> 0 | G120: =+IFERROR(F120/$F$129,0) -> 0 | H120: 0 | I120: =+IFERROR(H120/F120,0) -> 0
A121: 4.9.5.02. | B121: Recuperación de provisiones para reestructuración | D121: =SUMIF(BCPAC!$B$10:$B$8000,$A121,BCPAC!$G$10:$G$8000)/1000 -> 0 | E121: 0 | F121: =SUMIF(BCPAN!$B$10:$B$8000,$A121,BCPAN!$G$10:$G$8000)/1000 -> 0 | G121: 0 | H121: 0 | I121: 0
A122: 4.9.5.03. | B122: Recuperación de provisiones para beneficios a los empleados | D122: =SUMIF(BCPAC!$B$10:$B$8000,$A122,BCPAC!$G$10:$G$8000)/1000 -> 0 | E122: 0 | F122: =SUMIF(BCPAN!$B$10:$B$8000,$A122,BCPAN!$G$10:$G$8000)/1000 -> 0 | G122: 0 | H122: 0 | I122: 0
A123: 4.9.5.99. | B123: Recuperación de otras provisiones y reservas técnicas | D123: =SUMIF(BCPAC!$B$10:$B$8000,$A123,BCPAC!$G$10:$G$8000)/1000 -> 0 | E123: 0 | F123: =SUMIF(BCPAN!$B$10:$B$8000,$A123,BCPAN!$G$10:$G$8000)/1000 -> 0 | G123: 0 | H123: 0 | I123: 0
A124: 4.9.6. | B124: Resultados positivos de inversiones patrimoniales y participación de los intereses minoritarios | C124: 56 | D124: =SUM(D125:D126) -> 0 | E124: =+IFERROR(D124/$D$129,0) -> 0 | F124: =SUM(F125:F126) -> 0 | G124: =+IFERROR(F124/$F$129,0) -> 0 | H124: 0 | I124: =+IFERROR(H124/F124,0) -> 0 | J124: =+FIXED(E124,4) -> 0.0000 | K124: =+FIXED(I124,4) -> 0.0000 | L124: =+FIXED(H124,2) -> 0.00 | M124: =IF(H124 < 0, "Disminución", "Aumento") -> Aumento | N124: Ingresos | O124: =+CONCATENATE(Texto!$B$4,AnalisisER!B124,Texto!$B$6,(AnalisisER!J124*100),Texto!$B$8,N124,Texto!$B$12,AnalisisER!L124,Texto!$B$14,AnalisisER!M124,Texto!$B$16,(AnalisisER!K124*100),Texto!$B$18) -> La cuenta Resultados positivos de inversiones patrimoniales y participación de los intereses minoritarios, representa el 0 % del total de Ingresos, que comparado al periodo anterior genera una variación absoluta de 0.00 que corresponde a un(a) Aumento del 0 % de recursos disponibles, producto de
A125: 4.9.6.01. | B125: Resultados positivos de inversiones patrimoniales | D125: =SUMIF(BCPAC!$B$10:$B$8000,$A125,BCPAC!$G$10:$G$8000)/1000 -> 0 | E125: =+IFERROR(D125/$D$129,0) -> 0 | F125: =SUMIF(BCPAN!$B$10:$B$8000,$A125,BCPAN!$G$10:$G$8000)/1000 -> 0 | G125: 0 | H125: 0 | I125: =+IFERROR(H125/F125,0) -> 0
A126: 4.9.6.02. | B126: Participación de los intereses minoritarios en el resultado neto negativo | D126: =SUMIF(BCPAC!$B$10:$B$8000,$A126,BCPAC!$G$10:$G$8000)/1000 -> 0 | E126: 0 | F126: =SUMIF(BCPAN!$B$10:$B$8000,$A126,BCPAN!$G$10:$G$8000)/1000 -> 0 | G126: 0 | H126: 0 | I126: 0
A127: 4.9.9. | B127: Otros ingresos y resultados positivos | C127: 57 | D127: =SUM(D128) -> 0 | E127: =+IFERROR(D127/$D$129,0) -> 0 | F127: =SUM(F128) -> 0 | G127: 0 | H127: 0 | I127: =+IFERROR(H127/F127,0) -> 0 | J127: =+FIXED(E127,4) -> 0.0000 | K127: =+FIXED(I127,4) -> 0.0000 | L127: =+FIXED(H127,2) -> 0.00 | M127: =IF(H127 < 0, "Disminución", "Aumento") -> Aumento | N127: Ingresos | O127: =+CONCATENATE(Texto!$B$4,AnalisisER!B127,Texto!$B$6,(AnalisisER!J127*100),Texto!$B$8,N127,Texto!$B$12,AnalisisER!L127,Texto!$B$14,AnalisisER!M127,Texto!$B$16,(AnalisisER!K127*100),Texto!$B$18) -> La cuenta Otros ingresos y resultados positivos, representa el 0 % del total de Ingresos, que comparado al periodo anterior genera una variación absoluta de 0.00 que corresponde a un(a) Aumento del 0 % de recursos disponibles, producto de
A128: 4.9.9.99. | B128: Ingresos y resultados positivos varios | D128: =SUMIF(BCPAC!$B$10:$B$8000,$A128,BCPAC!$G$10:$G$8000)/1000 -> 0 | E128: =+IFERROR(D128/$D$129,0) -> 0 | F128: =SUMIF(BCPAN!$B$10:$B$8000,$A128,BCPAN!$G$10:$G$8000)/1000 -> 0 | G128: 0 | H128: 0 | I128: =+IFERROR(H128/F128,0) -> 0
B129: TOTAL DE INGRESOS | D129: =+D127+D124+D119+D115+D109+D106+D99+D94+D90+D82+D78+D74+D71+D61+D58+D54+D51+D48+D45+D40+D37+D33+D30+D26+D22+D15+D10 -> 1495982.443 | E129: =+IFERROR(D129/$D$129,0) -> 1 | F129: =+F127+F124+F119+F115+F109+F106+F99+F94+F90+F82+F78+F74+F71+F61+F58+F54+F51+F48+F45+F40+F37+F33+F30+F26+F22+F15+F10 -> 1607968.738 | G129: 1 | H129: -111986.2947 | I129: =+IFERROR(H129/F129,0) -> -0.06964457207
A131: 5. | B131: GASTOS
A132: 5.1. | B132: Gastos de funcionamiento
A133: 5.1.1. | B133: Gastos en personal | C133: 58 | D133: =SUM(D134:D141) -> 1443575.301 | E133: =+IFERROR(D133/$D$227,0) -> 0.9055708907 | F133: =SUM(F134:F141) -> 1533464.952 | G133: =+IFERROR(F133/$F$227,0) -> 0.9100155221 | H133: =+D133-F133 -> -89889.65103 | I133: =+IFERROR(H133/F133,0) -> -0.05861865375 | J133: =+FIXED(E133,4) -> 0.9056 | K133: =+FIXED(I133,4) -> -0.0586 | L133: =+FIXED(H133,2) -> -89,889.65 | M133: =IF(H133 < 0, "Disminución", "Aumento") -> Disminución | N133: Gastos | O133: =+CONCATENATE(Texto!$B$4,AnalisisER!B133,Texto!$B$6,(AnalisisER!J133*100),Texto!$B$8,N133,Texto!$B$12,AnalisisER!L133,Texto!$B$14,AnalisisER!M133,Texto!$B$16,(AnalisisER!K133*100),Texto!$B$18) -> La cuenta Gastos en personal, representa el 90.56 % del total de Gastos, que comparado al periodo anterior genera una variación absoluta de -89,889.65 que corresponde a un(a) Disminución del -5.86 % de recursos disponibles, producto de
A134: 5.1.1.01. | B134: Remuneraciones Básicas | D134: =SUMIF(BCPAC!$B$10:$B$8000,$A134,BCPAC!$G$10:$G$8000)/1000 -> 461852.123 | E134: =+IFERROR(D134/$D$227,0) -> 0.2897249892 | F134: =SUMIF(BCPAN!$B$10:$B$8000,$A134,BCPAN!$G$10:$G$8000)/1000 -> 497368.8593 | G134: =+IFERROR(F134/$F$227,0) -> 0.2951573048 | H134: -35516.73628 | I134: =+IFERROR(H134/F134,0) -> -0.07140924812
A135: 5.1.1.02. | B135: Remuneraciones eventuales | D135: =SUMIF(BCPAC!$B$10:$B$8000,$A135,BCPAC!$G$10:$G$8000)/1000 -> 52270.48575 | E135: =+IFERROR(D135/$D$227,0) -> 0.03278985884 | F135: =SUMIF(BCPAN!$B$10:$B$8000,$A135,BCPAN!$G$10:$G$8000)/1000 -> 36304.39489 | G135: =+IFERROR(F135/$F$227,0) -> 0.02154438733 | H135: 15966.09086 | I135: 0.4397839685
A136: 5.1.1.03. | B136: Incentivos salariales | D136: =SUMIF(BCPAC!$B$10:$B$8000,$A136,BCPAC!$G$10:$G$8000)/1000 -> 650872.9697 | E136: 0.4082998751 | F136: =SUMIF(BCPAN!$B$10:$B$8000,$A136,BCPAN!$G$10:$G$8000)/1000 -> 702946.7218 | G136: 0.4171549062 | H136: -52073.75207 | I136: -0.07407923027
A137: 5.1.1.04. | B137: Contribuciones patronales al desarrollo y la seguridad social | D137: =SUMIF(BCPAC!$B$10:$B$8000,$A137,BCPAC!$G$10:$G$8000)/1000 -> 115790.9947 | E137: 0.07263698272 | F137: =SUMIF(BCPAN!$B$10:$B$8000,$A137,BCPAN!$G$10:$G$8000)/1000 -> 123916.6919 | G137: 0.07353680495 | H137: -8125.6972 | I137: -0.06557387127
A138: 5.1.1.05. | B138: Contribuciones patronales a fondos de pensiones y a otros fondos de capitalización | D138: =SUMIF(BCPAC!$B$10:$B$8000,$A138,BCPAC!$G$10:$G$8000)/1000 -> 162788.7275 | E138: 0.1021191848 | F138: =SUMIF(BCPAN!$B$10:$B$8000,$A138,BCPAN!$G$10:$G$8000)/1000 -> 172928.2838 | G138: 0.1026221188 | H138: -10139.55634 | I138: -0.05863445885
A139: 5.1.1.06. | B139: Asistencia social y beneficios al personal | D139: =SUMIF(BCPAC!$B$10:$B$8000,$A139,BCPAC!$G$10:$G$8000)/1000 -> 0 | E139: 0 | F139: =SUMIF(BCPAN!$B$10:$B$8000,$A139,BCPAN!$G$10:$G$8000)/1000 -> 0 | G139: 0 | H139: 0 | I139: 0
A140: 5.1.1.07. | B140: Contribuciones estatales a la seguridad social | D140: =SUMIF(BCPAC!$B$10:$B$8000,$A140,BCPAC!$G$10:$G$8000)/1000 -> 0 | E140: 0 | F140: =SUMIF(BCPAN!$B$10:$B$8000,$A140,BCPAN!$G$10:$G$8000)/1000 -> 0 | G140: 0 | H140: 0 | I140: 0
A141: 5.1.1.99. | B141: Otros gastos en personal | D141: =SUMIF(BCPAC!$B$10:$B$8000,$A141,BCPAC!$G$10:$G$8000)/1000 -> 0 | E141: 0 | F141: =SUMIF(BCPAN!$B$10:$B$8000,$A141,BCPAN!$G$10:$G$8000)/1000 -> 0 | G141: 0 | H141: 0 | I141: 0
A142: 5.1.2. | B142: Servicios | C142: 59 | D142: =SUM(D143:D151) -> 70629.19207 | E142: =+IFERROR(D142/$D$227,0) -> 0.04430648013 | F142: =SUM(F143:F151) -> 61023.99782 | G142: =+IFERROR(F142/$F$227,0) -> 0.03621392532 | H142: 9605.19425 | I142: =+IFERROR(H142/F142,0) -> 0.1574002785 | J142: =+FIXED(E142,4) -> 0.0443 | K142: =+FIXED(I142,4) -> 0.1574 | L142: =+FIXED(H142,2) -> 9,605.19 | M142: =IF(H142 < 0, "Disminución", "Aumento") -> Aumento | N142: Gastos | O142: =+CONCATENATE(Texto!$B$4,AnalisisER!B142,Texto!$B$6,(AnalisisER!J142*100),Texto!$B$8,N142,Texto!$B$12,AnalisisER!L142,Texto!$B$14,AnalisisER!M142,Texto!$B$16,(AnalisisER!K142*100),Texto!$B$18) -> La cuenta Servicios, representa el 4.43 % del total de Gastos, que comparado al periodo anterior genera una variación absoluta de 9,605.19 que corresponde a un(a) Aumento del 15.74 % de recursos disponibles, producto de
A143: 5.1.2.01. | B143: Alquileres y derechos sobre bienes | D143: =SUMIF(BCPAC!$B$10:$B$8000,$A143,BCPAC!$G$10:$G$8000)/1000 -> 12676.51148 | E143: =+IFERROR(D143/$D$227,0) -> 0.007952117071 | F143: =SUMIF(BCPAN!$B$10:$B$8000,$A143,BCPAN!$G$10:$G$8000)/1000 -> 12521.61004 | G143: =+IFERROR(F143/$F$227,0) -> 0.007430792264 | H143: 154.90144 | I143: =+IFERROR(H143/F143,0) -> 0.01237072864 | J143: =+FIXED(E143,4) -> 0.0080 | K143: =+FIXED(I143,4) -> 0.0124 | L143: =+FIXED(H143,2) -> 154.90 | M143: =IF(H143 < 0, "Disminución", "Aumento") -> Aumento | N143: Gastos | O143: =+CONCATENATE(Texto!$B$4,AnalisisER!B143,Texto!$B$6,(AnalisisER!J143*100),Texto!$B$8,N143,Texto!$B$12,AnalisisER!L143,Texto!$B$14,AnalisisER!M143,Texto!$B$16,(AnalisisER!K143*100),Texto!$B$18) -> La cuenta Alquileres y derechos sobre bienes, representa el 0.8 % del total de Gastos, que comparado al periodo anterior genera una variación absoluta de 154.90 que corresponde a un(a) Aumento del 1.24 % de recursos disponibles, producto de
A144: 5.1.2.02. | B144: Servicios básicos | D144: =SUMIF(BCPAC!$B$10:$B$8000,$A144,BCPAC!$G$10:$G$8000)/1000 -> 32443.59937 | E144: 0.02035223183 | F144: =SUMIF(BCPAN!$B$10:$B$8000,$A144,BCPAN!$G$10:$G$8000)/1000 -> 28405.84043 | G144: 0.01685708935 | H144: 4037.75894 | I144: 0.1421453785
A145: 5.1.2.03. | B145: Servicios comerciales y financieros | D145: =SUMIF(BCPAC!$B$10:$B$8000,$A145,BCPAC!$G$10:$G$8000)/1000 -> 2068.54474 | E145: 0.001297621192 | F145: =SUMIF(BCPAN!$B$10:$B$8000,$A145,BCPAN!$G$10:$G$8000)/1000 -> 3786.40561 | G145: 0.002246994869 | H145: -1717.86087 | I145: -0.453691719
A146: 5.1.2.04. | B146: Servicios de gestión y apoyo | D146: =SUMIF(BCPAC!$B$10:$B$8000,$A146,BCPAC!$G$10:$G$8000)/1000 -> 10698.31117 | E146: 0.006711169948 | F146: =SUMIF(BCPAN!$B$10:$B$8000,$A146,BCPAN!$G$10:$G$8000)/1000 -> 3321.50297 | G146: 0.001971104235 | H146: 7376.8082 | I146: 2.220924764
A147: 5.1.2.05. | B147: Gastos de viaje y transporte | D147: =SUMIF(BCPAC!$B$10:$B$8000,$A147,BCPAC!$G$10:$G$8000)/1000 -> 1821.65 | E147: 0.001142741367 | F147: =SUMIF(BCPAN!$B$10:$B$8000,$A147,BCPAN!$G$10:$G$8000)/1000 -> 1667.135 | G147: 0.0009893403341 | H147: 154.515 | I147: 0.09268295609
A148: 5.1.2.06. | B148: Seguros, reaseguros y otras obligaciones | D148: =SUMIF(BCPAC!$B$10:$B$8000,$A148,BCPAC!$G$10:$G$8000)/1000 -> 9296.14484 | E148: 0.005831575367 | F148: =SUMIF(BCPAN!$B$10:$B$8000,$A148,BCPAN!$G$10:$G$8000)/1000 -> 10126.39767 | G148: 0.006009383556 | H148: -830.25283 | I148: -0.08198896163
A149: 5.1.2.07. | B149: Capacitación y protocolo | D149: =SUMIF(BCPAC!$B$10:$B$8000,$A149,BCPAC!$G$10:$G$8000)/1000 -> 0 | E149: 0 | F149: =SUMIF(BCPAN!$B$10:$B$8000,$A149,BCPAN!$G$10:$G$8000)/1000 -> 0 | G149: 0 | H149: 0 | I149: 0
A150: 5.1.2.08. | B150: Mantenimiento y reparaciones | D150: =SUMIF(BCPAC!$B$10:$B$8000,$A150,BCPAC!$G$10:$G$8000)/1000 -> 1624.43047 | E150: 0.001019023356 | F150: =SUMIF(BCPAN!$B$10:$B$8000,$A150,BCPAN!$G$10:$G$8000)/1000 -> 1195.1061 | G150: 0.0007092207099 | H150: 429.32437 | I150: 0.3592353599
A151: 5.1.2.99. | B151: Otros servicios | D151: =SUMIF(BCPAC!$B$10:$B$8000,$A151,BCPAC!$G$10:$G$8000)/1000 -> 0 | E151: 0 | F151: =SUMIF(BCPAN!$B$10:$B$8000,$A151,BCPAN!$G$10:$G$8000)/1000 -> 0 | G151: 0 | H151: 0 | I151: 0
A152: 5.1.3. | B152: Materiales y suministros consumidos | C152: 60 | D152: =SUM(D153:D157) -> 5463.25208 | E152: =+IFERROR(D152/$D$227,0) -> 0.003427158978 | F152: =SUM(F153:F157) -> 5770.44737 | G152: =+IFERROR(F152/$F$227,0) -> 0.003424399541 | H152: -307.19529 | I152: =+IFERROR(H152/F152,0) -> -0.05323595734 | J152: =+FIXED(E152,4) -> 0.0034 | K152: =+FIXED(I152,4) -> -0.0532 | L152: =+FIXED(H152,2) -> -307.20 | M152: =IF(H152 < 0, "Disminución", "Aumento") -> Disminución | N152: Gastos | O152: =+CONCATENATE(Texto!$B$4,AnalisisER!B152,Texto!$B$6,(AnalisisER!J152*100),Texto!$B$8,N152,Texto!$B$12,AnalisisER!L152,Texto!$B$14,AnalisisER!M152,Texto!$B$16,(AnalisisER!K152*100),Texto!$B$18) -> La cuenta Materiales y suministros consumidos, representa el 0.34 % del total de Gastos, que comparado al periodo anterior genera una variación absoluta de -307.20 que corresponde a un(a) Disminución del -5.32 % de recursos disponibles, producto de
A153: 5.1.3.01. | B153: Productos químicos y conexos | D153: =SUMIF(BCPAC!$B$10:$B$8000,$A153,BCPAC!$G$10:$G$8000)/1000 -> 3341.53283 | E153: =+IFERROR(D153/$D$227,0) -> 0.002096180823 | F153: =SUMIF(BCPAN!$B$10:$B$8000,$A153,BCPAN!$G$10:$G$8000)/1000 -> 3055.71499 | G153: =+IFERROR(F153/$F$227,0) -> 0.001813375695 | H153: 285.81784 | I153: =+IFERROR(H153/F153,0) -> 0.09353550345
A154: 5.1.3.02. | B154: Alimentos y productos agropecuarios | D154: =SUMIF(BCPAC!$B$10:$B$8000,$A154,BCPAC!$G$10:$G$8000)/1000 -> 126.29265 | E154: =+IFERROR(D154/$D$227,0) -> 7.922478827e-05 | F154: =SUMIF(BCPAN!$B$10:$B$8000,$A154,BCPAN!$G$10:$G$8000)/1000 -> 175.19777 | G154: 0.0001039689169 | H154: -48.90512 | I154: -0.2791423658
A155: 5.1.3.03. | B155: Materiales y productos de uso en la construcción y mantenimiento | D155: =SUMIF(BCPAC!$B$10:$B$8000,$A155,BCPAC!$G$10:$G$8000)/1000 -> 0 | E155: 0 | F155: =SUMIF(BCPAN!$B$10:$B$8000,$A155,BCPAN!$G$10:$G$8000)/1000 -> 458.3896 | G155: 0.0002720255528 | H155: -458.3896 | I155: -1
A156: 5.1.3.04. | B156: Herramientas, repuestos y accesorios | D156: =SUMIF(BCPAC!$B$10:$B$8000,$A156,BCPAC!$G$10:$G$8000)/1000 -> 158.85812 | E156: 9.965347091e-05 | F156: =SUMIF(BCPAN!$B$10:$B$8000,$A156,BCPAN!$G$10:$G$8000)/1000 -> 129.03273 | G156: 7.657285355e-05 | H156: 29.82539 | I156: 0.2311459271
A157: 5.1.3.99. | B157: Útiles, materiales y suministros diversos | D157: =SUMIF(BCPAC!$B$10:$B$8000,$A157,BCPAC!$G$10:$G$8000)/1000 -> 1836.56848 | E157: 0.001152099896 | F157: =SUMIF(BCPAN!$B$10:$B$8000,$A157,BCPAN!$G$10:$G$8000)/1000 -> 1952.11228 | G157: 0.001158456523 | H157: -115.5438 | I157: -0.0591891159
A158: 5.1.4. | B158: Consumo de bienes distintos de inventarios | C158: 61 | D158: =SUM(D159:D160) -> 47409.18753 | E158: =+IFERROR(D158/$D$227,0) -> 0.02974031224 | F158: =SUM(F159:F160) -> 50794.77458 | G158: =+IFERROR(F158/$F$227,0) -> 0.03014352122 | H158: -3385.58705 | I158: =+IFERROR(H158/F158,0) -> -0.0666522704 | J158: =+FIXED(E158,4) -> 0.0297 | K158: =+FIXED(I158,4) -> -0.0667 | L158: =+FIXED(H158,2) -> -3,385.59 | M158: =IF(H158 < 0, "Disminución", "Aumento") -> Disminución | N158: Gastos | O158: =+CONCATENATE(Texto!$B$4,AnalisisER!B158,Texto!$B$6,(AnalisisER!J158*100),Texto!$B$8,N158,Texto!$B$12,AnalisisER!L158,Texto!$B$14,AnalisisER!M158,Texto!$B$16,(AnalisisER!K158*100),Texto!$B$18) -> La cuenta Consumo de bienes distintos de inventarios, representa el 2.97 % del total de Gastos, que comparado al periodo anterior genera una variación absoluta de -3,385.59 que corresponde a un(a) Disminución del -6.67 % de recursos disponibles, producto de
A159: 5.1.4.01. | B159: Consumo de bienes no concesionados | D159: =SUMIF(BCPAC!$B$10:$B$8000,$A159,BCPAC!$G$10:$G$8000)/1000 -> 47409.18753 | E159: 0.02974031224 | F159: =SUMIF(BCPAN!$B$10:$B$8000,$A159,BCPAN!$G$10:$G$8000)/1000 -> 50794.77458 | G159: =+IFERROR(F159/$F$227,0) -> 0.03014352122 | H159: -3385.58705 | I159: =+IFERROR(H159/F159,0) -> -0.0666522704
A160: 5.1.4.02. | B160: Consumo de bienes concesionados | D160: =SUMIF(BCPAC!$B$10:$B$8000,$A160,BCPAC!$G$10:$G$8000)/1000 -> 0 | E160: 0 | F160: =SUMIF(BCPAN!$B$10:$B$8000,$A160,BCPAN!$G$10:$G$8000)/1000 -> 0 | G160: 0 | H160: 0 | I160: 0
A161: 5.1.5. | B161: Pérdidas por deterioro y desvalorización de bienes | C161: 62 | D161: =SUM(D162:D163) -> 0 | E161: =+IFERROR(D161/$D$227,0) -> 0 | F161: =SUM(F162:F163) -> 0 | G161: =+IFERROR(F161/$F$227,0) -> 0 | H161: 0 | I161: =+IFERROR(H161/F161,0) -> 0 | J161: =+FIXED(E161,4) -> 0.0000 | K161: =+FIXED(I161,4) -> 0.0000 | L161: =+FIXED(H161,2) -> 0.00 | M161: =IF(H161 < 0, "Disminución", "Aumento") -> Aumento | N161: Gastos | O161: =+CONCATENATE(Texto!$B$4,AnalisisER!B161,Texto!$B$6,(AnalisisER!J161*100),Texto!$B$8,N161,Texto!$B$12,AnalisisER!L161,Texto!$B$14,AnalisisER!M161,Texto!$B$16,(AnalisisER!K161*100),Texto!$B$18) -> La cuenta Pérdidas por deterioro y desvalorización de bienes , representa el 0 % del total de Gastos, que comparado al periodo anterior genera una variación absoluta de 0.00 que corresponde a un(a) Aumento del 0 % de recursos disponibles, producto de
A162: 5.1.5.01. | B162: Deterioro y desvalorización de bienes no concesionados | D162: =SUMIF(BCPAC!$B$10:$B$8000,$A162,BCPAC!$G$10:$G$8000)/1000 -> 0 | E162: 0 | F162: =SUMIF(BCPAN!$B$10:$B$8000,$A162,BCPAN!$G$10:$G$8000)/1000 -> 0 | G162: =+IFERROR(F162/$F$227,0) -> 0 | H162: 0 | I162: =+IFERROR(H162/F162,0) -> 0
A163: 5.1.5.02. | B163: Deterioro y desvalorización de bienes concesionados | D163: =SUMIF(BCPAC!$B$10:$B$8000,$A163,BCPAC!$G$10:$G$8000)/1000 -> 0 | E163: 0 | F163: =SUMIF(BCPAN!$B$10:$B$8000,$A163,BCPAN!$G$10:$G$8000)/1000 -> 0 | G163: 0 | H163: 0 | I163: 0
A164: 5.1.6. | B164: Deterioro y pérdidas de inventarios | C164: 63 | D164: =SUM(D165:D167) -> 0 | E164: =+IFERROR(D164/$D$227,0) -> 0 | F164: =SUM(F165:F167) -> 0 | G164: =+IFERROR(F164/$F$227,0) -> 0 | H164: 0 | I164: =+IFERROR(H164/F164,0) -> 0 | J164: =+FIXED(E164,4) -> 0.0000 | K164: =+FIXED(I164,4) -> 0.0000 | L164: =+FIXED(H164,2) -> 0.00 | M164: =IF(H164 < 0, "Disminución", "Aumento") -> Aumento | N164: Gastos | O164: =+CONCATENATE(Texto!$B$4,AnalisisER!B164,Texto!$B$6,(AnalisisER!J164*100),Texto!$B$8,N164,Texto!$B$12,AnalisisER!L164,Texto!$B$14,AnalisisER!M164,Texto!$B$16,(AnalisisER!K164*100),Texto!$B$18) -> La cuenta Deterioro y pérdidas de inventarios, representa el 0 % del total de Gastos, que comparado al periodo anterior genera una variación absoluta de 0.00 que corresponde a un(a) Aumento del 0 % de recursos disponibles, producto de
A165: 5.1.6.01. | B165: Deterioro y pérdidas de inventarios por materiales y suministros para consumo y prestación de servicios | D165: =SUMIF(BCPAC!$B$10:$B$8000,$A165,BCPAC!$G$10:$G$8000)/1000 -> 0 | E165: 0 | F165: =SUMIF(BCPAN!$B$10:$B$8000,$A165,BCPAN!$G$10:$G$8000)/1000 -> 0 | G165: =+IFERROR(F165/$F$227,0) -> 0 | H165: 0 | I165: =+IFERROR(H165/F165,0) -> 0
A166: 5.1.6.02. | B166: Deterioro y pérdidas de inventarios por bienes para la venta | D166: =SUMIF(BCPAC!$B$10:$B$8000,$A166,BCPAC!$G$10:$G$8000)/1000 -> 0 | E166: 0 | F166: =SUMIF(BCPAN!$B$10:$B$8000,$A166,BCPAN!$G$10:$G$8000)/1000 -> 0 | G166: 0 | H166: 0 | I166: 0
A167: 5.1.6.03. | B167: Deterioro y pérdidas de inventarios por materias primas y bienes en producción | D167: =SUMIF(BCPAC!$B$10:$B$8000,$A167,BCPAC!$G$10:$G$8000)/1000 -> 0 | E167: 0 | F167: =SUMIF(BCPAN!$B$10:$B$8000,$A167,BCPAN!$G$10:$G$8000)/1000 -> 0 | G167: 0 | H167: 0 | I167: 0
A168: 5.1.7. | B168: Deterioro de inversiones y cuentas a cobrar | C168: 64 | D168: =SUM(D169:D170) -> 0 | E168: =+IFERROR(D168/$D$227,0) -> 0 | F168: =SUM(F169:F170) -> 0 | G168: =+IFERROR(F168/$F$227,0) -> 0 | H168: 0 | I168: =+IFERROR(H168/F168,0) -> 0 | J168: =+FIXED(E168,4) -> 0.0000 | K168: =+FIXED(I168,4) -> 0.0000 | L168: =+FIXED(H168,2) -> 0.00 | M168: =IF(H168 < 0, "Disminución", "Aumento") -> Aumento | N168: Gastos | O168: =+CONCATENATE(Texto!$B$4,AnalisisER!B168,Texto!$B$6,(AnalisisER!J168*100),Texto!$B$8,N168,Texto!$B$12,AnalisisER!L168,Texto!$B$14,AnalisisER!M168,Texto!$B$16,(AnalisisER!K168*100),Texto!$B$18) -> La cuenta Deterioro de inversiones y cuentas a cobrar, representa el 0 % del total de Gastos, que comparado al periodo anterior genera una variación absoluta de 0.00 que corresponde a un(a) Aumento del 0 % de recursos disponibles, producto de
A169: 5.1.7.01. | B169: Deterioro de inversiones | D169: =SUMIF(BCPAC!$B$10:$B$8000,$A169,BCPAC!$G$10:$G$8000)/1000 -> 0 | E169: 0 | F169: =SUMIF(BCPAN!$B$10:$B$8000,$A169,BCPAN!$G$10:$G$8000)/1000 -> 0 | G169: =+IFERROR(F169/$F$227,0) -> 0 | H169: 0 | I169: =+IFERROR(H169/F169,0) -> 0
A170: 5.1.7.02. | B170: Deterioro de cuentas a cobrar | D170: =SUMIF(BCPAC!$B$10:$B$8000,$A170,BCPAC!$G$10:$G$8000)/1000 -> 0 | E170: 0 | F170: =SUMIF(BCPAN!$B$10:$B$8000,$A170,BCPAN!$G$10:$G$8000)/1000 -> 0 | G170: 0 | H170: 0 | I170: 0
A171: 5.1.8. | B171: Cargos por provisiones y reservas técnicas | C171: 65 | D171: =SUM(D172:D176) -> 0 | E171: =+IFERROR(D171/$D$227,0) -> 0 | F171: =SUM(F172:F176) -> 0 | G171: =+IFERROR(F171/$F$227,0) -> 0 | H171: 0 | I171: =+IFERROR(H171/F171,0) -> 0 | J171: =+FIXED(E171,4) -> 0.0000 | K171: =+FIXED(I171,4) -> 0.0000 | L171: =+FIXED(H171,2) -> 0.00 | M171: =IF(H171 < 0, "Disminución", "Aumento") -> Aumento | N171: Gastos | O171: =+CONCATENATE(Texto!$B$4,AnalisisER!B171,Texto!$B$6,(AnalisisER!J171*100),Texto!$B$8,N171,Texto!$B$12,AnalisisER!L171,Texto!$B$14,AnalisisER!M171,Texto!$B$16,(AnalisisER!K171*100),Texto!$B$18) -> La cuenta Cargos por provisiones y reservas técnicas, representa el 0 % del total de Gastos, que comparado al periodo anterior genera una variación absoluta de 0.00 que corresponde a un(a) Aumento del 0 % de recursos disponibles, producto de
A172: 5.1.8.01. | B172: Cargos por litigios y demandas | D172: =SUMIF(BCPAC!$B$10:$B$8000,$A172,BCPAC!$G$10:$G$8000)/1000 -> 0 | E172: 0 | F172: =SUMIF(BCPAN!$B$10:$B$8000,$A172,BCPAN!$G$10:$G$8000)/1000 -> 0 | G172: =+IFERROR(F172/$F$227,0) -> 0 | H172: 0 | I172: =+IFERROR(H172/F172,0) -> 0 | J172: =+FIXED(E172,4) -> 0.0000 | K172: =+FIXED(I172,4) -> 0.0000 | L172: =+FIXED(H172,2) -> 0.00 | M172: =IF(H172 < 0, "Disminución", "Aumento") -> Aumento | N172: Gastos | O172: =+CONCATENATE(Texto!$B$4,AnalisisER!B172,Texto!$B$6,(AnalisisER!J172*100),Texto!$B$8,N172,Texto!$B$12,AnalisisER!L172,Texto!$B$14,AnalisisER!M172,Texto!$B$16,(AnalisisER!K172*100),Texto!$B$18) -> La cuenta Cargos por litigios y demandas, representa el 0 % del total de Gastos, que comparado al periodo anterior genera una variación absoluta de 0.00 que corresponde a un(a) Aumento del 0 % de recursos disponibles, producto de
A173: 5.1.8.02. | B173: Cargos por reestructuración | D173: =SUMIF(BCPAC!$B$10:$B$8000,$A173,BCPAC!$G$10:$G$8000)/1000 -> 0 | E173: 0 | F173: =SUMIF(BCPAN!$B$10:$B$8000,$A173,BCPAN!$G$10:$G$8000)/1000 -> 0 | G173: 0 | H173: 0 | I173: 0
A174: 5.1.8.03. | B174: Cargos por beneficios a los empleados | D174: =SUMIF(BCPAC!$B$10:$B$8000,$A174,BCPAC!$G$10:$G$8000)/1000 -> 0 | E174: 0 | F174: =SUMIF(BCPAN!$B$10:$B$8000,$A174,BCPAN!$G$10:$G$8000)/1000 -> 0 | G174: 0 | H174: 0 | I174: 0
A175: 5.1.8.99. | B175: Cargos por otras provisiones y reservas técnicas | D175: =SUMIF(BCPAC!$B$10:$B$8000,$A175,BCPAC!$G$10:$G$8000)/1000 -> 0 | E175: 0 | F175: =SUMIF(BCPAN!$B$10:$B$8000,$A175,BCPAN!$G$10:$G$8000)/1000 -> 0 | G175: 0 | H175: 0 | I175: 0
A176: 5.2. | B176: Gastos financieros
A177: 5.2.1. | B177: Intereses sobre endeudamiento público | C177: 66 | D177: =SUM(D178:D181) -> 0 | E177: =+IFERROR(D177/$D$227,0) -> 0 | F177: =SUM(F178:F181) -> 0 | G177: =+IFERROR(F177/$F$227,0) -> 0 | H177: =+D177-F177 -> 0 | I177: =+IFERROR(H177/F177,0) -> 0 | J177: =+FIXED(E177,4) -> 0.0000 | K177: =+FIXED(I177,4) -> 0.0000 | L177: =+FIXED(H177,2) -> 0.00 | M177: =IF(H177 < 0, "Disminución", "Aumento") -> Aumento | N177: Gastos | O177: =+CONCATENATE(Texto!$B$4,AnalisisER!B177,Texto!$B$6,(AnalisisER!J177*100),Texto!$B$8,N177,Texto!$B$12,AnalisisER!L177,Texto!$B$14,AnalisisER!M177,Texto!$B$16,(AnalisisER!K177*100),Texto!$B$18) -> La cuenta Intereses sobre endeudamiento público, representa el 0 % del total de Gastos, que comparado al periodo anterior genera una variación absoluta de 0.00 que corresponde a un(a) Aumento del 0 % de recursos disponibles, producto de
A178: 5.2.1.01. | B178: Intereses sobre títulos y valores de la deuda pública | D178: =SUMIF(BCPAC!$B$10:$B$8000,$A178,BCPAC!$G$10:$G$8000)/1000 -> 0 | E178: =+IFERROR(D178/$D$227,0) -> 0 | F178: =SUMIF(BCPAN!$B$10:$B$8000,$A178,BCPAN!$G$10:$G$8000)/1000 -> 0 | G178: =+IFERROR(F178/$F$227,0) -> 0 | H178: 0 | I178: =+IFERROR(H178/F178,0) -> 0
A179: 5.2.1.02. | B179: Intereses sobre préstamos | D179: =SUMIF(BCPAC!$B$10:$B$8000,$A179,BCPAC!$G$10:$G$8000)/1000 -> 0 | E179: 0 | F179: =SUMIF(BCPAN!$B$10:$B$8000,$A179,BCPAN!$G$10:$G$8000)/1000 -> 0 | G179: 0 | H179: 0 | I179: 0
A180: 5.2.1.03. | B180: Intereses sobre deudas asumidas | D180: =SUMIF(BCPAC!$B$10:$B$8000,$A180,BCPAC!$G$10:$G$8000)/1000 -> 0 | E180: 0 | F180: =SUMIF(BCPAN!$B$10:$B$8000,$A180,BCPAN!$G$10:$G$8000)/1000 -> 0 | G180: 0 | H180: 0 | I180: 0
A181: 5.2.1.04. | B181: Intereses sobre endeudamiento de Tesorería | D181: =SUMIF(BCPAC!$B$10:$B$8000,$A181,BCPAC!$G$10:$G$8000)/1000 -> 0 | E181: 0 | F181: =SUMIF(BCPAN!$B$10:$B$8000,$A181,BCPAN!$G$10:$G$8000)/1000 -> 0 | G181: 0 | H181: 0 | I181: 0
A182: 5.2.9. | B182: Otros gastos financieros | C182: 67 | D182: =SUM(D183:D188) -> 0 | E182: =+IFERROR(D182/$D$227,0) -> 0 | F182: =SUM(F183:F188) -> 0 | G182: =+IFERROR(F182/$F$227,0) -> 0 | H182: 0 | I182: =+IFERROR(H182/F182,0) -> 0 | J182: =+FIXED(E182,4) -> 0.0000 | K182: =+FIXED(I182,4) -> 0.0000 | L182: =+FIXED(H182,2) -> 0.00 | M182: =IF(H182 < 0, "Disminución", "Aumento") -> Aumento | N182: Gastos | O182: =+CONCATENATE(Texto!$B$4,AnalisisER!B182,Texto!$B$6,(AnalisisER!J182*100),Texto!$B$8,N182,Texto!$B$12,AnalisisER!L182,Texto!$B$14,AnalisisER!M182,Texto!$B$16,(AnalisisER!K182*100),Texto!$B$18) -> La cuenta Otros gastos financieros, representa el 0 % del total de Gastos, que comparado al periodo anterior genera una variación absoluta de 0.00 que corresponde a un(a) Aumento del 0 % de recursos disponibles, producto de
A183: 5.2.9.01. | B183: Intereses por deudas comerciales | D183: =SUMIF(BCPAC!$B$10:$B$8000,$A183,BCPAC!$G$10:$G$8000)/1000 -> 0 | E183: =+IFERROR(D183/$D$227,0) -> 0 | F183: =SUMIF(BCPAN!$B$10:$B$8000,$A183,BCPAN!$G$10:$G$8000)/1000 -> 0 | G183: =+IFERROR(F183/$F$227,0) -> 0 | H183: 0 | I183: =+IFERROR(H183/F183,0) -> 0
A184: 5.2.9.02. | B184: Intereses por deudas sociales y fiscales | D184: =SUMIF(BCPAC!$B$10:$B$8000,$A184,BCPAC!$G$10:$G$8000)/1000 -> 0 | E184: 0 | F184: =SUMIF(BCPAN!$B$10:$B$8000,$A184,BCPAN!$G$10:$G$8000)/1000 -> 0 | G184: 0 | H184: 0 | I184: 0
A185: 5.2.9.04. | B185: Intereses por documentos a pagar | D185: =SUMIF(BCPAC!$B$10:$B$8000,$A185,BCPAC!$G$10:$G$8000)/1000 -> 0 | E185: 0 | F185: =SUMIF(BCPAN!$B$10:$B$8000,$A185,BCPAN!$G$10:$G$8000)/1000 -> 0 | G185: 0 | H185: 0 | I185: 0
A186: 5.2.9.06. | B186: Intereses sobre deudas por avales ejecutados | D186: =SUMIF(BCPAC!$B$10:$B$8000,$A186,BCPAC!$G$10:$G$8000)/1000 -> 0 | E186: 0 | F186: =SUMIF(BCPAN!$B$10:$B$8000,$A186,BCPAN!$G$10:$G$8000)/1000 -> 0 | G186: 0 | H186: 0 | I186: 0
A187: 5.2.9.99. | B187: Otros gastos financieros varios | D187: =SUMIF(BCPAC!$B$10:$B$8000,$A187,BCPAC!$G$10:$G$8000)/1000 -> 0 | E187: 0 | F187: =SUMIF(BCPAN!$B$10:$B$8000,$A187,BCPAN!$G$10:$G$8000)/1000 -> 0 | G187: 0 | H187: 0 | I187: 0
A188: 5.3. | B188: Gastos y resultados negativos por ventas
A189: 5.3.1. | B189: Costo de ventas de bienes y servicios | C189: 68 | D189: =SUM(D190:D191) -> 0 | E189: =+IFERROR(D189/$D$227,0) -> 0 | F189: =SUM(F190:F191) -> 0 | G189: =+IFERROR(F189/$F$227,0) -> 0 | H189: =+D189-F189 -> 0 | I189: =+IFERROR(H189/F189,0) -> 0 | J189: =+FIXED(E189,4) -> 0.0000 | K189: =+FIXED(I189,4) -> 0.0000 | L189: =+FIXED(H189,2) -> 0.00 | M189: =IF(H189 < 0, "Disminución", "Aumento") -> Aumento | N189: Gastos | O189: =+CONCATENATE(Texto!$B$4,AnalisisER!B189,Texto!$B$6,(AnalisisER!J189*100),Texto!$B$8,N189,Texto!$B$12,AnalisisER!L189,Texto!$B$14,AnalisisER!M189,Texto!$B$16,(AnalisisER!K189*100),Texto!$B$18) -> La cuenta Costo de ventas de bienes y servicios, representa el 0 % del total de Gastos, que comparado al periodo anterior genera una variación absoluta de 0.00 que corresponde a un(a) Aumento del 0 % de recursos disponibles, producto de
A190: 5.3.1.01. | B190: Costo de ventas de bienes | D190: =SUMIF(BCPAC!$B$10:$B$8000,$A190,BCPAC!$G$10:$G$8000)/1000 -> 0 | E190: =+IFERROR(D190/$D$227,0) -> 0 | F190: =SUMIF(BCPAN!$B$10:$B$8000,$A190,BCPAN!$G$10:$G$8000)/1000 -> 0 | G190: =+IFERROR(F190/$F$227,0) -> 0 | H190: 0 | I190: =+IFERROR(H190/F190,0) -> 0
A191: 5.3.1.02. | B191: Costo de ventas de servicios | D191: =SUMIF(BCPAC!$B$10:$B$8000,$A191,BCPAC!$G$10:$G$8000)/1000 -> 0 | E191: 0 | F191: =SUMIF(BCPAN!$B$10:$B$8000,$A191,BCPAN!$G$10:$G$8000)/1000 -> 0 | G191: 0 | H191: 0 | I191: 0
A192: 5.3.2. | B192: Resultados negativos por ventas de inversiones | C192: 69 | D192: =SUM(D193:D194) -> 0 | E192: =+IFERROR(D192/$D$227,0) -> 0 | F192: =SUM(F193:F194) -> 0 | G192: =+IFERROR(F192/$F$227,0) -> 0 | H192: 0 | I192: =+IFERROR(H192/F192,0) -> 0 | J192: =+FIXED(E192,4) -> 0.0000 | K192: =+FIXED(I192,4) -> 0.0000 | L192: =+FIXED(H192,2) -> 0.00 | M192: =IF(H192 < 0, "Disminución", "Aumento") -> Aumento | N192: Gastos | O192: =+CONCATENATE(Texto!$B$4,AnalisisER!B192,Texto!$B$6,(AnalisisER!J192*100),Texto!$B$8,N192,Texto!$B$12,AnalisisER!L192,Texto!$B$14,AnalisisER!M192,Texto!$B$16,(AnalisisER!K192*100),Texto!$B$18) -> La cuenta Resultados negativos por ventas de inversiones, representa el 0 % del total de Gastos, que comparado al periodo anterior genera una variación absoluta de 0.00 que corresponde a un(a) Aumento del 0 % de recursos disponibles, producto de
A193: 5.3.2.02. | B193: Resultados negativos por ventas de inversiones patrimoniales - Método de participación | D193: =SUMIF(BCPAC!$B$10:$B$8000,$A193,BCPAC!$G$10:$G$8000)/1000 -> 0 | E193: =+IFERROR(D193/$D$227,0) -> 0 | F193: =SUMIF(BCPAN!$B$10:$B$8000,$A193,BCPAN!$G$10:$G$8000)/1000 -> 0 | G193: =+IFERROR(F193/$F$227,0) -> 0 | H193: 0 | I193: =+IFERROR(H193/F193,0) -> 0
A194: 5.3.2.99. | B194: Resultados negativos por ventas de otras inversiones | D194: =SUMIF(BCPAC!$B$10:$B$8000,$A194,BCPAC!$G$10:$G$8000)/1000 -> 0 | E194: 0 | F194: =SUMIF(BCPAN!$B$10:$B$8000,$A194,BCPAN!$G$10:$G$8000)/1000 -> 0 | G194: 0 | H194: 0 | I194: 0
A195: 5.3.3. | B195: Resultados negativos por ventas e intercambio de bienes | C195: 70 | D195: =SUM(D196:D203) -> 0 | E195: =+IFERROR(D195/$D$227,0) -> 0 | F195: =SUM(F196:F203) -> 0 | G195: =+IFERROR(F195/$F$227,0) -> 0 | H195: 0 | I195: =+IFERROR(H195/F195,0) -> 0 | J195: =+FIXED(E195,4) -> 0.0000 | K195: =+FIXED(I195,4) -> 0.0000 | L195: =+FIXED(H195,2) -> 0.00 | M195: =IF(H195 < 0, "Disminución", "Aumento") -> Aumento | N195: Gastos | O195: =+CONCATENATE(Texto!$B$4,AnalisisER!B195,Texto!$B$6,(AnalisisER!J195*100),Texto!$B$8,N195,Texto!$B$12,AnalisisER!L195,Texto!$B$14,AnalisisER!M195,Texto!$B$16,(AnalisisER!K195*100),Texto!$B$18) -> La cuenta Resultados negativos por ventas e intercambio de bienes, representa el 0 % del total de Gastos, que comparado al periodo anterior genera una variación absoluta de 0.00 que corresponde a un(a) Aumento del 0 % de recursos disponibles, producto de
A196: 5.3.3.01. | B196: Resultados negativos por ventas de construcciones terminadas | D196: =SUMIF(BCPAC!$B$10:$B$8000,$A196,BCPAC!$G$10:$G$8000)/1000 -> 0 | E196: =+IFERROR(D196/$D$227,0) -> 0 | F196: =SUMIF(BCPAN!$B$10:$B$8000,$A196,BCPAN!$G$10:$G$8000)/1000 -> 0 | G196: =+IFERROR(F196/$F$227,0) -> 0 | H196: 0 | I196: =+IFERROR(H196/F196,0) -> 0
A197: 5.3.3.02. | B197: Resultados negativos por ventas de propiedades, planta y equipo | D197: =SUMIF(BCPAC!$B$10:$B$8000,$A197,BCPAC!$G$10:$G$8000)/1000 -> 0 | E197: 0 | F197: =SUMIF(BCPAN!$B$10:$B$8000,$A197,BCPAN!$G$10:$G$8000)/1000 -> 0 | G197: 0 | H197: 0 | I197: 0
A198: 5.3.3.03. | B198: Resultados negativos por ventas de activos biológicos | D198: =SUMIF(BCPAC!$B$10:$B$8000,$A198,BCPAC!$G$10:$G$8000)/1000 -> 0 | E198: 0 | F198: =SUMIF(BCPAN!$B$10:$B$8000,$A198,BCPAN!$G$10:$G$8000)/1000 -> 0 | G198: 0 | H198: 0 | I198: 0
A199: 5.3.3.04. | B199: Resultados negativos por ventas de bienes intangibles | D199: =SUMIF(BCPAC!$B$10:$B$8000,$A199,BCPAC!$G$10:$G$8000)/1000 -> 0 | E199: 0 | F199: =SUMIF(BCPAN!$B$10:$B$8000,$A199,BCPAN!$G$10:$G$8000)/1000 -> 0 | G199: 0 | H199: 0 | I199: 0
A200: 5.3.3.05. | B200: Resultados negativos por ventas por arrendamientos financieros | D200: =SUMIF(BCPAC!$B$10:$B$8000,$A200,BCPAC!$G$10:$G$8000)/1000 -> 0 | E200: 0 | F200: =SUMIF(BCPAN!$B$10:$B$8000,$A200,BCPAN!$G$10:$G$8000)/1000 -> 0 | G200: 0 | H200: 0 | I200: 0
A201: 5.3.3.06. | B201: Resultados negativos por intercambio de propiedades, planta y equipo | D201: =SUMIF(BCPAC!$B$10:$B$8000,$A201,BCPAC!$G$10:$G$8000)/1000 -> 0 | E201: 0 | F201: =SUMIF(BCPAN!$B$10:$B$8000,$A201,BCPAN!$G$10:$G$8000)/1000 -> 0 | G201: 0 | H201: 0 | I201: 0
A202: 5.3.3.07. | B202: Resultados negativos por intercambio de bienes intangibles | D202: =SUMIF(BCPAC!$B$10:$B$8000,$A202,BCPAC!$G$10:$G$8000)/1000 -> 0 | E202: 0 | F202: =SUMIF(BCPAN!$B$10:$B$8000,$A202,BCPAN!$G$10:$G$8000)/1000 -> 0 | G202: 0 | H202: 0 | I202: 0
A203: 5.4. | B203: Transferencias
... 25 more rows

Sheet AnalisisFlujo
A1: =+Datos!C2 -> Municipalidad de San Jose
A2: Análisis al Estado de Flujo de Efectivo Comparativo
A3: =+Datos!C4 -> Del 01 de Enero 2021 al 30 de Junio del 2021
A4: - En miles de colones -
D5: TOTAL SECTOR MUNICIPAL 2019 | F5: TOTAL SECTOR MUNICIPAL 2018
B7: Descripción | C7: Nota Nº | D7: =+Datos!D5 -> 2021-06-30 | E7: % análisis vertical | F7: =+Datos!F5 -> 2020-06-30 | G7: % | H7: Monto variación Absoluta | I7: % Variación relativa
A8: FLUJOS DE EFECTIVO DE LAS ACTIVIDADES DE OPERACIÓN
A9: Cobros | C9: 76 | D9: =SUM(D10:D17) -> 1577732.24 | F9: =SUM(F10:F17) -> 1673839.013 | H9: =+D9-F9 -> -96106.77315 | I9: =+IFERROR(H9/F9,0) -> -0.05741697522 | K9: =+I9 -> -0.05741697522 | L9: =+FIXED(H9,2) -> -96,106.77 | M9: =IF(H9 < 0, "Disminución", "Aumento") -> Disminución
B10: Cobros por impuestos | E10: =+IFERROR(D10/$D$9,0) -> 0 | F10: =[2]EstadoFlujoEfectivo!D8 -> 0 | G10: =+IFERROR(F10/$F$9,0) -> 0 | H10: =+D10-F10 -> 0 | I10: 0
B11: Cobros por contribuciones sociales | E11: =+IFERROR(D11/$D$9,0) -> 0 | F11: =[2]EstadoFlujoEfectivo!D9 -> 0 | G11: =+IFERROR(F11/$F$9,0) -> 0 | H11: 0 | I11: 0
B12: Cobros por multas, sanciones, remates y confiscaciones de origen no tributario | E12: 0 | F12: =[2]EstadoFlujoEfectivo!D10 -> 0 | G12: 0 | H12: 0 | I12: 0
B13: Cobros por ventas de inventarios, servicios y derechos administrativos | E13: 0 | F13: =[2]EstadoFlujoEfectivo!D11 -> 0 | G13: 0 | H13: 0 | I13: 0
B14: Cobros por ingresos de la propiedad | E14: 0 | F14: =[2]EstadoFlujoEfectivo!D12 -> 0 | G14: 0 | H14: 0 | I14: 0
B15: Cobros por transferencias | D15: 1572220.37 | E15: 0.9965064604 | F15: =[2]EstadoFlujoEfectivo!D13 -> 1671384.639 | G15: 0.9985336854 | H15: -99164.26864 | I15: -0.05933060909
B16: Cobros por concesiones | E16: 0 | F16: =[2]EstadoFlujoEfectivo!D14 -> 0 | G16: 0 | H16: 0 | I16: 0
B17: Otros cobros por actividades de operación | D17: 5511.87 | E17: 0.003493539563 | F17: =[2]EstadoFlujoEfectivo!D15 -> 2454.374508 | G17: =+IFERROR(F17/$F$9,0) -> 0.001466314555 | H17: 3057.495492 | I17: 1.245733071
A18: Pagos | C18: 77 | D18: =SUM(D19:D23) -> 1616718.07 | F18: =SUM(F19:F23) -> 1673432.494 | H18: -56714.42388 | I18: -0.03389107364 | K18: =+I18 -> -0.03389107364 | L18: =+FIXED(H18,2) -> -56,714.42 | M18: =IF(H18 < 0, "Disminución", "Aumento") -> Disminución
B19: Pagos por beneficios al personal | D19: 1463731.24 | E19: =+IFERROR(D19/$D$18,0) -> 0.9053719799 | F19: =[2]EstadoFlujoEfectivo!D17 -> 1565858.723 | G19: =+IFERROR(F19/$F$18,0) -> 0.9357166953 | H19: -102127.4829 | I19: -0.06522139031
B20: Pagos por servicios y adquisiciones de inventarios (incluye anticipos) | D20: 78008.4 | E20: =+IFERROR(D20/$D$18,0) -> 0.04825108437 | F20: =[2]EstadoFlujoEfectivo!D18 -> 70932.11078 | G20: =+IFERROR(F20/$F$18,0) -> 0.0423871958 | H20: 7076.28922 | I20: 0.09976143586
B21: Pagos por prestaciones de la seguridad social | E21: 0 | F21: =[2]EstadoFlujoEfectivo!D19 -> 0 | G21: 0 | H21: 0 | I21: 0
B22: Pagos por otras transferencias | D22: 30401.62 | E22: 0.01880452787 | F22: =[2]EstadoFlujoEfectivo!D20 -> 34593.80492 | G22: 0.02067236357 | H22: -4192.18492 | I22: -0.1211831115
B23: Otros pagos por actividades de operación | D23: 44576.81 | E23: 0.02757240785 | F23: =[2]EstadoFlujoEfectivo!D21 -> 2047.85524 | G23: =+IFERROR(F23/$F$18,0) -> 0.001223745354 | H23: 42528.95476 | I23: 20.76755912
A24: Flujos netos de efectivo por actividades de operación | D24: =+D9-D18 -> -38985.83 | F24: =+F9-F18 -> 406.5192676 | H24: -39392.34927 | I24: -96.90155525
A26: FLUJOS DE EFECTIVO DE LAS ACTIVIDADES DE INVERSIÓN
A27: Cobros | C27: 78 | D27: =SUM(D28:D32) -> 0 | F27: =SUM(F28:F32) -> 0 | H27: =+D27-F27 -> 0 | I27: =+IFERROR(H27/F27,0) -> 0 | K27: =+I27 -> 0 | L27: =+FIXED(H27,2) -> 0.00 | M27: =IF(H27 < 0, "Disminución", "Aumento") -> Aumento
B28: Cobros por ventas de bienes distintos de inventarios | E28: =+IFERROR(D28/$D$27,0) -> 0 | F28: =[2]EstadoFlujoEfectivo!D26 -> 0 | G28: =+IFERROR(F28/$F$27,0) -> 0 | H28: 0 | I28: 0
B29: Cobros por ventas y reembolso de inversiones patrimoniales | E29: =+IFERROR(D29/$D$27,0) -> 0 | F29: =[2]EstadoFlujoEfectivo!D27 -> 0 | G29: =+IFERROR(F29/$F$27,0) -> 0 | H29: 0 | I29: 0
B30: Cobros por ventas y reembolso de inversiones en otros instrumentos financieros | E30: 0 | F30: =[2]EstadoFlujoEfectivo!D28 -> 0 | G30: 0 | H30: 0 | I30: 0
B31: Cobros por reembolsos de préstamos | E31: 0 | F31: =[2]EstadoFlujoEfectivo!D29 -> 0 | G31: 0 | H31: 0 | I31: 0
B32: Otros cobros por actividades de inversión | E32: 0 | F32: =[2]EstadoFlujoEfectivo!D30 -> 0 | G32: =+IFERROR(F32/$F$27,0) -> 0 | H32: 0 | I32: 0
A33: Pagos | C33: 79 | D33: =SUM(D34:D38) -> 79.11 | F33: =SUM(F34:F38) -> 0 | H33: 79.11 | I33: 0 | K33: =+I33 -> 0 | L33: =+FIXED(H33,2) -> 79.11 | M33: =IF(H33 < 0, "Disminución", "Aumento") -> Aumento
B34: Pagos por adquisición de bienes distintos de inventarios | D34: 79.11 | E34: =+IFERROR(D34/$D$33,0) -> 1 | F34: =[2]EstadoFlujoEfectivo!D32 -> 0 | G34: =+IFERROR(F34/F33,0) -> 0 | H34: 79.11 | I34: 0
B35: Pagos por adquisición de inversiones patrimoniales | E35: =+IFERROR(D35/$D$33,0) -> 0 | F35: =[2]EstadoFlujoEfectivo!D33 -> 0 | G35: =+IFERROR(F35/F34,0) -> 0 | H35: 0 | I35: 0
B36: Pagos por adquisición de inversiones en otros instrumentos financieros | E36: 0 | F36: =[2]EstadoFlujoEfectivo!D34 -> 0 | G36: 0 | H36: 0 | I36: 0
B37: Pagos por préstamos otorgados | E37: 0 | F37: =[2]EstadoFlujoEfectivo!D35 -> 0 | G37: 0 | H37: 0 | I37: 0
B38: Otros pagos por actividades de inversión | E38: 0 | F38: =[2]EstadoFlujoEfectivo!D36 -> 0 | G38: =+IFERROR(F38/F37,0) -> 0 | H38: 0 | I38: 0
A39: Flujos netos de efectivo por actividades de inversión | D39: =+D27-D33 -> -79.11 | F39: =+F27-F33 -> 0 | H39: -79.11 | I39: 0
A41: FLUJOS DE EFECTIVO DE LAS ACTIVIDADES DE FINANCIACIÓN
A42: Cobros | C42: 80 | D42: =SUM(D43:D45) -> 0 | F42: =SUM(F43:F45) -> 0 | H42: =+D42-F42 -> 0 | I42: =+IFERROR(H42/F42,0) -> 0 | K42: =+I42 -> 0 | L42: =+FIXED(H42,2) -> 0.00 | M42: =IF(H42 < 0, "Disminución", "Aumento") -> Aumento
B43: Cobros por incrementos de capital y transferencias de capital | E43: =+IFERROR(D43/$D$42,0) -> 0 | F43: =[2]EstadoFlujoEfectivo!D41 -> 0 | G43: =+IFERROR(F43/$F$42,0) -> 0 | H43: 0 | I43: 0
B44: Cobros por endeudamiento público | E44: =+IFERROR(D44/$D$42,0) -> 0 | F44: =[2]EstadoFlujoEfectivo!D42 -> 0 | G44: =+IFERROR(F44/$F$42,0) -> 0 | H44: 0 | I44: 0
B45: Otros cobros por actividades de financiación | E45: 0 | F45: =[2]EstadoFlujoEfectivo!D43 -> 0 | G45: =+IFERROR(F45/$F$42,0) -> 0 | H45: 0 | I45: 0
A46: Pagos | C46: 81 | D46: =SUM(D47:D49) -> 0 | F46: =SUM(F47:F49) -> 0 | H46: 0 | I46: 0 | K46: =+I46 -> 0 | L46: =+FIXED(H46,2) -> 0.00 | M46: =IF(H46 < 0, "Disminución", "Aumento") -> Aumento
B47: Pagos por disminuciones del patrimonio que no afectan resultados | E47: =+IFERROR(D47/$D$46,0) -> 0 | F47: =[2]EstadoFlujoEfectivo!D45 -> 0 | G47: =+IFERROR(F47/$F$46,0) -> 0 | H47: 0 | I47: 0
B48: Pagos por amortizaciones de endeudamiento público | E48: =+IFERROR(D48/$D$46,0) -> 0 | F48: =[2]EstadoFlujoEfectivo!D46 -> 0 | G48: =+IFERROR(F48/$F$46,0) -> 0 | H48: 0 | I48: 0
B49: Otros pagos por actividades de financiación | E49: 0 | F49: =[2]EstadoFlujoEfectivo!D47 -> 0 | G49: 0 | H49: 0 | I49: 0
A50: Flujos netos de efectivo por actividades de financiación | D50: =+D42-D46 -> 0 | F50: =+F42-F46 -> 0 | H50: =+D50-F50 -> 0 | I50: 0
A52: Incremento/Disminución neta de efectivo y equivalentes de efectivo por flujos de actividades | D52: =+D24+D39+D50 -> -39064.94 | F52: =+F24+F39+F50 -> 406.5192676 | H52: =+D52-F52 -> -39471.45927 | I52: =+IFERROR(H52/F52,0) -> -97.09615857
H53: =+D53-F53 -> 0 | I53: =+IFERROR(H53/F53,0) -> 0
A54: Incremento/Disminución neta de efectivo y equivalentes de efectivo por diferencias de cambio no realizadas | F54: =[2]EstadoFlujoEfectivo!D52 -> 0 | H54: =+D54-F54 -> 0 | I54: =+IFERROR(H54/F54,0) -> 0
A55: Efectivo y equivalentes de efectivo al inicio del ejercicio | D55: 73062.28 | F55: =[2]EstadoFlujoEfectivo!D53 -> 72987.38 | H55: =+D55-F55 -> 74.9 | I55: =+IFERROR(H55/F55,0) -> 0.001026204804
A56: Efectivo y equivalentes de efectivo al final del ejercicio | C56: 82 | D56: =+D52+D54+D55 -> 33997.34 | F56: =+F52+F54+F55 -> 73393.89927 | H56: =+D56-F56 -> -39396.55927 | I56: =+IFERROR(H56/F56,0) -> -0.53678248 | K56: =+I56 -> -0.53678248 | L56: =+FIXED(H56,2) -> -39,396.56 | M56: =IF(H56 < 0, "Disminución", "Aumento") -> Disminución
A59: Validaciones
A60: Balanza de comprobación periodo actual saldo final
A61: 1.1.1. | B61: Efectivo y equivalentes de efectivo | D61: =+BCPAC!G12/1000 -> 33997.34189
B62: No debe haber diferencia con Efectivo y equivalentes de efectivo al final del ejercicio | D62: =+D56-D61 -> -0.001889999847
A64: Balanza de comprobación periodo actual saldo inicial
A65: 1.1.1. | B65: Efectivo y equivalentes de efectivo | D65: =+BCPAC!D12/1000 -> 73062.2789
B66: No debe haber diferencia con Efectivo y equivalentes de efectivo al inicio del ejercicio | D66: =+D55-D65 -> 0.001099999994

Sheet AnalisisECP
A1: =+Datos!C2 -> Municipalidad de San Jose
A2: Análisis al Estado de Cambios en el Patrimonio Comparativo
A3: =+Datos!C4 -> Del 01 de Enero 2021 al 30 de Junio del 2021
A4: - En miles de colones -
A6: Cuenta | B6: Concepto | C6: =+Datos!D5 -> 2021-06-30 | D6: % análisis vertical | E6: =+Datos!F5 -> 2020-06-30 | F6: % | G6: Monto variación Absoluta | H6: % Variación relativa
A7: 3. | B7: Saldos al 31 de Diciembre del 2020 y 2019 | C7: =SUMIF(BCPAC!$B$10:$B$8000,$A7,BCPAC!$D$10:$D$8000)/1000 -> 1982492.825 | E7: =SUMIF(BCPAN!$B$10:$B$8000,$A7,BCPAN!$D$10:$D$8000)/1000 -> 2077952.842
A8: Variaciones del ejercicio
A9: 3.1.1.01. | B9: Capital inicial | C9: =+SUMIF(BCPAC!$B$10:$B$8000,$A9,BCPAC!$F$10:$F$8000)/1000-SUMIF(BCPAC!$B$10:$B$8000,$A9,BCPAC!$E$10:$E$8000)/1000 -> 0 | D9: =+IFERROR(C9/$C$28,0) -> 0 | E9: =+SUMIF(BCPAN!$B$10:$B$8000,$A9,BCPAN!$G$10:$G$8000)/1000-(SUMIF(BCPAN!$B$10:$B$8000,$A9,BCPAN!$D$10:$D$8000)/1000) -> 0 | F9: =+IFERROR(E9/$E$28,0) -> 0 | G9: =+C9-E9 -> 0 | H9: =+IFERROR(G9/E9,0) -> 0
A10: 3.1.1.02. | B10: Incorporaciones al capital | C10: =+SUMIF(BCPAC!$B$10:$B$8000,$A10,BCPAC!$F$10:$F$8000)/1000-SUMIF(BCPAC!$B$10:$B$8000,$A10,BCPAC!$E$10:$E$8000)/1000 -> 0 | D10: =+IFERROR(C10/$C$28,0) -> 0 | E10: =+SUMIF(BCPAN!$B$10:$B$8000,$A10,BCPAN!$G$10:$G$8000)/1000-(SUMIF(BCPAN!$B$10:$B$8000,$A10,BCPAN!$D$10:$D$8000)/1000) -> 0 | F10: =+IFERROR(E10/$E$28,0) -> 0 | G10: 0 | H10: 0
A11: 3.1.2.01. | B11: Donaciones de capital | C11: =+SUMIF(BCPAC!$B$10:$B$8000,$A11,BCPAC!$F$10:$F$8000)/1000-SUMIF(BCPAC!$B$10:$B$8000,$A11,BCPAC!$E$10:$E$8000)/1000 -> 0 | D11: 0 | E11: =+SUMIF(BCPAN!$B$10:$B$8000,$A11,BCPAN!$G$10:$G$8000)/1000-(SUMIF(BCPAN!$B$10:$B$8000,$A11,BCPAN!$D$10:$D$8000)/1000) -> 0 | F11: 0 | G11: 0 | H11: 0
A12: 3.1.2.99. | B12: Otras transferencias de capital | C12: =+SUMIF(BCPAC!$B$10:$B$8000,$A12,BCPAC!$F$10:$F$8000)/1000-SUMIF(BCPAC!$B$10:$B$8000,$A12,BCPAC!$E$10:$E$8000)/1000 -> 0 | D12: 0 | E12: =+SUMIF(BCPAN!$B$10:$B$8000,$A12,BCPAN!$G$10:$G$8000)/1000-(SUMIF(BCPAN!$B$10:$B$8000,$A12,BCPAN!$D$10:$D$8000)/1000) -> 0 | F12: 0 | G12: 0 | H12: 0
A13: 3.1.3.01. | B13: Revaluación de bienes | C13: =+SUMIF(BCPAC!$B$10:$B$8000,$A13,BCPAC!$F$10:$F$8000)/1000-SUMIF(BCPAC!$B$10:$B$8000,$A13,BCPAC!$E$10:$E$8000)/1000 -> 0 | D13: 0 | E13: =+SUMIF(BCPAN!$B$10:$B$8000,$A13,BCPAN!$G$10:$G$8000)/1000-(SUMIF(BCPAN!$B$10:$B$8000,$A13,BCPAN!$D$10:$D$8000)/1000) -> 0 | F13: 0 | G13: 0 | H13: 0
A14: 3.1.3.99. | B14: Otras reservas | C14: =+SUMIF(BCPAC!$B$10:$B$8000,$A14,BCPAC!$F$10:$F$8000)/1000-SUMIF(BCPAC!$B$10:$B$8000,$A14,BCPAC!$E$10:$E$8000)/1000 -> 0 | D14: 0 | E14: =+SUMIF(BCPAN!$B$10:$B$8000,$A14,BCPAN!$G$10:$G$8000)/1000-(SUMIF(BCPAN!$B$10:$B$8000,$A14,BCPAN!$D$10:$D$8000)/1000) -> 0 | F14: 0 | G14: 0 | H14: 0
A15: 3.1.4.01. | B15: Diferencias de conversión de moneda extranjera | C15: =+SUMIF(BCPAC!$B$10:$B$8000,$A15,BCPAC!$F$10:$F$8000)/1000-SUMIF(BCPAC!$B$10:$B$8000,$A15,BCPAC!$E$10:$E$8000)/1000 -> 0 | D15: 0 | E15: =+SUMIF(BCPAN!$B$10:$B$8000,$A15,BCPAN!$G$10:$G$8000)/1000-(SUMIF(BCPAN!$B$10:$B$8000,$A15,BCPAN!$D$10:$D$8000)/1000) -> 0 | F15: 0 | G15: 0 | H15: 0
A16: 3.1.4.02. | B16: Diferencias de valor razonable de activos financieros destinados a la venta | C16: =+SUMIF(BCPAC!$B$10:$B$8000,$A16,BCPAC!$F$10:$F$8000)/1000-SUMIF(BCPAC!$B$10:$B$8000,$A16,BCPAC!$E$10:$E$8000)/1000 -> 0 | D16: 0 | E16: =+SUMIF(BCPAN!$B$10:$B$8000,$A16,BCPAN!$G$10:$G$8000)/1000-(SUMIF(BCPAN!$B$10:$B$8000,$A16,BCPAN!$D$10:$D$8000)/1000) -> 0 | F16: 0 | G16: 0 | H16: 0
A17: 3.1.4.03. | B17: Diferencias de valor razonable de instrumentos financieros designados como cobertura | C17: =+SUMIF(BCPAC!$B$10:$B$8000,$A17,BCPAC!$F$10:$F$8000)/1000-SUMIF(BCPAC!$B$10:$B$8000,$A17,BCPAC!$E$10:$E$8000)/1000 -> 0 | D17: 0 | E17: =+SUMIF(BCPAN!$B$10:$B$8000,$A17,BCPAN!$G$10:$G$8000)/1000-(SUMIF(BCPAN!$B$10:$B$8000,$A17,BCPAN!$D$10:$D$8000)/1000) -> 0 | F17: 0 | G17: 0 | H17: 0
A18: 3.1.4.99. | B18: Otras variaciones no asignables a reservas | C18: =+SUMIF(BCPAC!$B$10:$B$8000,$A18,BCPAC!$F$10:$F$8000)/1000-SUMIF(BCPAC!$B$10:$B$8000,$A18,BCPAC!$E$10:$E$8000)/1000 -> 0 | D18: 0 | E18: =+SUMIF(BCPAN!$B$10:$B$8000,$A18,BCPAN!$G$10:$G$8000)/1000-(SUMIF(BCPAN!$B$10:$B$8000,$A18,BCPAN!$D$10:$D$8000)/1000) -> 0 | F18: 0 | G18: 0 | H18: 0
A19: 3.1.5.01. | B19: Resultados acumulados de ejercicios anteriores | C19: =+SUMIF(BCPAC!$B$10:$B$8000,$A19,BCPAC!$F$10:$F$8000)/1000-SUMIF(BCPAC!$B$10:$B$8000,$A19,BCPAC!$E$10:$E$8000)/1000 -> -43977.8918 | D19: -0.02389593548 | E19: =+SUMIF(BCPAN!$B$10:$B$8000,$A19,BCPAN!$G$10:$G$8000)/1000-(SUMIF(BCPAN!$B$10:$B$8000,$A19,BCPAN!$D$10:$D$8000)/1000) -> 0 | F19: 0 | G19: -43977.8918 | H19: 0
A20: 3.1.5.02. | B20: Resultado del ejercicio | C20: =+((SUMIF(BCPAC!B:B,"4.",BCPAC!G:G)-SUMIF(BCPAC!B:B,"5.",BCPAC!G:G))/1000) -> -98122.7949 | D20: -0.05331624323 | E20: =(+SUMIF(BCPAN!$B$10:$B$8000,$A20,BCPAN!$G$10:$G$8000)/1000-(SUMIF(BCPAN!$B$10:$B$8000,$A20,BCPAN!$D$10:$D$8000)/1000))+((SUMIF(BCPAN!B:B,"4.",BCPAN!G:G)-SUMIF(BCPAN!B:B,"5.",BCPAN!G:G))/1000) -> -77128.83903 | F20: -0.03854853746 | G20: -20993.95587 | H20: 0.2721933343
A21: 3.2.1.01. | B21: Intereses minoritarios - Participaciones en el patrimonio de entidades del sector gobierno general | C21: =+SUMIF(BCPAC!$B$10:$B$8000,$A21,BCPAC!$F$10:$F$8000)/1000-SUMIF(BCPAC!$B$10:$B$8000,$A21,BCPAC!$E$10:$E$8000)/1000 -> 0 | D21: 0 | E21: =+SUMIF(BCPAN!$B$10:$B$8000,$A21,BCPAN!$G$10:$G$8000)/1000-(SUMIF(BCPAN!$B$10:$B$8000,$A21,BCPAN!$D$10:$D$8000)/1000) -> 0 | F21: 0 | G21: 0 | H21: 0
A22: 3.2.1.02. | B22: Intereses minoritarios - Participaciones en el patrimonio de empresas públicas e instituciones públicas financieras | C22: =+SUMIF(BCPAC!$B$10:$B$8000,$A22,BCPAC!$F$10:$F$8000)/1000-SUMIF(BCPAC!$B$10:$B$8000,$A22,BCPAC!$E$10:$E$8000)/1000 -> 0 | D22: 0 | E22: =+SUMIF(BCPAN!$B$10:$B$8000,$A22,BCPAN!$G$10:$G$8000)/1000-(SUMIF(BCPAN!$B$10:$B$8000,$A22,BCPAN!$D$10:$D$8000)/1000) -> 0 | F22: 0 | G22: 0 | H22: 0
A23: 3.2.2.01. | B23: Intereses minoritarios - Evolución por reservas | C23: =+SUMIF(BCPAC!$B$10:$B$8000,$A23,BCPAC!$F$10:$F$8000)/1000-SUMIF(BCPAC!$B$10:$B$8000,$A23,BCPAC!$E$10:$E$8000)/1000 -> 0 | D23: 0 | E23: =+SUMIF(BCPAN!$B$10:$B$8000,$A23,BCPAN!$G$10:$G$8000)/1000-(SUMIF(BCPAN!$B$10:$B$8000,$A23,BCPAN!$D$10:$D$8000)/1000) -> 0 | F23: 0 | G23: 0 | H23: 0
A24: 3.2.2.02. | B24: Intereses minoritarios - Evolución por variaciones no asignables a reservas | C24: =+SUMIF(BCPAC!$B$10:$B$8000,$A24,BCPAC!$F$10:$F$8000)/1000-SUMIF(BCPAC!$B$10:$B$8000,$A24,BCPAC!$E$10:$E$8000)/1000 -> 0 | D24: 0 | E24: =+SUMIF(BCPAN!$B$10:$B$8000,$A24,BCPAN!$G$10:$G$8000)/1000-(SUMIF(BCPAN!$B$10:$B$8000,$A24,BCPAN!$D$10:$D$8000)/1000) -> 0 | F24: 0 | G24: 0 | H24: 0
A25: 3.2.2.03. | B25: Intereses minoritarios - Evolución por resultados acumulados | C25: =+SUMIF(BCPAC!$B$10:$B$8000,$A25,BCPAC!$F$10:$F$8000)/1000-SUMIF(BCPAC!$B$10:$B$8000,$A25,BCPAC!$E$10:$E$8000)/1000 -> 0 | D25: 0 | E25: =+SUMIF(BCPAN!$B$10:$B$8000,$A25,BCPAN!$G$10:$G$8000)/1000-(SUMIF(BCPAN!$B$10:$B$8000,$A25,BCPAN!$D$10:$D$8000)/1000) -> 0 | F25: 0 | G25: 0 | H25: 0
A26: 3.2.2.99. | B26: Intereses minoritarios - Evolución por otros componentes del patrimonio | C26: =+SUMIF(BCPAC!$B$10:$B$8000,$A26,BCPAC!$F$10:$F$8000)/1000-SUMIF(BCPAC!$B$10:$B$8000,$A26,BCPAC!$E$10:$E$8000)/1000 -> 0 | D26: =+IFERROR(C26/$C$28,0) -> 0 | E26: =+SUMIF(BCPAN!$B$10:$B$8000,$A26,BCPAN!$G$10:$G$8000)/1000-(SUMIF(BCPAN!$B$10:$B$8000,$A26,BCPAN!$D$10:$D$8000)/1000) -> 0 | F26: 0 | G26: 0 | H26: 0
B27: Total de variaciones del ejercicio | C27: =SUM(C9:C26) -> -142100.6867 | D27: =+IFERROR(C27/$C$28,0) -> -0.07721217871 | E27: =SUM(E9:E26) -> -77128.83903 | F27: =+IFERROR(E27/$E$28,0) -> -0.03854853746 | G27: -64971.84767
A28: 83 | B28: Saldos del período | C28: =+C7+C27 -> 1840392.139 | D28: =+IFERROR(C28/$C$28,0) -> 1 | E28: =+E7+E27 -> 2000824.003 | F28: =+IFERROR(E28/$E$28,0) -> 1 | G28: -160431.8646 | H28: =+IFERROR(G28/E28,0) -> -0.08018289682 | J28: =+H28 -> -0.08018289682 | K28: =+FIXED(G28,2) -> -160,431.86 | L28: =IF(G28 < 0, "Disminución", "Aumento") -> Disminución
B29: (*) De uso exclusivo en Estados Contables consolidados

Sheet BCPAC
A10: 1.1 | B10: 1. | C10: ACTIVO | D10: 2520843158 | E10: 1601115741 | F10: 1819039011 | G10: 2302919888
A11: 1.1 | B11: 1.1. | C11: Activo Corriente | D11: 536294744.9 | E11: 1601115741 | F11: 1766926425 | G11: 370484061.4
A12: 1.1 | B12: 1.1.1. | C12: Efectivo y equivalentes de efectivo | D12: 73062278.9 | E12: 5511870.82 | F12: 44576807.83 | G12: 33997341.89
A13: 1.1 | B13: 1.1.1.01. | C13: Efectivo | D13: 73062278.9 | E13: 5511870.82 | F13: 44576807.83 | G13: 33997341.89
A14: 1.1 | B14: 1.1.1.01.02. | C14: Depósitos bancarios | D14: 73062278.9 | E14: 5511870.82 | F14: 44576807.83 | G14: 33997341.89
A15: 1.1 | B15: 1.1.1.01.02.02. | C15: Depósitos bancarios en el sector público interno | D15: 73062278.9 | E15: 5511870.82 | F15: 44576807.83 | G15: 33997341.89
A16: 1.1 | B16: 1.1.1.01.02.02.1. | C16: Cajas de ahorro en el sector público interno | D16: 0 | E16: 0 | F16: 0 | G16: 0
A17: 1.1 | B17: 1.1.1.01.02.02.1.00000 | C17: Cajas de ahorro en el sector público interno | D17: 0 | E17: 0 | F17: 0 | G17: 0
A18: 1.1 | B18: 1.1.1.01.02.02.2. | C18: Cuentas corrientes en el sector público interno | D18: 26595149.52 | E18: 5511870.82 | F18: 518008.45 | G18: 31589011.89
A19: 1.1 | B19: 1.1.1.01.02.02.2.21103 | C19: Banco Nacional de Costa Rica | D19: 26595149.52 | E19: 5511870.82 | F19: 518008.45 | G19: 31589011.89
A20: 1.1 | B20: 1.1.1.01.02.02.3. | C20: Caja Única | D20: 46467129.38 | E20: 0 | F20: 44058799.38 | G20: 2408330
A21: 1.1 | B21: 1.1.1.01.02.02.3.11206 | C21: Ministerio de Hacienda (MHD) | D21: 46467129.38 | E21: 0 | F21: 44058799.38 | G21: 2408330
A22: 1.1 | B22: 1.1.3. | C22: Cuentas a cobrar a corto plazo | D22: 435494652 | E22: 1572220371 | F22: 1705813957 | G22: 301901066.1
A23: 1.1 | B23: 1.1.3.06. | C23: Transferencias a cobrar a corto plazo | D23: 435494652 | E23: 1572220371 | F23: 1705813957 | G23: 301901066.1
A24: 1.1 | B24: 1.1.3.06.02. | C24: Transferencias del sector público interno a cobrar c/p | D24: 435494652 | E24: 1572220371 | F24: 1705813957 | G24: 301901066.1
A25: 1.1 | B25: 1.1.3.06.02.01. | C25: Transferencias del Gobierno Central a cobrar c/p | D25: 435494652 | E25: 1572220371 | F25: 1705813957 | G25: 301901066.1
A26: 1.1 | B26: 1.1.3.06.02.01.0. | C26: Transferencias del Gobierno Central a cobrar c/p | D26: 435494652 | E26: 1572220371 | F26: 1705813957 | G26: 301901066.1
A27: 1.1 | B27: 1.1.3.06.02.01.0.11206 | C27: Ministerio de Hacienda (MHD) | D27: 435494652 | E27: 1572220371 | F27: 1705813957 | G27: 301901066.1
A28: 1.1 | B28: 1.1.3.13. | C28: Cuentas por Cobrar Cajas Unicas | D28: 0 | E28: 0 | F28: 0 | G28: 0
A29: 1.1 | B29: 1.1.3.13.01. | C29: Cuentas por Cobrar Cajas Unicas | D29: 0 | E29: 0 | F29: 0 | G29: 0
A30: 1.1 | B30: 1.1.3.13.01.01. | C30: Cuentas por Cobrar Cuenta Presupuestaria | D30: 0 | E30: 0 | F30: 0 | G30: 0
A31: 1.1 | B31: 1.1.3.13.01.01.0. | C31: Cuentas por Cobrar Cuenta Presupuestaria | D31: 0 | E31: 0 | F31: 0 | G31: 0
A32: 1.1 | B32: 1.1.4. | C32: Inventarios | D32: 26582013.64 | E32: 2387924.28 | F32: 7239515.55 | G32: 21730422.37
A33: 1.1 | B33: 1.1.4.01. | C33: Materiales y suministros para consumo y prestación de servicios | D33: 26582013.64 | E33: 2387924.28 | F33: 7239515.55 | G33: 21730422.37
A34: 1.1 | B34: 1.1.4.01.01. | C34: Productos químicos y conexos | D34: 13384983.63 | E34: 318829.5 | F34: 5298668.27 | G34: 8405144.86
A35: 1.1 | B35: 1.1.4.01.01.01. | C35: Combustibles y lubricantes | D35: 4004663.98 | E35: 0 | F35: 4004663.98 | G35: 0
A36: 1.1 | B36: 1.1.4.01.01.01.0. | C36: Combustibles y lubricantes | D36: 4004663.98 | E36: 0 | F36: 4004663.98 | G36: 0
A37: 1.1 | B37: 1.1.4.01.01.01.0.00000 | C37: Combustibles y lubricantes | D37: 4004663.98 | E37: 0 | F37: 4004663.98 | G37: 0
A38: 1.1 | B38: 1.1.4.01.01.02. | C38: Productos farmacéuticos y medicinales | D38: 170521.17 | E38: 318829.5 | F38: 32588.38 | G38: 456762.29
A39: 1.1 | B39: 1.1.4.01.01.02.0. | C39: Productos farmacéuticos y medicinales | D39: 170521.17 | E39: 318829.5 | F39: 32588.38 | G39: 456762.29
A40: 1.1 | B40: 1.1.4.01.01.02.0.00000 | C40: Productos farmacéuticos y medicinales | D40: 170521.17 | E40: 318829.5 | F40: 32588.38 | G40: 456762.29
A41: 1.1 | B41: 1.1.4.01.01.03. | C41: Productos veterinarios | D41: 0 | E41: 0 | F41: 0 | G41: 0
A42: 1.1 | B42: 1.1.4.01.01.04. | C42: Tintas, pinturas y diluyentes | D42: 9196922.99 | E42: 0 | F42: 1248540.42 | G42: 7948382.57
A43: 1.1 | B43: 1.1.4.01.01.04.0. | C43: Tintas, pinturas y diluyentes | D43: 9196922.99 | E43: 0 | F43: 1248540.42 | G43: 7948382.57
A44: 1.1 | B44: 1.1.4.01.01.04.0.00000 | C44: Tintas, pinturas y diluyentes | D44: 9196922.99 | E44: 0 | F44: 1248540.42 | G44: 7948382.57
A45: 1.1 | B45: 1.1.4.01.01.99. | C45: Otros productos químicos y conexos | D45: 12875.49 | E45: 0 | F45: 12875.49 | G45: 0
A46: 1.1 | B46: 1.1.4.01.01.99.0. | C46: Otros productos químicos y conexos | D46: 12875.49 | E46: 0 | F46: 12875.49 | G46: 0
A47: 1.1 | B47: 1.1.4.01.01.99.0.00000 | C47: Otros productos químicos y conexos | D47: 12875.49 | E47: 0 | F47: 12875.49 | G47: 0
A48: 1.1 | B48: 1.1.4.01.02. | C48: Productos agropecuarios y alimentos | D48: 69957.35 | E48: 444238.4 | F48: 126292.75 | G48: 387903
A49: 1.1 | B49: 1.1.4.01.02.02. | C49: Productos agroforestales | D49: 0 | E49: 0 | F49: 0 | G49: 0
A50: 1.1 | B50: 1.1.4.01.02.02.0. | C50: Productos agroforestales | D50: 0 | E50: 0 | F50: 0 | G50: 0
A51: 1.1 | B51: 1.1.4.01.02.02.0.00000 | C51: Productos agroforestales | D51: 0 | E51: 0 | F51: 0 | G51: 0
A52: 1.1 | B52: 1.1.4.01.02.03. | C52: Alimentos y bebidas | D52: 69957.35 | E52: 444238.4 | F52: 126292.75 | G52: 387903
A53: 1.1 | B53: 1.1.4.01.02.03.0. | C53: Alimentos y bebidas | D53: 69957.35 | E53: 444238.4 | F53: 126292.75 | G53: 387903
A54: 1.1 | B54: 1.1.4.01.02.03.0.00000 | C54: Alimentos y bebidas | D54: 69957.35 | E54: 444238.4 | F54: 126292.75 | G54: 387903
A55: 1.1 | B55: 1.1.4.01.02.99. | C55: Otros productos agropecuarios y alimentos | D55: 0 | E55: 0 | F55: 0 | G55: 0
A56: 1.1 | B56: 1.1.4.01.02.99.0. | C56: Otros productos agropecuarios y alimentos | D56: 0 | E56: 0 | F56: 0 | G56: 0
A57: 1.1 | B57: 1.1.4.01.02.99.0.00000 | C57: Otros productos agropecuarios y alimentos | D57: 0 | E57: 0 | F57: 0 | G57: 0
A58: 1.1 | B58: 1.1.4.01.03. | C58: Materiales y productos de uso en la construcción y mantenimiento | D58: 803143.84 | E58: 0 | F58: 0 | G58: 803143.84
A59: 1.1 | B59: 1.1.4.01.03.01. | C59: Materiales y productos metálicos | D59: 401614.85 | E59: 0 | F59: 0 | G59: 401614.85
A60: 1.1 | B60: 1.1.4.01.03.01.0. | C60: Materiales y productos metálicos | D60: 401614.85 | E60: 0 | F60: 0 | G60: 401614.85
A61: 1.1 | B61: 1.1.4.01.03.01.0.00000 | C61: Materiales y productos metálicos | D61: 401614.85 | E61: 0 | F61: 0 | G61: 401614.85
A62: 1.1 | B62: 1.1.4.01.03.02. | C62: Materiales y productos minerales y asfálticos | D62: 83904 | E62: 0 | F62: 0 | G62: 83904
A63: 1.1 | B63: 1.1.4.01.03.02.0. | C63: Materiales y productos minerales y asfálticos | D63: 83904 | E63: 0 | F63: 0 | G63: 83904
A64: 1.1 | B64: 1.1.4.01.03.02.0.00000 | C64: Materiales y productos minerales y asfálticos | D64: 83904 | E64: 0 | F64: 0 | G64: 83904
A65: 1.1 | B65: 1.1.4.01.03.03. | C65: Madera y sus derivados | D65: 0 | E65: 0 | F65: 0 | G65: 0
A66: 1.1 | B66: 1.1.4.01.03.03.0. | C66: Madera y sus derivados | D66: 0 | E66: 0 | F66: 0 | G66: 0
A67: 1.1 | B67: 1.1.4.01.03.03.0.00000 | C67: Madera y sus derivados | D67: 0 | E67: 0 | F67: 0 | G67: 0
A68: 1.1 | B68: 1.1.4.01.03.04. | C68: Materiales y productos eléctricos, telefónicos y de cómputo | D68: 270793.78 | E68: 0 | F68: 0 | G68: 270793.78
A69: 1.1 | B69: 1.1.4.01.03.04.0. | C69: Materiales y productos eléctricos, telefónicos y de cómputo | D69: 270793.78 | E69: 0 | F69: 0 | G69: 270793.78
A70: 1.1 | B70: 1.1.4.01.03.04.0.00000 | C70: Materiales y productos eléctricos, telefónicos y de cómputo | D70: 270793.78 | E70: 0 | F70: 0 | G70: 270793.78
A71: 1.1 | B71: 1.1.4.01.03.05. | C71: Materiales y productos de vidrio | D71: 24790.21 | E71: 0 | F71: 0 | G71: 24790.21
A72: 1.1 | B72: 1.1.4.01.03.05.0. | C72: Materiales y productos de vidrio | D72: 24790.21 | E72: 0 | F72: 0 | G72: 24790.21
A73: 1.1 | B73: 1.1.4.01.03.05.0.00000 | C73: Materiales y productos de vidrio | D73: 24790.21 | E73: 0 | F73: 0 | G73: 24790.21
A74: 1.1 | B74: 1.1.4.01.03.06. | C74: Materiales y productos de plástico | D74: 22041 | E74: 0 | F74: 0 | G74: 22041
A75: 1.1 | B75: 1.1.4.01.03.06.0. | C75: Materiales y productos de plástico | D75: 22041 | E75: 0 | F75: 0 | G75: 22041
A76: 1.1 | B76: 1.1.4.01.03.06.0.00000 | C76: Materiales y productos de plástico | D76: 22041 | E76: 0 | F76: 0 | G76: 22041
A77: 1.1 | B77: 1.1.4.01.03.99. | C77: Otros materiales y productos de uso en la construcción y mantenimiento | D77: 0 | E77: 0 | F77: 0 | G77: 0
A78: 1.1 | B78: 1.1.4.01.03.99.0. | C78: Otros materiales y productos de uso en la construcción y mantenimiento | D78: 0 | E78: 0 | F78: 0 | G78: 0
A79: 1.1 | B79: 1.1.4.01.03.99.0.00000 | C79: Otros materiales y productos de uso en la construcción y mantenimiento | D79: 0 | E79: 0 | F79: 0 | G79: 0
A80: 1.1 | B80: 1.1.4.01.04. | C80: Herramientas, repuestos y accesorios | D80: 2508427.97 | E80: 0 | F80: 158858.12 | G80: 2349569.85
A81: 1.1 | B81: 1.1.4.01.04.01. | C81: Herramientas e instrumentos | D81: 659463 | E81: 0 | F81: 0 | G81: 659463
A82: 1.1 | B82: 1.1.4.01.04.01.0. | C82: Herramientas e instrumentos | D82: 659463 | E82: 0 | F82: 0 | G82: 659463
A83: 1.1 | B83: 1.1.4.01.04.01.0.00000 | C83: Herramientas e instrumentos | D83: 659463 | E83: 0 | F83: 0 | G83: 659463
A84: 1.1 | B84: 1.1.4.01.04.02. | C84: Repuestos y accesorios Nuevos | D84: 1848964.97 | E84: 0 | F84: 158858.12 | G84: 1690106.85
A85: 1.1 | B85: 1.1.4.01.04.02.0. | C85: Repuestos y accesorios Nuevos | D85: 1848964.97 | E85: 0 | F85: 158858.12 | G85: 1690106.85
A86: 1.1 | B86: 1.1.4.01.04.02.0.00000 | C86: Repuestos y accesorios Nuevos | D86: 1848964.97 | E86: 0 | F86: 158858.12 | G86: 1690106.85
A87: 1.1 | B87: 1.1.4.01.04.03. | C87: Repuestos y accesorios Usados | D87: 0 | E87: 0 | F87: 0 | G87: 0
A88: 1.1 | B88: 1.1.4.01.99. | C88: Útiles, materiales y suministros diversos | D88: 9815500.85 | E88: 1624856.38 | F88: 1655696.41 | G88: 9784660.82
A89: 1.1 | B89: 1.1.4.01.99.01. | C89: Útiles y materiales de oficina y cómputo | D89: 2100527.11 | E89: 0 | F89: 206259.12 | G89: 1894267.99
A90: 1.1 | B90: 1.1.4.01.99.01.0. | C90: Útiles y materiales de oficina y cómputo | D90: 2100527.11 | E90: 0 | F90: 206259.12 | G90: 1894267.99
A91: 1.1 | B91: 1.1.4.01.99.01.0.00000 | C91: Útiles y materiales de oficina y cómputo | D91: 2100527.11 | E91: 0 | F91: 206259.12 | G91: 1894267.99
A92: 1.1 | B92: 1.1.4.01.99.02. | C92: Útiles y materiales médico, hospitalario y de investigación | D92: 221968 | E92: 0 | F92: 5373.15 | G92: 216594.85
A93: 1.1 | B93: 1.1.4.01.99.02.0. | C93: Útiles y materiales médico, hospitalario y de investigación | D93: 221968 | E93: 0 | F93: 5373.15 | G93: 216594.85
A94: 1.1 | B94: 1.1.4.01.99.02.0.00000 | C94: Útiles y materiales médico, hospitalario y de investigación | D94: 221968 | E94: 0 | F94: 5373.15 | G94: 216594.85
A95: 1.1 | B95: 1.1.4.01.99.03. | C95: Productos de papel, cartón e impresos | D95: 3734646.6 | E95: 1624856.38 | F95: 907086.39 | G95: 4452416.59
A96: 1.1 | B96: 1.1.4.01.99.03.0. | C96: Productos de papel, cartón e impresos | D96: 3734646.6 | E96: 1624856.38 | F96: 907086.39 | G96: 4452416.59
A97: 1.1 | B97: 1.1.4.01.99.03.0.00000 | C97: Productos de papel, cartón e impresos | D97: 3734646.6 | E97: 1624856.38 | F97: 907086.39 | G97: 4452416.59
A98: 1.1 | B98: 1.1.4.01.99.04. | C98: Textiles y vestuario | D98: 1027729.91 | E98: 0 | F98: 0 | G98: 1027729.91
A99: 1.1 | B99: 1.1.4.01.99.04.0. | C99: Textiles y vestuario | D99: 1027729.91 | E99: 0 | F99: 0 | G99: 1027729.91
A100: 1.1 | B100: 1.1.4.01.99.04.0.00000 | C100: Textiles y vestuario | D100: 1027729.91 | E100: 0 | F100: 0 | G100: 1027729.91
A101: 1.1 | B101: 1.1.4.01.99.05. | C101: Útiles y materiales de limpieza | D101: 1712631.72 | E101: 0 | F101: 490969.31 | G101: 1221662.41
A102: 1.1 | B102: 1.1.4.01.99.05.0. | C102: Útiles y materiales de limpieza | D102: 1712631.72 | E102: 0 | F102: 490969.31 | G102: 1221662.41
A103: 1.1 | B103: 1.1.4.01.99.05.0.00000 | C103: Útiles y materiales de limpieza | D103: 1712631.72 | E103: 0 | F103: 490969.31 | G103: 1221662.41
A104: 1.1 | B104: 1.1.4.01.99.06. | C104: Útiles y materiales de resguardo y seguridad | D104: 333688.56 | E104: 0 | F104: 0 | G104: 333688.56
A105: 1.1 | B105: 1.1.4.01.99.06.0. | C105: Útiles y materiales de resguardo y seguridad | D105: 333688.56 | E105: 0 | F105: 0 | G105: 333688.56
A106: 1.1 | B106: 1.1.4.01.99.06.0.00000 | C106: Útiles y materiales de resguardo y seguridad | D106: 333688.56 | E106: 0 | F106: 0 | G106: 333688.56
A107: 1.1 | B107: 1.1.4.01.99.07. | C107: Útiles y materiales de cocina y comedor | D107: 258936 | E107: 0 | F107: 0 | G107: 258936
A108: 1.1 | B108: 1.1.4.01.99.07.0. | C108: Útiles y materiales de cocina y comedor | D108: 258936 | E108: 0 | F108: 0 | G108: 258936
A109: 1.1 | B109: 1.1.4.01.99.07.0.00000 | C109: Útiles y materiales de cocina y comedor | D109: 258936 | E109: 0 | F109: 0 | G109: 258936
A110: 1.1 | B110: 1.1.4.01.99.99. | C110: Otros útiles, materiales y suministros diversos | D110: 425372.95 | E110: 0 | F110: 46008.44 | G110: 379364.51
A111: 1.1 | B111: 1.1.4.01.99.99.0. | C111: Otros útiles, materiales y suministros diversos | D111: 425372.95 | E111: 0 | F111: 46008.44 | G111: 379364.51
A112: 1.1 | B112: 1.1.4.01.99.99.0.00000 | C112: Otros útiles, materiales y suministros diversos | D112: 425372.95 | E112: 0 | F112: 46008.44 | G112: 379364.51
A113: 1.1 | B113: 1.1.9. | C113: Otros activos a corto plazo | D113: 1155800.33 | E113: 20995575 | F113: 9296144.33 | G113: 12855231
A114: 1.1 | B114: 1.1.9.01. | C114: Gastos a devengar a corto plazo | D114: 1155800.33 | E114: 20995575 | F114: 9296144.33 | G114: 12855231
A115: 1.1 | B115: 1.1.9.01.01. | C115: Servicios a devengar c/p | D115: 1155800.33 | E115: 20995575 | F115: 9296144.33 | G115: 12855231
A116: 1.1 | B116: 1.1.9.01.01.01. | C116: Primas y gastos de seguros a devengar c/p | D116: 1155800.33 | E116: 20995575 | F116: 9296144.33 | G116: 12855231
A117: 1.1 | B117: 1.1.9.01.01.01.0. | C117: Primas y gastos de seguros a devengar c/p | D117: 1155800.33 | E117: 20995575 | F117: 9296144.33 | G117: 12855231
A118: 1.1 | B118: 1.1.9.01.01.01.0.00000 | C118: Primas y gastos de seguros a devengar c/p | D118: 1155800.33 | E118: 20995575 | F118: 9296144.33 | G118: 12855231
A119: 1.1 | B119: 1.2. | C119: Activo No Corriente | D119: 1984548413 | E119: 0 | F119: 52112586.19 | G119: 1932435827
A120: 1.1 | B120: 1.2.5. | C120: Bienes no concesionados | D120: 1984548413 | E120: 0 | F120: 52112586.19 | G120: 1932435827
A121: 1.1 | B121: 1.2.5.01. | C121: Propiedades, planta y equipos explotados | D121: 1935135576 | E121: 0 | F121: 41527123.09 | G121: 1893608453
A122: 1.1 | B122: 1.2.5.01.01. | C122: Tierras y terrenos | D122: 693661681.7 | E122: 0 | F122: 0 | G122: 693661681.7
A123: 1.1 | B123: 1.2.5.01.01.01. | C123: Terrenos para construcción de edificios | D123: 693661681.7 | E123: 0 | F123: 0 | G123: 693661681.7
A124: 1.1 | B124: 1.2.5.01.01.01.6. | C124: Valores de origen | D124: 235795553.1 | E124: 0 | F124: 0 | G124: 235795553.1
A125: 1.1 | B125: 1.2.5.01.01.01.6.00000 | C125: Valores de origen | D125: 235795553.1 | E125: 0 | F125: 0 | G125: 235795553.1
A126: 1.1 | B126: 1.2.5.01.01.01.7. | C126: Revaluaciones | D126: 457866128.6 | E126: 0 | F126: 0 | G126: 457866128.6
A127: 1.1 | B127: 1.2.5.01.01.01.7.00000 | C127: Revaluaciones | D127: 457866128.6 | E127: 0 | F127: 0 | G127: 457866128.6
A128: 1.1 | B128: 1.2.5.01.01.01.8. | C128: Pérdidas por deterioro * | D128: 0 | E128: 0 | F128: 0 | G128: 0
A129: 1.1 | B129: 1.2.5.01.01.01.8.00000 | C129: Pérdidas por deterioro * | D129: 0 | E129: 0 | F129: 0 | G129: 0
A130: 1.1 | B130: 1.2.5.01.02. | C130: Edificios | D130: 932118501.7 | E130: 0 | F130: 22094997.49 | G130: 910023504.2
A131: 1.1 | B131: 1.2.5.01.02.01. | C131: Edificios de oficinas y atención al público | D131: 818521764.1 | E131: 0 | F131: 21214997.49 | G131: 797306766.6
A132: 1.1 | B132: 1.2.5.01.02.01.1. | C132: Valores de origen | D132: 580526370 | E132: 0 | F132: 0 | G132: 580526370
A133: 1.1 | B133: 1.2.5.01.02.01.1.00000 | C133: Valores de origen | D133: 580526370 | E133: 0 | F133: 0 | G133: 580526370
A134: 1.1 | B134: 1.2.5.01.02.01.2. | C134: Revaluaciones | D134: 519736181.9 | E134: 0 | F134: 0 | G134: 519736181.9
A135: 1.1 | B135: 1.2.5.01.02.01.2.00000 | C135: Revaluaciones | D135: 519736181.9 | E135: 0 | F135: 0 | G135: 519736181.9
A136: 1.1 | B136: 1.2.5.01.02.01.3. | C136: Depreciaciones acumuladas * | D136: -281740787.9 | E136: 0 | F136: 21214997.49 | G136: -302955785.3
A137: 1.1 | B137: 1.2.5.01.02.01.3.00000 | C137: Depreciaciones acumuladas * | D137: -281740787.9 | E137: 0 | F137: 21214997.49 | G137: -302955785.3
A138: 1.1 | B138: 1.2.5.01.02.01.4. | C138: Pérdidas por deterioro * | D138: 0 | E138: 0 | F138: 0 | G138: 0
A139: 1.1 | B139: 1.2.5.01.02.01.4.00000 | C139: Pérdidas por deterioro * | D139: 0 | E139: 0 | F139: 0 | G139: 0
A140: 1.1 | B140: 1.2.5.01.02.01.5. | C140: Mejoras | D140: 0 | E140: 0 | F140: 0 | G140: 0
A141: 1.1 | B141: 1.2.5.01.02.01.5.00000 | C141: Mejoras | D141: 0 | E141: 0 | F141: 0 | G141: 0
A142: 1.1 | B142: 1.2.5.01.02.01.6. | C142: Porción terreno: valores de origen | D142: 0 | E142: 0 | F142: 0 | G142: 0
A143: 1.1 | B143: 1.2.5.01.02.01.6.00000 | C143: Porción terreno: valores de origen | D143: 0 | E143: 0 | F143: 0 | G143: 0
A144: 1.1 | B144: 1.2.5.01.02.01.7. | C144: Porción terreno: revaluaciones | D144: 0 | E144: 0 | F144: 0 | G144: 0
A145: 1.1 | B145: 1.2.5.01.02.01.7.00000 | C145: Porción terreno: revaluaciones | D145: 0 | E145: 0 | F145: 0 | G145: 0
A146: 1.1 | B146: 1.2.5.01.02.01.8. | C146: Porción terreno: pérdidas por deterioro * | D146: 0 | E146: 0 | F146: 0 | G146: 0
A147: 1.1 | B147: 1.2.5.01.02.01.8.00000 | C147: Porción terreno: pérdidas por deterioro * | D147: 0 | E147: 0 | F147: 0 | G147: 0
A148: 1.1 | B148: 1.2.5.01.02.04. | C148: Bodegas | D148: 113596737.6 | E148: 0 | F148: 880000 | G148: 112716737.6
A149: 1.1 | B149: 1.2.5.01.02.04.1. | C149: Valores de origen | D149: 106825827.2 | E149: 0 | F149: 0 | G149: 106825827.2
A150: 1.1 | B150: 1.2.5.01.02.04.1.00000 | C150: Valores de origen | D150: 106825827.2 | E150: 0 | F150: 0 | G150: 106825827.2
A151: 1.1 | B151: 1.2.5.01.02.04.2. | C151: Revaluaciones | D151: 25174172.75 | E151: 0 | F151: 0 | G151: 25174172.75
A152: 1.1 | B152: 1.2.5.01.02.04.2.00000 | C152: Revaluaciones | D152: 25174172.75 | E152: 0 | F152: 0 | G152: 25174172.75
A153: 1.1 | B153: 1.2.5.01.02.04.3. | C153: Depreciaciones acumuladas * | D153: -18403262.4 | E153: 0 | F153: 880000 | G153: -19283262.4
A154: 1.1 | B154: 1.2.5.01.02.04.3.00000 | C154: Depreciaciones acumuladas * | D154: -18403262.4 | E154: 0 | F154: 880000 | G154: -19283262.4
A155: 1.1 | B155: 1.2.5.01.02.04.4. | C155: Pérdidas por deterioro * | D155: 0 | E155: 0 | F155: 0 | G155: 0
A156: 1.1 | B156: 1.2.5.01.02.04.4.00000 | C156: Pérdidas por deterioro * | D156: 0 | E156: 0 | F156: 0 | G156: 0
A157: 1.1 | B157: 1.2.5.01.02.04.5. | C157: Mejoras | D157: 0 | E157: 0 | F157: 0 | G157: 0
A158: 1.1 | B158: 1.2.5.01.02.04.5.00000 | C158: Mejoras | D158: 0 | E158: 0 | F158: 0 | G158: 0
A159: 1.1 | B159: 1.2.5.01.02.04.6. | C159: Porción terreno: valores de origen | D159: 0 | E159: 0 | F159: 0 | G159: 0
A160: 1.1 | B160: 1.2.5.01.02.04.6.00000 | C160: Porción terreno: valores de origen | D160: 0 | E160: 0 | F160: 0 | G160: 0
A161: 1.1 | B161: 1.2.5.01.02.04.7. | C161: Porción terreno: revaluaciones | D161: 0 | E161: 0 | F161: 0 | G161: 0
A162: 1.1 | B162: 1.2.5.01.02.04.7.00000 | C162: Porción terreno: revaluaciones | D162: 0 | E162: 0 | F162: 0 | G162: 0
A163: 1.1 | B163: 1.2.5.01.02.04.8. | C163: Porción terreno: pérdidas por deterioro * | D163: 0 | E163: 0 | F163: 0 | G163: 0
A164: 1.1 | B164: 1.2.5.01.02.04.8.00000 | C164: Porción terreno: pérdidas por deterioro * | D164: 0 | E164: 0 | F164: 0 | G164: 0
A165: 1.1 | B165: 1.2.5.01.03. | C165: Maquinaria y equipos para la producción | D165: 16073958.99 | E165: 0 | F165: 784166.64 | G165: 15289792.35
A166: 1.1 | B166: 1.2.5.01.03.03. | C166: Planta eléctrica | D166: 16073958.99 | E166: 0 | F166: 784166.64 | G166: 15289792.35
A167: 1.1 | B167: 1.2.5.01.03.03.1. | C167: Valores de origen | D167: 32181390 | E167: 0 | F167: 0 | G167: 32181390
A168: 1.1 | B168: 1.2.5.01.03.03.1.00000 | C168: Valores de origen | D168: 32181390 | E168: 0 | F168: 0 | G168: 32181390
A169: 1.1 | B169: 1.2.5.01.03.03.2. | C169: Revaluaciones | D169: 0 | E169: 0 | F169: 0 | G169: 0
A170: 1.1 | B170: 1.2.5.01.03.03.2.00000 | C170: Revaluaciones | D170: 0 | E170: 0 | F170: 0 | G170: 0
A171: 1.1 | B171: 1.2.5.01.03.03.3. | C171: Depreciaciones acumuladas * | D171: -33323822.69 | E171: 0 | F171: 784166.64 | G171: -34107989.33
A172: 1.1 | B172: 1.2.5.01.03.03.3.00000 | C172: Depreciaciones acumuladas * | D172: -33323822.69 | E172: 0 | F172: 784166.64 | G172: -34107989.33
A173: 1.1 | B173: 1.2.5.01.03.03.4. | C173: Pérdidas por deterioro * | D173: 0 | E173: 0 | F173: 0 | G173: 0
A174: 1.1 | B174: 1.2.5.01.03.03.4.00000 | C174: Pérdidas por deterioro * | D174: 0 | E174: 0 | F174: 0 | G174: 0
A175: 1.1 | B175: 1.2.5.01.03.03.5. | C175: Mejoras | D175: 17216391.68 | E175: 0 | F175: 0 | G175: 17216391.68
A176: 1.1 | B176: 1.2.5.01.03.03.5.00000 | C176: Mejoras | D176: 17216391.68 | E176: 0 | F176: 0 | G176: 17216391.68
A177: 1.1 | B177: 1.2.5.01.04. | C177: Equipos de transporte, tracción y elevación | D177: 188134095.2 | E177: 0 | F177: 6635904.84 | G177: 181498190.3
A178: 1.1 | B178: 1.2.5.01.04.02. | C178: Vehículos | D178: 188134095.2 | E178: 0 | F178: 6635904.84 | G178: 181498190.3
A179: 1.1 | B179: 1.2.5.01.04.02.1. | C179: Valores de origen | D179: 0 | E179: 0 | F179: 0 | G179: 0
A180: 1.1 | B180: 1.2.5.01.04.02.1.00000 | C180: Valores de origen | D180: 0 | E180: 0 | F180: 0 | G180: 0
A181: 1.1 | B181: 1.2.5.01.04.02.2. | C181: Revaluaciones | D181: 194770000 | E181: 0 | F181: 0 | G181: 194770000
A182: 1.1 | B182: 1.2.5.01.04.02.2.00000 | C182: Revaluaciones | D182: 194770000 | E182: 0 | F182: 0 | G182: 194770000
A183: 1.1 | B183: 1.2.5.01.04.02.3. | C183: Depreciaciones acumuladas * | D183: -6635904.84 | E183: 0 | F183: 6635904.84 | G183: -13271809.68
A184: 1.1 | B184: 1.2.5.01.04.02.3.00000 | C184: Depreciaciones acumuladas * | D184: -6635904.84 | E184: 0 | F184: 6635904.84 | G184: -13271809.68
A185: 1.1 | B185: 1.2.5.01.04.02.4. | C185: Pérdidas por deterioro * | D185: 0 | E185: 0 | F185: 0 | G185: 0
A186: 1.1 | B186: 1.2.5.01.04.02.4.00000 | C186: Pérdidas por deterioro * | D186: 0 | E186: 0 | F186: 0 | G186: 0
A187: 1.1 | B187: 1.2.5.01.04.02.5. | C187: Mejoras | D187: 0 | E187: 0 | F187: 0 | G187: 0
A188: 1.1 | B188: 1.2.5.01.04.02.5.00000 | C188: Mejoras | D188: 0 | E188: 0 | F188: 0 | G188: 0
A189: 1.1 | B189: 1.2.5.01.05. | C189: Equipos de comunicación | D189: 6769160.75 | E189: 0 | F189: 416464.2 | G189: 6352696.55
A190: 1.1 | B190: 1.2.5.01.05.02. | C190: Equipos de telefonía | D190: 284013.09 | E190: 0 | F190: 50318.44 | G190: 233694.65
A191: 1.1 | B191: 1.2.5.01.05.02.1. | C191: Valores de origen | D191: 7353282.94 | E191: 0 | F191: 0 | G191: 7353282.94
A192: 1.1 | B192: 1.2.5.01.05.02.1.00000 | C192: Valores de origen | D192: 7353282.94 | E192: 0 | F192: 0 | G192: 7353282.94
A193: 1.1 | B193: 1.2.5.01.05.02.2. | C193: Revaluaciones | D193: 0 | E193: 0 | F193: 0 | G193: 0
A194: 1.1 | B194: 1.2.5.01.05.02.2.00000 | C194: Revaluaciones | D194: 0 | E194: 0 | F194: 0 | G194: 0
A195: 1.1 | B195: 1.2.5.01.05.02.3. | C195: Depreciaciones acumuladas * | D195: -7988110.35 | E195: 0 | F195: 50318.44 | G195: -8038428.79
A196: 1.1 | B196: 1.2.5.01.05.02.3.00000 | C196: Depreciaciones acumuladas * | D196: -7988110.35 | E196: 0 | F196: 50318.44 | G196: -8038428.79
A197: 1.1 | B197: 1.2.5.01.05.02.4. | C197: Pérdidas por deterioro * | D197: 0 | E197: 0 | F197: 0 | G197: 0
A198: 1.1 | B198: 1.2.5.01.05.02.4.00000 | C198: Pérdidas por deterioro * | D198: 0 | E198: 0 | F198: 0 | G198: 0
A199: 1.1 | B199: 1.2.5.01.05.02.5. | C199: Mejoras | D199: 918840.5 | E199: 0 | F199: 0 | G199: 918840.5
A200: 1.1 | B200: 1.2.5.01.05.02.5.00000 | C200: Mejoras | D200: 918840.5 | E200: 0 | F200: 0 | G200: 918840.5
A201: 1.1 | B201: 1.2.5.01.05.03. | C201: Equipos de radiocomunicación | D201: 228884.22 | E201: 0 | F201: 13766.68 | G201: 215117.54
A202: 1.1 | B202: 1.2.5.01.05.03.1. | C202: Valores de origen | D202: 1732265 | E202: 0 | F202: 0 | G202: 1732265
A203: 1.1 | B203: 1.2.5.01.05.03.1.00000 | C203: Valores de origen | D203: 1732265 | E203: 0 | F203: 0 | G203: 1732265
A204: 1.1 | B204: 1.2.5.01.05.03.2. | C204: Revaluaciones | D204: 0 | E204: 0 | F204: 0 | G204: 0
A205: 1.1 | B205: 1.2.5.01.05.03.2.00000 | C205: Revaluaciones | D205: 0 | E205: 0 | F205: 0 | G205: 0
A206: 1.1 | B206: 1.2.5.01.05.03.3. | C206: Depreciaciones acumuladas * | D206: -1831380.78 | E206: 0 | F206: 13766.68 | G206: -1845147.46
A207: 1.1 | B207: 1.2.5.01.05.03.3.00000 | C207: Depreciaciones acumuladas * | D207: -1831380.78 | E207: 0 | F207: 13766.68 | G207: -1845147.46
A208: 1.1 | B208: 1.2.5.01.05.03.4. | C208: Pérdidas por deterioro * | D208: 0 | E208: 0 | F208: 0 | G208: 0
A209: 1.1 | B209: 1.2.5.01.05.03.4.00000 | C209: Pérdidas por deterioro * | D209: 0 | E209: 0 | F209: 0 | G209: 0
... 964 more rows

Sheet BCPAN
A10: 1.1 | B10: 1. | C10: ACTIVO | D10: 2534025382 | E10: 1582226770 | F10: 1760182830 | G10: 2356069322
A11: 1.1 | B11: 1.1. | C11: Activo Corriente | D11: 562504069.5 | E11: 1562751942 | F11: 1688245798 | G11: 437010212.6
A12: 1.1 | B12: 1.1.1. | C12: Efectivo y equivalentes de efectivo | D12: 72987379.48 | E12: 2454374.51 | F12: 2047855.24 | G12: 73393898.75
A13: 1.1 | B13: 1.1.1.01. | C13: Efectivo | D13: 72987379.48 | E13: 2454374.51 | F13: 2047855.24 | G13: 73393898.75
A14: 1.1 | B14: 1.1.1.01.02. | C14: Depósitos bancarios | D14: 72987379.48 | E14: 2454374.51 | F14: 2047855.24 | G14: 73393898.75
A15: 1.1 | B15: 1.1.1.01.02.02. | C15: Depósitos bancarios en el sector público interno | D15: 72987379.48 | E15: 2454374.51 | F15: 2047855.24 | G15: 73393898.75
A16: 1.1 | B16: 1.1.1.01.02.02.1. | C16: Cajas de ahorro en el sector público interno | D16: 0 | E16: 0 | F16: 0 | G16: 0
A17: 1.1 | B17: 1.1.1.01.02.02.1.00000 | C17: Cajas de ahorro en el sector público interno | D17: 0 | E17: 0 | F17: 0 | G17: 0
A18: 1.1 | B18: 1.1.1.01.02.02.2. | C18: Cuentas corrientes en el sector público interno | D18: 26520250.1 | E18: 2454374.51 | F18: 2047855.24 | G18: 26926769.37
A19: 1.1 | B19: 1.1.1.01.02.02.2.21103 | C19: Banco Nacional de Costa Rica | D19: 26520250.1 | E19: 2454374.51 | F19: 2047855.24 | G19: 26926769.37
A20: 1.1 | B20: 1.1.1.01.02.02.3. | C20: Caja Única | D20: 46467129.38 | E20: 0 | F20: 0 | G20: 46467129.38
A21: 1.1 | B21: 1.1.1.01.02.02.3.11206 | C21: Ministerio de Hacienda (MHD) | D21: 46467129.38 | E21: 0 | F21: 0 | G21: 46467129.38
A22: 1.1 | B22: 1.1.3. | C22: Cuentas a cobrar a corto plazo | D22: 448509975.9 | E22: 1537801170 | F22: 1671423139 | G22: 314888007.3
A23: 1.1 | B23: 1.1.3.06. | C23: Transferencias a cobrar a corto plazo | D23: 448509975.9 | E23: 1537801170 | F23: 1671423139 | G23: 314888007.3
A24: 1.1 | B24: 1.1.3.06.02. | C24: Transferencias del sector público interno a cobrar c/p | D24: 448509975.9 | E24: 1537801170 | F24: 1671423139 | G24: 314888007.3
A25: 1.1 | B25: 1.1.3.06.02.01. | C25: Transferencias del Gobierno Central a cobrar c/p | D25: 448509975.9 | E25: 1537801170 | F25: 1671423139 | G25: 314888007.3
A26: 1.1 | B26: 1.1.3.06.02.01.0. | C26: Transferencias del Gobierno Central a cobrar c/p | D26: 448509975.9 | E26: 1537801170 | F26: 1671423139 | G26: 314888007.3
A27: 1.1 | B27: 1.1.3.06.02.01.0.11206 | C27: Ministerio de Hacienda (MHD) | D27: 448509975.9 | E27: 1537801170 | F27: 1671423139 | G27: 314888007.3
A28: 1.1 | B28: 1.1.3.13. | C28: Cuentas por Cobrar Cajas Unicas | D28: 0 | E28: 0 | F28: 0 | G28: 0
A29: 1.1 | B29: 1.1.3.13.01. | C29: Cuentas por Cobrar Cajas Unicas | D29: 0 | E29: 0 | F29: 0 | G29: 0
A30: 1.1 | B30: 1.1.3.13.01.01. | C30: Cuentas por Cobrar Cuenta Presupuestaria | D30: 0 | E30: 0 | F30: 0 | G30: 0
A31: 1.1 | B31: 1.1.3.13.01.01.0. | C31: Cuentas por Cobrar Cuenta Presupuestaria | D31: 0 | E31: 0 | F31: 0 | G31: 0
A32: 1.1 | B32: 1.1.4. | C32: Inventarios | D32: 39577360.88 | E32: 0 | F32: 4648406.77 | G32: 34928954.11
A33: 1.1 | B33: 1.1.4.01. | C33: Materiales y suministros para consumo y prestación de servicios | D33: 39577360.88 | E33: 0 | F33: 4648406.77 | G33: 34928954.11
A34: 1.1 | B34: 1.1.4.01.01. | C34: Productos químicos y conexos | D34: 20025727.56 | E34: 0 | F34: 2230463.54 | G34: 17795264.02
A35: 1.1 | B35: 1.1.4.01.01.01. | C35: Combustibles y lubricantes | D35: 6585199.66 | E35: 0 | F35: 1408636.55 | G35: 5176563.11
A36: 1.1 | B36: 1.1.4.01.01.01.0. | C36: Combustibles y lubricantes | D36: 6585199.66 | E36: 0 | F36: 1408636.55 | G36: 5176563.11
A37: 1.1 | B37: 1.1.4.01.01.01.0.00000 | C37: Combustibles y lubricantes | D37: 6585199.66 | E37: 0 | F37: 1408636.55 | G37: 5176563.11
A38: 1.1 | B38: 1.1.4.01.01.02. | C38: Productos farmacéuticos y medicinales | D38: 453343.24 | E38: 0 | F38: 141470.68 | G38: 311872.56
A39: 1.1 | B39: 1.1.4.01.01.02.0. | C39: Productos farmacéuticos y medicinales | D39: 453343.24 | E39: 0 | F39: 141470.68 | G39: 311872.56
A40: 1.1 | B40: 1.1.4.01.01.02.0.00000 | C40: Productos farmacéuticos y medicinales | D40: 453343.24 | E40: 0 | F40: 141470.68 | G40: 311872.56
A41: 1.1 | B41: 1.1.4.01.01.03. | C41: Productos veterinarios | D41: 0 | E41: 0 | F41: 0 | G41: 0
A42: 1.1 | B42: 1.1.4.01.01.04. | C42: Tintas, pinturas y diluyentes | D42: 12956189.7 | E42: 0 | F42: 665478.59 | G42: 12290711.11
A43: 1.1 | B43: 1.1.4.01.01.04.0. | C43: Tintas, pinturas y diluyentes | D43: 12956189.7 | E43: 0 | F43: 665478.59 | G43: 12290711.11
A44: 1.1 | B44: 1.1.4.01.01.04.0.00000 | C44: Tintas, pinturas y diluyentes | D44: 12956189.7 | E44: 0 | F44: 665478.59 | G44: 12290711.11
A45: 1.1 | B45: 1.1.4.01.01.99. | C45: Otros productos químicos y conexos | D45: 30994.96 | E45: 0 | F45: 14877.72 | G45: 16117.24
A46: 1.1 | B46: 1.1.4.01.01.99.0. | C46: Otros productos químicos y conexos | D46: 30994.96 | E46: 0 | F46: 14877.72 | G46: 16117.24
A47: 1.1 | B47: 1.1.4.01.01.99.0.00000 | C47: Otros productos químicos y conexos | D47: 30994.96 | E47: 0 | F47: 14877.72 | G47: 16117.24
A48: 1.1 | B48: 1.1.4.01.02. | C48: Productos agropecuarios y alimentos | D48: 248109.62 | E48: 0 | F48: 175197.76 | G48: 72911.86
A49: 1.1 | B49: 1.1.4.01.02.02. | C49: Productos agroforestales | D49: 0 | E49: 0 | F49: 0 | G49: 0
A50: 1.1 | B50: 1.1.4.01.02.02.0. | C50: Productos agroforestales | D50: 0 | E50: 0 | F50: 0 | G50: 0
A51: 1.1 | B51: 1.1.4.01.02.02.0.00000 | C51: Productos agroforestales | D51: 0 | E51: 0 | F51: 0 | G51: 0
A52: 1.1 | B52: 1.1.4.01.02.03. | C52: Alimentos y bebidas | D52: 248109.62 | E52: 0 | F52: 175197.76 | G52: 72911.86
A53: 1.1 | B53: 1.1.4.01.02.03.0. | C53: Alimentos y bebidas | D53: 248109.62 | E53: 0 | F53: 175197.76 | G53: 72911.86
A54: 1.1 | B54: 1.1.4.01.02.03.0.00000 | C54: Alimentos y bebidas | D54: 248109.62 | E54: 0 | F54: 175197.76 | G54: 72911.86
A55: 1.1 | B55: 1.1.4.01.02.99. | C55: Otros productos agropecuarios y alimentos | D55: 0 | E55: 0 | F55: 0 | G55: 0
A56: 1.1 | B56: 1.1.4.01.02.99.0. | C56: Otros productos agropecuarios y alimentos | D56: 0 | E56: 0 | F56: 0 | G56: 0
A57: 1.1 | B57: 1.1.4.01.02.99.0.00000 | C57: Otros productos agropecuarios y alimentos | D57: 0 | E57: 0 | F57: 0 | G57: 0
A58: 1.1 | B58: 1.1.4.01.03. | C58: Materiales y productos de uso en la construcción y mantenimiento | D58: 2791124.26 | E58: 0 | F58: 458389.6 | G58: 2332734.66
A59: 1.1 | B59: 1.1.4.01.03.01. | C59: Materiales y productos metálicos | D59: 918790.45 | E59: 0 | F59: 182735 | G59: 736055.45
A60: 1.1 | B60: 1.1.4.01.03.01.0. | C60: Materiales y productos metálicos | D60: 918790.45 | E60: 0 | F60: 182735 | G60: 736055.45
A61: 1.1 | B61: 1.1.4.01.03.01.0.00000 | C61: Materiales y productos metálicos | D61: 918790.45 | E61: 0 | F61: 182735 | G61: 736055.45
A62: 1.1 | B62: 1.1.4.01.03.02. | C62: Materiales y productos minerales y asfálticos | D62: 83904 | E62: 0 | F62: 0 | G62: 83904
A63: 1.1 | B63: 1.1.4.01.03.02.0. | C63: Materiales y productos minerales y asfálticos | D63: 83904 | E63: 0 | F63: 0 | G63: 83904
A64: 1.1 | B64: 1.1.4.01.03.02.0.00000 | C64: Materiales y productos minerales y asfálticos | D64: 83904 | E64: 0 | F64: 0 | G64: 83904
A65: 1.1 | B65: 1.1.4.01.03.03. | C65: Madera y sus derivados | D65: 69204 | E65: 0 | F65: 0 | G65: 69204
A66: 1.1 | B66: 1.1.4.01.03.03.0. | C66: Madera y sus derivados | D66: 69204 | E66: 0 | F66: 0 | G66: 69204
A67: 1.1 | B67: 1.1.4.01.03.03.0.00000 | C67: Madera y sus derivados | D67: 69204 | E67: 0 | F67: 0 | G67: 69204
A68: 1.1 | B68: 1.1.4.01.03.04. | C68: Materiales y productos eléctricos, telefónicos y de cómputo | D68: 1672394.6 | E68: 0 | F68: 275654.6 | G68: 1396740
A69: 1.1 | B69: 1.1.4.01.03.04.0. | C69: Materiales y productos eléctricos, telefónicos y de cómputo | D69: 1672394.6 | E69: 0 | F69: 275654.6 | G69: 1396740
A70: 1.1 | B70: 1.1.4.01.03.04.0.00000 | C70: Materiales y productos eléctricos, telefónicos y de cómputo | D70: 1672394.6 | E70: 0 | F70: 275654.6 | G70: 1396740
A71: 1.1 | B71: 1.1.4.01.03.05. | C71: Materiales y productos de vidrio | D71: 24790.21 | E71: 0 | F71: 0 | G71: 24790.21
A72: 1.1 | B72: 1.1.4.01.03.05.0. | C72: Materiales y productos de vidrio | D72: 24790.21 | E72: 0 | F72: 0 | G72: 24790.21
A73: 1.1 | B73: 1.1.4.01.03.05.0.00000 | C73: Materiales y productos de vidrio | D73: 24790.21 | E73: 0 | F73: 0 | G73: 24790.21
A74: 1.1 | B74: 1.1.4.01.03.06. | C74: Materiales y productos de plástico | D74: 22041 | E74: 0 | F74: 0 | G74: 22041
A75: 1.1 | B75: 1.1.4.01.03.06.0. | C75: Materiales y productos de plástico | D75: 22041 | E75: 0 | F75: 0 | G75: 22041
A76: 1.1 | B76: 1.1.4.01.03.06.0.00000 | C76: Materiales y productos de plástico | D76: 22041 | E76: 0 | F76: 0 | G76: 22041
A77: 1.1 | B77: 1.1.4.01.03.99. | C77: Otros materiales y productos de uso en la construcción y mantenimiento | D77: 0 | E77: 0 | F77: 0 | G77: 0
A78: 1.1 | B78: 1.1.4.01.03.99.0. | C78: Otros materiales y productos de uso en la construcción y mantenimiento | D78: 0 | E78: 0 | F78: 0 | G78: 0
A79: 1.1 | B79: 1.1.4.01.03.99.0.00000 | C79: Otros materiales y productos de uso en la construcción y mantenimiento | D79: 0 | E79: 0 | F79: 0 | G79: 0
A80: 1.1 | B80: 1.1.4.01.04. | C80: Herramientas, repuestos y accesorios | D80: 2931751.49 | E80: 0 | F80: 129032.73 | G80: 2802718.76
A81: 1.1 | B81: 1.1.4.01.04.01. | C81: Herramientas e instrumentos | D81: 661070 | E81: 0 | F81: 0 | G81: 661070
A82: 1.1 | B82: 1.1.4.01.04.01.0. | C82: Herramientas e instrumentos | D82: 661070 | E82: 0 | F82: 0 | G82: 661070
A83: 1.1 | B83: 1.1.4.01.04.01.0.00000 | C83: Herramientas e instrumentos | D83: 661070 | E83: 0 | F83: 0 | G83: 661070
A84: 1.1 | B84: 1.1.4.01.04.02. | C84: Repuestos y accesorios Nuevos | D84: 2270681.49 | E84: 0 | F84: 129032.73 | G84: 2141648.76
A85: 1.1 | B85: 1.1.4.01.04.02.0. | C85: Repuestos y accesorios Nuevos | D85: 2270681.49 | E85: 0 | F85: 129032.73 | G85: 2141648.76
A86: 1.1 | B86: 1.1.4.01.04.02.0.00000 | C86: Repuestos y accesorios Nuevos | D86: 2270681.49 | E86: 0 | F86: 129032.73 | G86: 2141648.76
A87: 1.1 | B87: 1.1.4.01.04.03. | C87: Repuestos y accesorios Usados | D87: 0 | E87: 0 | F87: 0 | G87: 0
A88: 1.1 | B88: 1.1.4.01.99. | C88: Útiles, materiales y suministros diversos | D88: 13580647.95 | E88: 0 | F88: 1655323.14 | G88: 11925324.81
A89: 1.1 | B89: 1.1.4.01.99.01. | C89: Útiles y materiales de oficina y cómputo | D89: 2690102.23 | E89: 0 | F89: 231069.63 | G89: 2459032.6
A90: 1.1 | B90: 1.1.4.01.99.01.0. | C90: Útiles y materiales de oficina y cómputo | D90: 2690102.23 | E90: 0 | F90: 231069.63 | G90: 2459032.6
A91: 1.1 | B91: 1.1.4.01.99.01.0.00000 | C91: Útiles y materiales de oficina y cómputo | D91: 2690102.23 | E91: 0 | F91: 231069.63 | G91: 2459032.6
A92: 1.1 | B92: 1.1.4.01.99.02. | C92: Útiles y materiales médico, hospitalario y de investigación | D92: 428236.15 | E92: 0 | F92: 272629.5 | G92: 155606.65
A93: 1.1 | B93: 1.1.4.01.99.02.0. | C93: Útiles y materiales médico, hospitalario y de investigación | D93: 428236.15 | E93: 0 | F93: 272629.5 | G93: 155606.65
A94: 1.1 | B94: 1.1.4.01.99.02.0.00000 | C94: Útiles y materiales médico, hospitalario y de investigación | D94: 428236.15 | E94: 0 | F94: 272629.5 | G94: 155606.65
A95: 1.1 | B95: 1.1.4.01.99.03. | C95: Productos de papel, cartón e impresos | D95: 5856894.47 | E95: 0 | F95: 828000 | G95: 5028894.47
A96: 1.1 | B96: 1.1.4.01.99.03.0. | C96: Productos de papel, cartón e impresos | D96: 5856894.47 | E96: 0 | F96: 828000 | G96: 5028894.47
A97: 1.1 | B97: 1.1.4.01.99.03.0.00000 | C97: Productos de papel, cartón e impresos | D97: 5856894.47 | E97: 0 | F97: 828000 | G97: 5028894.47
A98: 1.1 | B98: 1.1.4.01.99.04. | C98: Textiles y vestuario | D98: 1477775.8 | E98: 0 | F98: 0 | G98: 1477775.8
A99: 1.1 | B99: 1.1.4.01.99.04.0. | C99: Textiles y vestuario | D99: 1477775.8 | E99: 0 | F99: 0 | G99: 1477775.8
A100: 1.1 | B100: 1.1.4.01.99.04.0.00000 | C100: Textiles y vestuario | D100: 1477775.8 | E100: 0 | F100: 0 | G100: 1477775.8
A101: 1.1 | B101: 1.1.4.01.99.05. | C101: Útiles y materiales de limpieza | D101: 2143494.15 | E101: 0 | F101: 283862.84 | G101: 1859631.31
A102: 1.1 | B102: 1.1.4.01.99.05.0. | C102: Útiles y materiales de limpieza | D102: 2143494.15 | E102: 0 | F102: 283862.84 | G102: 1859631.31
A103: 1.1 | B103: 1.1.4.01.99.05.0.00000 | C103: Útiles y materiales de limpieza | D103: 2143494.15 | E103: 0 | F103: 283862.84 | G103: 1859631.31
A104: 1.1 | B104: 1.1.4.01.99.06. | C104: Útiles y materiales de resguardo y seguridad | D104: 378538.46 | E104: 0 | F104: 7805.21 | G104: 370733.25
A105: 1.1 | B105: 1.1.4.01.99.06.0. | C105: Útiles y materiales de resguardo y seguridad | D105: 378538.46 | E105: 0 | F105: 7805.21 | G105: 370733.25
A106: 1.1 | B106: 1.1.4.01.99.06.0.00000 | C106: Útiles y materiales de resguardo y seguridad | D106: 378538.46 | E106: 0 | F106: 7805.21 | G106: 370733.25
A107: 1.1 | B107: 1.1.4.01.99.07. | C107: Útiles y materiales de cocina y comedor | D107: 261936 | E107: 0 | F107: 1500 | G107: 260436
A108: 1.1 | B108: 1.1.4.01.99.07.0. | C108: Útiles y materiales de cocina y comedor | D108: 261936 | E108: 0 | F108: 1500 | G108: 260436
A109: 1.1 | B109: 1.1.4.01.99.07.0.00000 | C109: Útiles y materiales de cocina y comedor | D109: 261936 | E109: 0 | F109: 1500 | G109: 260436
A110: 1.1 | B110: 1.1.4.01.99.99. | C110: Otros útiles, materiales y suministros diversos | D110: 343670.69 | E110: 0 | F110: 30455.96 | G110: 313214.73
A111: 1.1 | B111: 1.1.4.01.99.99.0. | C111: Otros útiles, materiales y suministros diversos | D111: 343670.69 | E111: 0 | F111: 30455.96 | G111: 313214.73
A112: 1.1 | B112: 1.1.4.01.99.99.0.00000 | C112: Otros útiles, materiales y suministros diversos | D112: 343670.69 | E112: 0 | F112: 30455.96 | G112: 313214.73
A113: 1.1 | B113: 1.1.9. | C113: Otros activos a corto plazo | D113: 1429353.17 | E113: 22496397 | F113: 10126397.67 | G113: 13799352.5
A114: 1.1 | B114: 1.1.9.01. | C114: Gastos a devengar a corto plazo | D114: 1429353.17 | E114: 22496397 | F114: 10126397.67 | G114: 13799352.5
A115: 1.1 | B115: 1.1.9.01.01. | C115: Servicios a devengar c/p | D115: 1429353.17 | E115: 22496397 | F115: 10126397.67 | G115: 13799352.5
A116: 1.1 | B116: 1.1.9.01.01.01. | C116: Primas y gastos de seguros a devengar c/p | D116: 1429353.17 | E116: 22496397 | F116: 10126397.67 | G116: 13799352.5
A117: 1.1 | B117: 1.1.9.01.01.01.0. | C117: Primas y gastos de seguros a devengar c/p | D117: 1429353.17 | E117: 22496397 | F117: 10126397.67 | G117: 13799352.5
A118: 1.1 | B118: 1.1.9.01.01.01.0.00000 | C118: Primas y gastos de seguros a devengar c/p | D118: 1429353.17 | E118: 22496397 | F118: 10126397.67 | G118: 13799352.5
A119: 1.1 | B119: 1.2. | C119: Activo No Corriente | D119: 1971521313 | E119: 19474828.22 | F119: 71937031.78 | G119: 1919059109
A120: 1.1 | B120: 1.2.5. | C120: Bienes no concesionados | D120: 1971521313 | E120: 19474828.22 | F120: 71937031.78 | G120: 1919059109
A121: 1.1 | B121: 1.2.5.01. | C121: Propiedades, planta y equipos explotados | D121: 1917138215 | E121: 19474828.22 | F121: 58905512.07 | G121: 1877707531
A122: 1.1 | B122: 1.2.5.01.01. | C122: Tierras y terrenos | D122: 693661681.7 | E122: 0 | F122: 0 | G122: 693661681.7
A123: 1.1 | B123: 1.2.5.01.01.01. | C123: Terrenos para construcción de edificios | D123: 693661681.7 | E123: 0 | F123: 0 | G123: 693661681.7
A124: 1.1 | B124: 1.2.5.01.01.01.6. | C124: Valores de origen | D124: 235795553.1 | E124: 0 | F124: 0 | G124: 235795553.1
A125: 1.1 | B125: 1.2.5.01.01.01.6.00000 | C125: Valores de origen | D125: 235795553.1 | E125: 0 | F125: 0 | G125: 235795553.1
A126: 1.1 | B126: 1.2.5.01.01.01.7. | C126: Revaluaciones | D126: 457866128.6 | E126: 0 | F126: 0 | G126: 457866128.6
A127: 1.1 | B127: 1.2.5.01.01.01.7.00000 | C127: Revaluaciones | D127: 457866128.6 | E127: 0 | F127: 0 | G127: 457866128.6
A128: 1.1 | B128: 1.2.5.01.01.01.8. | C128: Pérdidas por deterioro * | D128: 0 | E128: 0 | F128: 0 | G128: 0
A129: 1.1 | B129: 1.2.5.01.01.01.8.00000 | C129: Pérdidas por deterioro * | D129: 0 | E129: 0 | F129: 0 | G129: 0
A130: 1.1 | B130: 1.2.5.01.02. | C130: Edificios | D130: 956763753.6 | E130: 0 | F130: 8215083.68 | G130: 948548670
A131: 1.1 | B131: 1.2.5.01.02.01. | C131: Edificios de oficinas y atención al público | D131: 840527016 | E131: 0 | F131: 7335083.68 | G131: 833191932.4
A132: 1.1 | B132: 1.2.5.01.02.01.1. | C132: Valores de origen | D132: 580526370 | E132: 0 | F132: 0 | G132: 580526370
A133: 1.1 | B133: 1.2.5.01.02.01.1.00000 | C133: Valores de origen | D133: 580526370 | E133: 0 | F133: 0 | G133: 580526370
A134: 1.1 | B134: 1.2.5.01.02.01.2. | C134: Revaluaciones | D134: 519736181.9 | E134: 0 | F134: 0 | G134: 519736181.9
A135: 1.1 | B135: 1.2.5.01.02.01.2.00000 | C135: Revaluaciones | D135: 519736181.9 | E135: 0 | F135: 0 | G135: 519736181.9
A136: 1.1 | B136: 1.2.5.01.02.01.3. | C136: Depreciaciones acumuladas * | D136: -259735535.9 | E136: 0 | F136: 7335083.68 | G136: -267070619.6
A137: 1.1 | B137: 1.2.5.01.02.01.3.00000 | C137: Depreciaciones acumuladas * | D137: -259735535.9 | E137: 0 | F137: 7335083.68 | G137: -267070619.6
A138: 1.1 | B138: 1.2.5.01.02.01.4. | C138: Pérdidas por deterioro * | D138: 0 | E138: 0 | F138: 0 | G138: 0
A139: 1.1 | B139: 1.2.5.01.02.01.4.00000 | C139: Pérdidas por deterioro * | D139: 0 | E139: 0 | F139: 0 | G139: 0
A140: 1.1 | B140: 1.2.5.01.02.01.5. | C140: Mejoras | D140: 0 | E140: 0 | F140: 0 | G140: 0
A141: 1.1 | B141: 1.2.5.01.02.01.5.00000 | C141: Mejoras | D141: 0 | E141: 0 | F141: 0 | G141: 0
A142: 1.1 | B142: 1.2.5.01.02.01.6. | C142: Porción terreno: valores de origen | D142: 0 | E142: 0 | F142: 0 | G142: 0
A143: 1.1 | B143: 1.2.5.01.02.01.6.00000 | C143: Porción terreno: valores de origen | D143: 0 | E143: 0 | F143: 0 | G143: 0
A144: 1.1 | B144: 1.2.5.01.02.01.7. | C144: Porción terreno: revaluaciones | D144: 0 | E144: 0 | F144: 0 | G144: 0
A145: 1.1 | B145: 1.2.5.01.02.01.7.00000 | C145: Porción terreno: revaluaciones | D145: 0 | E145: 0 | F145: 0 | G145: 0
A146: 1.1 | B146: 1.2.5.01.02.01.8. | C146: Porción terreno: pérdidas por deterioro * | D146: 0 | E146: 0 | F146: 0 | G146: 0
A147: 1.1 | B147: 1.2.5.01.02.01.8.00000 | C147: Porción terreno: pérdidas por deterioro * | D147: 0 | E147: 0 | F147: 0 | G147: 0
A148: 1.1 | B148: 1.2.5.01.02.04. | C148: Bodegas | D148: 116236737.6 | E148: 0 | F148: 880000 | G148: 115356737.6
A149: 1.1 | B149: 1.2.5.01.02.04.1. | C149: Valores de origen | D149: 106825827.2 | E149: 0 | F149: 0 | G149: 106825827.2
A150: 1.1 | B150: 1.2.5.01.02.04.1.00000 | C150: Valores de origen | D150: 106825827.2 | E150: 0 | F150: 0 | G150: 106825827.2
A151: 1.1 | B151: 1.2.5.01.02.04.2. | C151: Revaluaciones | D151: 25174172.75 | E151: 0 | F151: 0 | G151: 25174172.75
A152: 1.1 | B152: 1.2.5.01.02.04.2.00000 | C152: Revaluaciones | D152: 25174172.75 | E152: 0 | F152: 0 | G152: 25174172.75
A153: 1.1 | B153: 1.2.5.01.02.04.3. | C153: Depreciaciones acumuladas * | D153: -15763262.4 | E153: 0 | F153: 880000 | G153: -16643262.4
A154: 1.1 | B154: 1.2.5.01.02.04.3.00000 | C154: Depreciaciones acumuladas * | D154: -15763262.4 | E154: 0 | F154: 880000 | G154: -16643262.4
A155: 1.1 | B155: 1.2.5.01.02.04.4. | C155: Pérdidas por deterioro * | D155: 0 | E155: 0 | F155: 0 | G155: 0
A156: 1.1 | B156: 1.2.5.01.02.04.4.00000 | C156: Pérdidas por deterioro * | D156: 0 | E156: 0 | F156: 0 | G156: 0
A157: 1.1 | B157: 1.2.5.01.02.04.5. | C157: Mejoras | D157: 0 | E157: 0 | F157: 0 | G157: 0
A158: 1.1 | B158: 1.2.5.01.02.04.5.00000 | C158: Mejoras | D158: 0 | E158: 0 | F158: 0 | G158: 0
A159: 1.1 | B159: 1.2.5.01.02.04.6. | C159: Porción terreno: valores de origen | D159: 0 | E159: 0 | F159: 0 | G159: 0
A160: 1.1 | B160: 1.2.5.01.02.04.6.00000 | C160: Porción terreno: valores de origen | D160: 0 | E160: 0 | F160: 0 | G160: 0
A161: 1.1 | B161: 1.2.5.01.02.04.7. | C161: Porción terreno: revaluaciones | D161: 0 | E161: 0 | F161: 0 | G161: 0
A162: 1.1 | B162: 1.2.5.01.02.04.7.00000 | C162: Porción terreno: revaluaciones | D162: 0 | E162: 0 | F162: 0 | G162: 0
A163: 1.1 | B163: 1.2.5.01.02.04.8. | C163: Porción terreno: pérdidas por deterioro * | D163: 0 | E163: 0 | F163: 0 | G163: 0
A164: 1.1 | B164: 1.2.5.01.02.04.8.00000 | C164: Porción terreno: pérdidas por deterioro * | D164: 0 | E164: 0 | F164: 0 | G164: 0
A165: 1.1 | B165: 1.2.5.01.03. | C165: Maquinaria y equipos para la producción | D165: 18510841.52 | E165: 0 | F165: 0 | G165: 18510841.52
A166: 1.1 | B166: 1.2.5.01.03.03. | C166: Planta eléctrica | D166: 18510841.52 | E166: 0 | F166: 0 | G166: 18510841.52
A167: 1.1 | B167: 1.2.5.01.03.03.1. | C167: Valores de origen | D167: 32181390 | E167: 0 | F167: 0 | G167: 32181390
A168: 1.1 | B168: 1.2.5.01.03.03.1.00000 | C168: Valores de origen | D168: 32181390 | E168: 0 | F168: 0 | G168: 32181390
A169: 1.1 | B169: 1.2.5.01.03.03.2. | C169: Revaluaciones | D169: 0 | E169: 0 | F169: 0 | G169: 0
A170: 1.1 | B170: 1.2.5.01.03.03.2.00000 | C170: Revaluaciones | D170: 0 | E170: 0 | F170: 0 | G170: 0
A171: 1.1 | B171: 1.2.5.01.03.03.3. | C171: Depreciaciones acumuladas * | D171: -30886940.16 | E171: 0 | F171: 0 | G171: -30886940.16
A172: 1.1 | B172: 1.2.5.01.03.03.3.00000 | C172: Depreciaciones acumuladas * | D172: -30886940.16 | E172: 0 | F172: 0 | G172: -30886940.16
A173: 1.1 | B173: 1.2.5.01.03.03.4. | C173: Pérdidas por deterioro * | D173: 0 | E173: 0 | F173: 0 | G173: 0
A174: 1.1 | B174: 1.2.5.01.03.03.4.00000 | C174: Pérdidas por deterioro * | D174: 0 | E174: 0 | F174: 0 | G174: 0
A175: 1.1 | B175: 1.2.5.01.03.03.5. | C175: Mejoras | D175: 17216391.68 | E175: 0 | F175: 0 | G175: 17216391.68
A176: 1.1 | B176: 1.2.5.01.03.03.5.00000 | C176: Mejoras | D176: 17216391.68 | E176: 0 | F176: 0 | G176: 17216391.68
A177: 1.1 | B177: 1.2.5.01.04. | C177: Equipos de transporte, tracción y elevación | D177: 101119861.5 | E177: 0 | F177: 6568680.68 | G177: 94551180.77
A178: 1.1 | B178: 1.2.5.01.04.02. | C178: Vehículos | D178: 101119861.5 | E178: 0 | F178: 6568680.68 | G178: 94551180.77
A179: 1.1 | B179: 1.2.5.01.04.02.1. | C179: Valores de origen | D179: 122248678.5 | E179: 0 | F179: 0 | G179: 122248678.5
A180: 1.1 | B180: 1.2.5.01.04.02.1.00000 | C180: Valores de origen | D180: 122248678.5 | E180: 0 | F180: 0 | G180: 122248678.5
A181: 1.1 | B181: 1.2.5.01.04.02.2. | C181: Revaluaciones | D181: 0 | E181: 0 | F181: 0 | G181: 0
A182: 1.1 | B182: 1.2.5.01.04.02.2.00000 | C182: Revaluaciones | D182: 0 | E182: 0 | F182: 0 | G182: 0
A183: 1.1 | B183: 1.2.5.01.04.02.3. | C183: Depreciaciones acumuladas * | D183: -164666424.3 | E183: 0 | F183: 6568680.68 | G183: -171235105
A184: 1.1 | B184: 1.2.5.01.04.02.3.00000 | C184: Depreciaciones acumuladas * | D184: -164666424.3 | E184: 0 | F184: 6568680.68 | G184: -171235105
A185: 1.1 | B185: 1.2.5.01.04.02.4. | C185: Pérdidas por deterioro * | D185: 0 | E185: 0 | F185: 0 | G185: 0
A186: 1.1 | B186: 1.2.5.01.04.02.4.00000 | C186: Pérdidas por deterioro * | D186: 0 | E186: 0 | F186: 0 | G186: 0
A187: 1.1 | B187: 1.2.5.01.04.02.5. | C187: Mejoras | D187: 143537607.2 | E187: 0 | F187: 0 | G187: 143537607.2
A188: 1.1 | B188: 1.2.5.01.04.02.5.00000 | C188: Mejoras | D188: 143537607.2 | E188: 0 | F188: 0 | G188: 143537607.2
A189: 1.1 | B189: 1.2.5.01.05. | C189: Equipos de comunicación | D189: 8220494.62 | E189: 41585.97 | F189: 473087.57 | G189: 7788993.02
A190: 1.1 | B190: 1.2.5.01.05.02. | C190: Equipos de telefonía | D190: 460074.25 | E190: 41585.97 | F190: 93633.38 | G190: 408026.84
A191: 1.1 | B191: 1.2.5.01.05.02.1. | C191: Valores de origen | D191: 7398933.94 | E191: 0 | F191: 32729 | G191: 7366204.94
A192: 1.1 | B192: 1.2.5.01.05.02.1.00000 | C192: Valores de origen | D192: 7398933.94 | E192: 0 | F192: 32729 | G192: 7366204.94
A193: 1.1 | B193: 1.2.5.01.05.02.2. | C193: Revaluaciones | D193: 0 | E193: 0 | F193: 0 | G193: 0
A194: 1.1 | B194: 1.2.5.01.05.02.2.00000 | C194: Revaluaciones | D194: 0 | E194: 0 | F194: 0 | G194: 0
A195: 1.1 | B195: 1.2.5.01.05.02.3. | C195: Depreciaciones acumuladas * | D195: -7857700.19 | E195: 41585.97 | F195: 60904.38 | G195: -7877018.6
A196: 1.1 | B196: 1.2.5.01.05.02.3.00000 | C196: Depreciaciones acumuladas * | D196: -7857700.19 | E196: 41585.97 | F196: 60904.38 | G196: -7877018.6
A197: 1.1 | B197: 1.2.5.01.05.02.4. | C197: Pérdidas por deterioro * | D197: 0 | E197: 0 | F197: 0 | G197: 0
A198: 1.1 | B198: 1.2.5.01.05.02.4.00000 | C198: Pérdidas por deterioro * | D198: 0 | E198: 0 | F198: 0 | G198: 0
A199: 1.1 | B199: 1.2.5.01.05.02.5. | C199: Mejoras | D199: 918840.5 | E199: 0 | F199: 0 | G199: 918840.5
A200: 1.1 | B200: 1.2.5.01.05.02.5.00000 | C200: Mejoras | D200: 918840.5 | E200: 0 | F200: 0 | G200: 918840.5
A201: 1.1 | B201: 1.2.5.01.05.03. | C201: Equipos de radiocomunicación | D201: 279720.02 | E201: 0 | F201: 13766.6 | G201: 265953.42
A202: 1.1 | B202: 1.2.5.01.05.03.1. | C202: Valores de origen | D202: 1732265 | E202: 0 | F202: 0 | G202: 1732265
A203: 1.1 | B203: 1.2.5.01.05.03.1.00000 | C203: Valores de origen | D203: 1732265 | E203: 0 | F203: 0 | G203: 1732265
A204: 1.1 | B204: 1.2.5.01.05.03.2. | C204: Revaluaciones | D204: 0 | E204: 0 | F204: 0 | G204: 0
A205: 1.1 | B205: 1.2.5.01.05.03.2.00000 | C205: Revaluaciones | D205: 0 | E205: 0 | F205: 0 | G205: 0
A206: 1.1 | B206: 1.2.5.01.05.03.3. | C206: Depreciaciones acumuladas * | D206: -1780544.98 | E206: 0 | F206: 13766.6 | G206: -1794311.58
A207: 1.1 | B207: 1.2.5.01.05.03.3.00000 | C207: Depreciaciones acumuladas * | D207: -1780544.98 | E207: 0 | F207: 13766.6 | G207: -1794311.58
A208: 1.1 | B208: 1.2.5.01.05.03.4. | C208: Pérdidas por deterioro * | D208: 0 | E208: 0 | F208: 0 | G208: 0
A209: 1.1 | B209: 1.2.5.01.05.03.4.00000 | C209: Pérdidas por deterioro * | D209: 0 | E209: 0 | F209: 0 | G209: 0
... 963 more rows

Sheet Notas BS
A1: Notas Estado de Situación Financiera o Balance General Comparativo
A2: ACTIVO
A4: Cuenta | B4: Descripción | C4: Nota | D4: Periodo Actual | E4: Periodo Anterior | F4: Diferencia
F5: %
A6: 1.1.1. | B6: =+AnalisisBS!$B$10 -> Efectivo y equivalentes de efectivo | C6: =+AnalisisBS!C10 -> 03 | D6: =SUMIF(AnalisisBS!$A$10:$A$8000,$A6,AnalisisBS!$D$10:$D$8000) -> 33997.34189 | E6: =SUMIF(AnalisisBS!$A$10:$A$8000,$A6,AnalisisBS!$F$10:$F$8000) -> 73393.89875 | F6: =SUMIF(AnalisisBS!$A$10:$A$8000,$A6,AnalisisBS!$I$10:$I$8000)*100 -> -53.6782451
A8: Cuenta | B8: Descripción | C8: Nota | D8: Periodo Actual | E8: Periodo Anterior | F8: Diferencia
F9: %
A10: 1.1.2. | B10: =+AnalisisBS!$B$13 -> Inversiones a corto plazo | C10: =+AnalisisBS!C13 -> 04 | D10: =SUMIF(AnalisisBS!$A$10:$A$8000,$A10,AnalisisBS!$D$10:$D$8000) -> 0 | E10: =SUMIF(AnalisisBS!$A$10:$A$8000,$A10,AnalisisBS!$F$10:$F$8000) -> 0 | F10: =SUMIF(AnalisisBS!$A$10:$A$8000,$A10,AnalisisBS!$I$10:$I$8000)*100 -> 0
A12: Cuenta | B12: Descripción | C12: Nota | D12: Periodo Actual | E12: Periodo Anterior | F12: Diferencia
F13: %
A14: 1.1.3. | B14: =+AnalisisBS!$B$19 -> Cuentas a cobrar a corto plazo | C14: =+AnalisisBS!C19 -> 05 | D14: =SUMIF(AnalisisBS!$A$10:$A$8000,$A14,AnalisisBS!$D$10:$D$8000) -> 301901.0661 | E14: =SUMIF(AnalisisBS!$A$10:$A$8000,$A14,AnalisisBS!$F$10:$F$8000) -> 314888.0073 | F14: =SUMIF(AnalisisBS!$A$10:$A$8000,$A14,AnalisisBS!$I$10:$I$8000)*100 -> -4.124304781
A16: Cuenta | B16: Descripción | C16: Nota | D16: Periodo Actual | E16: Periodo Anterior | F16: Diferencia
F17: %
A18: 1.1.4. | B18: =+AnalisisBS!$B$35 -> Inventarios | C18: =+AnalisisBS!C35 -> 06 | D18: =SUMIF(AnalisisBS!$A$10:$A$8000,$A18,AnalisisBS!$D$10:$D$8000) -> 21730.42237 | E18: =SUMIF(AnalisisBS!$A$10:$A$8000,$A18,AnalisisBS!$F$10:$F$8000) -> 34928.95411 | F18: =SUMIF(AnalisisBS!$A$10:$A$8000,$A18,AnalisisBS!$I$10:$I$8000)*100 -> -37.78679344
A20: Cuenta | B20: Descripción | C20: Nota | D20: Periodo Actual | E20: Periodo Anterior | F20: Diferencia
F21: %
A22: 1.1.9. | B22: =+AnalisisBS!$B$41 -> Otros activos a corto plazo | C22: =+AnalisisBS!C41 -> 07 | D22: =SUMIF(AnalisisBS!$A$10:$A$8000,$A22,AnalisisBS!$D$10:$D$8000) -> 12855.231 | E22: =SUMIF(AnalisisBS!$A$10:$A$8000,$A22,AnalisisBS!$F$10:$F$8000) -> 13799.3525 | F22: =SUMIF(AnalisisBS!$A$10:$A$8000,$A22,AnalisisBS!$I$10:$I$8000)*100 -> -6.841781163
A24: Cuenta | B24: Descripción | C24: Nota | D24: Periodo Actual | E24: Periodo Anterior | F24: Diferencia
F25: %
A26: 1.2.2. | B26: =+AnalisisBS!$B$48 -> Inversiones a largo plazo | C26: =+AnalisisBS!C48 -> 08 | D26: =SUMIF(AnalisisBS!$A$10:$A$8000,$A26,AnalisisBS!$D$10:$D$8000) -> 0 | E26: =SUMIF(AnalisisBS!$A$10:$A$8000,$A26,AnalisisBS!$F$10:$F$8000) -> 0 | F26: =SUMIF(AnalisisBS!$A$10:$A$8000,$A26,AnalisisBS!$I$10:$I$8000)*100 -> 0
A28: Cuenta | B28: Descripción | C28: Nota | D28: Periodo Actual | E28: Periodo Anterior | F28: Diferencia
F29: %
A30: 1.2.3. | B30: =+AnalisisBS!$B$54 -> Cuentas a cobrar a largo plazo | C30: =+AnalisisBS!C54 -> 09 | D30: =SUMIF(AnalisisBS!$A$10:$A$8000,$A30,AnalisisBS!$D$10:$D$8000) -> 0 | E30: =SUMIF(AnalisisBS!$A$10:$A$8000,$A30,AnalisisBS!$F$10:$F$8000) -> 0 | F30: =SUMIF(AnalisisBS!$A$10:$A$8000,$A30,AnalisisBS!$I$10:$I$8000)*100 -> 0
A32: Cuenta | B32: Descripción | C32: Nota | D32: Periodo Actual | E32: Periodo Anterior | F32: Diferencia
F33: %
A34: 1.2.5. | B34: =+AnalisisBS!$B$62 -> Bienes no concesionados | C34: =+AnalisisBS!C62 -> 10 | D34: =SUMIF(AnalisisBS!$A$10:$A$8000,$A34,AnalisisBS!$D$10:$D$8000) -> 1932435.827 | E34: =SUMIF(AnalisisBS!$A$10:$A$8000,$A34,AnalisisBS!$F$10:$F$8000) -> 1919059.109 | F34: =SUMIF(AnalisisBS!$A$10:$A$8000,$A34,AnalisisBS!$I$10:$I$8000)*100 -> 0.6970456301
A36: Cuenta | B36: Descripción | C36: Nota | D36: Periodo Actual | E36: Periodo Anterior | F36: Diferencia
F37: %
A38: 1.2.5.01. | B38: =+AnalisisBS!$B$63 -> Propiedades, planta y equipos explotados | C38: =+AnalisisBS!C62 -> 10 | D38: =SUMIF(AnalisisBS!$A$10:$A$8000,$A38,AnalisisBS!$D$10:$D$8000) -> 1893608.453 | E38: =SUMIF(AnalisisBS!$A$10:$A$8000,$A38,AnalisisBS!$F$10:$F$8000) -> 1877707.531 | F38: =SUMIF(AnalisisBS!$A$10:$A$8000,$A38,AnalisisBS!$I$10:$I$8000)*100 -> 0.8468263378
A40: Cuenta | B40: Descripción | C40: Nota | D40: Periodo Actual | E40: Periodo Anterior | F40: Diferencia
F41: %
A42: 1.2.5.02. | B42: =+AnalisisBS!$B$64 -> Propiedades de inversión | C42: =+AnalisisBS!C62 -> 10 | D42: =SUMIF(AnalisisBS!$A$10:$A$8000,$A42,AnalisisBS!$D$10:$D$8000) -> 0 | E42: =SUMIF(AnalisisBS!$A$10:$A$8000,$A42,AnalisisBS!$F$10:$F$8000) -> 0 | F42: =SUMIF(AnalisisBS!$A$10:$A$8000,$A42,AnalisisBS!$I$10:$I$8000)*100 -> 0
A44: Cuenta | B44: Descripción | C44: Nota | D44: Periodo Actual | E44: Periodo Anterior | F44: Diferencia
F45: %
A46: 1.2.5.03. | B46: =+AnalisisBS!$B$65 -> Activos biológicos no concesionados | C46: =+AnalisisBS!C62 -> 10 | D46: =SUMIF(AnalisisBS!$A$10:$A$8000,$A46,AnalisisBS!$D$10:$D$8000) -> 0 | E46: =SUMIF(AnalisisBS!$A$10:$A$8000,$A46,AnalisisBS!$F$10:$F$8000) -> 0 | F46: =SUMIF(AnalisisBS!$A$10:$A$8000,$A46,AnalisisBS!$I$10:$I$8000)*100 -> 0
A48: Cuenta | B48: Descripción | C48: Nota | D48: Periodo Actual | E48: Periodo Anterior | F48: Diferencia
F49: %
A50: 1.2.5.04. | B50: =+AnalisisBS!$B$66 -> Bienes de infraestructura y de beneficio y uso público en servicio | C50: =+AnalisisBS!C62 -> 10 | D50: =SUMIF(AnalisisBS!$A$10:$A$8000,$A50,AnalisisBS!$D$10:$D$8000) -> 0 | E50: =SUMIF(AnalisisBS!$A$10:$A$8000,$A50,AnalisisBS!$F$10:$F$8000) -> 0 | F50: =SUMIF(AnalisisBS!$A$10:$A$8000,$A50,AnalisisBS!$I$10:$I$8000)*100 -> 0
A52: Cuenta | B52: Descripción | C52: Nota | D52: Periodo Actual | E52: Periodo Anterior | F52: Diferencia
F53: %
A54: 1.2.5.05. | B54: =+AnalisisBS!$B$67 -> Bienes históricos y culturales | C54: =+AnalisisBS!C62 -> 10 | D54: =SUMIF(AnalisisBS!$A$10:$A$8000,$A54,AnalisisBS!$D$10:$D$8000) -> 0 | E54: =SUMIF(AnalisisBS!$A$10:$A$8000,$A54,AnalisisBS!$F$10:$F$8000) -> 0 | F54: =SUMIF(AnalisisBS!$A$10:$A$8000,$A54,AnalisisBS!$I$10:$I$8000)*100 -> 0
A56: Cuenta | B56: Descripción | C56: Nota | D56: Periodo Actual | E56: Periodo Anterior | F56: Diferencia
F57: %
A58: 1.2.5.06. | B58: =+AnalisisBS!$B$68 -> Recursos naturales en explotación | C58: =+AnalisisBS!C62 -> 10 | D58: =SUMIF(AnalisisBS!$A$10:$A$8000,$A58,AnalisisBS!$D$10:$D$8000) -> 0 | E58: =SUMIF(AnalisisBS!$A$10:$A$8000,$A58,AnalisisBS!$F$10:$F$8000) -> 0 | F58: =SUMIF(AnalisisBS!$A$10:$A$8000,$A58,AnalisisBS!$I$10:$I$8000)*100 -> 0
A60: Cuenta | B60: Descripción | C60: Nota | D60: Periodo Actual | E60: Periodo Anterior | F60: Diferencia
F61: %
A62: 1.2.5.07. | B62: =+AnalisisBS!$B$69 -> Recursos naturales en conservación | C62: =+AnalisisBS!C62 -> 10 | D62: =SUMIF(AnalisisBS!$A$10:$A$8000,$A62,AnalisisBS!$D$10:$D$8000) -> 0 | E62: =SUMIF(AnalisisBS!$A$10:$A$8000,$A62,AnalisisBS!$F$10:$F$8000) -> 0 | F62: =SUMIF(AnalisisBS!$A$10:$A$8000,$A62,AnalisisBS!$I$10:$I$8000)*100 -> 0
A64: Cuenta | B64: Descripción | C64: Nota | D64: Periodo Actual | E64: Periodo Anterior | F64: Diferencia
F65: %
A66: 1.2.5.08. | B66: =+AnalisisBS!$B$70 -> Bienes intangibles no concesionados | C66: =+AnalisisBS!C62 -> 10 | D66: =SUMIF(AnalisisBS!$A$10:$A$8000,$A66,AnalisisBS!$D$10:$D$8000) -> 38827.37375 | E66: =SUMIF(AnalisisBS!$A$10:$A$8000,$A66,AnalisisBS!$F$10:$F$8000) -> 41351.57801 | F66: =SUMIF(AnalisisBS!$A$10:$A$8000,$A66,AnalisisBS!$I$10:$I$8000)*100 -> -6.104251353
A68: Cuenta | B68: Descripción | C68: Nota | D68: Periodo Actual | E68: Periodo Anterior | F68: Diferencia
F69: %
A70: 1.2.5.99. | B70: =+AnalisisBS!$B$71 -> Bienes no concesionados en proceso de producción | C70: =+AnalisisBS!C62 -> 10 | D70: =SUMIF(AnalisisBS!$A$10:$A$8000,$A70,AnalisisBS!$D$10:$D$8000) -> 0 | E70: =SUMIF(AnalisisBS!$A$10:$A$8000,$A70,AnalisisBS!$F$10:$F$8000) -> 0 | F70: =SUMIF(AnalisisBS!$A$10:$A$8000,$A70,AnalisisBS!$I$10:$I$8000)*100 -> 0
A72: Cuenta | B72: Descripción | C72: Nota | D72: Periodo Actual | E72: Periodo Anterior | F72: Diferencia
F73: %
A74: 1.2.6. | B74: =+AnalisisBS!$B$72 -> Bienes concesionados | C74: =+AnalisisBS!C72 -> 11 | D74: =SUMIF(AnalisisBS!$A$10:$A$8000,$A74,AnalisisBS!$D$10:$D$8000) -> 0 | E74: =SUMIF(AnalisisBS!$A$10:$A$8000,$A74,AnalisisBS!$F$10:$F$8000) -> 0 | F74: =SUMIF(AnalisisBS!$A$10:$A$8000,$A74,AnalisisBS!$I$10:$I$8000)*100 -> 0
A76: Cuenta | B76: Descripción | C76: Nota | D76: Periodo Actual | E76: Periodo Anterior | F76: Diferencia
F77: %
A78: 1.2.6.01. | B78: =+AnalisisBS!$B$73 -> Propiedades, planta y equipos concesionados | C78: =+AnalisisBS!C72 -> 11 | D78: =SUMIF(AnalisisBS!$A$10:$A$8000,$A78,AnalisisBS!$D$10:$D$8000) -> 0 | E78: =SUMIF(AnalisisBS!$A$10:$A$8000,$A78,AnalisisBS!$F$10:$F$8000) -> 0 | F78: =SUMIF(AnalisisBS!$A$10:$A$8000,$A78,AnalisisBS!$I$10:$I$8000)*100 -> 0
A80: Cuenta | B80: Descripción | C80: Nota | D80: Periodo Actual | E80: Periodo Anterior | F80: Diferencia
F81: %
A82: 1.2.6.03. | B82: =+AnalisisBS!$B$74 -> Activos biológicos concesionados | C82: =+AnalisisBS!C72 -> 11 | D82: =SUMIF(AnalisisBS!$A$10:$A$8000,$A82,AnalisisBS!$D$10:$D$8000) -> 0 | E82: =SUMIF(AnalisisBS!$A$10:$A$8000,$A82,AnalisisBS!$F$10:$F$8000) -> 0 | F82: =SUMIF(AnalisisBS!$A$10:$A$8000,$A82,AnalisisBS!$I$10:$I$8000)*100 -> 0
A84: Cuenta | B84: Descripción | C84: Nota | D84: Periodo Actual | E84: Periodo Anterior | F84: Diferencia
F85: %
A86: 1.2.6.04. | B86: =+AnalisisBS!$B$75 -> Bienes de infraestructura y de beneficio y uso público concesionados | C86: =+AnalisisBS!C72 -> 11 | D86: =SUMIF(AnalisisBS!$A$10:$A$8000,$A86,AnalisisBS!$D$10:$D$8000) -> 0 | E86: =SUMIF(AnalisisBS!$A$10:$A$8000,$A86,AnalisisBS!$F$10:$F$8000) -> 0 | F86: =SUMIF(AnalisisBS!$A$10:$A$8000,$A86,AnalisisBS!$I$10:$I$8000)*100 -> 0
A88: Cuenta | B88: Descripción | C88: Nota | D88: Periodo Actual | E88: Periodo Anterior | F88: Diferencia
F89: %
A90: 1.2.6.06. | B90: =+AnalisisBS!$B$76 -> Recursos naturales concesionados | C90: =+AnalisisBS!C72 -> 11 | D90: =SUMIF(AnalisisBS!$A$10:$A$8000,$A90,AnalisisBS!$D$10:$D$8000) -> 0 | E90: =SUMIF(AnalisisBS!$A$10:$A$8000,$A90,AnalisisBS!$F$10:$F$8000) -> 0 | F90: =SUMIF(AnalisisBS!$A$10:$A$8000,$A90,AnalisisBS!$I$10:$I$8000)*100 -> 0
A92: Cuenta | B92: Descripción | C92: Nota | D92: Periodo Actual | E92: Periodo Anterior | F92: Diferencia
F93: %
A94: 1.2.6.08. | B94: =+AnalisisBS!$B$77 -> Bienes intangibles concesionados | C94: =+AnalisisBS!C72 -> 11 | D94: =SUMIF(AnalisisBS!$A$10:$A$8000,$A94,AnalisisBS!$D$10:$D$8000) -> 0 | E94: =SUMIF(AnalisisBS!$A$10:$A$8000,$A94,AnalisisBS!$F$10:$F$8000) -> 0 | F94: =SUMIF(AnalisisBS!$A$10:$A$8000,$A94,AnalisisBS!$I$10:$I$8000)*100 -> 0
A96: Cuenta | B96: Descripción | C96: Nota | D96: Periodo Actual | E96: Periodo Anterior | F96: Diferencia
F97: %
A98: 1.2.6.99. | B98: =+AnalisisBS!$B$78 -> Bienes concesionados en proceso de producción | C98: =+AnalisisBS!C72 -> 11 | D98: =SUMIF(AnalisisBS!$A$10:$A$8000,$A98,AnalisisBS!$D$10:$D$8000) -> 0 | E98: =SUMIF(AnalisisBS!$A$10:$A$8000,$A98,AnalisisBS!$F$10:$F$8000) -> 0 | F98: =SUMIF(AnalisisBS!$A$10:$A$8000,$A98,AnalisisBS!$I$10:$I$8000)*100 -> 0
A100: Cuenta | B100: Descripción | C100: Nota | D100: Periodo Actual | E100: Periodo Anterior | F100: Diferencia
F101: %
A102: 1.2.7. | B102: =+AnalisisBS!$B$79 -> Inversiones patrimoniales - Método de participación | C102: =+AnalisisBS!C79 -> 12 | D102: =SUMIF(AnalisisBS!$A$10:$A$8000,$A102,AnalisisBS!$D$10:$D$8000) -> 0 | E102: =SUMIF(AnalisisBS!$A$10:$A$8000,$A102,AnalisisBS!$F$10:$F$8000) -> 0 | F102: =SUMIF(AnalisisBS!$A$10:$A$8000,$A102,AnalisisBS!$I$10:$I$8000)*100 -> 0
A104: Cuenta | B104: Descripción | C104: Nota | D104: Periodo Actual | E104: Periodo Anterior | F104: Diferencia
F105: %
A106: 1.2.9. | B106: =+AnalisisBS!$B$84 -> Otros activos a largo plazo | C106: =+AnalisisBS!C84 -> 13 | D106: =SUMIF(AnalisisBS!$A$10:$A$8000,$A106,AnalisisBS!$D$10:$D$8000) -> 0 | E106: =SUMIF(AnalisisBS!$A$10:$A$8000,$A106,AnalisisBS!$F$10:$F$8000) -> 0 | F106: =SUMIF(AnalisisBS!$A$10:$A$8000,$A106,AnalisisBS!$I$10:$I$8000)*100 -> 0
A108: Cuenta | B108: Descripción | C108: Nota | D108: Periodo Actual | E108: Periodo Anterior | F108: Diferencia
F109: %
A110: 1.2.9.01. | B110: =+AnalisisBS!B85 -> Gastos a devengar a largo plazo | C110: =+AnalisisBS!C84 -> 13 | D110: =SUMIF(AnalisisBS!$A$10:$A$8000,$A110,AnalisisBS!$D$10:$D$8000) -> 0 | E110: =SUMIF(AnalisisBS!$A$10:$A$8000,$A110,AnalisisBS!$F$10:$F$8000) -> 0 | F110: =SUMIF(AnalisisBS!$A$10:$A$8000,$A110,AnalisisBS!$I$10:$I$8000)*100 -> 0
A113: PASIVO
A115: Cuenta | B115: Descripción | C115: Nota | D115: Periodo Actual | E115: Periodo Anterior | F115: Diferencia
F116: %
A117: 2.1.1. | B117: =+AnalisisBS!$B$93 -> Deudas a corto plazo | C117: =+AnalisisBS!C93 -> 14 | D117: =SUMIF(AnalisisBS!$A$10:$A$8000,$A117,AnalisisBS!$D$10:$D$8000) -> 237867.3688 | E117: =SUMIF(AnalisisBS!$A$10:$A$8000,$A117,AnalisisBS!$F$10:$F$8000) -> 117096.2314 | F117: =SUMIF(AnalisisBS!$A$10:$A$8000,$A117,AnalisisBS!$I$10:$I$8000)*100 -> 103.1383641
A119: Cuenta | B119: Descripción | C119: Nota | D119: Periodo Actual | E119: Periodo Anterior | F119: Diferencia
F120: %
A121: 2.1.2. | B121: =+AnalisisBS!$B$104 -> Endeudamiento público a corto plazo | C121: =+AnalisisBS!C104 -> 15 | D121: =SUMIF(AnalisisBS!$A$10:$A$8000,$A121,AnalisisBS!$D$10:$D$8000) -> 0 | E121: =SUMIF(AnalisisBS!$A$10:$A$8000,$A121,AnalisisBS!$F$10:$F$8000) -> 0 | F121: =SUMIF(AnalisisBS!$A$10:$A$8000,$A121,AnalisisBS!$I$10:$I$8000)*100 -> 0
A123: Cuenta | B123: Descripción | C123: Nota | D123: Periodo Actual | E123: Periodo Anterior | F123: Diferencia
F124: %
A125: 2.1.3. | B125: =+AnalisisBS!$B$110 -> Fondos de terceros y en garantía | C125: =+AnalisisBS!C110 -> 16 | D125: =SUMIF(AnalisisBS!$A$10:$A$8000,$A125,AnalisisBS!$D$10:$D$8000) -> 6698.66432 | E125: =SUMIF(AnalisisBS!$A$10:$A$8000,$A125,AnalisisBS!$F$10:$F$8000) -> 6439.48679 | F125: =SUMIF(AnalisisBS!$A$10:$A$8000,$A125,AnalisisBS!$I$10:$I$8000)*100 -> 4.024816549
A127: Cuenta | B127: Descripción | C127: Nota | D127: Periodo Actual | E127: Periodo Anterior | F127: Diferencia
F128: %
A129: 2.1.3.03. | B129: =+AnalisisBS!B113 -> Depósitos en garantía | C129: =+AnalisisBS!C110 -> 16 | D129: =SUMIF(AnalisisBS!$A$10:$A$8000,$A129,AnalisisBS!$D$10:$D$8000) -> 6698.66432 | E129: =SUMIF(AnalisisBS!$A$10:$A$8000,$A129,AnalisisBS!$F$10:$F$8000) -> 6439.48679 | F129: =SUMIF(AnalisisBS!$A$10:$A$8000,$A129,AnalisisBS!$I$10:$I$8000)*100 -> 4.024816549
A131: Cuenta | B131: Descripción | C131: Nota | D131: Periodo Actual | E131: Periodo Anterior | F131: Diferencia
F132: %
A133: 2.1.4. | B133: =+AnalisisBS!$B$115 -> Provisiones y reservas técnicas a corto plazo | C133: =+AnalisisBS!C115 -> 17 | D133: =SUMIF(AnalisisBS!$A$10:$A$8000,$A133,AnalisisBS!$D$10:$D$8000) -> 217961.7165 | E133: =SUMIF(AnalisisBS!$A$10:$A$8000,$A133,AnalisisBS!$F$10:$F$8000) -> 231709.6005 | F133: =SUMIF(AnalisisBS!$A$10:$A$8000,$A133,AnalisisBS!$I$10:$I$8000)*100 -> -5.933238821
A135: Cuenta | B135: Descripción | C135: Nota | D135: Periodo Actual | E135: Periodo Anterior | F135: Diferencia
F136: %
A137: 2.1.4.01. | B137: =+AnalisisBS!$B$116 -> Provisiones a corto plazo | C137: =+AnalisisBS!C115 -> 17 | D137: =SUMIF(AnalisisER!$A$10:$A$8000,$A137,AnalisisER!$D$10:$D$8000) -> 0 | E137: =SUMIF(AnalisisER!$A$10:$A$8000,$A137,AnalisisER!$F$10:$F$8000) -> 0 | F137: =SUMIF(AnalisisER!$A$10:$A$8000,$A137,AnalisisER!$I$10:$I$8000)*100 -> 0
A139: Cuenta | B139: Descripción | C139: Nota | D139: Periodo Actual | E139: Periodo Anterior | F139: Diferencia
F140: %
A141: 2.1.9. | B141: =+AnalisisBS!$B$118 -> Otros pasivos a corto plazo | C141: =+AnalisisBS!C118 -> 18 | D141: =SUMIF(AnalisisBS!$A$10:$A$8000,$A141,AnalisisBS!$D$10:$D$8000) -> 0 | E141: =SUMIF(AnalisisBS!$A$10:$A$8000,$A141,AnalisisBS!$F$10:$F$8000) -> 0 | F141: =SUMIF(AnalisisBS!$A$10:$A$8000,$A141,AnalisisBS!$I$10:$I$8000)*100 -> 0
A143: Cuenta | B143: Descripción | C143: Nota | D143: Periodo Actual | E143: Periodo Anterior | F143: Diferencia
F144: %
A145: 2.1.9.01. | B145: =+AnalisisBS!B119 -> Ingresos a devengar a corto plazo | C145: =+AnalisisBS!C118 -> 18 | D145: =SUMIF(AnalisisBS!$A$10:$A$8000,$A145,AnalisisBS!$D$10:$D$8000) -> 0 | E145: =SUMIF(AnalisisBS!$A$10:$A$8000,$A145,AnalisisBS!$F$10:$F$8000) -> 0 | F145: =SUMIF(AnalisisBS!$A$10:$A$8000,$A145,AnalisisBS!$I$10:$I$8000)*100 -> 0
A147: Cuenta | B147: Descripción | C147: Nota | D147: Periodo Actual | E147: Periodo Anterior | F147: Diferencia
F148: %
A149: 2.2.1. | B149: =+AnalisisBS!$B$125 -> Deudas a largo plazo | C149: =+AnalisisBS!C125 -> 19 | D149: =SUMIF(AnalisisBS!$A$10:$A$8000,$A149,AnalisisBS!$D$10:$D$8000) -> 0 | E149: =SUMIF(AnalisisBS!$A$10:$A$8000,$A149,AnalisisBS!$F$10:$F$8000) -> 0 | F149: =SUMIF(AnalisisBS!$A$10:$A$8000,$A149,AnalisisBS!$I$10:$I$8000)*100 -> 0
A151: Cuenta | B151: Descripción | C151: Nota | D151: Periodo Actual | E151: Periodo Anterior | F151: Diferencia
F152: %
A153: 2.2.2. | B153: =+AnalisisBS!$B$133 -> Endeudamiento público a largo plazo | C153: =+AnalisisBS!C133 -> 20 | D153: =SUMIF(AnalisisBS!$A$10:$A$8000,$A153,AnalisisBS!$D$10:$D$8000) -> 0 | E153: =SUMIF(AnalisisBS!$A$10:$A$8000,$A153,AnalisisBS!$F$10:$F$8000) -> 0 | F153: =SUMIF(AnalisisBS!$A$10:$A$8000,$A153,AnalisisBS!$I$10:$I$8000)*100 -> 0
A155: Cuenta | B155: Descripción | C155: Nota | D155: Periodo Actual | E155: Periodo Anterior | F155: Diferencia
F156: %
A157: 2.2.3. | B157: =+AnalisisBS!$B$137 -> Fondos de terceros y en garantía | C157: =+AnalisisBS!C137 -> 21 | D157: =SUMIF(AnalisisBS!$A$10:$A$8000,$A157,AnalisisBS!$D$10:$D$8000) -> 0 | E157: =SUMIF(AnalisisBS!$A$10:$A$8000,$A157,AnalisisBS!$F$10:$F$8000) -> 0 | F157: =SUMIF(AnalisisBS!$A$10:$A$8000,$A157,AnalisisBS!$I$10:$I$8000)*100 -> 0
A159: Cuenta | B159: Descripción | C159: Nota | D159: Periodo Actual | E159: Periodo Anterior | F159: Diferencia
F160: %
A161: 2.2.4. | B161: =+AnalisisBS!$B$140 -> Provisiones y reservas técnicas a largo plazo | C161: =+AnalisisBS!C140 -> 22 | D161: =SUMIF(AnalisisBS!$A$10:$A$8000,$A161,AnalisisBS!$D$10:$D$8000) -> 0 | E161: =SUMIF(AnalisisBS!$A$10:$A$8000,$A161,AnalisisBS!$F$10:$F$8000) -> 0 | F161: =SUMIF(AnalisisBS!$A$10:$A$8000,$A161,AnalisisBS!$I$10:$I$8000)*100 -> 0
A163: Cuenta | B163: Descripción | C163: Nota | D163: Periodo Actual | E163: Periodo Anterior | F163: Diferencia
F164: %
A165: 2.2.4.01. | B165: =+AnalisisBS!B141 -> Provisiones a largo plazo | C165: =+AnalisisBS!C140 -> 22 | D165: =SUMIF(AnalisisBS!$A$10:$A$8000,$A165,AnalisisBS!$D$10:$D$8000) -> 0 | E165: =SUMIF(AnalisisBS!$A$10:$A$8000,$A165,AnalisisBS!$F$10:$F$8000) -> 0 | F165: =SUMIF(AnalisisBS!$A$10:$A$8000,$A165,AnalisisBS!$I$10:$I$8000)*100 -> 0
A167: Cuenta | B167: Descripción | C167: Nota | D167: Periodo Actual | E167: Periodo Anterior | F167: Diferencia
F168: %
A169: 2.2.9. | B169: =+AnalisisBS!$B$143 -> Otros pasivos a largo plazo | C169: =+AnalisisBS!C143 -> 23 | D169: =SUMIF(AnalisisBS!$A$10:$A$8000,$A169,AnalisisBS!$D$10:$D$8000) -> 0 | E169: =SUMIF(AnalisisBS!$A$10:$A$8000,$A169,AnalisisBS!$F$10:$F$8000) -> 0 | F169: =SUMIF(AnalisisBS!$A$10:$A$8000,$A169,AnalisisBS!$I$10:$I$8000)*100 -> 0
A171: Cuenta | B171: Descripción | C171: Nota | D171: Periodo Actual | E171: Periodo Anterior | F171: Diferencia
F172: %
A173: 2.2.9.01. | B173: =+AnalisisBS!B144 -> Ingresos a devengar a largo plazo | C173: =+AnalisisBS!C143 -> 23 | D173: =SUMIF(AnalisisBS!$A$10:$A$8000,$A173,AnalisisBS!$D$10:$D$8000) -> 0 | E173: =SUMIF(AnalisisBS!$A$10:$A$8000,$A173,AnalisisBS!$F$10:$F$8000) -> 0 | F173: =SUMIF(AnalisisBS!$A$10:$A$8000,$A173,AnalisisBS!$I$10:$I$8000)*100 -> 0
A176: PATRIMONIO
A178: Cuenta | B178: Descripción | C178: Nota | D178: Periodo Actual | E178: Periodo Anterior | F178: Diferencia
F179: %
A180: 3.1.1. | B180: =+AnalisisBS!$B$152 -> Capital | C180: =+AnalisisBS!C152 -> 24 | D180: =SUMIF(AnalisisBS!$A$10:$A$8000,$A180,AnalisisBS!$D$10:$D$8000) -> 2008118.48 | E180: =SUMIF(AnalisisBS!$A$10:$A$8000,$A180,AnalisisBS!$F$10:$F$8000) -> 2008118.48 | F180: =SUMIF(AnalisisBS!$A$10:$A$8000,$A180,AnalisisBS!$I$10:$I$8000)*100 -> 0
A182: Cuenta | B182: Descripción | C182: Nota | D182: Periodo Actual | E182: Periodo Anterior | F182: Diferencia
F183: %
A184: 3.1.1.01. | B184: =+AnalisisBS!$B$153 -> Capital inicial | C184: =+AnalisisBS!C152 -> 24 | D184: =SUMIF(AnalisisBS!$A$10:$A$8000,$A184,AnalisisBS!$D$10:$D$8000) -> 139732.6 | E184: =SUMIF(AnalisisBS!$A$10:$A$8000,$A184,AnalisisBS!$F$10:$F$8000) -> 139732.6 | F184: =SUMIF(AnalisisBS!$A$10:$A$8000,$A184,AnalisisBS!$I$10:$I$8000)*100 -> 0
A186: Cuenta | B186: Descripción | C186: Nota | D186: Periodo Actual | E186: Periodo Anterior | F186: Diferencia
F187: %
A188: 3.1.1.02. | B188: =+AnalisisBS!$B$154 -> Incorporaciones al capital | C188: =+AnalisisBS!C152 -> 24 | D188: =SUMIF(AnalisisBS!$A$10:$A$8000,$A188,AnalisisBS!$D$10:$D$8000) -> 1868385.88 | E188: =SUMIF(AnalisisBS!$A$10:$A$8000,$A188,AnalisisBS!$F$10:$F$8000) -> 1868385.88 | F188: =SUMIF(AnalisisBS!$A$10:$A$8000,$A188,AnalisisBS!$I$10:$I$8000)*100 -> 0
A190: Cuenta | B190: Descripción | C190: Nota | D190: Periodo Actual | E190: Periodo Anterior | F190: Diferencia
F191: %
A192: 3.1.2. | B192: =+AnalisisBS!$B$155 -> Transferencias de capital | C192: =+AnalisisBS!C155 -> 25 | D192: =SUMIF(AnalisisBS!$A$10:$A$8000,$A192,AnalisisBS!$D$10:$D$8000) -> 0 | E192: =SUMIF(AnalisisBS!$A$10:$A$8000,$A192,AnalisisBS!$F$10:$F$8000) -> 0 | F192: =SUMIF(AnalisisBS!$A$10:$A$8000,$A192,AnalisisBS!$I$10:$I$8000)*100 -> 0
A194: Cuenta | B194: Descripción | C194: Nota | D194: Periodo Actual | E194: Periodo Anterior | F194: Diferencia
F195: %
A196: 3.1.3. | B196: =+AnalisisBS!$B$158 -> Reservas | C196: =+AnalisisBS!C158 -> 26 | D196: =SUMIF(AnalisisBS!$A$10:$A$8000,$A196,AnalisisBS!$D$10:$D$8000) -> 476093.3 | E196: =SUMIF(AnalisisBS!$A$10:$A$8000,$A196,AnalisisBS!$F$10:$F$8000) -> 368662.0428 | F196: =SUMIF(AnalisisBS!$A$10:$A$8000,$A196,AnalisisBS!$I$10:$I$8000)*100 -> 29.14085118
A198: Cuenta | B198: Descripción | C198: Nota | D198: Periodo Actual | E198: Periodo Anterior | F198: Diferencia
F199: %
A200: 3.1.4. | B200: =+AnalisisBS!$B$161 -> Variaciones no asignables a reservas | C200: =+AnalisisBS!C161 -> 27 | D200: =SUMIF(AnalisisBS!$A$10:$A$8000,$A200,AnalisisBS!$D$10:$D$8000) -> 0 | E200: =SUMIF(AnalisisBS!$A$10:$A$8000,$A200,AnalisisBS!$F$10:$F$8000) -> 0 | F200: =SUMIF(AnalisisBS!$A$10:$A$8000,$A200,AnalisisBS!$I$10:$I$8000)*100 -> 0
A202: Cuenta | B202: Descripción | C202: Nota | D202: Periodo Actual | E202: Periodo Anterior | F202: Diferencia
F203: %
A204: 3.1.5. | B204: =+AnalisisBS!$B$166 -> Resultados acumulados | C204: =+AnalisisBS!C166 -> 28 | D204: =SUMIF(AnalisisBS!$A$10:$A$8000,$A204,AnalisisBS!$D$10:$D$8000) -> -643819.6415 | E204: =SUMIF(AnalisisBS!$A$10:$A$8000,$A204,AnalisisBS!$F$10:$F$8000) -> -375956.5197 | F204: =SUMIF(AnalisisBS!$A$10:$A$8000,$A204,AnalisisBS!$I$10:$I$8000)*100 -> 71.24843108
A206: Cuenta | B206: Descripción | C206: Nota | D206: Periodo Actual | E206: Periodo Anterior | F206: Diferencia
F207: %
A208: 3.1.5.01. | B208: =+AnalisisBS!$B$167 -> Resultados acumulados de ejercicios anteriores | C208: =+AnalisisBS!C166 -> 28 | D208: =SUMIF(AnalisisBS!$A$10:$A$8000,$A208,AnalisisBS!$D$10:$D$8000) -> -545696.8466 | E208: =SUMIF(AnalisisBS!$A$10:$A$8000,$A208,AnalisisBS!$F$10:$F$8000) -> -298827.6806 | F208: =SUMIF(AnalisisBS!$A$10:$A$8000,$A208,AnalisisBS!$I$10:$I$8000)*100 -> 82.61254962
A210: Cuenta | B210: Descripción | C210: Nota | D210: Periodo Actual | E210: Periodo Anterior | F210: Diferencia
F211: %
A212: 3.1.5.02. | B212: =+AnalisisBS!$B$168 -> Resultado del ejercicio | C212: =+AnalisisBS!C166 -> 28 | D212: =SUMIF(AnalisisBS!$A$10:$A$8000,$A212,AnalisisBS!$D$10:$D$8000) -> -98122.7949 | E212: =SUMIF(AnalisisBS!$A$10:$A$8000,$A212,AnalisisBS!$F$10:$F$8000) -> -77128.83903 | F212: =SUMIF(AnalisisBS!$A$10:$A$8000,$A212,AnalisisBS!$I$10:$I$8000)*100 -> 27.21933343
A214: Cuenta | B214: Descripción | C214: Nota | D214: Periodo Actual | E214: Periodo Anterior | F214: Diferencia
F215: %
A216: 3.2.1. | B216: =+AnalisisBS!$B$170 -> Intereses minoritarios - Participaciones en el patrimonio de entidades controladas | C216: =+AnalisisBS!C170 -> 29 | D216: =SUMIF(AnalisisBS!$A$10:$A$8000,$A216,AnalisisBS!$D$10:$D$8000) -> 0 | E216: =SUMIF(AnalisisBS!$A$10:$A$8000,$A216,AnalisisBS!$F$10:$F$8000) -> 0 | F216: =SUMIF(AnalisisBS!$A$10:$A$8000,$A216,AnalisisBS!$I$10:$I$8000)*100 -> 0
A218: Cuenta | B218: Descripción | C218: Nota | D218: Periodo Actual | E218: Periodo Anterior | F218: Diferencia
F219: %
A220: 3.2.2. | B220: =+AnalisisBS!$B$173 -> Intereses minoritarios - Evolución | C220: =+AnalisisBS!C173 -> 30 | D220: =SUMIF(AnalisisBS!$A$10:$A$8000,$A220,AnalisisBS!$D$10:$D$8000) -> 0 | E220: =SUMIF(AnalisisBS!$A$10:$A$8000,$A220,AnalisisBS!$F$10:$F$8000) -> 0 | F220: =SUMIF(AnalisisBS!$A$10:$A$8000,$A220,AnalisisBS!$I$10:$I$8000)*100 -> 0

Sheet Notas ER
A1: Notas Estado de Rendimiento Financiero Comparativo
A2: INGRESOS
A5: Cuenta | B5: Descripción | C5: Nota | D5: Periodo Actual | E5: Periodo Anterior | F5: Diferencia
F6: %
A7: 4.1.1. | B7: =+AnalisisER!$B$10 -> Impuestos sobre los ingresos, las utilidades y las ganancias de capital | C7: =+AnalisisER!C10 -> 31 | D7: =SUMIF(AnalisisER!$A$10:$A$8000,$A7,AnalisisER!$D$10:$D$8000) -> 0 | E7: =SUMIF(AnalisisER!$A$10:$A$8000,$A7,AnalisisER!$F$10:$F$8000) -> 0 | F7: =SUMIF(AnalisisER!$A$10:$A$8000,$A7,AnalisisER!$I$10:$I$8000)*100 -> 0
A9: Cuenta | B9: Descripción | C9: Nota | D9: Periodo Actual | E9: Periodo Anterior | F9: Diferencia
F10: %
A11: 4.1.2. | B11: =+AnalisisER!$B$15 -> Impuestos sobre la propiedad | C11: =+AnalisisER!C15 -> 32 | D11: =SUMIF(AnalisisER!$A$10:$A$8000,$A11,AnalisisER!$D$10:$D$8000) -> 0 | E11: =SUMIF(AnalisisER!$A$10:$A$8000,$A11,AnalisisER!$F$10:$F$8000) -> 0 | F11: =SUMIF(AnalisisER!$A$10:$A$8000,$A11,AnalisisER!$I$10:$I$8000)*100 -> 0
A13: Cuenta | B13: Descripción | C13: Nota | D13: Periodo Actual | E13: Periodo Anterior | F13: Diferencia
F14: %
A15: 4.1.3. | B15: =+AnalisisER!$B$22 -> Impuestos sobre bienes y servicios | C15: =+AnalisisER!C22 -> 33 | D15: =SUMIF(AnalisisER!$A$10:$A$8000,$A15,AnalisisER!$D$10:$D$8000) -> 0 | E15: =SUMIF(AnalisisER!$A$10:$A$8000,$A15,AnalisisER!$F$10:$F$8000) -> 0 | F15: =SUMIF(AnalisisER!$A$10:$A$8000,$A15,AnalisisER!$I$10:$I$8000)*100 -> 0
A17: Cuenta | B17: Descripción | C17: Nota | D17: Periodo Actual | E17: Periodo Anterior | F17: Diferencia
F18: %
A19: 4.1.4. | B19: =+AnalisisER!$B$26 -> Impuestos sobre el comercio exterior y transacciones internacionales | C19: =+AnalisisER!C26 -> 34 | D19: =SUMIF(AnalisisER!$A$10:$A$8000,$A19,AnalisisER!$D$10:$D$8000) -> 0 | E19: =SUMIF(AnalisisER!$A$10:$A$8000,$A19,AnalisisER!$F$10:$F$8000) -> 0 | F19: =SUMIF(AnalisisER!$A$10:$A$8000,$A19,AnalisisER!$I$10:$I$8000)*100 -> 0
A21: Cuenta | B21: Descripción | C21: Nota | D21: Periodo Actual | E21: Periodo Anterior | F21: Diferencia
F22: %
A23: 4.1.9. | B23: =+AnalisisER!$B$30 -> Otros impuestos | C23: =+AnalisisER!C30 -> 35 | D23: =SUMIF(AnalisisER!$A$10:$A$8000,$A23,AnalisisER!$D$10:$D$8000) -> 0 | E23: =SUMIF(AnalisisER!$A$10:$A$8000,$A23,AnalisisER!$F$10:$F$8000) -> 0 | F23: =SUMIF(AnalisisER!$A$10:$A$8000,$A23,AnalisisER!$I$10:$I$8000)*100 -> 0
A25: Cuenta | B25: Descripción | C25: Nota | D25: Periodo Actual | E25: Periodo Anterior | F25: Diferencia
F26: %
A27: 4.2.1. | B27: =+AnalisisER!$B$33 -> Contribuciones a la seguridad social | C27: =+AnalisisER!C33 -> 36 | D27: =SUMIF(AnalisisER!$A$10:$A$8000,$A27,AnalisisER!$D$10:$D$8000) -> 0 | E27: =SUMIF(AnalisisER!$A$10:$A$8000,$A27,AnalisisER!$F$10:$F$8000) -> 0 | F27: =SUMIF(AnalisisER!$A$10:$A$8000,$A27,AnalisisER!$I$10:$I$8000)*100 -> 0
A29: Cuenta | B29: Descripción | C29: Nota | D29: Periodo Actual | E29: Periodo Anterior | F29: Diferencia
F30: %
A31: 4.2.9. | B31: =+AnalisisER!$B$37 -> Contribuciones sociales diversas | C31: =+AnalisisER!C37 -> 37 | D31: =SUMIF(AnalisisER!$A$10:$A$8000,$A31,AnalisisER!$D$10:$D$8000) -> 0 | E31: =SUMIF(AnalisisER!$A$10:$A$8000,$A31,AnalisisER!$F$10:$F$8000) -> 0 | F31: =SUMIF(AnalisisER!$A$10:$A$8000,$A31,AnalisisER!$I$10:$I$8000)*100 -> 0
A33: Cuenta | B33: Descripción | C33: Nota | D33: Periodo Actual | E33: Periodo Anterior | F33: Diferencia
F34: %
A35: 4.3.1. | B35: =+AnalisisER!$B$40 -> Multas y sanciones administrativas | C35: =+AnalisisER!C40 -> 38 | D35: =SUMIF(AnalisisER!$A$10:$A$8000,$A35,AnalisisER!$D$10:$D$8000) -> 0 | E35: =SUMIF(AnalisisER!$A$10:$A$8000,$A35,AnalisisER!$F$10:$F$8000) -> 0 | F35: =SUMIF(AnalisisER!$A$10:$A$8000,$A35,AnalisisER!$I$10:$I$8000)*100 -> 0
A37: Cuenta | B37: Descripción | C37: Nota | D37: Periodo Actual | E37: Periodo Anterior | F37: Diferencia
F38: %
A39: 4.3.2. | B39: =+AnalisisER!$B$45 -> Remates y confiscaciones de origen no tributario | C39: =+AnalisisER!C45 -> 39 | D39: =SUMIF(AnalisisER!$A$10:$A$8000,$A39,AnalisisER!$D$10:$D$8000) -> 0 | E39: =SUMIF(AnalisisER!$A$10:$A$8000,$A39,AnalisisER!$F$10:$F$8000) -> 0 | F39: =SUMIF(AnalisisER!$A$10:$A$8000,$A39,AnalisisER!$I$10:$I$8000)*100 -> 0
A41: Cuenta | B41: Descripción | C41: Nota | D41: Periodo Actual | E41: Periodo Anterior | F41: Diferencia
F42: %
A43: 4.4.1. | B43: =+AnalisisER!$B$48 -> Ventas de bienes y servicios | C43: =+AnalisisER!C48 -> 40 | D43: =SUMIF(AnalisisER!$A$10:$A$8000,$A43,AnalisisER!$D$10:$D$8000) -> 0 | E43: =SUMIF(AnalisisER!$A$10:$A$8000,$A43,AnalisisER!$F$10:$F$8000) -> 0 | F43: =SUMIF(AnalisisER!$A$10:$A$8000,$A43,AnalisisER!$I$10:$I$8000)*100 -> 0
A45: Cuenta | B45: Descripción | C45: Nota | D45: Periodo Actual | E45: Periodo Anterior | F45: Diferencia
F46: %
A47: 4.4.2. | B47: =+AnalisisER!$B$51 -> Derechos administrativos | C47: =+AnalisisER!C51 -> 41 | D47: =SUMIF(AnalisisER!$A$10:$A$8000,$A47,AnalisisER!$D$10:$D$8000) -> 0 | E47: =SUMIF(AnalisisER!$A$10:$A$8000,$A47,AnalisisER!$F$10:$F$8000) -> 0 | F47: =SUMIF(AnalisisER!$A$10:$A$8000,$A47,AnalisisER!$I$10:$I$8000)*100 -> 0
A49: Cuenta | B49: Descripción | C49: Nota | D49: Periodo Actual | E49: Periodo Anterior | F49: Diferencia
F50: %
A51: 4.4.3. | B51: =+AnalisisER!$B$54 -> Comisiones por préstamos | C51: =+AnalisisER!C54 -> 42 | D51: =SUMIF(AnalisisER!$A$10:$A$8000,$A51,AnalisisER!$D$10:$D$8000) -> 0 | E51: =SUMIF(AnalisisER!$A$10:$A$8000,$A51,AnalisisER!$F$10:$F$8000) -> 0 | F51: =SUMIF(AnalisisER!$A$10:$A$8000,$A51,AnalisisER!$I$10:$I$8000)*100 -> 0
A53: Cuenta | B53: Descripción | C53: Nota | D53: Periodo Actual | E53: Periodo Anterior | F53: Diferencia
F54: %
A55: 4.4.4. | B55: =+AnalisisER!$B$58 -> Resultados positivos por ventas de inversiones | C55: =+AnalisisER!C58 -> 43 | D55: =SUMIF(AnalisisER!$A$10:$A$8000,$A55,AnalisisER!$D$10:$D$8000) -> 0 | E55: =SUMIF(AnalisisER!$A$10:$A$8000,$A55,AnalisisER!$F$10:$F$8000) -> 0 | F55: =SUMIF(AnalisisER!$A$10:$A$8000,$A55,AnalisisER!$I$10:$I$8000)*100 -> 0
A57: Cuenta | B57: Descripción | C57: Nota | D57: Periodo Actual | E57: Periodo Anterior | F57: Diferencia
F58: %
A59: 4.4.5. | B59: =+AnalisisER!$B$61 -> Resultados positivos por ventas e intercambio de bienes | C59: =+AnalisisER!C61 -> 44 | D59: =SUMIF(AnalisisER!$A$10:$A$8000,$A59,AnalisisER!$D$10:$D$8000) -> 0 | E59: =SUMIF(AnalisisER!$A$10:$A$8000,$A59,AnalisisER!$F$10:$F$8000) -> 0 | F59: =SUMIF(AnalisisER!$A$10:$A$8000,$A59,AnalisisER!$I$10:$I$8000)*100 -> 0
A61: Cuenta | B61: Descripción | C61: Nota | D61: Periodo Actual | E61: Periodo Anterior | F61: Diferencia
F62: %
A63: 4.4.6. | B63: =+AnalisisER!B71 -> Resultados positivos por la recuperación de dinero mal acreditado de periodos anteriores | C63: =+AnalisisER!C71 -> 45 | D63: =SUMIF(AnalisisER!$A$10:$A$8000,$A63,AnalisisER!$D$10:$D$8000) -> 0 | E63: =SUMIF(AnalisisER!$A$10:$A$8000,$A63,AnalisisER!$F$10:$F$8000) -> 0 | F63: =SUMIF(AnalisisER!$A$10:$A$8000,$A63,AnalisisER!$I$10:$I$8000)*100 -> 0
A65: Cuenta | B65: Descripción | C65: Nota | D65: Periodo Actual | E65: Periodo Anterior | F65: Diferencia
F66: %
A67: 4.5.1. | B67: =+AnalisisER!$B$74 -> Rentas de inversiones y de colocación de efectivo | C67: =+AnalisisER!C74 -> 46 | D67: =SUMIF(AnalisisER!$A$10:$A$8000,$A67,AnalisisER!$D$10:$D$8000) -> 0 | E67: =SUMIF(AnalisisER!$A$10:$A$8000,$A67,AnalisisER!$F$10:$F$8000) -> 0 | F67: =SUMIF(AnalisisER!$A$10:$A$8000,$A67,AnalisisER!$I$10:$I$8000)*100 -> 0
A69: Cuenta | B69: Descripción | C69: Nota | D69: Periodo Actual | E69: Periodo Anterior | F69: Diferencia
F70: %
A71: 4.5.2. | B71: =+AnalisisER!$B$78 -> Alquileres y derechos sobre bienes | C71: =+AnalisisER!C78 -> 47 | D71: =SUMIF(AnalisisER!$A$10:$A$8000,$A71,AnalisisER!$D$10:$D$8000) -> 0 | E71: =SUMIF(AnalisisER!$A$10:$A$8000,$A71,AnalisisER!$F$10:$F$8000) -> 0 | F71: =SUMIF(AnalisisER!$A$10:$A$8000,$A71,AnalisisER!$I$10:$I$8000)*100 -> 0
A73: Cuenta | B73: Descripción | C73: Nota | D73: Periodo Actual | E73: Periodo Anterior | F73: Diferencia
F74: %
A75: 4.5.2.01. | B75: =+AnalisisER!$B$79 -> Alquileres | C75: =+AnalisisER!C78 -> 47 | D75: =SUMIF(AnalisisER!$A$10:$A$8000,$A75,AnalisisER!$D$10:$D$8000) -> 0 | E75: =SUMIF(AnalisisER!$A$10:$A$8000,$A75,AnalisisER!$F$10:$F$8000) -> 0 | F75: =SUMIF(AnalisisER!$A$10:$A$8000,$A75,AnalisisER!$I$10:$I$8000)*100 -> 0
A77: Cuenta | B77: Descripción | C77: Nota | D77: Periodo Actual | E77: Periodo Anterior | F77: Diferencia
F78: %
A79: 4.5.9. | B79: =+AnalisisER!$B$82 -> Otros ingresos de la propiedad | C79: =+AnalisisER!C82 -> 48 | D79: =SUMIF(AnalisisER!$A$10:$A$8000,$A79,AnalisisER!$D$10:$D$8000) -> 0 | E79: =SUMIF(AnalisisER!$A$10:$A$8000,$A79,AnalisisER!$F$10:$F$8000) -> 0 | F79: =SUMIF(AnalisisER!$A$10:$A$8000,$A79,AnalisisER!$I$10:$I$8000)*100 -> 0
A81: Cuenta | B81: Descripción | C81: Nota | D81: Periodo Actual | E81: Periodo Anterior | F81: Diferencia
F82: %
A83: 4.6.1. | B83: =+AnalisisER!$B$90 -> Transferencias corrientes | C83: =+AnalisisER!C90 -> 49 | D83: =SUMIF(AnalisisER!$A$10:$A$8000,$A83,AnalisisER!$D$10:$D$8000) -> 1495902.625 | E83: =SUMIF(AnalisisER!$A$10:$A$8000,$A83,AnalisisER!$F$10:$F$8000) -> 1607762.032 | F83: =SUMIF(AnalisisER!$A$10:$A$8000,$A83,AnalisisER!$I$10:$I$8000)*100 -> -6.957460447
A85: Cuenta | B85: Descripción | C85: Nota | D85: Periodo Actual | E85: Periodo Anterior | F85: Diferencia
F86: %
A87: 4.6.2. | B87: =+AnalisisER!$B$94 -> Transferencias de capital | C87: =+AnalisisER!C94 -> 50 | D87: =SUMIF(AnalisisER!$A$10:$A$8000,$A87,AnalisisER!$D$10:$D$8000) -> 79.81891 | E87: =SUMIF(AnalisisER!$A$10:$A$8000,$A87,AnalisisER!$F$10:$F$8000) -> 0 | F87: =SUMIF(AnalisisER!$A$10:$A$8000,$A87,AnalisisER!$I$10:$I$8000)*100 -> 0
A89: Cuenta | B89: Descripción | C89: Nota | D89: Periodo Actual | E89: Periodo Anterior | F89: Diferencia
F90: %
A91: 4.9.1. | B91: =+AnalisisER!$B$99 -> Resultados positivos por tenencia y por exposición a la inflación | C91: =+AnalisisER!C99 -> 51 | D91: =SUMIF(AnalisisER!$A$10:$A$8000,$A91,AnalisisER!$D$10:$D$8000) -> 0 | E91: =SUMIF(AnalisisER!$A$10:$A$8000,$A91,AnalisisER!$F$10:$F$8000) -> 206.70612 | F91: =SUMIF(AnalisisER!$A$10:$A$8000,$A91,AnalisisER!$I$10:$I$8000)*100 -> -100
A93: Cuenta | B93: Descripción | C93: Nota | D93: Periodo Actual | E93: Periodo Anterior | F93: Diferencia
F94: %
A95: 4.9.2. | B95: =+AnalisisER!$B$106 -> Reversión de consumo de bienes | C95: =+AnalisisER!C106 -> 52 | D95: =SUMIF(AnalisisER!$A$10:$A$8000,$A95,AnalisisER!$D$10:$D$8000) -> 0 | E95: =SUMIF(AnalisisER!$A$10:$A$8000,$A95,AnalisisER!$F$10:$F$8000) -> 0 | F95: =SUMIF(AnalisisER!$A$10:$A$8000,$A95,AnalisisER!$I$10:$I$8000)*100 -> 0
A97: Cuenta | B97: Descripción | C97: Nota | D97: Periodo Actual | E97: Periodo Anterior | F97: Diferencia
F98: %
A99: 4.9.3. | B99: =+AnalisisER!$B$109 -> Reversión de pérdidas por deterioro y desvalorización de bienes | C99: =+AnalisisER!C109 -> 53 | D99: =SUMIF(AnalisisER!$A$10:$A$8000,$A99,AnalisisER!$D$10:$D$8000) -> 0 | E99: =SUMIF(AnalisisER!$A$10:$A$8000,$A99,AnalisisER!$F$10:$F$8000) -> 0 | F99: =SUMIF(AnalisisER!$A$10:$A$8000,$A99,AnalisisER!$I$10:$I$8000)*100 -> 0
A101: Cuenta | B101: Descripción | C101: Nota | D101: Periodo Actual | E101: Periodo Anterior | F101: Diferencia
F102: %
A103: 4.9.4. | B103: =+AnalisisER!$B$115 -> Recuperación de previsiones | C103: =+AnalisisER!C115 -> 54 | D103: =SUMIF(AnalisisER!$A$10:$A$8000,$A103,AnalisisER!$D$10:$D$8000) -> 0 | E103: =SUMIF(AnalisisER!$A$10:$A$8000,$A103,AnalisisER!$F$10:$F$8000) -> 0 | F103: =SUMIF(AnalisisER!$A$10:$A$8000,$A103,AnalisisER!$I$10:$I$8000)*100 -> 0
A105: Cuenta | B105: Descripción | C105: Nota | D105: Periodo Actual | E105: Periodo Anterior | F105: Diferencia
F106: %
A107: 4.9.5. | B107: =+AnalisisER!$B$119 -> Recuperación de provisiones y reservas técnicas | C107: =+AnalisisER!C119 -> 55 | D107: =SUMIF(AnalisisER!$A$10:$A$8000,$A107,AnalisisER!$D$10:$D$8000) -> 0 | E107: =SUMIF(AnalisisER!$A$10:$A$8000,$A107,AnalisisER!$F$10:$F$8000) -> 0 | F107: =SUMIF(AnalisisER!$A$10:$A$8000,$A107,AnalisisER!$I$10:$I$8000)*100 -> 0
A109: Cuenta | B109: Descripción | C109: Nota | D109: Periodo Actual | E109: Periodo Anterior | F109: Diferencia
F110: %
A111: 4.9.6. | B111: =+AnalisisER!$B$124 -> Resultados positivos de inversiones patrimoniales y participación de los intereses minoritarios | C111: =+AnalisisER!C124 -> 56 | D111: =SUMIF(AnalisisER!$A$10:$A$8000,$A111,AnalisisER!$D$10:$D$8000) -> 0 | E111: =SUMIF(AnalisisER!$A$10:$A$8000,$A111,AnalisisER!$F$10:$F$8000) -> 0 | F111: =SUMIF(AnalisisER!$A$10:$A$8000,$A111,AnalisisER!$I$10:$I$8000)*100 -> 0
A113: Cuenta | B113: Descripción | C113: Nota | D113: Periodo Actual | E113: Periodo Anterior | F113: Diferencia
F114: %
A115: 4.9.9. | B115: =+AnalisisER!$B$127 -> Otros ingresos y resultados positivos | C115: =+AnalisisER!C127 -> 57 | D115: =SUMIF(AnalisisER!$A$10:$A$8000,$A115,AnalisisER!$D$10:$D$8000) -> 0 | E115: =SUMIF(AnalisisER!$A$10:$A$8000,$A115,AnalisisER!$F$10:$F$8000) -> 0 | F115: =SUMIF(AnalisisER!$A$10:$A$8000,$A115,AnalisisER!$I$10:$I$8000)*100 -> 0
A118: GASTOS
A120: Cuenta | B120: Descripción | C120: Nota | D120: Periodo Actual | E120: Periodo Anterior | F120: Diferencia
F121: %
A122: 5.1.1. | B122: =+AnalisisER!$B$133 -> Gastos en personal | C122: =+AnalisisER!C133 -> 58 | D122: =SUMIF(AnalisisER!$A$10:$A$8000,$A122,AnalisisER!$D$10:$D$8000) -> 1443575.301 | E122: =SUMIF(AnalisisER!$A$10:$A$8000,$A122,AnalisisER!$F$10:$F$8000) -> 1533464.952 | F122: =SUMIF(AnalisisER!$A$10:$A$8000,$A122,AnalisisER!$I$10:$I$8000)*100 -> -5.861865375
A124: Cuenta | B124: Descripción | C124: Nota | D124: Periodo Actual | E124: Periodo Anterior | F124: Diferencia
F125: %
A126: 5.1.2. | B126: =+AnalisisER!$B$142 -> Servicios | C126: =+AnalisisER!C142 -> 59 | D126: =SUMIF(AnalisisER!$A$10:$A$8000,$A126,AnalisisER!$D$10:$D$8000) -> 70629.19207 | E126: =SUMIF(AnalisisER!$A$10:$A$8000,$A126,AnalisisER!$F$10:$F$8000) -> 61023.99782 | F126: =SUMIF(AnalisisER!$A$10:$A$8000,$A126,AnalisisER!$I$10:$I$8000)*100 -> 15.74002785
A128: Cuenta | B128: Descripción | C128: Nota | D128: Periodo Actual | E128: Periodo Anterior | F128: Diferencia
F129: %
A130: 5.1.2.01. | B130: =+AnalisisER!$B$143 -> Alquileres y derechos sobre bienes | C130: =+AnalisisER!C142 -> 59 | D130: =SUMIF(AnalisisER!$A$10:$A$8000,$A130,AnalisisER!$D$10:$D$8000) -> 12676.51148 | E130: =SUMIF(AnalisisER!$A$10:$A$8000,$A130,AnalisisER!$F$10:$F$8000) -> 12521.61004 | F130: =SUMIF(AnalisisER!$A$10:$A$8000,$A130,AnalisisER!$I$10:$I$8000)*100 -> 1.237072864
A132: Cuenta | B132: Descripción | C132: Nota | D132: Periodo Actual | E132: Periodo Anterior | F132: Diferencia
F133: %
A134: 5.1.3. | B134: =+AnalisisER!$B$152 -> Materiales y suministros consumidos | C134: =+AnalisisER!C152 -> 60 | D134: =SUMIF(AnalisisER!$A$10:$A$8000,$A134,AnalisisER!$D$10:$D$8000) -> 5463.25208 | E134: =SUMIF(AnalisisER!$A$10:$A$8000,$A134,AnalisisER!$F$10:$F$8000) -> 5770.44737 | F134: =SUMIF(AnalisisER!$A$10:$A$8000,$A134,AnalisisER!$I$10:$I$8000)*100 -> -5.323595734
A136: Cuenta | B136: Descripción | C136: Nota | D136: Periodo Actual | E136: Periodo Anterior | F136: Diferencia
F137: %
A138: 5.1.4. | B138: =+AnalisisER!$B$158 -> Consumo de bienes distintos de inventarios | C138: =+AnalisisER!C158 -> 61 | D138: =SUMIF(AnalisisER!$A$10:$A$8000,$A138,AnalisisER!$D$10:$D$8000) -> 47409.18753 | E138: =SUMIF(AnalisisER!$A$10:$A$8000,$A138,AnalisisER!$F$10:$F$8000) -> 50794.77458 | F138: =SUMIF(AnalisisER!$A$10:$A$8000,$A138,AnalisisER!$I$10:$I$8000)*100 -> -6.66522704
A140: Cuenta | B140: Descripción | C140: Nota | D140: Periodo Actual | E140: Periodo Anterior | F140: Diferencia
F141: %
A142: 5.1.5. | B142: =+AnalisisER!$B$161 -> Pérdidas por deterioro y desvalorización de bienes | C142: =+AnalisisER!C161 -> 62 | D142: =SUMIF(AnalisisER!$A$10:$A$8000,$A142,AnalisisER!$D$10:$D$8000) -> 0 | E142: =SUMIF(AnalisisER!$A$10:$A$8000,$A142,AnalisisER!$F$10:$F$8000) -> 0 | F142: =SUMIF(AnalisisER!$A$10:$A$8000,$A142,AnalisisER!$I$10:$I$8000)*100 -> 0
A144: Cuenta | B144: Descripción | C144: Nota | D144: Periodo Actual | E144: Periodo Anterior | F144: Diferencia
F145: %
A146: 5.1.6. | B146: =+AnalisisER!$B$164 -> Deterioro y pérdidas de inventarios | C146: =+AnalisisER!C164 -> 63 | D146: =SUMIF(AnalisisER!$A$10:$A$8000,$A146,AnalisisER!$D$10:$D$8000) -> 0 | E146: =SUMIF(AnalisisER!$A$10:$A$8000,$A146,AnalisisER!$F$10:$F$8000) -> 0 | F146: =SUMIF(AnalisisER!$A$10:$A$8000,$A146,AnalisisER!$I$10:$I$8000)*100 -> 0
A148: Cuenta | B148: Descripción | C148: Nota | D148: Periodo Actual | E148: Periodo Anterior | F148: Diferencia
F149: %
A150: 5.1.7. | B150: =+AnalisisER!$B$168 -> Deterioro de inversiones y cuentas a cobrar | C150: =+AnalisisER!C168 -> 64 | D150: =SUMIF(AnalisisER!$A$10:$A$8000,$A150,AnalisisER!$D$10:$D$8000) -> 0 | E150: =SUMIF(AnalisisER!$A$10:$A$8000,$A150,AnalisisER!$F$10:$F$8000) -> 0 | F150: =SUMIF(AnalisisER!$A$10:$A$8000,$A150,AnalisisER!$I$10:$I$8000)*100 -> 0
A152: Cuenta | B152: Descripción | C152: Nota | D152: Periodo Actual | E152: Periodo Anterior | F152: Diferencia
F153: %
A154: 5.1.8. | B154: =+AnalisisER!$B$171 -> Cargos por provisiones y reservas técnicas | C154: =+AnalisisER!C171 -> 65 | D154: =SUMIF(AnalisisER!$A$10:$A$8000,$A154,AnalisisER!$D$10:$D$8000) -> 0 | E154: =SUMIF(AnalisisER!$A$10:$A$8000,$A154,AnalisisER!$F$10:$F$8000) -> 0 | F154: =SUMIF(AnalisisER!$A$10:$A$8000,$A154,AnalisisER!$I$10:$I$8000)*100 -> 0
A156: Cuenta | B156: Descripción | C156: Nota | D156: Periodo Actual | E156: Periodo Anterior | F156: Diferencia
F157: %
A158: 5.1.8.01 | B158: =+AnalisisER!$B$172 -> Cargos por litigios y demandas | C158: =+AnalisisER!$C$171 -> 65 | D158: =SUMIF(AnalisisER!$A$10:$A$8000,$A158,AnalisisER!$D$10:$D$8000) -> 0 | E158: =SUMIF(AnalisisER!$A$10:$A$8000,$A158,AnalisisER!$F$10:$F$8000) -> 0 | F158: =SUMIF(AnalisisER!$A$10:$A$8000,$A158,AnalisisER!$I$10:$I$8000)*100 -> 0
A160: Cuenta | B160: Descripción | C160: Nota | D160: Periodo Actual | E160: Periodo Anterior | F160: Diferencia
F161: %
A162: 5.2.1. | B162: =+AnalisisER!$B$177 -> Intereses sobre endeudamiento público | C162: =+AnalisisER!C177 -> 66 | D162: =SUMIF(AnalisisER!$A$10:$A$8000,$A162,AnalisisER!$D$10:$D$8000) -> 0 | E162: =SUMIF(AnalisisER!$A$10:$A$8000,$A162,AnalisisER!$F$10:$F$8000) -> 0 | F162: =SUMIF(AnalisisER!$A$10:$A$8000,$A162,AnalisisER!$I$10:$I$8000)*100 -> 0
A164: Cuenta | B164: Descripción | C164: Nota | D164: Periodo Actual | E164: Periodo Anterior | F164: Diferencia
F165: %
A166: 5.2.9. | B166: =+AnalisisER!$B$182 -> Otros gastos financieros | C166: =+AnalisisER!C182 -> 67 | D166: =SUMIF(AnalisisER!$A$10:$A$8000,$A166,AnalisisER!$D$10:$D$8000) -> 0 | E166: =SUMIF(AnalisisER!$A$10:$A$8000,$A166,AnalisisER!$F$10:$F$8000) -> 0 | F166: =SUMIF(AnalisisER!$A$10:$A$8000,$A166,AnalisisER!$I$10:$I$8000)*100 -> 0
A168: Cuenta | B168: Descripción | C168: Nota | D168: Periodo Actual | E168: Periodo Anterior | F168: Diferencia
F169: %
A170: 5.3.1. | B170: =+AnalisisER!$B$189 -> Costo de ventas de bienes y servicios | C170: =+AnalisisER!C189 -> 68 | D170: =SUMIF(AnalisisER!$A$10:$A$8000,$A170,AnalisisER!$D$10:$D$8000) -> 0 | E170: =SUMIF(AnalisisER!$A$10:$A$8000,$A170,AnalisisER!$F$10:$F$8000) -> 0 | F170: =SUMIF(AnalisisER!$A$10:$A$8000,$A170,AnalisisER!$I$10:$I$8000)*100 -> 0
A172: Cuenta | B172: Descripción | C172: Nota | D172: Periodo Actual | E172: Periodo Anterior | F172: Diferencia
F173: %
A174: 5.3.2. | B174: =+AnalisisER!$B$192 -> Resultados negativos por ventas de inversiones | C174: =+AnalisisER!C192 -> 69 | D174: =SUMIF(AnalisisER!$A$10:$A$8000,$A174,AnalisisER!$D$10:$D$8000) -> 0 | E174: =SUMIF(AnalisisER!$A$10:$A$8000,$A174,AnalisisER!$F$10:$F$8000) -> 0 | F174: =SUMIF(AnalisisER!$A$10:$A$8000,$A174,AnalisisER!$I$10:$I$8000)*100 -> 0
A176: Cuenta | B176: Descripción | C176: Nota | D176: Periodo Actual | E176: Periodo Anterior | F176: Diferencia
F177: %
A178: 5.3.3. | B178: =+AnalisisER!$B$195 -> Resultados negativos por ventas e intercambio de bienes | C178: =+AnalisisER!C195 -> 70 | D178: =SUMIF(AnalisisER!$A$10:$A$8000,$A178,AnalisisER!$D$10:$D$8000) -> 0 | E178: =SUMIF(AnalisisER!$A$10:$A$8000,$A178,AnalisisER!$F$10:$F$8000) -> 0 | F178: =SUMIF(AnalisisER!$A$10:$A$8000,$A178,AnalisisER!$I$10:$I$8000)*100 -> 0
A180: Cuenta | B180: Descripción | C180: Nota | D180: Periodo Actual | E180: Periodo Anterior | F180: Diferencia
F181: %
A182: 5.4.1. | B182: =+AnalisisER!$B$204 -> Transferencias corrientes | C182: =+AnalisisER!C204 -> 71 | D182: =SUMIF(AnalisisER!$A$10:$A$8000,$A182,AnalisisER!$D$10:$D$8000) -> 26510.29824 | E182: =SUMIF(AnalisisER!$A$10:$A$8000,$A182,AnalisisER!$F$10:$F$8000) -> 34042.63424 | F182: =SUMIF(AnalisisER!$A$10:$A$8000,$A182,AnalisisER!$I$10:$I$8000)*100 -> -22.12618432
A184: Cuenta | B184: Descripción | C184: Nota | D184: Periodo Actual | E184: Periodo Anterior | F184: Diferencia
F185: %
A186: 5.4.2. | B186: =+AnalisisER!$B$208 -> Transferencias de capital | C186: =+AnalisisER!C208 -> 72 | D186: =SUMIF(AnalisisER!$A$10:$A$8000,$A186,AnalisisER!$D$10:$D$8000) -> 0 | E186: =SUMIF(AnalisisER!$A$10:$A$8000,$A186,AnalisisER!$F$10:$F$8000) -> 0 | F186: =SUMIF(AnalisisER!$A$10:$A$8000,$A186,AnalisisER!$I$10:$I$8000)*100 -> 0
A188: Cuenta | B188: Descripción | C188: Nota | D188: Periodo Actual | E188: Periodo Anterior | F188: Diferencia
F189: %
A190: 5.9.1. | B190: =+AnalisisER!$B$213 -> Resultados negativos por tenencia y por exposición a la inflación | C190: =+AnalisisER!C213 -> 73 | D190: =SUMIF(AnalisisER!$A$10:$A$8000,$A190,AnalisisER!$D$10:$D$8000) -> 518.00793 | E190: =SUMIF(AnalisisER!$A$10:$A$8000,$A190,AnalisisER!$F$10:$F$8000) -> 0.77162 | F190: =SUMIF(AnalisisER!$A$10:$A$8000,$A190,AnalisisER!$I$10:$I$8000)*100 -> 67032.5173
A192: Cuenta | B192: Descripción | C192: Nota | D192: Periodo Actual | E192: Periodo Anterior | F192: Diferencia
F193: %
A194: 5.9.2. | B194: =+AnalisisER!$B$220 -> Resultados negativos de inversiones patrimoniales y participación de los intereses minoritarios | C194: =+AnalisisER!C220 -> 74 | D194: =SUMIF(AnalisisER!$A$10:$A$8000,$A194,AnalisisER!$D$10:$D$8000) -> 0 | E194: =SUMIF(AnalisisER!$A$10:$A$8000,$A194,AnalisisER!$F$10:$F$8000) -> 0 | F194: =SUMIF(AnalisisER!$A$10:$A$8000,$A194,AnalisisER!$I$10:$I$8000)*100 -> 0
A196: Cuenta | B196: Descripción | C196: Nota | D196: Periodo Actual | E196: Periodo Anterior | F196: Diferencia
F197: %
A198: 5.9.9. | B198: =+AnalisisER!$B$223 -> Otros gastos y resultados negativos | C198: =+AnalisisER!C223 -> 75 | D198: =SUMIF(AnalisisER!$A$10:$A$8000,$A198,AnalisisER!$D$10:$D$8000) -> 0 | E198: =SUMIF(AnalisisER!$A$10:$A$8000,$A198,AnalisisER!$F$10:$F$8000) -> 0 | F198: =SUMIF(AnalisisER!$A$10:$A$8000,$A198,AnalisisER!$I$10:$I$8000)*100 -> 0

Sheet Notas Flujo
A1: Notas Estado de Flujo de Efectivo Comparativo
A3: FLUJOS DE EFECTIVO DE LAS ACTIVIDADES DE OPERACIÓN
A5: Descripción | B5: Nota | C5: Periodo Actual | D5: Periodo Anterior | E5: Diferencia
E6: %
A7: Cobros | B7: =+AnalisisFlujo!C9 -> 76 | C7: =SUMIF(AnalisisFlujo!$C$9:$C$8000,$B7,AnalisisFlujo!$D$9:$D$8000) -> 1577732.24 | D7: =SUMIF(AnalisisFlujo!$C$9:$C$8000,$B7,AnalisisFlujo!$F$9:$F$8000) -> 1673839.013 | E7: =SUMIF(AnalisisFlujo!$C$9:$C$8000,$B7,AnalisisFlujo!$I$9:$I$8000)*100 -> -5.741697522
A9: Descripción | B9: Nota | C9: Periodo Actual | D9: Periodo Anterior | E9: Diferencia
E10: %
A11: Pagos | B11: =+AnalisisFlujo!C18 -> 77 | C11: =SUMIF(AnalisisFlujo!$C$9:$C$8000,$B11,AnalisisFlujo!$D$9:$D$8000) -> 1616718.07 | D11: =SUMIF(AnalisisFlujo!$C$9:$C$8000,$B11,AnalisisFlujo!$F$9:$F$8000) -> 1673432.494 | E11: =SUMIF(AnalisisFlujo!$C$9:$C$8000,$B11,AnalisisFlujo!$I$9:$I$8000)*100 -> -3.389107364
A14: FLUJOS DE EFECTIVO DE LAS ACTIVIDADES DE INVERSIÓN
A16: Descripción | B16: Nota | C16: Periodo Actual | D16: Periodo Anterior | E16: Diferencia
E17: %
A18: Cobros | B18: =+AnalisisFlujo!C27 -> 78 | C18: =SUMIF(AnalisisFlujo!$C$9:$C$8000,$B18,AnalisisFlujo!$D$9:$D$8000) -> 0 | D18: =SUMIF(AnalisisFlujo!$C$9:$C$8000,$B18,AnalisisFlujo!$F$9:$F$8000) -> 0 | E18: =SUMIF(AnalisisFlujo!$C$9:$C$8000,$B18,AnalisisFlujo!$I$9:$I$8000)*100 -> 0
A20: Descripción | B20: Nota | C20: Periodo Actual | D20: Periodo Anterior | E20: Diferencia
E21: %
A22: Pagos | B22: =+AnalisisFlujo!C33 -> 79 | C22: =SUMIF(AnalisisFlujo!$C$9:$C$8000,$B22,AnalisisFlujo!$D$9:$D$8000) -> 79.11 | D22: =SUMIF(AnalisisFlujo!$C$9:$C$8000,$B22,AnalisisFlujo!$F$9:$F$8000) -> 0 | E22: =SUMIF(AnalisisFlujo!$C$9:$C$8000,$B22,AnalisisFlujo!$I$9:$I$8000)*100 -> 0
A25: FLUJOS DE EFECTIVO DE LAS ACTIVIDADES DE FINANCIACIÓN
A27: Descripción | B27: Nota | C27: Periodo Actual | D27: Periodo Anterior | E27: Diferencia
E28: %
A29: Cobros | B29: =+AnalisisFlujo!C42 -> 80 | C29: =SUMIF(AnalisisFlujo!$C$9:$C$8000,$B29,AnalisisFlujo!$D$9:$D$8000) -> 0 | D29: =SUMIF(AnalisisFlujo!$C$9:$C$8000,$B29,AnalisisFlujo!$F$9:$F$8000) -> 0 | E29: =SUMIF(AnalisisFlujo!$C$9:$C$8000,$B29,AnalisisFlujo!$I$9:$I$8000)*100 -> 0
A31: Descripción | B31: Nota | C31: Periodo Actual | D31: Periodo Anterior | E31: Diferencia
E32: %
A33: Pagos | B33: =+AnalisisFlujo!C46 -> 81 | C33: =SUMIF(AnalisisFlujo!$C$9:$C$8000,$B33,AnalisisFlujo!$D$9:$D$8000) -> 0 | D33: =SUMIF(AnalisisFlujo!$C$9:$C$8000,$B33,AnalisisFlujo!$F$9:$F$8000) -> 0 | E33: =SUMIF(AnalisisFlujo!$C$9:$C$8000,$B33,AnalisisFlujo!$I$9:$I$8000)*100 -> 0
A35: Descripción | B35: Nota | C35: Periodo Actual | D35: Periodo Anterior | E35: Diferencia
E36: %
A37: =+AnalisisFlujo!A56 -> Efectivo y equivalentes de efectivo al final del ejercicio | B37: =+AnalisisFlujo!C56 -> 82 | C37: =SUMIF(AnalisisFlujo!$C$9:$C$8000,$B37,AnalisisFlujo!$D$9:$D$8000) -> 33997.34 | D37: =SUMIF(AnalisisFlujo!$C$9:$C$8000,$B37,AnalisisFlujo!$F$9:$F$8000) -> 73393.89927 | E37: =SUMIF(AnalisisFlujo!$C$9:$C$8000,$B37,AnalisisFlujo!$I$9:$I$8000)*100 -> -53.678248

Sheet Notas ECP
A1: Notas Estado de Cambios en el Patrimonio Comparativo
A3: Descripción | B3: Nota | C3: Periodo Actual | D3: Periodo Anterior | E3: Diferencia
E4: %
A5: =+AnalisisECP!B28 -> Saldos del período | B5: =+AnalisisECP!A28 -> 83 | C5: =SUMIF(AnalisisECP!$A$9:$A$8000,$B5,AnalisisECP!$C$9:$C$8000) -> 1840392.139 | D5: =SUMIF(AnalisisECP!$A$9:$A$8000,$B5,AnalisisECP!$E$9:$E$8000) -> 2000824.003 | E5: =SUMIF(AnalisisECP!$A$9:$A$8000,$B5,AnalisisECP!$H$9:$H$8000)*100 -> -8.018289682

Sheet Texto
B2: La cuenta Efectivo y Equivalentes de Efectivo, representa el (indicar % análisis vertical) % del total de activos, que comparado al periodo anterior genera una variación absoluta de (indicar monto de la variación) que corresponde a un (indicar el aumento o disminución) del (indicar % variación relativa) % de recursos disponibles, producto de
B4: La cuenta
B6: , representa el
B8: % del total de
B12: , que comparado al periodo anterior genera una variación absoluta de
B14: que corresponde a un(a)
B16: del
B18: % de recursos disponibles, producto de
